Workbook

Sheet Title
B2: Central Hydrogen Production - Project Information
B5: Title: | C5: Future Central PEC Pathway (Dual Bed FeO2 Colloidal Suspension at 5% conversion efficiency)
B6: Authors: | C6: Brian D. James, Directed Technologies Inc.
B7: Contact: | C7: Michael Penev
B8: Contact phone: | C8: 303 275 3880
B9: Contact e-mail: | C9: mike.penev@nrel.gov
B10: Organization: | C10: NREL
B11: Date: | C11: 2018-02-21
B12: Web Site: | C12: www.nrel.gov
B14: Plant Design Capacity (kg/day): | C14: 50,000 (but values in the spreadsheet are portrayed at the normalized 1 TPD value)
B15: Start-up Year: | C15: 2040
B16: Primary Product Feedstock Source: | C16: Demineralized Water
B17: Secondary Feedstock Source: | C17: None
B18: Process Energy Source: | C18: Sunlight
B19: Conversion Technology: | C19: PEC Pathway #2 (Dual Bed Colloidal Suspension at 5% effic)
B20: Primary By-Product: | C20: None
B21: Secondary By-Product: | C21: None
B22: Based on Number of Plants Installed per Year (per manufacturer): | C22: y
B23: H2 Onsite Storage Type
B24: Assumed plant location:
B26: Reporting Spreadsheet Change History:
B27: Date spreadsheet created / modified | C27: Name | D27: Comments
B28: 2020-10-27 | C28: M. Penev | D28: Made compatible with Excel for Mac
B29: H2A Version 3
B30: 2018-02-06 | C30: M. Penev | D30: Case was ported to H2A version 3
D32: H2A version 2
B33: 2008-09-23 | C33: Brian D. James | D33: Based on Forecourt H2A Spreadsheet v26 by Darlene Steward/Todd Ramsden
D35: H2A version 3
B36: 2011-07-06 | C36: Andrew Spisak | D36: Ported to H2A v3
B37: 2012-07-12 | C37: Todd Ramsden | D37: Ported to latest H2A v3

Sheet Description
B2: Central Hydrogen Production - Description
B6: Purpose:
B7: Determine levelized cost of hydrogen from a photoelectrochemical hydrogen system
B10: System Description:
B11: Based on system Type 2 from "Technoeconomic Analysis of Photoelectrochemical (PEC) Hydrogen Production," Directed Technologies Inc., Final Report to NREL, December 2009. (5% solar-to-hydrogen conversion efficiency colloidal suspension PEC system in a dual bed) PEC systems use solar photons to generate a voltage in an electrolysis cell sufficient to electrolyze water, producing H2 and O2 gases. The system analyzed in this scenario constist of dual electrolyte-filled reactor beds containing colloidal suspensions of PEC nanoparticles, with one bed carrying out the H2O => ½ O2 + 2 H+ half-reaction, the other bed carrying out the 2H+ => H2 half-reaction, and including a mechanism for circulating the ions between beds. Each nanoparticle is composed of the appropriate layered PV materials to achieve sufficient bandgap voltage to carry out the electrolysis reaction.
B14: Analysis Methodology Summary:
B18: Plant Ownership and Entity Type Assumptions:
B21: References:
B22: Technoeconomic Analysis of Photoelectrochemical (PEC) Hydrogen Production, Final Report, December 2009
B23: http://www1.eere.energy.gov/hydrogenandfuelcells/pdfs/pec_technoeconomic_analysis.pdf

Sheet ProcessFlow
B2: Central Hydrogen Production - Process Flow Diagram
B6: Process Flow Diagram
B7: Type 2 is the second type of colloidal suspension reactor and employs separate beds for the O2 gas production reaction and the H2 gas production reaction. The O2 and H2 beds are linked together with diffusion bridges to allow the transport of ions but prevent gas and particle mixing. A 0.1M KOH electrolyte is common to both beds and facilitates transport of ionic species. These beds also contain an intermediary reactant denoted “A”, which participates in the reactions, but is not consumed. “A” can be iodine, bromine, iron or other elements. A typical set of equations describing the nanoparticle photoreactions is: Bed I (O2 evolution bed): 4 photons + 4 A + 2 H2O => 1 O2 + 4H+ + 4 A Bed II (H2 evolution bed): 4 photons + 4H+ + 4 A- => 2 H2 + 4 A The nanoparticles are similar in structure to nanoparticles in the Type 1 system; however, the anodic particles would differ somewhat from the cathodic particles. We have modeled the Type 2 nanoparticles as Fe2O3
B29: Stream Summaries

Sheet Input_Sheet_Template
B2: H2A Hydrogen Production Cash Flow Analysis Tool v3.2018
A3: title | B3: Hydrogen Production from Photoelectrochemical Type 2 System - Future Timeframe
B5: Table of Contents
B6: View and edit project information
B8: H2A cell color coding
B10: Use H2A default values
B14: Technical Operating Parameters and Specifications
B15: Financial Input Values
B16: Energy Feedstocks, Utilities and Byproducts | H16: Cash Flow NPV (Error if not 0)
B17: Capital Cost | H17: =+NPV -> 1.324120264e-08
B18: Fixed Operating Costs
B19: Variable Operating Costs - Other Materials and Byproducts
B20: Variable Operating Costs - Other Variable Operating Costs
B24: Technical Operating Parameters and Specifications | E24: Notes
A25: cap_factor | B25: Operating Capacity Factor (%) | C25: =0.9*sensitivity_01 -> 0.9
A26: design_cap | B26: Plant Design Capacity (kg of H2/day) | C26: =1000*sensitivity_02 -> 1000
B27: Plant Output (kg/day) | C27: =design_cap*cap_factor -> 900
A28: Soutput_kgyear | B28: Plant Output (kg/year) | C28: =output_kgpday*365 -> 328500
B29: Financial Input Values | E29: Notes
A30: ref_year | B30: Reference year | C30: 2016
A31: startup_year | B31: Assumed start-up year | C31: 2040
B32: Basis year | C32: 2005 | D32: Costs must be entered in basis year dollars
A33: construct | B33: Length of Construction Period (years) | C33: 2
A34: percent_cap1 | B34: % of Capital Spent in 1st Year of Construction | C34: 0.2
A35: percent_cap2 | B35: % of Capital Spent in 2nd Year of Construction | C35: 0.8
A36: percent_cap3 | B36: % of Capital Spent in 3rd Year of Construction | C36: 0
A37: percent_cap4 | B37: % of Capital Spent in 4th Year of Construction
A38: start_time | B38: Start-up Time (years) | C38: 0.5
A39: plant_life | B39: Plant life (years) | C39: 40
A40: anal_period | B40: Analysis period (years) | C40: 40
A41: depr_length | B41: Depreciation Schedule Length (years) | C41: 20
A42: depr_type | B42: Depreciation Type | C42: MACRS
A43: equity | B43: % Equity Financing | C43: 0.4
A44: debt_interest | B44: Interest rate on debt, if applicable (%) | C44: 0.037
A45: debt_period | B45: Debt period (years) | C45: 0 | E45: Enter 0 to enable constant outstanding debt.
A46: percnt_fixed | B46: % of Fixed Operating Costs During Start-up (%) | C46: 1
A47: percnt_revs | B47: % of Revenues During Start-up (%) | C47: 0.75
A48: percnt_var | B48: % of Variable Operating Costs During Start-up (%) | C48: 0.75
A49: decom_percent | B49: Decommissioning costs (% of depreciable capital investment) | C49: 0.1
A50: salvage_perct | B50: Salvage value (% of total capital investment) | C50: 0.1
A51: inflation_rate | B51: Inflation rate (%) | C51: 0.019
A52: real_irr | B52: After-tax Real IRR (%) | C52: =0.08*sensitivity_03 -> 0.08
A53: state_tax_rate | B53: State Taxes (%) | C53: 0.06
A54: fed_tax_rate | B54: Federal Taxes (%) | C54: 0.21
A55: Stotal_tax_rate | B55: Total Tax Rate (%) | C55: =fed_tax_rate+state_tax_rate*(1-fed_tax_rate) -> 0.2574
A56: WorkingCap | B56: WORKING CAPITAL (% of yearly change in operating costs) | C56: 0.15 | E56: Based on 2009 electrolysis independent panel review where the H2A Default of 15% was thought to be too high.
B57: Energy Feedstocks, Utilities, and Byproducts
B58: Select the Price Table to Use
B59: AEO_2017_Reference_Case | F59: To use a new feedstock, utility or byproduct, select the price table and product from the dropdown lists and enter the usage (or byproduct) amount. Click the "Add" button to add the product to the "In Use" list. Important; only materials on the "In Use" list will be used in H2A calculations. To delete materials from the list, click the "Delete" button below
B60: Select the Use
B61: feedstock | C61: =IF(OR(TMP_FeedType="Feedstock",TMP_FeedType = "Utility")," Enter usage in","Enter production in") -> Enter usage in | D61: =VLOOKUP(TMP_FeedName,INDIRECT(TMP_PriceTable),4,FALSE) -> kWh
B62: Select the Feed Type
B63: Industrial Electricity
B65: =SELECTED_FEED -> feedstock | C65: =TMP_FeedName -> Industrial Electricity
B66: ="Price Conversion Factor (GJ/"&TMP_Units&")" -> Price Conversion Factor (GJ/kWh) | C66: =VLOOKUP(TMP_FeedName,MASTER_PROPERTY_TABLE,9,FALSE) -> 0.0036
B67: ="Price in Startup Year ($" & ref_year & ")/" & TMP_Units -> Price in Startup Year ($2016)/kWh | C67: =HLOOKUP(startup_year,INDIRECT(TMP_PriceTable),MATCH(TMP_FeedName,INDIRECT(Energy_Feed_List),0),FALSE)*TMP_Conversion -> 0.07759697608
B68: =IF(OR(TMP_FeedType="Feedstock",TMP_FeedType = "Utility"),"Usage ("&TMP_Units&"/kg H2)","Production ("&TMP_Units&"/kg H2)") -> Usage (kWh/kg H2) | C68: 2.01
B69: =IF(OR(TMP_FeedType = "Feedstock",TMP_FeedType = "Utility"), "Cost in Startup Year","Income in Startup Year") -> Cost in Startup Year | C69: =design_cap*365*cap_factor*TMP_Usage*TMP_StartPrice -> 51236.11935
B70: Lookup Prices | C70: yes
B72: Energy feedstocks, utilities, and byproducts currently in use
A73: START_TOP
B74: feedstock | C74: Price Conversion Factor (GJ/kWh) | D74: Price in Startup Year ($2016)/kWh | E74: Usage (kWh/kg H2) | F74: Cost in Startup Year | G74: Lookup Prices
B75: Industrial Electricity | C75: 0.0036 | D75: 0.07759697608 | E75: =2.01*sensitivity_04 -> 2.01 | F75: =D75*E75*output_kgyear*IF(start_time,percnt_var,1)*'Cash Flow Analysis'!$E$68/'Cash Flow Analysis'!$E$69 -> 37710.58834 | G75: yes
A76: START_TOP
A77: START_UTILITY
A78: START_BYPROD
F79: Total
A80: Total_Energy_Feed_Cost | B80: Total Energy Feedstock Cost ($/year) | F80: =SUM(Dynamic_Feed_Total) -> 37710.58834
A81: Total_Energy_Utilities_Cost | B81: Total Energy Utilities Cost ($/year) | F81: =SUM(Dynamic_Utilities_Total) -> 0
A82: Total_Energy_Byproduct_Credit | B82: Total Energy Byproduct Credit ($/year) | F82: =SUM(Dynamic_Byproduct_Total) -> 0
D83: Notes:
B85: Capital Costs | E85: Notes
A86: direct_cap | B86: H2A Total Direct Capital Cost | C86: =Det_scaled_cap -> 3237854.304 | E86: Click to enter details on the Cost Detail Sheet
B87: H2A Carbon Sequestration Total Direct Capital Cost | C87: =Det_CO2_seq -> 0 | E87: Click to enter details on the Carbon Sequestration calculation sheet.
B89: Indirect Depreciable Capital Costs | C89: ="Enter values in basis year (" & BasisYear & ") dollars" -> Enter values in basis year (2005) dollars | D89: Combined Plant Scaling and Escalation Factor | E89: ="Reference Year ("& ref_year & ") Dollars" -> Reference Year (2016) Dollars
A90: Site_prep | B90: Site Preparation ($) (may change to construction costs) | C90: =0.02*(direct_cap+CO2_seq)/(CEPCIinflator*CPIinflator) -> 50008.78078 | D90: =CEPCIinflator*CPIinflator -> 1.294914314 | E90: =C90*D90 -> 64757.08608
A91: Engin | B91: Engineering & design ($) | C91: =0.05*(direct_cap+CO2_seq)/(CEPCIinflator*CPIinflator) -> 125021.952 | D91: 1.294914314 | E91: =C91*D91 -> 161892.7152
A92: Process_cont | B92: Process contingency ($) | D92: 1.294914314 | E92: 0
A93: Project_cont | B93: Project contingency ($) | C93: =0.2*(direct_cap+CO2_seq)/(CEPCIinflator*CPIinflator) -> 500087.8078 | D93: 1.294914314 | E93: 647570.8608
A94: Other_indirect | B94: Other (Depreciable) capital ($) | D94: 1.294914314 | E94: 0
A95: Fees | B95: One-time Licensing Fees ($) | D95: 1.294914314 | E95: 0
A96: Permitting | B96: Up-Front Permitting Costs ($) (legal and contractors fees included here) | C96: =0.075*(direct_cap+CO2_seq)/(CEPCIinflator*CPIinflator) -> 187532.9279 | D96: 1.294914314 | E96: 242839.0728
A97: Sdepr_cap | B97: Total Depreciable Capital Costs | E97: =direct_cap+CO2_seq+SUM($E$90:$E$96) -> 4354914.039
D98: Combined Plant Scaling and Escalation Factor
B99: Non-Depreciable Capital Costs | C99: ="Enter values in basis year (" & BasisYear & ") dollars" -> Enter values in basis year (2005) dollars | E99: ="Reference Year ("& ref_year & ") Dollars" -> Reference Year (2016) Dollars
A100: acre_cost | B100: Cost of land ($/acre) | C100: 5000 | D100: =CPIinflator -> 1.100724187 | E100: =C100*D100 -> 5503.620933 | F100: Plant STH Efficiency
A101: acres | B101: Land required (acres) | C101: =33.33*design_cap/5.5/0.9/F101*1.3/'Constants and Conversions'!C10 -> 43.25838069 | D101: =Scale_Factor *1 -> 1 | E101: =C101*D101 -> 43.25838069 | F101: 0.05
A102: Sland_cost | B102: Land Cost ($) | E102: =acre_cost*acres -> 238077.7295
B103: Other non depreciable capital costs | D103: =CPIinflator -> 1.100724187 | E103: =C103*D103 -> 0
A104: Snon_dep_cap | B104: Total Non-Depreciable Capital Costs | E104: =land_cost+$E$103 -> 238077.7295
A106: Stotal_cap | B106: Total Capital Costs | C106: =(depr_cap+non_dep_cap)*sensitivity_06 -> 4592991.769
B108: Fixed Operating Costs | C108: ="Enter values in basis year (" & BasisYear & ") dollars" -> Enter values in basis year (2005) dollars | D108: Combined Plant Scaling and Escalation Factor | E108: ="Reference Year ("& ref_year & ") Dollars" -> Reference Year (2016) Dollars
A109: FTEs | B109: Total plant staff (number of FTEs employed by plant) | C109: 2.26 | D109: =Scale_Ratio^0.25 -> 1 | E109: =C109*D109 -> 2.26
A110: FTE_cost | B110: Burdened labor cost, including overhead ($/man-hr) | C110: 50 | D110: =VLOOKUP(ref_year,Tbl_labor_indexes,2,FALSE)/VLOOKUP(BasisYear,Tbl_labor_indexes,2,FALSE) -> 1.15480427 | E110: =C110*D110 -> 57.74021352
A111: Slabor_cost | B111: Labor cost, $/year | E111: =FTEs*2080*FTE_cost -> 271425.1957
A112: overhead_rate | B112: G&A rate (% of labor cost) | C112: 0.2
A113: Soverhead_GA | B113: G&A ($/year) | E113: =labor_cost*overhead_rate -> 54285.03915
A114: licensing | B114: Licensing, Permits and Fees ($/year) | C114: 1000 | D114: =Scale_Factor *CEPCIinflator*CPIinflator -> 1.294914314 | E114: =C114*D114 -> 1294.914314
A115: tax_ins_rate | B115: Property tax and insurance rate (% of total capital investment per year) | C115: 0.02
A116: Stax_insurance | B116: Property taxes and insurance ($/year) | E116: =tax_ins_rate*total_cap -> 91859.83537
A117: rent | B117: Rent ($/year) | D117: =Scale_Factor *CPIinflator -> 1.100724187 | E117: =C117*D117 -> 0
A118: material | B118: Material costs for maintenance and repairs ($/year) | D118: =Scale_Factor *CEPCIinflator*CPIinflator -> 1.294914314 | E118: =C118*D118 -> 0
A119: prod_maint | B119: Production Maintenance and Repairs ($/year) | C119: =0.04*'Capital Costs'!C24*'Capital Costs'!E24+0.05*('Capital Costs'!C58-'Capital Costs'!C16*'Capital Costs'!E16-'Capital Costs'!C19*'Capital Costs'!E19-'Capital Costs'!C24*'Capital Costs'!E24) -> 76517.1379 | D119: =Scale_Factor *CEPCIinflator*CPIinflator -> 1.294914314 | E119: =C119*D119 -> 99083.13716
A120: other_fees | B120: Other Fees ($/year) | C120: 0 | D120: =Scale_Ratio * CEPCIinflator*CPIinflator -> 1.294914314 | E120: =C120*D120 -> 0
A121: other_fixed | B121: Other Fixed O&M Costs ($/year) | C121: 0 | D121: =Scale_Factor *CEPCIinflator*CPIinflator -> 1.294914314 | E121: =C121*D121 -> 0
A122: Sfixed | B122: Total Fixed Operating Costs | E122: =(labor_cost+overhead_GA+tax_insurance+licensing+SUM(E117:E121))*sensitivity_07 -> 517948.1217
B124: Variable Operating Costs
B125: Other Materials and Byproducts
B127: Select the Material
B128: Process Water
B129: Feed or utility | C129: =B128 -> Process Water
B130: ="$(" & ref_year & ")/ " & VLOOKUP(TMP_NonE_Feed,Tbl_Other_Inputs_and_Byproducts,2,FALSE) -> $(2016)/ gal | C130: =HLOOKUP(startup_year,Tbl_Other_Inputs_and_Byproducts,MATCH(TMP_NonE_Feed,Other_Inputs_List,0),FALSE) -> 0.002374951095
B131: =IF(TMP_NonE_Type="Feed or utility","Usage per kg H2","Production per kg H2") -> Usage per kg H2
B132: =IF(TMP_NonE_Type = "Feed or utility", "Cost in Startup Year","Income in Startup Year") -> Cost in Startup Year | C132: =design_cap*365*cap_factor*TMP_NonE_Usage*TMP_NonE_StartPrice -> 0
B133: Lookup Prices | C133: Yes
A134: START_NONE_TOP
B135: Feed or utility | C135: $(2016)/ gal | D135: Usage per kg H2 | E135: Cost in Startup Year | F135: Lookup Prices
B136: Process Water | C136: 0.002374951095 | D136: 2.368 | E136: =C136*D136*output_kgyear*IF(start_time,percnt_var,1)*'Cash Flow Analysis'!$E$68/'Cash Flow Analysis'!$E$69 -> 1359.749232 | F136: Yes
A137: START_NONE_FEED
A138: START_NONE_BYPROD
B139: Total Non Energy Utility and Material Costs ($/year) | C139: =SUM(Dynamic_NonE_Feed_Total) -> 1359.749232
A140: total_non_energy_byproduct_credit | B140: Total Non Energy Byproduct Credits ($/year) | C140: =SUM(Dynamic_NonE_Byprod_Total) -> 0
A142: Stotal_feedstock | B142: Total Feedstock Costs ($/year) | C142: =Total_Energy_Feed_Cost -> 37710.58834
A143: Stotal_utilities | B143: Total Utility Costs ($/year) | C143: =Total_Energy_Utilities_Cost+Total_Non_Energy_Feed_Cost -> 1359.749232
A144: Stotal_byproducts | B144: Total Byproduct Credits ($/year) | C144: =Total_Energy_Byproduct_Credit+total_non_energy_byproduct_credit -> 0
B145: Other Variable operating costs (for the first year) | C145: ="Enter values in basis year (" & BasisYear & ") dollars" -> Enter values in basis year (2005) dollars | D145: Combined Plant Scaling and Escalation Factor | E145: ="Reference Year ("& ref_year & ") Dollars" -> Reference Year (2016) Dollars
A146: var_misc | B146: Other variable operating costs (e.g. environmental surcharges) ($/year) | D146: =Scale_Ratio * VLOOKUP(ref_year,Chemical_price_indexes,2,FALSE)/VLOOKUP(BasisYear,Chemical_price_indexes,2,FALSE) -> 1.426054458 | E146: =C146*D146 -> 0
A147: total_other_raw | B147: Other Material Costs ($/year) | C147: 0 | D147: =Scale_Ratio * VLOOKUP(ref_year,Chemical_price_indexes,2,FALSE)/VLOOKUP(BasisYear,Chemical_price_indexes,2,FALSE) -> 1.426054458 | E147: =C147*D147 -> 0
A148: waste_treat | B148: Waste treatment costs ($/year) | C148: 0 | D148: =Scale_Ratio * VLOOKUP(ref_year,Chemical_price_indexes,2,FALSE)/VLOOKUP(BasisYear,Chemical_price_indexes,2,FALSE) -> 1.426054458 | E148: =C148*D148 -> 0
A149: solidwaste_treat | B149: Solid waste disposal costs ($/year) | C149: 0 | D149: =Scale_Ratio * VLOOKUP(ref_year,Chemical_price_indexes,2,FALSE)/VLOOKUP(BasisYear,Chemical_price_indexes,2,FALSE) -> 1.426054458 | E149: =C149*D149 -> 0
A150: replace_factor | B150: Total Unplanned Replacement Capital Cost Factor (% of total direct depreciable costs/year) | C150: 0.005 | E150: Value added to match other central cases. Use this value for all central cases
A151: royalties | B151: Royalties ($/year) | C151: 0 | D151: =Scale_Ratio * CPIinflator -> 1.100724187 | E151: 0
A152: operator_profit | B152: Operator Profit ($/year) | C152: 0 | D152: =Scale_Ratio * CPIinflator -> 1.100724187 | E152: 0
A153: tax_credit | B153: Subsidies, Tax Incentives ($/year) | C153: 0 | D153: =Scale_Ratio * CPIinflator -> 1.100724187 | E153: 0
A154: CO2_seq | B154: CO2 sequestration O&M costs and credits ($/year) | E154: =Det_CO2_OandMcost -> 0
B155: Process Carbon Tax ($/metric ton carbon produced as CO2) | C155: 0 | D155: =CPIinflator -> 1.100724187 | E155: 0
B156: Process Carbon Tax ($/year) | E156: =ROUND(Proc_CO2_tax*12/44*Proc_CO2_MTpY,-2) -> 0
B157: Upstream Carbon Tax ($/metric ton upstream GHG CO2 eq) | C157: 0 | D157: =CPIinflator -> 1.100724187 | E157: 0
B158: Upstream Carbon Tax ($/year) | E158: =ROUND(Upstream_CO2_tax/1000*Upstream_GHG_total*output_kgyear,2) -> 0
A159: Stotal_var | B159: Total Variable Operating Costs ($/year) | E159: =ROUND(total_feedstock+total_utilities+total_other_raw-total_byproducts+var_misc+waste_treat+solidwaste_treat+royalties+operator_profit-tax_credit+CO2_OandMcost+Proc_CO2_taxpYear + Upstream_CO2_taxpYear,-2) -> 39100

Sheet Replacement Costs
A2: Replacement Costs
C5: Color Key
A9: ="NOTE: Enter costs in year "&TEXT(BasisYear,"0")&" $ - Do not inflate" -> NOTE: Enter costs in year 2005 $ - Do not inflate
A10: NOTE: All replacement costs are assumed to be equity financed.
A13: Unplanned Yearly Replacement Capital (Depreciable)
C14: Comments | F14: Source | G14: Information
A15: Total Unplanned Replacement Capital Cost Factor (% of total depreciable capital costs/year) | B15: =replace_factor -> 0.005 | G15: Enter a fixed percentage. This input is meant to include, in the Cash Flow Analysis, a factor for unplanned capital expenditures.
A16: Actual Year | B16: Analysis Year | C16: Operations Year | D16: Specified Yearly Replacement Costs | E16: Carbon Sequestration Related Replacement Costs | F16: Specified Yearly Replacement Costs | G16: Unplanned Replacement Costs | H16: Total Yearly Replacement Costs | I16: Uninstalled costs | J16: Installation factor | K16: Comments: | L16: Data source:
D17: ="Year "&TEXT(BasisYear,"0")&" $" -> Year 2005 $ | E17: ="Year "&TEXT(ref_year,"0")&" $" -> Year 2016 $ | F17: ="Year "&TEXT(ref_year,"0")&" $" -> Year 2016 $ | G17: ="Year "&TEXT(ref_year,"0")&" $" -> Year 2016 $ | H17: Inflated to Start-up Year
A18: =IF(C18<>"",'Cash Flow Analysis'!A65,"") -> 2038 | B18: =construct+1 -> 3 | C18: 1 | D18: =12.82%*'Capital Costs'!$C$63*direct_cap/(CEPCIinflator*CPIinflator) -> 0 | E18: =+'Carbon Sequestration'!$C$100*(C18<=anal_period) -> 0 | F18: =(D18)*CPIinflator*CEPCIinflator+E18 -> 0 | G18: =IF(C18>anal_period,0,IF(replace_factor<>"",replace_factor*depr_cap,0)) -> 21774.57019 | H18: =(F18+G18)*((1+inflation_rate)^(startup_year-ref_year)) -> 34208.18305 | K18: Stacks added each year to adjust for perf. degradation and 7 year stack service life to bring beginning of year H2 production to 100% of design capacity.
A19: =IF(C19<>"",'Cash Flow Analysis'!A66,"") -> 2039 | B19: =IF(B18<anal_period+construct,B18+1,"") -> 4 | C19: =IF(B19="","",C18+1) -> 2 | D19: =SUM('Capital Costs'!$C$19) -> 63269.65257 | E19: =+'Carbon Sequestration'!$C$100*(C19<=anal_period) -> 0 | F19: 81928.77879 | G19: =IF(C19>anal_period,0,IF(replace_factor<>"",replace_factor*depr_cap,0)) -> 21774.57019 | H19: =(F19+G19)*((1+inflation_rate)^(startup_year-ref_year)) -> 162919.5485 | K19: Stacks added each year to adjust for perf. degradation and 7 year stack service life to bring beginning of year H2 production to 100% of design capacity.
A20: =IF(C20<>"",'Cash Flow Analysis'!A67,"") -> 2040 | B20: 5 | C20: 3 | D20: =SUM('Capital Costs'!$C$19) -> 63269.65257 | E20: =+'Carbon Sequestration'!$C$100*(C20<=anal_period) -> 0 | F20: 81928.77879 | G20: 21774.57019 | H20: 162919.5485 | K20: Stacks added each year to adjust for perf. degradation and 7 year stack service life to bring beginning of year H2 production to 100% of design capacity.
A21: =IF(C21<>"",'Cash Flow Analysis'!A68,"") -> 2041 | B21: 6 | C21: 4 | D21: =SUM('Capital Costs'!$C$19) -> 63269.65257 | E21: =+'Carbon Sequestration'!$C$100*(C21<=anal_period) -> 0 | F21: 81928.77879 | G21: 21774.57019 | H21: 162919.5485 | K21: Stacks added each year to adjust for perf. degradation and 7 year stack service life to bring beginning of year H2 production to 100% of design capacity.
A22: =IF(C22<>"",'Cash Flow Analysis'!A69,"") -> 2042 | B22: 7 | C22: 5 | D22: =SUM('Capital Costs'!$C$16,'Capital Costs'!$C$19,'Capital Costs'!$C$53,'Capital Costs'!$C$54) -> 1218445.993 | E22: =+'Carbon Sequestration'!$C$100*(C22<=anal_period) -> 0 | F22: 1577783.158 | G22: 21774.57019 | H22: 2512929.672 | K22: Stacks added each year to adjust for perf. degradation and 7 year stack service life to bring beginning of year H2 production to 100% of design capacity.
A23: =IF(C23<>"",'Cash Flow Analysis'!A70,"") -> 2043 | B23: 8 | C23: 6 | D23: =SUM('Capital Costs'!$C$19) -> 63269.65257 | E23: =+'Carbon Sequestration'!$C$100*(C23<=anal_period) -> 0 | F23: 81928.77879 | G23: 21774.57019 | H23: 162919.5485 | K23: Stacks added each year to adjust for perf. degradation and 7 year stack service life to bring beginning of year H2 production to 100% of design capacity.
A24: =IF(C24<>"",'Cash Flow Analysis'!A71,"") -> 2044 | B24: 9 | C24: 7 | D24: =SUM('Capital Costs'!$C$19) -> 63269.65257 | E24: =+'Carbon Sequestration'!$C$100*(C24<=anal_period) -> 0 | F24: 81928.77879 | G24: 21774.57019 | H24: 162919.5485 | K24: Stacks added each year to adjust for perf. degradation and 7 year stack service life to bring beginning of year H2 production to 100% of design capacity.
A25: =IF(C25<>"",'Cash Flow Analysis'!A72,"") -> 2045 | B25: 10 | C25: 8 | D25: =SUM('Capital Costs'!$C$19) -> 63269.65257 | E25: =+'Carbon Sequestration'!$C$100*(C25<=anal_period) -> 0 | F25: 81928.77879 | G25: 21774.57019 | H25: 162919.5485 | K25: Stacks added each year to adjust for perf. degradation and 7 year stack service life to bring beginning of year H2 production to 100% of design capacity.
A26: =IF(C26<>"",'Cash Flow Analysis'!A73,"") -> 2046 | B26: 11 | C26: 9 | D26: =SUM('Capital Costs'!$C$19) -> 63269.65257 | E26: =+'Carbon Sequestration'!$C$100*(C26<=anal_period) -> 0 | F26: 81928.77879 | G26: 21774.57019 | H26: 162919.5485 | K26: Stacks added each year to adjust for perf. degradation and 7 year stack service life to bring beginning of year H2 production to 100% of design capacity.
A27: =IF(C27<>"",'Cash Flow Analysis'!A74,"") -> 2047 | B27: 12 | C27: 10 | D27: =SUM('Capital Costs'!$C$16,'Capital Costs'!$C$19,'Capital Costs'!$C$53,'Capital Costs'!$C$54) -> 1218445.993 | E27: =+'Carbon Sequestration'!$C$100*(C27<=anal_period) -> 0 | F27: 1577783.158 | G27: 21774.57019 | H27: 2512929.672 | K27: Stacks added each year to adjust for perf. degradation and 7 year stack service life to bring beginning of year H2 production to 100% of design capacity.
A28: =IF(C28<>"",'Cash Flow Analysis'!A75,"") -> 2048 | B28: 13 | C28: 11 | D28: =SUM('Capital Costs'!$C$19) -> 63269.65257 | E28: =+'Carbon Sequestration'!$C$100*(C28<=anal_period) -> 0 | F28: 81928.77879 | G28: 21774.57019 | H28: 162919.5485 | K28: Stacks added each year to adjust for perf. degradation and 7 year stack service life to bring beginning of year H2 production to 100% of design capacity.
A29: =IF(C29<>"",'Cash Flow Analysis'!A76,"") -> 2049 | B29: 14 | C29: 12 | D29: =SUM('Capital Costs'!$C$19) -> 63269.65257 | E29: =+'Carbon Sequestration'!$C$100*(C29<=anal_period) -> 0 | F29: 81928.77879 | G29: 21774.57019 | H29: 162919.5485 | K29: Stacks added each year to adjust for perf. degradation and 7 year stack service life to bring beginning of year H2 production to 100% of design capacity.
A30: =IF(C30<>"",'Cash Flow Analysis'!A77,"") -> 2050 | B30: 15 | C30: 13 | D30: =SUM('Capital Costs'!$C$19) -> 63269.65257 | E30: =+'Carbon Sequestration'!$C$100*(C30<=anal_period) -> 0 | F30: 81928.77879 | G30: 21774.57019 | H30: 162919.5485 | K30: Stacks added each year to adjust for perf. degradation and 7 year stack service life to bring beginning of year H2 production to 100% of design capacity.
A31: =IF(C31<>"",'Cash Flow Analysis'!A78,"") -> 2051 | B31: 16 | C31: 14 | D31: =SUM('Capital Costs'!$C$19) -> 63269.65257 | E31: =+'Carbon Sequestration'!$C$100*(C31<=anal_period) -> 0 | F31: 81928.77879 | G31: 21774.57019 | H31: 162919.5485 | K31: Stacks added each year to adjust for perf. degradation and 7 year stack service life to bring beginning of year H2 production to 100% of design capacity.
A32: =IF(C32<>"",'Cash Flow Analysis'!A79,"") -> 2052 | B32: 17 | C32: 15 | D32: =SUM('Capital Costs'!$C$16,'Capital Costs'!$C$19,'Capital Costs'!$C$53,'Capital Costs'!$C$54) -> 1218445.993 | E32: =+'Carbon Sequestration'!$C$100*(C32<=anal_period) -> 0 | F32: 1577783.158 | G32: 21774.57019 | H32: 2512929.672 | K32: Stacks added each year to adjust for perf. degradation and 7 year stack service life to bring beginning of year H2 production to 100% of design capacity.
A33: =IF(C33<>"",'Cash Flow Analysis'!A80,"") -> 2053 | B33: 18 | C33: 16 | D33: =SUM('Capital Costs'!$C$19) -> 63269.65257 | E33: =+'Carbon Sequestration'!$C$100*(C33<=anal_period) -> 0 | F33: 81928.77879 | G33: 21774.57019 | H33: 162919.5485 | K33: Stacks added each year to adjust for perf. degradation and 7 year stack service life to bring beginning of year H2 production to 100% of design capacity.
A34: =IF(C34<>"",'Cash Flow Analysis'!A81,"") -> 2054 | B34: 19 | C34: 17 | D34: =SUM('Capital Costs'!$C$19) -> 63269.65257 | E34: =+'Carbon Sequestration'!$C$100*(C34<=anal_period) -> 0 | F34: 81928.77879 | G34: 21774.57019 | H34: 162919.5485 | K34: Stacks added each year to adjust for perf. degradation and 7 year stack service life to bring beginning of year H2 production to 100% of design capacity.
A35: =IF(C35<>"",'Cash Flow Analysis'!A82,"") -> 2055 | B35: 20 | C35: 18 | D35: =SUM('Capital Costs'!$C$19) -> 63269.65257 | E35: =+'Carbon Sequestration'!$C$100*(C35<=anal_period) -> 0 | F35: 81928.77879 | G35: 21774.57019 | H35: 162919.5485 | K35: Stacks added each year to adjust for perf. degradation and 7 year stack service life to bring beginning of year H2 production to 100% of design capacity.
A36: =IF(C36<>"",'Cash Flow Analysis'!A83,"") -> 2056 | B36: 21 | C36: 19 | D36: =SUM('Capital Costs'!$C$19) -> 63269.65257 | E36: =+'Carbon Sequestration'!$C$100*(C36<=anal_period) -> 0 | F36: 81928.77879 | G36: 21774.57019 | H36: 162919.5485 | K36: Stacks added each year to adjust for perf. degradation and 7 year stack service life to bring beginning of year H2 production to 100% of design capacity.
A37: =IF(C37<>"",'Cash Flow Analysis'!A84,"") -> 2057 | B37: 22 | C37: 20 | D37: =SUM('Capital Costs'!$C$16,'Capital Costs'!$C$19,'Capital Costs'!$C$53,'Capital Costs'!$C$54) -> 1218445.993 | E37: =+'Carbon Sequestration'!$C$100*(C37<=anal_period) -> 0 | F37: 1577783.158 | G37: 21774.57019 | H37: 2512929.672 | K37: Stacks added each year to adjust for perf. degradation and 7 year stack service life to bring beginning of year H2 production to 100% of design capacity.
A38: =IF(C38<>"",'Cash Flow Analysis'!A85,"") -> 2058 | B38: 23 | C38: 21 | D38: =SUM('Capital Costs'!$C$19) -> 63269.65257 | E38: =+'Carbon Sequestration'!$C$100*(C38<=anal_period) -> 0 | F38: 81928.77879 | G38: 21774.57019 | H38: 162919.5485 | K38: Stacks added each year to adjust for perf. degradation and 7 year stack service life to bring beginning of year H2 production to 100% of design capacity.
A39: =IF(C39<>"",'Cash Flow Analysis'!A86,"") -> 2059 | B39: 24 | C39: 22 | D39: =SUM('Capital Costs'!$C$19) -> 63269.65257 | E39: =+'Carbon Sequestration'!$C$100*(C39<=anal_period) -> 0 | F39: 81928.77879 | G39: 21774.57019 | H39: 162919.5485 | K39: 100% of BoP replaced every 20 years. Stacks added each year to adjust for perf. degradation and 7 year stack service life to bring beginning of year H2 production to 100% of design capacity.
A40: =IF(C40<>"",'Cash Flow Analysis'!A87,"") -> 2060 | B40: 25 | C40: 23 | D40: =SUM('Capital Costs'!$C$19) -> 63269.65257 | E40: =+'Carbon Sequestration'!$C$100*(C40<=anal_period) -> 0 | F40: 81928.77879 | G40: 21774.57019 | H40: 162919.5485 | K40: Stacks added each year to adjust for perf. degradation and 7 year stack service life to bring beginning of year H2 production to 100% of design capacity.
A41: =IF(C41<>"",'Cash Flow Analysis'!A88,"") -> 2061 | B41: 26 | C41: 24 | D41: =SUM('Capital Costs'!$C$19) -> 63269.65257 | E41: =+'Carbon Sequestration'!$C$100*(C41<=anal_period) -> 0 | F41: 81928.77879 | G41: 21774.57019 | H41: 162919.5485 | K41: Stacks added each year to adjust for perf. degradation and 7 year stack service life to bring beginning of year H2 production to 100% of design capacity.
A42: =IF(C42<>"",'Cash Flow Analysis'!A89,"") -> 2062 | B42: 27 | C42: 25 | D42: =SUM('Capital Costs'!$C$16,'Capital Costs'!$C$19,'Capital Costs'!$C$53,'Capital Costs'!$C$54) -> 1218445.993 | E42: =+'Carbon Sequestration'!$C$100*(C42<=anal_period) -> 0 | F42: 1577783.158 | G42: 21774.57019 | H42: 2512929.672 | K42: Stacks added each year to adjust for perf. degradation and 7 year stack service life to bring beginning of year H2 production to 100% of design capacity.
A43: =IF(C43<>"",'Cash Flow Analysis'!A90,"") -> 2063 | B43: 28 | C43: 26 | D43: =SUM('Capital Costs'!$C$19) -> 63269.65257 | E43: =+'Carbon Sequestration'!$C$100*(C43<=anal_period) -> 0 | F43: 81928.77879 | G43: 21774.57019 | H43: 162919.5485 | K43: Stacks added each year to adjust for perf. degradation and 7 year stack service life to bring beginning of year H2 production to 100% of design capacity.
A44: =IF(C44<>"",'Cash Flow Analysis'!A91,"") -> 2064 | B44: 29 | C44: 27 | D44: =SUM('Capital Costs'!$C$19) -> 63269.65257 | E44: =+'Carbon Sequestration'!$C$100*(C44<=anal_period) -> 0 | F44: 81928.77879 | G44: 21774.57019 | H44: 162919.5485 | K44: Stacks added each year to adjust for perf. degradation and 7 year stack service life to bring beginning of year H2 production to 100% of design capacity.
A45: =IF(C45<>"",'Cash Flow Analysis'!A92,"") -> 2065 | B45: 30 | C45: 28 | D45: =SUM('Capital Costs'!$C$19) -> 63269.65257 | E45: =+'Carbon Sequestration'!$C$100*(C45<=anal_period) -> 0 | F45: 81928.77879 | G45: 21774.57019 | H45: 162919.5485 | K45: Stacks added each year to adjust for perf. degradation and 7 year stack service life to bring beginning of year H2 production to 100% of design capacity.
A46: =IF(C46<>"",'Cash Flow Analysis'!A93,"") -> 2066 | B46: 31 | C46: 29 | D46: =SUM('Capital Costs'!$C$19) -> 63269.65257 | E46: =+'Carbon Sequestration'!$C$100*(C46<=anal_period) -> 0 | F46: 81928.77879 | G46: 21774.57019 | H46: 162919.5485 | K46: Stacks added each year to adjust for perf. degradation and 7 year stack service life to bring beginning of year H2 production to 100% of design capacity.
A47: =IF(C47<>"",'Cash Flow Analysis'!A94,"") -> 2067 | B47: 32 | C47: 30 | D47: =SUM('Capital Costs'!$C$16,'Capital Costs'!$C$19,'Capital Costs'!$C$53,'Capital Costs'!$C$54) -> 1218445.993 | E47: =+'Carbon Sequestration'!$C$100*(C47<=anal_period) -> 0 | F47: 1577783.158 | G47: 21774.57019 | H47: 2512929.672 | K47: Stacks added each year to adjust for perf. degradation and 7 year stack service life to bring beginning of year H2 production to 100% of design capacity.
A48: =IF(C48<>"",'Cash Flow Analysis'!A95,"") -> 2068 | B48: 33 | C48: 31 | D48: =SUM('Capital Costs'!$C$19) -> 63269.65257 | E48: =+'Carbon Sequestration'!$C$100*(C48<=anal_period) -> 0 | F48: 81928.77879 | G48: 21774.57019 | H48: 162919.5485 | K48: Stacks added each year to adjust for perf. degradation and 7 year stack service life to bring beginning of year H2 production to 100% of design capacity.
A49: =IF(C49<>"",'Cash Flow Analysis'!A96,"") -> 2069 | B49: 34 | C49: 32 | D49: =SUM('Capital Costs'!$C$19) -> 63269.65257 | E49: =+'Carbon Sequestration'!$C$100*(C49<=anal_period) -> 0 | F49: 81928.77879 | G49: 21774.57019 | H49: 162919.5485 | K49: Stacks added each year to adjust for perf. degradation and 7 year stack service life to bring beginning of year H2 production to 100% of design capacity.
A50: =IF(C50<>"",'Cash Flow Analysis'!A97,"") -> 2070 | B50: 35 | C50: 33 | D50: =SUM('Capital Costs'!$C$19) -> 63269.65257 | E50: =+'Carbon Sequestration'!$C$100*(C50<=anal_period) -> 0 | F50: 81928.77879 | G50: 21774.57019 | H50: 162919.5485 | K50: Stacks added each year to adjust for perf. degradation and 7 year stack service life to bring beginning of year H2 production to 100% of design capacity.
A51: =IF(C51<>"",'Cash Flow Analysis'!A98,"") -> 2071 | B51: 36 | C51: 34 | D51: =SUM('Capital Costs'!$C$19) -> 63269.65257 | E51: =+'Carbon Sequestration'!$C$100*(C51<=anal_period) -> 0 | F51: 81928.77879 | G51: 21774.57019 | H51: 162919.5485 | K51: Stacks added each year to adjust for perf. degradation and 7 year stack service life to bring beginning of year H2 production to 100% of design capacity.
A52: =IF(C52<>"",'Cash Flow Analysis'!A99,"") -> 2072 | B52: 37 | C52: 35 | D52: =SUM('Capital Costs'!$C$16,'Capital Costs'!$C$19,'Capital Costs'!$C$53,'Capital Costs'!$C$54) -> 1218445.993 | E52: =+'Carbon Sequestration'!$C$100*(C52<=anal_period) -> 0 | F52: 1577783.158 | G52: 21774.57019 | H52: 2512929.672 | K52: Stacks added each year to adjust for perf. degradation and 7 year stack service life to bring beginning of year H2 production to 100% of design capacity.
A53: =IF(C53<>"",'Cash Flow Analysis'!A100,"") -> 2073 | B53: 38 | C53: 36 | D53: =SUM('Capital Costs'!$C$19) -> 63269.65257 | E53: =+'Carbon Sequestration'!$C$100*(C53<=anal_period) -> 0 | F53: 81928.77879 | G53: 21774.57019 | H53: 162919.5485 | K53: Stacks added each year to adjust for perf. degradation and 7 year stack service life to bring beginning of year H2 production to 100% of design capacity.
A54: =IF(C54<>"",'Cash Flow Analysis'!A101,"") -> 2074 | B54: 39 | C54: 37 | D54: =SUM('Capital Costs'!$C$19) -> 63269.65257 | E54: =+'Carbon Sequestration'!$C$100*(C54<=anal_period) -> 0 | F54: 81928.77879 | G54: 21774.57019 | H54: 162919.5485 | K54: Stacks added each year to adjust for perf. degradation and 7 year stack service life to bring beginning of year H2 production to 100% of design capacity.
A55: =IF(C55<>"",'Cash Flow Analysis'!A102,"") -> 2075 | B55: 40 | C55: 38 | D55: =SUM('Capital Costs'!$C$19) -> 63269.65257 | E55: =+'Carbon Sequestration'!$C$100*(C55<=anal_period) -> 0 | F55: 81928.77879 | G55: 21774.57019 | H55: 162919.5485 | K55: Stacks added each year to adjust for perf. degradation and 7 year stack service life to bring beginning of year H2 production to 100% of design capacity.
A56: =IF(C56<>"",'Cash Flow Analysis'!A103,"") -> 2076 | B56: 41 | C56: 39 | D56: =SUM('Capital Costs'!$C$19) -> 63269.65257 | E56: =+'Carbon Sequestration'!$C$100*(C56<=anal_period) -> 0 | F56: 81928.77879 | G56: 21774.57019 | H56: 162919.5485 | K56: Stacks added each year to adjust for perf. degradation and 7 year stack service life to bring beginning of year H2 production to 100% of design capacity.
A57: =IF(C57<>"",'Cash Flow Analysis'!A104,"") -> 2077 | B57: 42 | C57: 40 | D57: =SUM('Capital Costs'!$C$19) -> 63269.65257 | E57: =+'Carbon Sequestration'!$C$100*(C57<=anal_period) -> 0 | F57: 81928.77879 | G57: 21774.57019 | H57: 162919.5485 | K57: Stacks added each year to adjust for perf. degradation and 7 year stack service life to bring beginning of year H2 production to 100% of design capacity.

Sheet Capital Costs
B2: Capital Costs
C4: Color Key
B7: Design Plant Hydrogen Production (kg/day) | C7: 1000 | D7: Capital costs for the design plant (baseline) are entered on this sheet. Use the Plant Scaling sheet to set scaling parameters for scaling up or down in size from the baseline plant. Enter the output kg/day for the plant you wish to analyze on the Input Sheet
D8: Comments
B9: Basis year for capital costs | C9: =BasisYear -> 2005
B10: Enter current year for capital costs | C10: 2010
B11: ="CEPCI Inflator ("&BasisYear&" to "&CurrentYear&")" -> CEPCI Inflator (2005 to 2010) | C11: =VLOOKUP(CurrentYear,Tbl_PlantCostIndexes,2,FALSE)/VLOOKUP(BasisYear,Tbl_PlantCostIndexes,2,FALSE) -> 1.176420333 | D11: The Chemical Engineering Plant Cost Index (CEPCI) is used to adjust the capital cost of the H2 Production facility from the basis year to the current year.
B12: ="Consumer Price Inflator ("&CurrentYear&" to "&ref_year&")" -> Consumer Price Inflator (2010 to 2016) | C12: =VLOOKUP(ref_year,DeflatorTable,2,FALSE)/VLOOKUP(CurrentYear,DeflatorTable,2,FALSE) -> 1.100724187 | D12: The Consumer Price Inflator (CPI) is used to deflate all dollars from the current year to the Reference Year.
B14: ="CAPITAL INVESTMENT (Inputs REQUIRED in Basis Year, (" & BasisYear & ") $)" -> CAPITAL INVESTMENT (Inputs REQUIRED in Basis Year, (2005) $)
B15: Major pieces/systems of equipment | C15: ="Baseline Uninstalled Costs $"&BasisYear&" Dollars" -> Baseline Uninstalled Costs $2005 Dollars | D15: ="Baseline Uninstalled Costs $"&ref_year&" Dollars" -> Baseline Uninstalled Costs $2016 Dollars | E15: Installation Cost Factor | F15: Baseline Installed Costs | G15: Comments | H15: Data Source
B16: Baggie | C16: 839199.7954 | D16: =C16*CEPCIinflator*CPIinflator -> 1086691.828 | E16: 1 | F16: =D16*E16 -> 1086691.828
B17: Roll-Unroll System | C17: 37000 | D17: =C17*CEPCIinflator*CPIinflator -> 47911.82963 | E17: 1 | F17: =D17*E17 -> 47911.82963
B18: Forklift | C18: 18571 | D18: 24047.85373 | E18: 1 | F18: 24047.85373
B19: Coated PEC Microparticles | C19: 63269.65257 | D19: 81928.77879 | E19: 1 | F19: 81928.77879
B20: Make-up Water Pump | C20: 212.5 | D20: 275.1692918 | E20: 1 | F20: 275.1692918
B21: Reactor Feed Pipe | C21: 10406.57135 | D21: 13475.6182 | E21: 1 | F21: 13475.6182
C22: 0 | D22: 0 | E22: 1 | F22: 0
C23: 0 | D23: 0 | E23: 1 | F23: 0
B24: Compressor | C24: 338134.1657 | D24: 437854.7713 | E24: 1 | F24: 437854.7713
B25: Condensor | C25: 10626 | D25: 13759.7595 | E25: 1 | F25: 13759.7595
B26: Intercooler 1 | C26: 11464 | D26: 14844.8977 | E26: 1 | F26: 14844.8977
B27: Intercooler 2 | C27: 11870 | D27: 15370.63291 | E27: 1 | F27: 15370.63291
B28: PSA | C28: 0 | D28: 0 | E28: 1 | F28: 0
B29: Reactor Outlet Pipe | C29: 382.9305429 | D29: 495.8622414 | E29: 1 | F29: 495.8622414
B30: Main Collection Pipe | C30: 6728.457244 | D30: 8712.7756 | E30: 1 | F30: 8712.7756
B31: Final Collection Pipe | C31: 107.75 | D31: 139.5270174 | E31: 1 | F31: 139.5270174
C32: 0 | D32: 0 | E32: 1 | F32: 0
C33: 0 | D33: 0 | E33: 1 | F33: 0
B34: PLC | C34: 2000 | D34: 2589.828629 | E34: 1 | F34: 2589.828629
B35: Control Room building | C35: 8000 | D35: 10359.31452 | E35: 1 | F35: 10359.31452
B36: Control Room Wiring Panel | C36: 3000 | D36: 3884.742943 | E36: 1 | F36: 3884.742943
B37: Bed Wiring Panel | C37: 53757.55698 | D37: 69611.43004 | E37: 1 | F37: 69611.43004
B38: Computer and Monitor | C38: 1500 | D38: 1942.371472 | E38: 1 | F38: 1942.371472
B39: Labview Software | C39: 4299 | D39: 5566.836638 | E39: 1 | F39: 5566.836638
B40: Water Level Controllers | C40: 18410.12225 | D40: 23839.53084 | E40: 1 | F40: 23839.53084
B41: Pressure Sensors | C41: 127029.8435 | D41: 164492.7628 | E41: 1 | F41: 164492.7628
B42: Hydrogen Area Sensors | C42: 136800 | D42: 177144.2782 | E42: 1 | F42: 177144.2782
B43: Oxygen Area Sensors | C43: 0 | D43: 0 | E43: 1 | F43: 0
B44: Hydrogen Flow Meter | C44: 5500 | D44: 7122.028729 | E44: 1 | F44: 7122.028729
B45: Instrument Wiring | C45: 35213.30238 | D45: 45598.2093 | E45: 1 | F45: 45598.2093
B46: Power Wiring | C46: 17792.89119 | D46: 23040.26949 | E46: 1 | F46: 23040.26949
B47: Conduit | C47: 47233.13908 | D47: 61162.86791 | E47: 1 | F47: 61162.86791
C48: 0 | D48: 0 | F48: 0
C49: 0 | D49: 0 | F49: 0
C50: 0 | D50: 0 | F50: 0
B51: Piping Installation | C51: 1492.809635 | D51: 1933.060565 | E51: 1 | F51: 1933.060565
B52: Levelling of Bed field | C52: 124672 | D52: 161439.5574 | E52: 1 | F52: 161439.5574
B53: Baggie Installation | C53: 294561.956 | D53: 381432.4934 | E53: 1 | F53: 381432.4934
B54: Baggie Reactor Start-up | C54: 21414.58889 | D54: 27730.05769 | E54: 1 | F54: 27730.05769
B55: Gas processing Subassembly install | C55: 111628.2497 | D55: 144549.0184 | E55: 1 | F55: 144549.0184
B56: Control System Install | C56: 138160.7566 | D56: 178906.3414 | E56: 1 | F56: 178906.3414
D57: 0 | F57: 0
C58: =SUM(C16:C57) -> 2500439.039 | D58: =SUM(D16:D57) -> 3237854.304 | F58: =SUM(F16:F57) -> 3237854.304

Sheet Plant Scaling
B1: leave this sheet as is for scaled costs
B2: Plant Scaling Factors
B3: Baseline Design Capacity (kg H2/day) | C3: =Baseline_Design_Capacity -> 1000 | D3: Design capacity for original H2A case. Imported from capital cost sheet
B4: Scale Ratio | C4: =design_cap/Baseline_Design_Capacity -> 1 | D4: Ratio of new design capacity (enter on Input Sheet) to the Baseline Design Capacity. Used for linear scaling
B5: Scale Factor | C5: =$G$55/Det_direct_cap -> 1 | D5: Ratio of total scaled installed capital capital cost to total baseline installed capital costs. Used for exponential scaling.
B6: Default Scaling Factor Exponent | C6: 0.78 | D6: Scaling factor exponent used for scaling all capital equipment where an individual factor has not been entered below.
B7: Lower Limit for Scaling Capacity (kg H2/day) | C7: 500 | D7: http://www.chemicals-technology.com/projects/air-products-plant/
B8: Upper Limit for Scaling Capacity (kg H2/day) | C8: 2000 | D8: http://hydrogen.pnl.gov/filedownloads/hydrogen/datasheets/hydrogen_production_capacity_by_state.xls
B11: ="CAPITAL INVESTMENT (Inputs REQUIRED in Reference Year, (" & ref_year & ") $)" -> CAPITAL INVESTMENT (Inputs REQUIRED in Reference Year, (2016) $)
B12: Major pieces/systems of equipment | C12: Baseline Uninstalled Costs | D12: Scaling Factor Exponent | E12: Scaled Uninstalled Costs | F12: Installation Cost Factor | G12: Installed Cost (scaled) | H12: Installed Cost (baseline) | I12: Comments | J12: Data Source
B13: ='Capital Costs'!B16 -> Baggie | C13: ='Capital Costs'!D16 -> 1086691.828 | E13: =IF($D13="",$C13*Scale_Ratio^Scaling_Factor_Exponent,$C13*Scale_Ratio^$D13) -> 1086691.828 | F13: ='Capital Costs'!E16 -> 1 | G13: =$E13*$F13 -> 1086691.828 | H13: =C13*F13 -> 1086691.828
B14: ='Capital Costs'!B17 -> Roll-Unroll System | C14: ='Capital Costs'!D17 -> 47911.82963 | E14: =IF($D14="",$C14*Scale_Ratio^Scaling_Factor_Exponent,$C14*Scale_Ratio^$D14) -> 47911.82963 | F14: ='Capital Costs'!E17 -> 1 | G14: =$E14*$F14 -> 47911.82963 | H14: =C14*F14 -> 47911.82963
B15: ='Capital Costs'!B18 -> Forklift | C15: ='Capital Costs'!D18 -> 24047.85373 | E15: 24047.85373 | F15: ='Capital Costs'!E18 -> 1 | G15: 24047.85373 | H15: 24047.85373
B16: ='Capital Costs'!B19 -> Coated PEC Microparticles | C16: ='Capital Costs'!D19 -> 81928.77879 | E16: 81928.77879 | F16: ='Capital Costs'!E19 -> 1 | G16: 81928.77879 | H16: 81928.77879
B17: ='Capital Costs'!B20 -> Make-up Water Pump | C17: ='Capital Costs'!D20 -> 275.1692918 | E17: 275.1692918 | F17: ='Capital Costs'!E20 -> 1 | G17: 275.1692918 | H17: 275.1692918
B18: ='Capital Costs'!B21 -> Reactor Feed Pipe | C18: ='Capital Costs'!D21 -> 13475.6182 | E18: 13475.6182 | F18: ='Capital Costs'!E21 -> 1 | G18: 13475.6182 | H18: 13475.6182
B19: ='Capital Costs'!B22 -> 0 | C19: ='Capital Costs'!D22 -> 0 | E19: 0 | F19: ='Capital Costs'!E22 -> 1 | G19: 0 | H19: 0
B20: ='Capital Costs'!B23 -> 0 | C20: ='Capital Costs'!D23 -> 0 | E20: 0 | F20: ='Capital Costs'!E23 -> 1 | G20: 0 | H20: 0
B21: ='Capital Costs'!B24 -> Compressor | C21: ='Capital Costs'!D24 -> 437854.7713 | E21: 437854.7713 | F21: ='Capital Costs'!E24 -> 1 | G21: 437854.7713 | H21: 437854.7713
B22: ='Capital Costs'!B25 -> Condensor | C22: ='Capital Costs'!D25 -> 13759.7595 | E22: 13759.7595 | F22: ='Capital Costs'!E25 -> 1 | G22: 13759.7595 | H22: =C22*F22 -> 13759.7595
B23: ='Capital Costs'!B26 -> Intercooler 1 | C23: ='Capital Costs'!D26 -> 14844.8977 | E23: 14844.8977 | F23: ='Capital Costs'!E26 -> 1 | G23: 14844.8977 | H23: 14844.8977
B24: ='Capital Costs'!B27 -> Intercooler 2 | C24: ='Capital Costs'!D27 -> 15370.63291 | E24: 15370.63291 | F24: ='Capital Costs'!E27 -> 1 | G24: 15370.63291 | H24: 15370.63291
B25: ='Capital Costs'!B28 -> PSA | C25: ='Capital Costs'!D28 -> 0 | E25: 0 | F25: ='Capital Costs'!E28 -> 1 | G25: 0 | H25: 0
B26: ='Capital Costs'!B29 -> Reactor Outlet Pipe | C26: ='Capital Costs'!D29 -> 495.8622414 | E26: 495.8622414 | F26: ='Capital Costs'!E29 -> 1 | G26: 495.8622414 | H26: 495.8622414
B27: ='Capital Costs'!B30 -> Main Collection Pipe | C27: ='Capital Costs'!D30 -> 8712.7756 | E27: 8712.7756 | F27: ='Capital Costs'!E30 -> 1 | G27: 8712.7756 | H27: 8712.7756
B28: ='Capital Costs'!B31 -> Final Collection Pipe | C28: ='Capital Costs'!D31 -> 139.5270174 | E28: 139.5270174 | F28: ='Capital Costs'!E31 -> 1 | G28: 139.5270174 | H28: 139.5270174
B29: ='Capital Costs'!B32 -> 0 | C29: ='Capital Costs'!D32 -> 0 | E29: 0 | F29: ='Capital Costs'!E32 -> 1 | G29: 0 | H29: 0
B30: ='Capital Costs'!B33 -> 0 | C30: ='Capital Costs'!D33 -> 0 | E30: 0 | F30: ='Capital Costs'!E33 -> 1 | G30: 0 | H30: 0
B31: ='Capital Costs'!B34 -> PLC | C31: ='Capital Costs'!D34 -> 2589.828629 | E31: 2589.828629 | F31: ='Capital Costs'!E34 -> 1 | G31: 2589.828629 | H31: 2589.828629
B32: ='Capital Costs'!B35 -> Control Room building | C32: ='Capital Costs'!D35 -> 10359.31452 | E32: 10359.31452 | F32: ='Capital Costs'!E35 -> 1 | G32: 10359.31452 | H32: 10359.31452
B33: ='Capital Costs'!B36 -> Control Room Wiring Panel | C33: ='Capital Costs'!D36 -> 3884.742943 | E33: 3884.742943 | F33: ='Capital Costs'!E36 -> 1 | G33: 3884.742943 | H33: 3884.742943
B34: ='Capital Costs'!B37 -> Bed Wiring Panel | C34: ='Capital Costs'!D37 -> 69611.43004 | E34: 69611.43004 | F34: ='Capital Costs'!E37 -> 1 | G34: 69611.43004 | H34: 69611.43004
B35: ='Capital Costs'!B38 -> Computer and Monitor | C35: ='Capital Costs'!D38 -> 1942.371472 | E35: 1942.371472 | F35: ='Capital Costs'!E38 -> 1 | G35: 1942.371472 | H35: 1942.371472
B36: ='Capital Costs'!B39 -> Labview Software | C36: ='Capital Costs'!D39 -> 5566.836638 | E36: 5566.836638 | F36: ='Capital Costs'!E39 -> 1 | G36: 5566.836638 | H36: 5566.836638
B37: ='Capital Costs'!B40 -> Water Level Controllers | C37: ='Capital Costs'!D40 -> 23839.53084 | E37: 23839.53084 | F37: ='Capital Costs'!E40 -> 1 | G37: 23839.53084 | H37: 23839.53084
B38: ='Capital Costs'!B41 -> Pressure Sensors | C38: ='Capital Costs'!D41 -> 164492.7628 | E38: 164492.7628 | F38: ='Capital Costs'!E41 -> 1 | G38: 164492.7628 | H38: 164492.7628
B39: ='Capital Costs'!B42 -> Hydrogen Area Sensors | C39: ='Capital Costs'!D42 -> 177144.2782 | E39: 177144.2782 | F39: ='Capital Costs'!E42 -> 1 | G39: 177144.2782 | H39: 177144.2782
B40: ='Capital Costs'!B43 -> Oxygen Area Sensors | C40: ='Capital Costs'!D43 -> 0 | E40: 0 | F40: ='Capital Costs'!E43 -> 1 | G40: 0 | H40: 0
B41: ='Capital Costs'!B44 -> Hydrogen Flow Meter | C41: ='Capital Costs'!D44 -> 7122.028729 | E41: 7122.028729 | F41: ='Capital Costs'!E44 -> 1 | G41: 7122.028729 | H41: 7122.028729
B42: ='Capital Costs'!B45 -> Instrument Wiring | C42: ='Capital Costs'!D45 -> 45598.2093 | E42: 45598.2093 | F42: ='Capital Costs'!E45 -> 1 | G42: 45598.2093 | H42: 45598.2093
B43: ='Capital Costs'!B46 -> Power Wiring | C43: ='Capital Costs'!D46 -> 23040.26949 | E43: 23040.26949 | F43: ='Capital Costs'!E46 -> 1 | G43: 23040.26949 | H43: 23040.26949
B44: ='Capital Costs'!B47 -> Conduit | C44: ='Capital Costs'!D47 -> 61162.86791 | E44: 61162.86791 | F44: ='Capital Costs'!E47 -> 1 | G44: 61162.86791 | H44: 61162.86791
B45: ='Capital Costs'!B48 -> 0 | C45: ='Capital Costs'!D48 -> 0 | E45: 0 | F45: ='Capital Costs'!E48 -> 0 | G45: 0 | H45: 0
B46: ='Capital Costs'!B49 -> 0 | C46: ='Capital Costs'!D49 -> 0 | E46: 0 | F46: ='Capital Costs'!E49 -> 0 | G46: 0 | H46: 0
B47: ='Capital Costs'!B50 -> 0 | C47: ='Capital Costs'!D50 -> 0 | E47: 0 | F47: ='Capital Costs'!E50 -> 0 | G47: 0 | H47: 0
B48: ='Capital Costs'!B51 -> Piping Installation | C48: ='Capital Costs'!D51 -> 1933.060565 | E48: 1933.060565 | F48: ='Capital Costs'!E51 -> 1 | G48: 1933.060565 | H48: 1933.060565
B49: ='Capital Costs'!B52 -> Levelling of Bed field | C49: ='Capital Costs'!D52 -> 161439.5574 | E49: 161439.5574 | F49: ='Capital Costs'!E52 -> 1 | G49: 161439.5574 | H49: 161439.5574
B50: ='Capital Costs'!B53 -> Baggie Installation | C50: ='Capital Costs'!D53 -> 381432.4934 | E50: 381432.4934 | F50: ='Capital Costs'!E53 -> 1 | G50: 381432.4934 | H50: 381432.4934
B51: ='Capital Costs'!B54 -> Baggie Reactor Start-up | C51: ='Capital Costs'!D54 -> 27730.05769 | E51: 27730.05769 | F51: ='Capital Costs'!E54 -> 1 | G51: 27730.05769 | H51: 27730.05769
B52: ='Capital Costs'!B55 -> Gas processing Subassembly install | C52: ='Capital Costs'!D55 -> 144549.0184 | E52: 144549.0184 | F52: ='Capital Costs'!E55 -> 1 | G52: 144549.0184 | H52: 144549.0184
B53: ='Capital Costs'!B56 -> Control System Install | C53: ='Capital Costs'!D56 -> 178906.3414 | E53: 178906.3414 | F53: ='Capital Costs'!E56 -> 1 | G53: 178906.3414 | H53: 178906.3414
B54: ='Capital Costs'!B57 -> 0 | C54: ='Capital Costs'!D57 -> 0 | E54: 0 | F54: ='Capital Costs'!E57 -> 0 | G54: 0 | H54: 0
B55: TOTALS (including scaling) | C55: =SUM(C13:C54) -> 3237854.304 | E55: =SUM(E13:E54) -> 3237854.304 | G55: =SUM(G13:G54) -> 3237854.304 | H55: =SUM(H13:H54) -> 3237854.304

Sheet Carbon Sequestration
B2: Carbon Sequestration
B4: Carbon Sequestration Calculation Information
B5: Costs for carbon (CO2) compression, transport to the sequestration site and injection are calculated in this section. Capital and operating costs for carbon capture are assumed to be included in the capital and operating costs for the production facility and are not included here. For H2A analysis of hydrogen production processes, it is assumed that only carbon contained in the process feedstock can be captured. Carbon contained in fuels such as natural gas used for steam generation (i.e., as a utility) cannot be captured. Therefore, only CO2 emissions from feedstocks are shown below. CO2 emissions from fuels used as utilities are included in the total emissions from the process shown on the Results sheet. All feedstocks and utilities should be specified before completing this section. See the QuickStart Guide for information on the derivation of the equations used in this section.
B7: Table of Contents
B8: Color Key
B11: Use default values (checkboxes)
B15: Carbon Sequestration Input Values
B16: Summary of Output Values
B17: Carbon Sequestration Calculations
B20: Carbon Sequestration Information | H20: Summary of Output Values (CO2 Seq. costs are reported on Results Tab as part of total H2 Production cost)
B21: CO2 Produced from Feedstock (metric tons CO2/year) | C21: =Feed_CO2_MTpY -> 0 | D21: CO2 emissions are based on the carbon content of the feed. See the Physical Properties Table for specific values | H21: Capital Costs
B22: CO2 Produced from Feedstock (kg CO2/kg H2) | C22: =Feed_CO2_kgpkgH2 -> 0 | H22: CO2 Pipeline | J22: =SUM(C54:C57) -> 
B23: CO2 Mass Flowrate (metric tons/day) | C23: =Feed_CO2_MTpY/365*CO2_Capture_Efficiency -> 0 | H23: CO2 Pumps | J23: =C71 -> 80988.89364
B24: CO2 Mass Flowrate (G metric tons/year) | C24: =CO2_flowrate*365/1000000 -> 0 | H24: CO2 Other Equipment | J24: =SUM(C82:C83) -> 0
B25: Electricity Cost ($/kWh) | C25: =HLOOKUP(startup_year,INDIRECT(TMP_PriceTable),MATCH("Industrial Electricity",INDIRECT(Energy_Feed_List),0),FALSE)*VLOOKUP("kWh",CC_feedconversion,2,FALSE) -> 0.07759697608 | D25: Price for industrial electricity in the startup year | H25: CO2 Storage (annualized) | J25: =SUM(C93:C95) -> 39831626.15
B26: Carbon Sequestration Electricity Usage (kWh/kg H2) | C26: =IF(C21=0,0,(pump_power)*cap_factor*24*365/output_kgyear) -> 0 | J26: =IF(CO2_Capture_Efficiency,SUM(J22:J25),0) -> 0 | K26: ="Total ("&ref_year&"$)" -> Total (2016$)
H27: Approx. Uninstalled Equipment Cost | J27: =IF(CO2_inUse = "To Use Carbon Sequestration Click 'Link to Detail Sheet' in the Input Sheet Capital Cost Section",0,(J23+J24)/1.2+J25/1.5+J22) -> 
B28: Carbon Sequestration Input Values
B29: Process Design Parameters
B30: Carbon Capture Efficiency (%) | C30: 0 | E30: Set to 0 to turn off CCS | H30: Electrical Costs (annual cost)
B31: CO2 capture process outlet pressure (psia) | C31: 14.7 | E31: Inlet pressure for CO2 transport (pump suction pressure) | H31: CO2 Compressor | J31: =C74 -> 0
B32: Number of Pumps (H2 Production Site + Booster Pumps) | C32: 1 | H32: CO2 Injection (Site and wells) | J32: 0
B33: Pump Efficiency | C33: 0.75 | H33: CO2 Pipeline | J33: 0
B34: Pipeline Control System | C34: Yes | J34: =SUM(J31:J33) -> 0 | K34: ="Total ("&ref_year&"$)" -> Total (2016$)
B35: CO2 Surge Tank | C35: Yes | H35: O&M (annual cost)
B36: Pipeline length (miles) | C36: 100 | H36: CO2 Capture Credit | J36: =-Feed_CO2_MTpY*CO2_Capture_Efficiency*CO2_credit -> 0
B37: Pipeline Elevation Change (ft) | C37: 0 | H37: CO2 Pipeline | J37: =+C61 -> 693420.3789
B38: Pipeline Nominal Diameter (in) | C38: =Pipe_Diameter(CO2_PipeLength, C67, C66, C37, 0.5, CO2_flowrate, CO2_Pipeline_Temp, n_CO2_pumps) ->  | H38: CO2 Pumps | J38: =C78 -> 3239.555745
B39: Process Conditions | H39: CO2 Other Equipment | J39: =C86 -> 0
B40: Pipeline Temperature (°F) | C40: 53 | E40: Ground temperature | H40: CO2 Storage | J40: =SUM(C103:C107) -> 2016053.226
B41: CO2 Density (kg/m3) | C41: =denPRCO2(0.00005,AVERAGE(C66:C67)/MPa_to_psi,CO2_Pipeline_Temp) -> 865.7947105 | E41: PR Equation of state: ρCO2 = denPRCO2(vCO2-init, Pave, TPipeline) | J41: =IF(CO2_Capture_Efficiency>0,SUM(J36:J40),0) -> 0 | K41: ="Total ("&ref_year&"$)" -> Total (2016$)
B42: Other Considerations
B43: CO2 capture credit ($/metric ton CO2 captured) | C43: 0 | H43: Property tax and insurance | J43: =Det_CO2_seq*tax_ins_rate -> 0 | K43: =+K41 -> Total (2016$)
B44: Operation and maintenance factor for equipment (pumps, etc.) | C44: 0.04
B45: Finance Parameters | H45: Carbon Sequestration Energy Charge ($/tonne CO2) | K45: =ROUND(CO2_eCostpY/(Feed_CO2_MTpY*CO2_Capture_Efficiency),1) -> 
B46: After Tax Real Capital Recovery Factor | C46: =(real_irr*(1+real_irr)^anal_period)/(((real_irr+1)^anal_period)-1) -> 0.0838601615 | H46: Carbon Sequestration O&M Charge ($/tonne CO2) | K46: =ROUND((Det_CO2_OandMcost+ CCS_tax_insurance)/(Feed_CO2_MTpY*CO2_Capture_Efficiency),1) -> 
B47: Real Present Value of Depreciation | C47: =INDEX(MACRS_Table,MATCH("NPV - Real IRR",recovery_year,0),MATCH(depr_length,recovery_period,0))*(1+real_irr) -> 0.5467411219 | H47: Approx Carbon Seq. Cap. Charge ($/tonne CO2) | K47: =ROUND((Det_CO2_seq+(-PV(nominal_irr,plant_life,C100)*(1+nominal_irr)))*CO2_cap_charge_rate/(Feed_CO2_MTpY*CO2_Capture_Efficiency),1) -> 
B48: Approx Capital Charge Rate | C48: =(CO2_cap_rec*(1-total_tax_rate*CO2_depr_factor))/(1-total_tax_rate) -> 0.09703531281 | H48: Total transportation and storage cost (w/o capture) | K48: =SUM(K45:K47) -> 
B50: Carbon Transport Calculations
B51: ="CO2 Pipeline Costs ("&ref_year&" USD)" -> CO2 Pipeline Costs (2016 USD) | D51: Units | E51: Notes / References
B52: Capital Costs
B53: Adjustment factor (Natural Gas Pipeline -> CO2 Pipeline) | C53: =IF(CO2_PipeDia>20,1.25, IF(CO2_PipeDia>16,1.18,IF(CO2_PipeDia>12,1.12,1))) ->  | E53: CCost_Type = a0 + L * (a1 * D2 + a2 * D + a3) based on NETL CO2 Transport Model which uses Parker (2004) UCD-ITS-RR-04-35 basis
B54: Material Capital | C54: =(35000+CO2_PipeLength*(330.5*CO2_PipeDia^2+687*CO2_PipeDia+26960))*NG_to_CO2Pipeline*VLOOKUP(ref_year,Tbl_PlantCostIndexes,2)/VLOOKUP(2000,Tbl_PlantCostIndexes,2) ->  | D54: =ref_year&"$" -> 2016$ | E54: a0 = 35,000 $; a1 = 330.5 $/mi-in2; a2 = 687 $/mi-in; a3 = 26,960 $/mi (coefficient basis is 2000$)
B55: Labor | C55: =(185000+CO2_PipeLength*(343*CO2_PipeDia^2+2074*CO2_PipeDia+170013))*NG_to_CO2Pipeline*VLOOKUP(ref_year,Tbl_labor_indexes,2)/VLOOKUP(2000,Tbl_labor_indexes,2) ->  | D55: =ref_year&"$" -> 2016$ | E55: a0 = 185,000 $; a1 = 343 $/mi-in2; a2 = 2,074 $/mi-in; a3 = 170,013 $/mi (coefficient basis is 2000$)
B56: Right of Way and Damages | C56: =(40000+CO2_PipeLength*(0*CO2_PipeDia^2+577*CO2_PipeDia+29788))*NG_to_CO2Pipeline*(VLOOKUP(ref_year,DeflatorTable,2)/VLOOKUP(2000,DeflatorTable,2)) ->  | D56: =ref_year&"$" -> 2016$ | E56: a0 = 40,000 $; a1 = 0 $/mi-in2; a2 = 577 $/mi-in; a3 = 29,788 $/mi (coefficient basis is 2000$)
B57: Miscellaneous (Surveying, engineering, supervision, etc.) | C57: =(95000+CO2_PipeLength*(0*CO2_PipeDia^2+8417*CO2_PipeDia+7324))*NG_to_CO2Pipeline*VLOOKUP(ref_year,DeflatorTable,2)/VLOOKUP(2000,DeflatorTable,2) ->  | D57: =ref_year&"$" -> 2016$ | E57: a0 = 95,000 $; a1 = 0 $/mi-in2; a2 = 8,417 $/mi-in; a3 = 7,324 $/mi (coefficient basis is 2000$)
B58: Pipeline Capital Cost Per Mile | C58: =SUM(C54:C57)/CO2_PipeLength ->  | D58: =ref_year&"$/mile" -> 2016$/mile
B60: O&M Costs
B61: Pipeline cost of $5000/mi-yr | C61: =5000*CO2_PipeLength*(VLOOKUP(ref_year,Tbl_PlantCostIndexes,2)/VLOOKUP(1999,Tbl_PlantCostIndexes,2)) -> 693420.3789 | D61: =ref_year&"$/year" -> 2016$/year | E61: Based on NETL CO2 Transport Model which uses Bock (2003) basis. $5000/mi-yr is based in 1999$
B64: CO2 Pump Costs
B65: Capital Costs
B66: Inlet Pressure | C66: =CO2_Pin_psia -> 14.7 | D66: psia
B67: Outlet Pressure | C67: =15*MPa_to_psi -> 2175.57 | D67: psia
B68: Pump Power | C68: =(1000*1000000*0.001/ (24*3600))*(CO2_flowrate/cap_factor*(C67-C66)/MPa_to_psi)/(C41*Pump_Eff) -> 0 | D68: kW | E68: Wpump = ((1e3 kg/t * 1e6 Pa/MPa * 1e-3 kW/W) / (24*3600 s/day))*qmax*dPpump/(ηpump*ρCO2) from NETL CO2 Transport Model
B69: Pump Fixed Cost | C69: =70000*VLOOKUP(ref_year,Tbl_PlantCostIndexes,2)/VLOOKUP(2005,Tbl_PlantCostIndexes,2) -> 80988.89364 | D69: =ref_year&"$" -> 2016$ | E69: Fixed cost of $70,000 (2005$) from NETL CO2 Transport Model which uses McCollum & Ogden (2006) UCD-ITS-RR-06-14 basis
B70: Pump Variable Cost | C70: =1110*C68*VLOOKUP(ref_year,Tbl_PlantCostIndexes,2)/VLOOKUP(2005,Tbl_PlantCostIndexes,2) -> 0 | D70: =ref_year&"$" -> 2016$ | E70: Cost of $1,110/kW (2005$) from NETL CO2 Transport Model which uses McCollum & Ogden (2006) UCD-ITS-RR-06-14 basis
B71: Pump Capital Cost | C71: =SUM(C69:C70) -> 80988.89364 | D71: =ref_year&"$" -> 2016$ | E71: Cpump = (Cpump_fix + Cpump_var * Wpump)
B73: Electricity Costs
B74: Ecomp = elec cost*Wcomp*(capacity factor*24*365)*n_pumps | C74: =CO2_eCost*pump_power*cap_factor*24*365*n_CO2_pumps -> 0 | D74: =startup_year&"$/year" -> 2040$/year | E74: $/yr (start-up year electricity cost)
B75: Electricity consumption | C75: =pump_power*cap_factor*24*365*n_CO2_pumps/output_kgyear -> 0 | D75: kWh/kg H2
B77: O&M Costs
B78: (Total Other Equipment Cost) * O&M Factor | C78: =C71*CO2_MaintFactor -> 3239.555745 | D78: =ref_year&"$/year" -> 2016$/year
B80: CO2 Other Equipment Costs
B81: Capital Costs
B82: CO2 Surge Tank | C82: =IF(C35="yes",701600*(CO2_flowrate_GTpY/3.2)^Scaling_Factor_Exponent*(VLOOKUP(ref_year,Tbl_PlantCostIndexes,2)/VLOOKUP(2000,Tbl_PlantCostIndexes,2)),0) -> 0 | D82: =ref_year&"$" -> 2016$ | E82: Based on NETL CO2 Transport Model which uses NETL (2010) DOE/NETL-2010/1447 basis. Original cost is in 2000$
B83: Pipeline Process Control System | C83: =IF(C34="yes",94000*(CO2_flowrate_GTpY/3.2)^Scaling_Factor_Exponent*(VLOOKUP(ref_year,Tbl_PlantCostIndexes,2)/VLOOKUP(2000,Tbl_PlantCostIndexes,2)),0) -> 0 | D83: =ref_year&"$" -> 2016$ | E83: Based on NETL CO2 Transport Model which uses NETL (2010) DOE/NETL-2010/1447 basis. Original cost is in 2000$
B85: O&M Costs
B86: (Total Other Equipment Cost) * O&M Factor | C86: =SUM(C82:C83)*CO2_MaintFactor -> 0 | D86: =ref_year&"$/year" -> 2016$/year
B89: Carbon Storage (Saline) Calculations
B90: CO2 Storage Cost Breakdown (2007 USD) | D90: Units | E90: Notes / References
B91: CEPC Inflation Adj: 2008->2005 | C91: =VLOOKUP(2005,DeflatorTable,2)/VLOOKUP(2008,DeflatorTable,2) -> 0.9267607053
B92: ="Capital Costs by Stage (Annual Cost of "&plant_life&" year project in "&ref_year&"$)" -> Capital Costs by Stage (Annual Cost of 40 year project in 2016$) | E92: Based on NETL CO2 Saline Storage Cost Model -- P50 correlation determined (2008$) as function of CO2 flowrate for each stage of cost
B93: Regional Evaluation | C93: =94000*VLOOKUP(ref_year,Tbl_labor_indexes,2)/VLOOKUP(2008,Tbl_labor_indexes,2) -> 109497.9487 | D93: =ref_year&"$" -> 2016$
B94: Site Characterization | C94: =(-16600*CO2_flowrate_GTpY^2+53500*CO2_flowrate_GTpY+20300)*1000*VLOOKUP(ref_year,Tbl_labor_indexes,2)/VLOOKUP(2008,Tbl_labor_indexes,2) -> 23646897.44 | D94: =ref_year&"$" -> 2016$
B95: Permitting | C95: =(-400*CO2_flowrate_GTpY^2 + 2200*CO2_flowrate_GTpY + 13800)*1000*VLOOKUP(ref_year,Tbl_labor_indexes,2)/VLOOKUP(2008,Tbl_labor_indexes,2) -> 16075230.77 | D95: =ref_year&"$" -> 2016$
B97: Ongoing Capital Expences
B98: Operations | C98: =(-36000*CO2_flowrate_GTpY^2+224000*CO2_flowrate_GTpY+47000)*1000*(VLOOKUP(ref_year,Tbl_labor_indexes,2)/VLOOKUP(2008,Tbl_labor_indexes,2))/plant_life -> 1368724.359 | D98: =ref_year&"$/year" -> 2016$/year
B99: Post Injection Site Care & Site Closure | C99: =(-18000*CO2_flowrate_GTpY^2 + 183000*CO2_flowrate_GTpY+ 40000)*1000*(VLOOKUP(ref_year,Tbl_labor_indexes,2)/VLOOKUP(2008,Tbl_labor_indexes,2))/plant_life -> 1164871.795 | D99: =ref_year&"$/year" -> 2016$/year
B100: Total ongoing capital expenses | C100: =+IF(CO2_Capture_Efficiency,SUM(C98:C99),0) -> 0 | D100: =ref_year&"$/year" -> 2016$/year
B102: Expense Costs by Stage
B103: Regional Evaluation | C103: =0*(VLOOKUP(ref_year,Tbl_labor_indexes,2)/VLOOKUP(2008,Tbl_labor_indexes,2)) -> 0 | D103: =ref_year&"$/year" -> 2016$/year
B104: Site Characterization | C104: =395000*(VLOOKUP(ref_year,Tbl_labor_indexes,2)/VLOOKUP(2008,Tbl_labor_indexes,2))/plant_life -> 11503.10897 | D104: =ref_year&"$/year" -> 2016$/year
B105: Permitting | C105: =100000*(VLOOKUP(ref_year,Tbl_labor_indexes,2)/VLOOKUP(2008,Tbl_labor_indexes,2))/plant_life -> 2912.179487 | D105: =ref_year&"$/year" -> 2016$/year
B106: Operations | C106: =(-30000*CO2_flowrate_GTpY^2 + 143000*CO2_flowrate_GTpY + 41000)*1000*(VLOOKUP(ref_year,Tbl_labor_indexes,2)/VLOOKUP(2008,Tbl_labor_indexes,2))/plant_life -> 1193993.59 | D106: =ref_year&"$/year" -> 2016$/year
B107: Post Injection Site Care & Site Closure | C107: =(111200*CO2_flowrate_GTpY+27733.33)*1000*(VLOOKUP(ref_year,Tbl_labor_indexes,2)/VLOOKUP(2008,Tbl_labor_indexes,2))/plant_life -> 807644.3474 | D107: =ref_year&"$/year" -> 2016$/year

Sheet Results
B2: Table of Contents
B3: Specific Item Cost Calculation
B4: Energy Data
B5: Production Process Energy Efficiency
B6: Upstream Energy Usage
B7: Emissions Summary
B8: Production Process GHG Emissions Summary
B9: Production Process GHG Emissions
B10: Upstream GHG Emissions
B12: H2a Analysis Results
B14: COST RESULTS
B15: Lang Factor | C15: =total_cap/(ProcEqpCap+IF(CO2_Capture_Efficiency>0,CCSEqpCap,0)) -> 1.418529476
B17: Specific Item Cost Calculation | F17: =IF(CO2_inUse = "Carbon Sequestration","Approximate Carbon Sequestration Costs*","Carbon Sequestration is not included in this case") -> Approximate Carbon Sequestration Costs*
B18: Cost Component | C18: Cost Contribution ($/kg) | D18: Percentage of H2 Cost | F18: Cost Component | G18: Cost Contribution ($/ kg H2) | H18: Cost Contribution ($/ tonne CO2 Sequestered)
B19: Capital Costs | C19: ='Cash Flow Analysis'!D119 -> 2.120746602 | D19: ='Cash Flow Analysis'!C119 -> 0.5462288127 | F19: Capital Costs | G19: =IF(CO2_inUse = "Carbon Sequestration",ROUND((Det_CO2_seq+CO2_aprx_indCap)*CO2_cap_charge_rate/output_kgyear,2),"") -> 0 | H19: =IF(CO2_inUse = "Carbon Sequestration",CO2_capptonneCO2,"") -> 
B20: Decommissioning Costs | C20: ='Cash Flow Analysis'!D120 -> 0.005167560342 | D20: ='Cash Flow Analysis'!C120 -> 0.001330979546 | F20: O&M Cost | G20: =IF(CO2_inUse = "Carbon Sequestration",ROUND(Det_CO2_OandMcost/output_kgyear,2),"") -> 0 | H20: =IF(CO2_inUse = "Carbon Sequestration",CO2_OandMptonneCO2,"") -> 
B21: Fixed O&M | C21: ='Cash Flow Analysis'!D121 -> 1.592160177 | D21: ='Cash Flow Analysis'!C121 -> 0.4100837706 | F21: Energy Cost | G21: =IF(CO2_inUse = "Carbon Sequestration",ROUND(CO2_eCostpY/output_kgyear,2),"") -> 0 | H21: =IF(CO2_inUse = "Carbon Sequestration",CO2_energyptonneCO2,"") -> 
B22: Feedstock Costs | C22: ='Cash Flow Analysis'!D122 -> 0.1588260096 | D22: ='Cash Flow Analysis'!C122 -> 0.04090792487 | F22: Total | G22: =SUM(G19:G21) -> 0 | H22: =SUM(H19:H21) -> 
B23: Other Raw Material Costs | C23: ='Cash Flow Analysis'!D123 -> 0 | D23: ='Cash Flow Analysis'!C123 -> 0 | F23: *Carbon sequestration costs presented in this table do not include carbon capture capital and operating costs.
B24: Byproduct Credits | C24: ='Cash Flow Analysis'!D124 -> 0 | D24: ='Cash Flow Analysis'!C124 -> 0
B25: Other Variable Costs (including utilities) | C25: ='Cash Flow Analysis'!D125 -> 0.005623884192 | D25: ='Cash Flow Analysis'!C125 -> 0.001448512322
B26: Total | C26: =SUM(C19:C25) -> 3.882524233
B28: ENERGY
B30: Energy Data
B31: Feedstock | C31: Energy Input (GJ/kg H2) | D31: Energy Input (kWh/kg H2) | E31: LHV (GJ/usage unit) | F31: Usage (/kg H2) | G31: Unit | H31: Unit System Conversion Factor | I31: Real levelized cost
B32: =IF('Cash Flow Analysis'!$B$131=0,"",'Cash Flow Analysis'!$B$131) -> Industrial Electricity | C32: =IF($B$32="","",$E$32*$F$32*$H$32) -> 0.007236 | D32: =IF($B32="","",$C32*1000*MJ_to_kWh) -> 2.01 | E32: =IF($B$32<>"",VLOOKUP($B$32,MASTER_PROPERTY_TABLE,MATCH("H2A LHV (GJ/ H2A usage input unit)",key_MPTable,0),FALSE),"") -> 0.0036 | F32: =IF('Cash Flow Analysis'!$B$133="","",'Cash Flow Analysis'!$B$133) -> 2.01 | G32: =IF($B$32<>"",VLOOKUP($B$32,MASTER_PROPERTY_TABLE,MATCH("H2A Usage Input Unit/ kg H2",key_MPTable,0),FALSE),"") -> kWh | H32: =IF($B32="","",IF(VLOOKUP($B32,MASTER_PROPERTY_TABLE,MATCH("Unit System",key_MPTable,0),FALSE)="English",mmBTU_to_GJ,1)) -> 1 | I32: =+'Cash Flow Analysis'!$B$233 -> 0.08204912148
B33: =IF('Cash Flow Analysis'!$C$131=0,"",'Cash Flow Analysis'!$C$131) ->  | C33: =IF($B$33="","",$E$33*$F$33*$H$33) ->  | D33: =IF($B33="","",$C33*1000*MJ_to_kWh) ->  | E33: =IF($B$33<>"",VLOOKUP($B$33,MASTER_PROPERTY_TABLE,MATCH("H2A LHV (GJ/ H2A usage input unit)",key_MPTable,0),FALSE),"") ->  | F33: =IF('Cash Flow Analysis'!$C$133="","",'Cash Flow Analysis'!$C$133) ->  | G33: =IF($B$33<>"",VLOOKUP($B$33,MASTER_PROPERTY_TABLE,MATCH("H2A Usage Input Unit/ kg H2",key_MPTable,0),FALSE),"") ->  | H33: =IF($B$33="","",IF(VLOOKUP($B$33,MASTER_PROPERTY_TABLE,MATCH("Unit System",key_MPTable,0),FALSE)="English",mmBTU_to_GJ,1)) ->  | I33: =+'Cash Flow Analysis'!$C$233 -> 
B34: =IF('Cash Flow Analysis'!$D$131=0,"",'Cash Flow Analysis'!$D$131) ->  | C34: =IF($B$34="","",$E$34*$F$34*$H$34) ->  | D34: =IF($B34="","",$C34*1000*MJ_to_kWh) ->  | E34: =IF($B$34<>"",VLOOKUP($B$34,MASTER_PROPERTY_TABLE,MATCH("H2A LHV (GJ/ H2A usage input unit)",key_MPTable,0),FALSE),"") ->  | F34: =IF('Cash Flow Analysis'!$D$133="","",'Cash Flow Analysis'!$D$133) ->  | G34: =IF($B$34<>"",VLOOKUP($B$34,MASTER_PROPERTY_TABLE,MATCH("H2A Usage Input Unit/ kg H2",key_MPTable,0),FALSE),"") ->  | H34: =IF($B$34="","",IF(VLOOKUP($B$34,MASTER_PROPERTY_TABLE,MATCH("Unit System",key_MPTable,0),FALSE)="English",mmBTU_to_GJ,1)) ->  | I34: =+'Cash Flow Analysis'!$D$233 -> 
B35: =IF('Cash Flow Analysis'!$E$131=0,"",'Cash Flow Analysis'!$E$131) ->  | C35: =IF($B$35="","",$E$35*$F$35*$H$35) ->  | D35: =IF($B35="","",$C35*1000*MJ_to_kWh) ->  | E35: =IF($B$35<>"",VLOOKUP($B$35,MASTER_PROPERTY_TABLE,MATCH("H2A LHV (GJ/ H2A usage input unit)",key_MPTable,0),FALSE),"") ->  | F35: =IF('Cash Flow Analysis'!$E$133="","",'Cash Flow Analysis'!$E$133) ->  | G35: =IF($B$35<>"",VLOOKUP($B$35,MASTER_PROPERTY_TABLE,MATCH("H2A Usage Input Unit/ kg H2",key_MPTable,0),FALSE),"") ->  | H35: =IF($B$35="","",IF(VLOOKUP($B$35,MASTER_PROPERTY_TABLE,MATCH("Unit System",key_MPTable,0),FALSE)="English",mmBTU_to_GJ,1)) ->  | I35: =+'Cash Flow Analysis'!$E$233 -> 
B36: Utility
B37: =IF('Cash Flow Analysis'!$F$131=0,"",'Cash Flow Analysis'!$F$131) ->  | C37: =IF($B$37="","",$E$37*$F$37*$H$37) ->  | D37: =IF($B37="","",$C37*1000*MJ_to_kWh) ->  | E37: =IF($B37<>"",VLOOKUP($B37,MASTER_PROPERTY_TABLE,MATCH("H2A LHV (GJ/ H2A usage input unit)",key_MPTable,0),FALSE),"") ->  | F37: =IF('Cash Flow Analysis'!$F$133="","",'Cash Flow Analysis'!$F$133) ->  | G37: =IF($B$37<>"",VLOOKUP($B$37,MASTER_PROPERTY_TABLE,MATCH("H2A Usage Input Unit/ kg H2",key_MPTable,0),FALSE),"") ->  | H37: =IF($B$37="","",IF(VLOOKUP($B$37,MASTER_PROPERTY_TABLE,MATCH("Unit System",key_MPTable,0),FALSE)="English",mmBTU_to_GJ,1)) ->  | I37: =+'Cash Flow Analysis'!$F$233 -> 
B38: =IF('Cash Flow Analysis'!$G$131=0,"",'Cash Flow Analysis'!$G$131) ->  | C38: =IF($B$38="","",$E$38*$F$38*$H$38) ->  | D38: =IF($B38="","",$C38*1000*MJ_to_kWh) ->  | E38: =IF($B38<>"",VLOOKUP($B38,MASTER_PROPERTY_TABLE,MATCH("H2A LHV (GJ/ H2A usage input unit)",key_MPTable,0),FALSE),"") ->  | F38: =IF('Cash Flow Analysis'!$G$133="","",'Cash Flow Analysis'!$G$133) ->  | G38: =IF($B$38<>"",VLOOKUP($B$38,MASTER_PROPERTY_TABLE,MATCH("H2A Usage Input Unit/ kg H2",key_MPTable,0),FALSE),"") ->  | H38: =IF($B$38="","",IF(VLOOKUP($B$38,MASTER_PROPERTY_TABLE,MATCH("Unit System",key_MPTable,0),FALSE)="English",mmBTU_to_GJ,1)) ->  | I38: =+'Cash Flow Analysis'!$G$233 -> 
B39: =IF('Cash Flow Analysis'!$H$131=0,"",'Cash Flow Analysis'!$H$131) ->  | C39: =IF($B$39="","",$E$39*$F$39*$H$39) ->  | D39: =IF($B39="","",$C39*1000*MJ_to_kWh) ->  | E39: =IF($B39<>"",VLOOKUP($B39,MASTER_PROPERTY_TABLE,MATCH("H2A LHV (GJ/ H2A usage input unit)",key_MPTable,0),FALSE),"") ->  | F39: =IF('Cash Flow Analysis'!$H$133="","",'Cash Flow Analysis'!$H$133) ->  | G39: =IF($B$39<>"",VLOOKUP($B$39,MASTER_PROPERTY_TABLE,MATCH("H2A Usage Input Unit/ kg H2",key_MPTable,0),FALSE),"") ->  | H39: =IF($B$39="","",IF(VLOOKUP($B$39,MASTER_PROPERTY_TABLE,MATCH("Unit System",key_MPTable,0),FALSE)="English",mmBTU_to_GJ,1)) ->  | I39: =+'Cash Flow Analysis'!$H$233 -> 
B40: =IF('Cash Flow Analysis'!$I$131=0,"",'Cash Flow Analysis'!$I$131) ->  | C40: =IF($B$40="","",$E$40*$F$40*$H$40) ->  | D40: =IF($B40="","",$C40*1000*MJ_to_kWh) ->  | E40: =IF($B40<>"",VLOOKUP($B40,MASTER_PROPERTY_TABLE,MATCH("H2A LHV (GJ/ H2A usage input unit)",key_MPTable,0),FALSE),"") ->  | F40: =IF('Cash Flow Analysis'!$I$133="","",'Cash Flow Analysis'!$I$133) ->  | G40: =IF($B$40<>"",VLOOKUP($B$40,MASTER_PROPERTY_TABLE,MATCH("H2A Usage Input Unit/ kg H2",key_MPTable,0),FALSE),"") ->  | H40: =IF($B$40="","",IF(VLOOKUP($B$40,MASTER_PROPERTY_TABLE,MATCH("Unit System",key_MPTable,0),FALSE)="English",mmBTU_to_GJ,1)) ->  | I40: =+'Cash Flow Analysis'!$I$233 -> 
B41: Carbon Sequestration
B42: =IF('Cash Flow Analysis'!$J$131=0,"",'Cash Flow Analysis'!$J$131) ->  | C42: =IF($B$42="","",$E$42*$F$42*$H$42) ->  | D42: =IF($B42="","",$C42*1000*MJ_to_kWh) ->  | E42: =IF($B42<>"",VLOOKUP($B42,MASTER_PROPERTY_TABLE,MATCH("H2A LHV (GJ/ H2A usage input unit)",key_MPTable,0),FALSE),"") ->  | F42: =CO2_CashFlow_eUse -> 0 | G42: =IF($B$42<>"",VLOOKUP($B$42,MASTER_PROPERTY_TABLE,MATCH("H2A Usage Input Unit/ kg H2",key_MPTable,0),FALSE),"") ->  | H42: =IF($B42="","",IF(VLOOKUP($B42,MASTER_PROPERTY_TABLE,MATCH("Unit System",key_MPTable,0),FALSE)="English",mmBTU_to_GJ,1)) -> 
C43: Energy Output (GJ/kg H2) | D43: Energy Output (kWh/kg H2) | E43: LHV (GJ/usage unit) | F43: Production (/kg H2) | G43: Unit | H43: Unit System Conversion Factor
B44: Hydrogen (1 kg) | C44: =kgH2_to_GJ -> 0.1202116383 | D44: =IF($B44="","",$C44*1000*MJ_to_kWh) -> 33.39212175 | E44: =kgH2_to_GJ -> 0.1202116383 | F44: 1 | G44: kg | H44: 1
B46: Byproducts
B47: =IF('Cash Flow Analysis'!$K$131=0,"",'Cash Flow Analysis'!$K$131) ->  | C47: =IF($B$47="","",$E$47*$F$47*$H$47) ->  | D47: =IF($B47="","",$C47*1000*MJ_to_kWh) ->  | E47: =IF($B47<>"",VLOOKUP($B47,MASTER_PROPERTY_TABLE,MATCH("H2A LHV (GJ/ H2A usage input unit)",key_MPTable,0),FALSE),"") ->  | F47: =IF('Cash Flow Analysis'!$K$133="","",'Cash Flow Analysis'!$K$133) ->  | G47: =IF($B$47<>"",VLOOKUP($B$47,MASTER_PROPERTY_TABLE,MATCH("H2A Usage Input Unit/ kg H2",key_MPTable,0),FALSE),"") ->  | H47: =IF($B$47="","",IF(VLOOKUP($B$47,MASTER_PROPERTY_TABLE,MATCH("Unit System",key_MPTable,0),FALSE)="English",mmBTU_to_GJ,1)) ->  | I47: =+'Cash Flow Analysis'!$K$233 -> 
B48: =IF('Cash Flow Analysis'!$L$131=0,"",'Cash Flow Analysis'!$L$131) ->  | C48: =IF($B$48="","",$E$48*$F$48*$H$48) ->  | D48: =IF($B48="","",$C48*1000*MJ_to_kWh) ->  | E48: =IF($B48<>"",VLOOKUP($B48,MASTER_PROPERTY_TABLE,MATCH("H2A LHV (GJ/ H2A usage input unit)",key_MPTable,0),FALSE),"") ->  | F48: =IF('Cash Flow Analysis'!$L$133="","",'Cash Flow Analysis'!$L$133) ->  | G48: =IF($B$48<>"",VLOOKUP($B$48,MASTER_PROPERTY_TABLE,MATCH("H2A Usage Input Unit/ kg H2",key_MPTable,0),FALSE),"") ->  | H48: =IF($B$48="","",IF(VLOOKUP($B$48,MASTER_PROPERTY_TABLE,MATCH("Unit System",key_MPTable,0),FALSE)="English",mmBTU_to_GJ,1)) ->  | I48: =+'Cash Flow Analysis'!$L$233 -> 
B49: =IF('Cash Flow Analysis'!$M$131=0,"",'Cash Flow Analysis'!$M$131) ->  | C49: =IF($B$49="","",$E$49*$F$49*$H$49) ->  | D49: =IF($B49="","",$C49*1000*MJ_to_kWh) ->  | E49: =IF($B49<>"",VLOOKUP($B49,MASTER_PROPERTY_TABLE,MATCH("H2A LHV (GJ/ H2A usage input unit)",key_MPTable,0),FALSE),"") ->  | F49: =IF('Cash Flow Analysis'!$M$133="","",'Cash Flow Analysis'!$M$133) ->  | G49: =IF($B$49<>"",VLOOKUP($B$49,MASTER_PROPERTY_TABLE,MATCH("H2A Usage Input Unit/ kg H2",key_MPTable,0),FALSE),"") ->  | H49: =IF($B$49="","",IF(VLOOKUP($B$49,MASTER_PROPERTY_TABLE,MATCH("Unit System",key_MPTable,0),FALSE)="English",mmBTU_to_GJ,1)) ->  | I49: =+'Cash Flow Analysis'!$M$233 -> 
B50: =IF('Cash Flow Analysis'!$N$131=0,"",'Cash Flow Analysis'!$N$131) ->  | C50: =IF($B$50="","",$E$50*$F$50*$H$50) ->  | D50: =IF($B50="","",$C50*1000*MJ_to_kWh) ->  | E50: =IF($B50<>"",VLOOKUP($B50,MASTER_PROPERTY_TABLE,MATCH("H2A LHV (GJ/ H2A usage input unit)",key_MPTable,0),FALSE),"") ->  | F50: =IF('Cash Flow Analysis'!$N$133="","",'Cash Flow Analysis'!$N$133) ->  | G50: =IF($B$50<>"",VLOOKUP($B$50,MASTER_PROPERTY_TABLE,MATCH("H2A Usage Input Unit/ kg H2",key_MPTable,0),FALSE),"") ->  | H50: =IF($B$50="","",IF(VLOOKUP($B$50,MASTER_PROPERTY_TABLE,MATCH("Unit System",key_MPTable,0),FALSE)="English",mmBTU_to_GJ,1)) ->  | I50: =+'Cash Flow Analysis'!$N$233 -> 
B52: Production Process Energy Efficiency | D52: =(C56+C57)/(C53+C54+C55) -> 16.61299589
B53: Feedstock energy input (GJ)/kg H2 | C53: =SUM(C32:C35) -> 0.007236
B54: Utility energy input (GJ/kg H2) | C54: =SUM(C37:C40) -> 0
B55: Carbon sequestration energy input (GJ/kg H2) | C55: =IF(C42="",0,C42) -> 0
B56: Hydrogen energy output (GJ/kg) | C56: =C44 -> 0.1202116383
B57: Byproduct energy output (GJ/kg H2) | C57: =SUM(C47:C50) -> 0
B59: Upstream Energy Usage (GJ/kg H2)
B60: Feedstock | C60: Total Energy | D60: Fossil Fuels | E60: Petroleum
B61: =B32 -> Industrial Electricity | C61: =IF($B61="","",$C32/1000000*VLOOKUP($B61,Tbl_Emissions,3,FALSE)) -> 0.012464412 | D61: =IF($B61="","",$C32/1000000*VLOOKUP($B61,Tbl_Emissions,4,FALSE)) -> 0.009361776 | E61: =IF($B61="","",$C32/1000000*VLOOKUP($B61,Tbl_Emissions,5,FALSE)) -> 0.000111153
B62: =B33 ->  | C62: =IF($B62="","",$C33/1000000*VLOOKUP($B62,Tbl_Emissions,3,FALSE)) ->  | D62: =IF($B62="","",$C33/1000000*VLOOKUP($B62,Tbl_Emissions,4,FALSE)) ->  | E62: =IF($B62="","",$C33/1000000*VLOOKUP($B62,Tbl_Emissions,5,FALSE)) -> 
B63: =B34 ->  | C63: =IF($B63="","",$C34/1000000*VLOOKUP($B63,Tbl_Emissions,3,FALSE)) ->  | D63: =IF($B63="","",$C34/1000000*VLOOKUP($B63,Tbl_Emissions,4,FALSE)) ->  | E63: =IF($B63="","",$C34/1000000*VLOOKUP($B63,Tbl_Emissions,5,FALSE)) -> 
B64: =B35 ->  | C64: =IF($B64="","",$C35/1000000*VLOOKUP($B64,Tbl_Emissions,3,FALSE)) ->  | D64: =IF($B64="","",$C35/1000000*VLOOKUP($B64,Tbl_Emissions,4,FALSE)) ->  | E64: =IF($B64="","",$C35/1000000*VLOOKUP($B64,Tbl_Emissions,5,FALSE)) -> 
B65: Utility
B66: =B37 ->  | C66: =IF($B66="","",$C37/1000000*VLOOKUP($B66,Tbl_Emissions,3,FALSE)) ->  | D66: =IF($B66="","",$C37/1000000*VLOOKUP($B66,Tbl_Emissions,4,FALSE)) ->  | E66: =IF($B66="","",$C37/1000000*VLOOKUP($B66,Tbl_Emissions,5,FALSE)) -> 
B67: =B38 ->  | C67: =IF($B67="","",$C38/1000000*VLOOKUP($B67,Tbl_Emissions,3,FALSE)) ->  | D67: =IF($B67="","",$C38/1000000*VLOOKUP($B67,Tbl_Emissions,4,FALSE)) ->  | E67: =IF($B67="","",$C38/1000000*VLOOKUP($B67,Tbl_Emissions,5,FALSE)) -> 
B68: =B39 ->  | C68: =IF($B68="","",$C39/1000000*VLOOKUP($B68,Tbl_Emissions,3,FALSE)) ->  | D68: =IF($B68="","",$C39/1000000*VLOOKUP($B68,Tbl_Emissions,4,FALSE)) ->  | E68: =IF($B68="","",$C39/1000000*VLOOKUP($B68,Tbl_Emissions,5,FALSE)) -> 
B69: =B40 ->  | C69: =IF($B69="","",$C40/1000000*VLOOKUP($B69,Tbl_Emissions,3,FALSE)) ->  | D69: =IF($B69="","",$C40/1000000*VLOOKUP($B69,Tbl_Emissions,4,FALSE)) ->  | E69: =IF($B69="","",$C40/1000000*VLOOKUP($B69,Tbl_Emissions,5,FALSE)) -> 
B70: Carbon Sequestration
B71: =B42 ->  | C71: =IF($B71="","",$C42/1000000*VLOOKUP($B71,Tbl_Emissions,3,FALSE)) ->  | D71: =IF($B71="","",$C42/1000000*VLOOKUP($B71,Tbl_Emissions,4,FALSE)) ->  | E71: =IF($B71="","",$C42/1000000*VLOOKUP($B71,Tbl_Emissions,5,FALSE)) -> 
B74: EMISSIONS
B76: Emissions Summary | D76: CO2 | E76: CH4 | F76: N2O | G76: Total GHG (CO2 eq)
B77: Total upstream emissions (kg/kg H2) | D77: =C121 -> 0.90979836 | E77: =D121 -> 0.001480181688 | F77: =E121 -> 1.29925596e-05 | G77: =F121 -> 0.950674685
B78: Total process emissions (kg/kg H2) | D78: =D89 -> 0 | E78: =E89 -> 0 | F78: =F89 -> 0 | G78: =G89 -> 0
B80: Total well to pump emissions (kg/kg H2) | D80: =SUM(D77:D79) -> 0.90979836 | E80: =SUM(E77:E79) -> 0.001480181688 | F80: =SUM(F77:F79) -> 1.29925596e-05 | G80: =SUM(G77:G79) -> 0.950674685
B82: Production Process GHG Emissions Summary | D82: CO2 | E82: CH4 | F82: N2O | G82: Total GHG (CO2 eq)
B83: Total Process Pollutants Produced (kg /kg H2) | D83: =SUM(C95:C105) -> 0 | E83: =SUM(D95:D105) -> 0 | F83: =SUM(E95:E105) -> 0 | G83: =SUM(F95:F105) -> 0
B84: Total Process Pollutants Produced (metric tons/year) | D84: =ROUND(D83*output_kgyear/1000,-2) -> 0 | E84: =ROUND(E83*output_kgyear/1000,-2) -> 0 | F84: =ROUND(F83*output_kgyear/1000,-2) -> 0 | G84: =ROUND(G83*output_kgyear/1000,-2) -> 0
B85: Total Feedstock Pollutants Produced (kg /kg H2) | D85: =SUM(C95:C98) -> 0 | E85: =SUM(D95:D98) -> 0 | F85: =SUM(E95:E98) -> 0 | G85: =SUM(F95:F98) -> 0
B86: Total Feedstock Pollutants Produced (metric tons /year) | D86: =ROUND(D85*output_kgyear/1000,-2) -> 0 | E86: =ROUND(E85*output_kgyear/1000,-2) -> 0 | F86: =ROUND(F85*output_kgyear/1000,-2) -> 0 | G86: =ROUND(G85*output_kgyear/1000,-2) -> 0
B87: CO2 Captured (kg/kg H2)* | D87: =IF(CO2_CashFlow_eUse>0,D85*CO2_Capture_Efficiency,0) -> 0
B88: CO2 Captured (metric tons/year)* | D88: =ROUND(D87*output_kgyear/1000,-2) -> 0
B89: Total Process Emissions (kg/kg H2) | D89: =D83-D87 -> 0 | E89: =E83-E87 -> 0 | F89: =F83-F87 -> 0 | G89: =D89*GHG_CO2_factor + E89*GHG_CH4_factor + F89*GHG_N2O_factor -> 0
B90: Total Process Emissions (metric tons/year) | D90: =ROUND(D89*output_kgyear/1000,-2) -> 0 | E90: =ROUND(E89*output_kgyear/1000,-2) -> 0 | F90: =ROUND(F89*output_kgyear/1000,-2) -> 0 | G90: =ROUND(G89*output_kgyear/1000,-2) -> 0
B91: *Carbon sequestration values are only calculated if the detailed Carbon Sequestration sheet is used.
B93: Production Process GHG Emissions (/kg H2)
B94: Feedstock | C94: CO2 | D94: CH4 | E94: N2O | F94: Total GHG (CO2 eq)
B95: =B32 -> Industrial Electricity | C95: =IF($B95="","",VLOOKUP($B95,MASTER_PROPERTY_TABLE,MATCH("CO2 Emissions Factor (kg CO2 produced/GJ feed)",key_MPTable,0),FALSE)*$E32*$F32) -> 0 | D95: =IF($B95="","",VLOOKUP($B95,MASTER_PROPERTY_TABLE,MATCH("CH4 Emissions Factor (kg CH4 produced/GJ or mmBtu feed)",key_MPTable,0),FALSE)*$E32*$F32) -> 0 | E95: =IF($B95="","",VLOOKUP($B95,MASTER_PROPERTY_TABLE,MATCH("N2O Emissions Factor (kg N2O produced/GJ or mmBtu feed)",key_MPTable,0),FALSE)*$E32*$F32) -> 0 | F95: =IF($B95="","",$C95*GHG_CO2_factor+$D95*GHG_CH4_factor+$E95*GHG_N2O_factor) -> 0
B96: =B33 ->  | C96: =IF($B96="","",VLOOKUP($B96,MASTER_PROPERTY_TABLE,MATCH("CO2 Emissions Factor (kg CO2 produced/GJ feed)",key_MPTable,0),FALSE)*$E33*$F33) ->  | D96: =IF($B96="","",VLOOKUP($B96,MASTER_PROPERTY_TABLE,MATCH("CH4 Emissions Factor (kg CH4 produced/GJ or mmBtu feed)",key_MPTable,0),FALSE)*$E33*$F33) ->  | E96: =IF($B96="","",VLOOKUP($B96,MASTER_PROPERTY_TABLE,MATCH("N2O Emissions Factor (kg N2O produced/GJ or mmBtu feed)",key_MPTable,0),FALSE)*$E33*$F33) ->  | F96: =IF($B96="","",$C96*GHG_CO2_factor+$D96*GHG_CH4_factor+$E96*GHG_N2O_factor) -> 
B97: =B34 ->  | C97: =IF($B97="","",VLOOKUP($B97,MASTER_PROPERTY_TABLE,MATCH("CO2 Emissions Factor (kg CO2 produced/GJ feed)",key_MPTable,0),FALSE)*$E34*$F34) ->  | D97: =IF($B97="","",VLOOKUP($B97,MASTER_PROPERTY_TABLE,MATCH("CH4 Emissions Factor (kg CH4 produced/GJ or mmBtu feed)",key_MPTable,0),FALSE)*$E34*$F34) ->  | E97: =IF($B97="","",VLOOKUP($B97,MASTER_PROPERTY_TABLE,MATCH("N2O Emissions Factor (kg N2O produced/GJ or mmBtu feed)",key_MPTable,0),FALSE)*$E34*$F34) ->  | F97: =IF($B97="","",$C97*GHG_CO2_factor+$D97*GHG_CH4_factor+$E97*GHG_N2O_factor) -> 
B98: =B35 ->  | C98: =IF($B98="","",VLOOKUP($B98,MASTER_PROPERTY_TABLE,MATCH("CO2 Emissions Factor (kg CO2 produced/GJ feed)",key_MPTable,0),FALSE)*$E35*$F35) ->  | D98: =IF($B98="","",VLOOKUP($B98,MASTER_PROPERTY_TABLE,MATCH("CH4 Emissions Factor (kg CH4 produced/GJ or mmBtu feed)",key_MPTable,0),FALSE)*$E35*$F35) ->  | E98: =IF($B98="","",VLOOKUP($B98,MASTER_PROPERTY_TABLE,MATCH("N2O Emissions Factor (kg N2O produced/GJ or mmBtu feed)",key_MPTable,0),FALSE)*$E35*$F35) ->  | F98: =IF($B98="","",$C98*GHG_CO2_factor+$D98*GHG_CH4_factor+$E98*GHG_N2O_factor) -> 
B99: Utility
B100: =B37 ->  | C100: =IF($B100="","",VLOOKUP($B100,MASTER_PROPERTY_TABLE,MATCH("CO2 Emissions Factor (kg CO2 produced/GJ feed)",key_MPTable,0),FALSE)*$E37*$F37) ->  | D100: =IF($B100="","",VLOOKUP($B100,MASTER_PROPERTY_TABLE,MATCH("CH4 Emissions Factor (kg CH4 produced/GJ or mmBtu feed)",key_MPTable,0),FALSE)*$E37*$F37) ->  | E100: =IF($B100="","",VLOOKUP($B100,MASTER_PROPERTY_TABLE,MATCH("N2O Emissions Factor (kg N2O produced/GJ or mmBtu feed)",key_MPTable,0),FALSE)*$E37*$F37) ->  | F100: =IF($B100="","",$C100*GHG_CO2_factor+$D100*GHG_CH4_factor+$E100*GHG_N2O_factor) -> 
B101: =B38 ->  | C101: =IF($B101="","",VLOOKUP($B101,MASTER_PROPERTY_TABLE,MATCH("CO2 Emissions Factor (kg CO2 produced/GJ feed)",key_MPTable,0),FALSE)*$E38*$F38) ->  | D101: =IF($B101="","",VLOOKUP($B101,MASTER_PROPERTY_TABLE,MATCH("CH4 Emissions Factor (kg CH4 produced/GJ or mmBtu feed)",key_MPTable,0),FALSE)*$E38*$F38) ->  | E101: =IF($B101="","",VLOOKUP($B101,MASTER_PROPERTY_TABLE,MATCH("N2O Emissions Factor (kg N2O produced/GJ or mmBtu feed)",key_MPTable,0),FALSE)*$E38*$F38) ->  | F101: =IF($B101="","",$C101*GHG_CO2_factor+$D101*GHG_CH4_factor+$E101*GHG_N2O_factor) -> 
B102: =B39 ->  | C102: =IF($B102="","",VLOOKUP($B102,MASTER_PROPERTY_TABLE,MATCH("CO2 Emissions Factor (kg CO2 produced/GJ feed)",key_MPTable,0),FALSE)*$E39*$F39) ->  | D102: =IF($B102="","",VLOOKUP($B102,MASTER_PROPERTY_TABLE,MATCH("CH4 Emissions Factor (kg CH4 produced/GJ or mmBtu feed)",key_MPTable,0),FALSE)*$E39*$F39) ->  | E102: =IF($B102="","",VLOOKUP($B102,MASTER_PROPERTY_TABLE,MATCH("N2O Emissions Factor (kg N2O produced/GJ or mmBtu feed)",key_MPTable,0),FALSE)*$E39*$F39) ->  | F102: =IF($B102="","",$C102*GHG_CO2_factor+$D102*GHG_CH4_factor+$E102*GHG_N2O_factor) -> 
B103: =B40 ->  | C103: =IF($B103="","",VLOOKUP($B103,MASTER_PROPERTY_TABLE,MATCH("CO2 Emissions Factor (kg CO2 produced/GJ feed)",key_MPTable,0),FALSE)*$E40*$F40) ->  | D103: =IF($B103="","",VLOOKUP($B103,MASTER_PROPERTY_TABLE,MATCH("CH4 Emissions Factor (kg CH4 produced/GJ or mmBtu feed)",key_MPTable,0),FALSE)*$E40*$F40) ->  | E103: =IF($B103="","",VLOOKUP($B103,MASTER_PROPERTY_TABLE,MATCH("N2O Emissions Factor (kg N2O produced/GJ or mmBtu feed)",key_MPTable,0),FALSE)*$E40*$F40) ->  | F103: =IF($B103="","",$C103*GHG_CO2_factor+$D103*GHG_CH4_factor+$E103*GHG_N2O_factor) -> 
B104: Carbon Sequestration
B105: =B42 ->  | C105: =IF($B105="","",VLOOKUP($B105,MASTER_PROPERTY_TABLE,MATCH("CO2 Emissions Factor (kg CO2 produced/GJ feed)",key_MPTable,0),FALSE)*$E42*$F42) ->  | D105: =IF($B105="","",VLOOKUP($B105,MASTER_PROPERTY_TABLE,MATCH("CH4 Emissions Factor (kg CH4 produced/GJ or mmBtu feed)",key_MPTable,0),FALSE)*$E42*$F42) ->  | E105: =IF($B105="","",VLOOKUP($B105,MASTER_PROPERTY_TABLE,MATCH("N2O Emissions Factor (kg N2O produced/GJ or mmBtu feed)",key_MPTable,0),FALSE)*$E42*$F42) ->  | F105: =IF($B105="","",$C105*GHG_CO2_factor+$D105*GHG_CH4_factor+$E105*GHG_N2O_factor) -> 
B108: Upstream GHG Emissions (kg/kg H2) based on GREET.NET 2017
B109: Feedstock | C109: CO2 | D109: CH4 | E109: N2O | F109: Total GHG (CO2 eq)
B110: =B32 -> Industrial Electricity | C110: =IF($B110="","",$C32*VLOOKUP($B110,Tbl_Emissions,6,FALSE)) -> 0.90979836 | D110: =IF($B110="","",$C32*VLOOKUP($B110,Tbl_Emissions,7,FALSE)) -> 0.001480181688 | E110: =IF($B110="","",$C32*VLOOKUP($B110,Tbl_Emissions,8,FALSE)) -> 1.29925596e-05 | F110: =IF($B110="","",$C110*GHG_CO2_factor+$D110*GHG_CH4_factor+$E110*GHG_N2O_factor) -> 0.950674685
B111: =B33 ->  | C111: =IF($B111="","",$C33*VLOOKUP($B111,Tbl_Emissions,6,FALSE)) ->  | D111: =IF($B111="","",$C33*VLOOKUP($B111,Tbl_Emissions,7,FALSE)) ->  | E111: =IF($B111="","",$C33*VLOOKUP($B111,Tbl_Emissions,8,FALSE)) ->  | F111: =IF($B111="","",$C111*GHG_CO2_factor+$D111*GHG_CH4_factor+$E111*GHG_N2O_factor) -> 
B112: =B34 ->  | C112: =IF($B112="","",$C34*VLOOKUP($B112,Tbl_Emissions,6,FALSE)) ->  | D112: =IF($B112="","",$C34*VLOOKUP($B112,Tbl_Emissions,7,FALSE)) ->  | E112: =IF($B112="","",$C34*VLOOKUP($B112,Tbl_Emissions,8,FALSE)) ->  | F112: =IF($B112="","",$C112*GHG_CO2_factor+$D112*GHG_CH4_factor+$E112*GHG_N2O_factor) -> 
B113: =B35 ->  | C113: =IF($B113="","",$C35*VLOOKUP($B113,Tbl_Emissions,6,FALSE)) ->  | D113: =IF($B113="","",$C35*VLOOKUP($B113,Tbl_Emissions,7,FALSE)) ->  | E113: =IF($B113="","",$C35*VLOOKUP($B113,Tbl_Emissions,8,FALSE)) ->  | F113: =IF($B113="","",$C113*GHG_CO2_factor+$D113*GHG_CH4_factor+$E113*GHG_N2O_factor) -> 
B114: Utility
B115: =B37 ->  | C115: =IF($B115="","",$C37*VLOOKUP($B115,Tbl_Emissions,6,FALSE)) ->  | D115: =IF($B115="","",$C37*VLOOKUP($B115,Tbl_Emissions,7,FALSE)) ->  | E115: =IF($B115="","",$C37*VLOOKUP($B115,Tbl_Emissions,8,FALSE)) ->  | F115: =IF($B115="","",$C115*GHG_CO2_factor+$D115*GHG_CH4_factor+$E115*GHG_N2O_factor) -> 
B116: =B38 ->  | C116: =IF($B116="","",$C38*VLOOKUP($B116,Tbl_Emissions,6,FALSE)) ->  | D116: =IF($B116="","",$C38*VLOOKUP($B116,Tbl_Emissions,7,FALSE)) ->  | E116: =IF($B116="","",$C38*VLOOKUP($B116,Tbl_Emissions,8,FALSE)) ->  | F116: =IF($B116="","",$C116*GHG_CO2_factor+$D116*GHG_CH4_factor+$E116*GHG_N2O_factor) -> 
B117: =B39 ->  | C117: =IF($B117="","",$C39*VLOOKUP($B117,Tbl_Emissions,6,FALSE)) ->  | D117: =IF($B117="","",$C39*VLOOKUP($B117,Tbl_Emissions,7,FALSE)) ->  | E117: =IF($B117="","",$C39*VLOOKUP($B117,Tbl_Emissions,8,FALSE)) ->  | F117: =IF($B117="","",$C117*GHG_CO2_factor+$D117*GHG_CH4_factor+$E117*GHG_N2O_factor) -> 
B118: =B40 ->  | C118: =IF($B118="","",$C40*VLOOKUP($B118,Tbl_Emissions,6,FALSE)) ->  | D118: =IF($B118="","",$C40*VLOOKUP($B118,Tbl_Emissions,7,FALSE)) ->  | E118: =IF($B118="","",$C40*VLOOKUP($B118,Tbl_Emissions,8,FALSE)) ->  | F118: =IF($B118="","",$C118*GHG_CO2_factor+$D118*GHG_CH4_factor+$E118*GHG_N2O_factor) -> 
B119: Carbon Sequestration
B120: =B42 ->  | C120: =IF($B120="","",$C42*VLOOKUP($B120,Tbl_Emissions,6,FALSE)) ->  | D120: =IF($B120="","",$C42*VLOOKUP($B120,Tbl_Emissions,7,FALSE)) ->  | E120: =IF($B120="","",$C42*VLOOKUP($B120,Tbl_Emissions,8,FALSE)) ->  | F120: =IF($B120="","",$C120*GHG_CO2_factor+$D120*GHG_CH4_factor+$E120*GHG_N2O_factor) -> 
B121: TOTAL | C121: =SUM(C110:C120) -> 0.90979836 | D121: =SUM(D110:D120) -> 0.001480181688 | E121: =SUM(E110:E120) -> 1.29925596e-05 | F121: =SUM(F110:F120) -> 0.950674685

Sheet Tornado Charts & Risk Analysis
B2: Parameter | C2: Nominal | D2: Enter deviation % for lowering H2 cost | E2: Enter deviation % for increasing H2 cost | F2: Price-decreasing factor | G2: Price-increasing factor | H2: Price-decreasing value | I2: Price-increasing value
B3: Operating Capacity Factor | C3: =+cap_factor -> 0.9 | D3: 0.05 | E3: 0.05 | F3: =1+D3 -> 1.05 | G3: =1-E3 -> 0.95 | H3: =+C3*F3 -> 0.945 | I3: =+C3*G3 -> 0.855
B4: =+Input_Sheet_Template!B26 -> Plant Design Capacity (kg of H2/day) | C4: =+design_cap -> 1000 | D4: 0.05 | E4: 0.05 | F4: =1+D4 -> 1.05 | G4: =1-E4 -> 0.95 | H4: 1050 | I4: 950
B5: After-tax Real IRR | C5: =+real_irr -> 0.08 | D5: 0.05 | E5: 0.05 | F5: =1-D5 -> 0.95 | G5: =1+E5 -> 1.05 | H5: 0.076 | I5: 0.084
B6: Feedstock Consumption (% of baseline) | C6: 1 | D6: 0.05 | E6: 0.05 | F6: =1-D6 -> 0.95 | G6: =1+E6 -> 1.05 | H6: 0.95 | I6: 1.05
B7: Utilities Consumption (% of baseline) | C7: 1 | D7: 0.05 | E7: 0.05 | F7: =1-D7 -> 0.95 | G7: 1.05 | H7: 0.95 | I7: 1.05
B8: Total Capital Investment | C8: =+total_cap -> 4592991.769 | D8: 0.05 | E8: 0.05 | F8: =1-D8 -> 0.95 | G8: 1.05 | H8: 4363342.18 | I8: 4822641.357
B9: Total Fixed Operating Cost | C9: =+fixed -> 517948.1217 | D9: 0.05 | E9: 0.05 | F9: =1-D9 -> 0.95 | G9: 1.05 | H9: 492050.7156 | I9: 543845.5278
B11: Run Risk Analysis (note: Risk analysis could take ~5 min to run)? | D11: Yes | E11: =IF(RunRiskAnalysis="Yes"," Please click Update Charts and Risk Analysis button before using results below","") -> Please click Update Charts and Risk Analysis button before using results below
P12: Risk variable to plot | R12: Cost of hydrogen ($/kg)
V13: Percentile | W13: Value
V14: 0 | W14: =+MIN(OFFSET($B$251:$B$2250,0,$C$194))*$C$198 -> 3.610501827
V15: 0.05 | W15: =+PERCENTILE(OFFSET($B$251:$B$2250,0,$C$194),V15)*$C$198 -> 3.727738439
V16: =+V15+0.05 -> 0.1 | W16: 3.759513193
V17: 0.15 | W17: 3.781971123
V18: 0.2 | W18: 3.797561686
V19: 0.25 | W19: 3.813732037
V20: 0.3 | W20: 3.828190635
V21: 0.35 | W21: 3.841261251
V22: 0.4 | W22: 3.853717558
V23: 0.45 | W23: 3.866368808
V24: 0.5 | W24: 3.878795909
V25: 0.55 | W25: 3.891039375
V26: 0.6 | W26: 3.903744543
V27: 0.65 | W27: 3.917765691
V28: 0.7 | W28: 3.932246814
V29: 0.75 | W29: 3.946928202
V30: 0.8 | W30: 3.963930986
V31: 0.85 | W31: 3.982981525
V32: 0.9 | W32: 4.006902642
V33: 0.95 | W33: 4.041851393
V34: 1 | W34: =+MAX(OFFSET($B$251:$B$2250,0,$C$194))*$C$198 -> 4.173126562
B45: No user interactions below this row
B47: Displayed case
B48: 1 | C48: =+OFFSET(C50,$B$48,0) -> 1 | D48: 1 | E48: 1 | F48: =+OFFSET(F50,$B$48,0) -> 1 | G48: =+OFFSET(G50,$B$48,0) -> 1 | H48: =+OFFSET(H50,$B$48,0) -> 1 | I48: =+OFFSET(I50,$B$48,0) -> 1 | K48: =+'Cash Flow Analysis'!F118 -> 3.882524233 | L48: =+'Cash Flow Analysis'!Q118 -> 0 | M48: =+'Cash Flow Analysis'!L118 -> 0.005450064433 | N48: =+'Cash Flow Analysis'!H117 -> 0.4562359206 | O48: =+'Cash Flow Analysis'!I117 -> 1.065272645 | P48: =+'Cash Flow Analysis'!J117 -> 0.02397377311 | Q48: =+'Cash Flow Analysis'!K117 -> 0.06628247501 | R48: =+'Cash Flow Analysis'!M117 -> 0.005167560342 | S48: =+'Cash Flow Analysis'!N117 -> 1.592160177 | T48: =+'Cash Flow Analysis'!O117 -> 0.1588260096 | U48: =+'Cash Flow Analysis'!P117 -> 0 | V48: =+'Cash Flow Analysis'!R117 -> 0.005623884192 | W48: =+'Cash Flow Analysis'!S117 -> 0.2894096885 | X48: =+'Cash Flow Analysis'!X117 -> 0.2106905448 | Y48: =+'Cash Flow Analysis'!Z117 -> 0.01433161928
B50: Case | C50: Operating capacity factor | D50: Plant design capacity (kg of H2/day) | E50: After-tax real IRR (%) | F50: Feedstock consumption (% of most likely value) | G50: Utilities consumption (% of most likely value) | H50: Total capital investment ($) | I50: Total fixed operating cost ($/year) | K50: Cost of hydrogen ($/kg) | L50: Revenue from byproduct sales ($/kg) | M50: Salvage value ($/kg) | N50: Initial equity depreciable capital ($/kg) | O50: Yearly replacement costs ($/kg) | P50: Cash from working capital reserve ($/kg) | Q50: Other non-depreciable capital costs ($/kg) | R50: Decommissioning costs ($/kg) | S50: Fixed operating cost ($/kg) | T50: Feedstock cost ($/kg) | U50: Other raw material cost ($/kg) | V50: Other variable operating costs ($/kg) | W50: Debt interest ($/kg) | X50: Taxes ($/kg) | Y50: Principal payment ($/kg)
B51: 1 | C51: 1 | D51: 1 | E51: 1 | F51: 1 | G51: 1 | H51: 1 | I51: 1 | K51: 3.882524233 | L51: 0 | M51: 0.005450064433 | N51: 0.4562359206 | O51: 1.065272645 | P51: 0.02397377311 | Q51: 0.06628247501 | R51: 0.005167560342 | S51: 1.592160177 | T51: 0.1588260096 | U51: 0 | V51: 0.005623884192 | W51: 0.2894096885 | X51: 0.2106905448 | Y51: 0.01433161928
B52: =+B51+1 -> 2 | C52: =+F3 -> 1.05 | D52: 1 | E52: 1 | F52: 1 | G52: 1 | H52: 1 | I52: 1 | K52: 3.705616978 | L52: 0 | M52: 0.005190537555 | N52: 0.4345104005 | O52: 1.014545376 | P52: 0.02293902756 | Q52: 0.06312616668 | R52: 0.00492148604 | S52: 1.516343026 | T52: 0.1588260096 | U52: 0 | V52: 0.005623884192 | W52: 0.2756282748 | X52: 0.2006947025 | Y52: 0.01364916122
B53: =+B52+1 -> 3 | C53: =+G3 -> 0.95 | D53: 1 | E53: 1 | F53: 1 | G53: 1 | H53: 1 | I53: 1 | K53: 4.078053305 | L53: 0 | M53: 0.005736909929 | N53: 0.4802483374 | O53: 1.121339627 | P53: 0.02511743926 | Q53: 0.06977102633 | R53: 0.005439537202 | S53: 1.675958081 | T53: 0.1588260096 | U53: 0 | V53: 0.005623884192 | W53: 0.3046417774 | X53: 0.2217385811 | Y53: 0.01508591504
B54: 4 | C54: 1 | D54: =+F4 -> 1.05 | E54: 1 | F54: 1 | G54: 1 | H54: 1 | I54: 1 | K54: 3.778936188 | L54: 0 | M54: 0.005405851577 | N54: 0.4513649478 | O54: 1.017018112 | P54: 0.02340656218 | Q54: 0.06885355526 | R54: 0.005112389224 | S54: 1.550599895 | T54: 0.1588260096 | U54: 0 | V54: 0.005623884192 | W54: 0.2863198251 | X54: 0.2030382511 | Y54: 0.0141786087
B55: 5 | C55: 1 | D55: =+G4 -> 0.95 | E55: 1 | F55: 1 | G55: 1 | H55: 1 | I55: 1 | K55: 3.996251037 | L55: 0 | M55: 0.005497628632 | N55: 0.4614134843 | O55: 1.11857636 | P55: 0.0245911174 | Q55: 0.06368294351 | R55: 0.005226204065 | S55: 1.637393795 | T55: 0.1588260096 | U55: 0 | V55: 0.005623884192 | W55: 0.2926940356 | X55: 0.219226572 | Y55: 0.01449426074
B56: 6 | C56: 1 | D56: 1 | E56: =+F5 -> 0.95 | F56: 1 | G56: 1 | H56: 1 | I56: 1 | K56: 3.852051835 | L56: 0 | M56: 0.006050404408 | N56: 0.4362854979 | O56: 1.06994152 | P56: 0.02307025669 | Q56: 0.06319906213 | R56: 0.005736781694 | S56: 1.591551043 | T56: 0.1589028091 | U56: 0 | V56: 0.005623884192 | W56: 0.2856628002 | X56: 0.2022182963 | Y56: 0.01591028759
B57: 7 | C57: 1 | D57: 1 | E57: =+G5 -> 1.05 | F57: 1 | G57: 1 | H57: 1 | I57: 1 | K57: 3.913320094 | L57: 0 | M57: 0.004905303004 | N57: 0.4764491715 | O57: 1.060467737 | P57: 0.02487112826 | Q57: 0.06942078409 | R57: 0.004651036622 | S57: 1.592772637 | T57: 0.1587510399 | U57: 0 | V57: 0.005623884192 | W57: 0.2931458605 | X57: 0.2191730166 | Y57: 0.01289910165
B58: 8 | C58: 1 | D58: 1 | E58: 1 | F58: =+F6 -> 0.95 | G58: 1 | H58: 1 | I58: 1 | K58: 3.874437002 | L58: 0 | M58: 0.005450064433 | N58: 0.4562359206 | O58: 1.065272645 | P58: 0.02386540486 | Q58: 0.06628247501 | R58: 0.005167560342 | S58: 1.592160177 | T58: 0.1508847091 | U58: 0 | V58: 0.005623884192 | W58: 0.2894096885 | X58: 0.2106529822 | Y58: 0.01433161928
B59: 9 | C59: 1 | D59: 1 | E59: 1 | F59: =+G6 -> 1.05 | G59: 1 | H59: 1 | I59: 1 | K59: 3.890611465 | L59: 0 | M59: 0.005450064433 | N59: 0.4562359206 | O59: 1.065272645 | P59: 0.02408214137 | Q59: 0.06628247501 | R59: 0.005167560342 | S59: 1.592160177 | T59: 0.1667673101 | U59: 0 | V59: 0.005623884192 | W59: 0.2894096885 | X59: 0.2107281075 | Y59: 0.01433161928
B60: 10 | C60: 1 | D60: 1 | E60: 1 | F60: 1 | G60: =+F7 -> 0.95 | H60: 1 | I60: 1 | K60: 3.882524233 | L60: 0 | M60: 0.005450064433 | N60: 0.4562359206 | O60: 1.065272645 | P60: 0.02397377311 | Q60: 0.06628247501 | R60: 0.005167560342 | S60: 1.592160177 | T60: 0.1588260096 | U60: 0 | V60: 0.005623884192 | W60: 0.2894096885 | X60: 0.2106905448 | Y60: 0.01433161928
B61: 11 | C61: 1 | D61: 1 | E61: 1 | F61: 1 | G61: =+G6 -> 1.05 | H61: 1 | I61: 1 | K61: 3.882524233 | L61: 0 | M61: 0.005450064433 | N61: 0.4562359206 | O61: 1.065272645 | P61: 0.02397377311 | Q61: 0.06628247501 | R61: 0.005167560342 | S61: 1.592160177 | T61: 0.1588260096 | U61: 0 | V61: 0.005623884192 | W61: 0.2894096885 | X61: 0.2106905448 | Y61: 0.01433161928
B62: 12 | C62: 1 | D62: 1 | E62: 1 | F62: 1 | G62: 1 | H62: =+F8 -> 0.95 | I62: 1 | K62: 3.828401947 | L62: 0 | M62: 0.005177561211 | N62: 0.432177032 | O62: 1.065272645 | P62: 0.02378108174 | Q62: 0.06628247501 | R62: 0.00489505712 | S62: 1.57804143 | T62: 0.1588260096 | U62: 0 | V62: 0.005623884192 | W62: 0.2741481207 | X62: 0.2109559087 | Y62: 0.01357586373
B63: 13 | C63: 1 | D63: 1 | E63: 1 | F63: 1 | G63: 1 | H63: =+G8 -> 1.05 | I63: 1 | K63: 3.93664652 | L63: 0 | M63: 0.005722567655 | N63: 0.4802948091 | O63: 1.065272645 | P63: 0.02416646449 | Q63: 0.06628247501 | R63: 0.005440063563 | S63: 1.606278924 | T63: 0.1588260096 | U63: 0 | V63: 0.005623884192 | W63: 0.3046712563 | X63: 0.210425181 | Y63: 0.01508737484
B64: 14 | C64: 1 | D64: 1 | E64: 1 | F64: 1 | G64: 1 | H64: 1 | I64: =+F9 -> 0.95 | K64: 3.801453145 | L64: 0 | M64: 0.005450064433 | N64: 0.4562359206 | O64: 1.065272645 | P64: 0.02288729028 | Q64: 0.06628247501 | R64: 0.005167560342 | S64: 1.512552168 | T64: 0.1588260096 | U64: 0 | V64: 0.005623884192 | W64: 0.2894096885 | X64: 0.2103139482 | Y64: 0.01433161928
B65: 15 | C65: 1 | D65: 1 | E65: 1 | F65: 1 | G65: 1 | H65: 1 | I65: =+G9 -> 1.05 | K65: 3.963595322 | L65: 0 | M65: 0.005450064433 | N65: 0.4562359206 | O65: 1.065272645 | P65: 0.02506025595 | Q65: 0.06628247501 | R65: 0.005167560342 | S65: 1.671768186 | T65: 0.1588260096 | U65: 0 | V65: 0.005623884192 | W65: 0.2894096885 | X65: 0.2110671415 | Y65: 0.01433161928
B66: 16 | C66: =(C$72=1)*$F$3 +(C$72=2) +(C$72=3) +(C$72=4) +(C$72=5) -> 1.05 | D66: 1 | E66: 1 | F66: =(F$72=1)*$F$6 +(F$72=2) +(F$72=3) +(F$72=4) +(F$72=5) -> 1 | G66: =(G$72=1)*$F$7 +(G$72=2) +(G$72=3) +(G$72=4) +(G$72=5) -> 1 | H66: =(H$72=1)*$F$8 +(H$72=2) +(H$72=3) +(H$72=4) +(H$72=5) -> 1 | I66: =(I$72=1)*$F$9 +(I$72=2) +(I$72=3) +(I$72=4) +(I$72=5) -> 1 | K66: 3.705616978 | L66: 0 | M66: 0.005190537555 | N66: 0.4345104005 | O66: 1.014545376 | P66: 0.02293902756 | Q66: 0.06312616668 | R66: 0.00492148604 | S66: 1.516343026 | T66: 0.1588260096 | U66: 0 | V66: 0.005623884192 | W66: 0.2756282748 | X66: 0.2006947025 | Y66: 0.01364916122
B67: 17 | C67: =(C$72=1)*$F$3 +(C$72=2)*$F$3 +(C$72=3) +(C$72=4) +(C$72=5) -> 1.05 | D67: 1 | E67: 1 | F67: =(F$72=1)*$F$6 +(F$72=2)*$F$6 +(F$72=3) +(F$72=4) +(F$72=5) -> 1 | G67: =(G$72=1)*$F$7 +(G$72=2)*$F$7 +(G$72=3) +(G$72=4) +(G$72=5) -> 1 | H67: =(H$72=1)*$F$8 +(H$72=2)*$F$8 +(H$72=3) +(H$72=4) +(H$72=5) -> 1 | I67: =(I$72=1)*$F$9 +(I$72=2)*$F$9 +(I$72=3) +(I$72=4) +(I$72=5) -> 0.95 | K67: 3.628406417 | L67: 0 | M67: 0.005190537555 | N67: 0.4345104005 | O67: 1.014545376 | P67: 0.021904282 | Q67: 0.06312616668 | R67: 0.00492148604 | S67: 1.440525874 | T67: 0.1588260096 | U67: 0 | V67: 0.005623884192 | W67: 0.2756282748 | X67: 0.200336039 | Y67: 0.01364916122
B68: 18 | C68: =(C$72=1)*$F$3 +(C$72=2)*$F$3 +(C$72=3)*$F$3 +(C$72=4) +(C$72=5) -> 1.05 | D68: 1 | E68: 1 | F68: =(F$72=1)*$F$6 +(F$72=2)*$F$6 +(F$72=3)*$F$6 +(F$72=4) +(F$72=5) -> 1 | G68: =(G$72=1)*$F$7 +(G$72=2)*$F$7 +(G$72=3)*$F$7 +(G$72=4) +(G$72=5) -> 1 | H68: =(H$72=1)*$F$8 +(H$72=2)*$F$8 +(H$72=3)*$F$8 +(H$72=4) +(H$72=5) -> 0.95 | I68: =(I$72=1)*$F$9 +(I$72=2)*$F$9 +(I$72=3)*$F$9 +(I$72=4) +(I$72=5) -> 0.95 | K68: 3.57754606 | L68: 0 | M68: 0.004931010677 | N68: 0.4115971734 | O68: 1.014545376 | P68: 0.02172994218 | Q68: 0.06312616668 | R68: 0.004661959162 | S68: 1.42775177 | T68: 0.1588260096 | U68: 0 | V68: 0.005623884192 | W68: 0.2610934483 | X68: 0.200591947 | Y68: 0.01292939403
B69: 19 | C69: =(C$72=1)*$F$3 +(C$72=2)*$F$3 +(C$72=3)*$F$3 +(C$72=4)*$F$3 +(C$72=5) -> 1.05 | D69: 1 | E69: 1 | F69: =(F$72=1)*$F$6 +(F$72=2)*$F$6 +(F$72=3)*$F$6 +(F$72=4)*$F$6 +(F$72=5) -> 0.95 | G69: =(G$72=1)*$F$7 +(G$72=2)*$F$7 +(G$72=3)*$F$7 +(G$72=4)*$F$7 +(G$72=5) -> 1 | H69: =(H$72=1)*$F$8 +(H$72=2)*$F$8 +(H$72=3)*$F$8 +(H$72=4)*$F$8 +(H$72=5) -> 0.95 | I69: =(I$72=1)*$F$9 +(I$72=2)*$F$9 +(I$72=3)*$F$9 +(I$72=4)*$F$9 +(I$72=5) -> 0.95 | K69: 3.569458829 | L69: 0 | M69: 0.004931010677 | N69: 0.4115971734 | O69: 1.014545376 | P69: 0.02162157393 | Q69: 0.06312616668 | R69: 0.004661959162 | S69: 1.42775177 | T69: 0.1508847091 | U69: 0 | V69: 0.005623884192 | W69: 0.2610934483 | X69: 0.2005543844 | Y69: 0.01292939403
B70: 20 | C70: =(C$72=1)*$F$3 +(C$72=2)*$F$3 +(C$72=3)*$F$3 +(C$72=4)*$F$3 +(C$72=5)*$F$3 -> 1.05 | D70: 1 | E70: 1 | F70: =(F$72=1)*$F$6 +(F$72=2)*$F$6 +(F$72=3)*$F$6 +(F$72=4)*$F$6 +(F$72=5)*$F$6 -> 0.95 | G70: =(G$72=1)*$F$7 +(G$72=2)*$F$7 +(G$72=3)*$F$7 +(G$72=4)*$F$7 +(G$72=5)*$F$7 -> 0.95 | H70: =(H$72=1)*$F$8 +(H$72=2)*$F$8 +(H$72=3)*$F$8 +(H$72=4)*$F$8 +(H$72=5)*$F$8 -> 0.95 | I70: =(I$72=1)*$F$9 +(I$72=2)*$F$9 +(I$72=3)*$F$9 +(I$72=4)*$F$9 +(I$72=5)*$F$9 -> 0.95 | K70: 3.569458829 | L70: 0 | M70: 0.004931010677 | N70: 0.4115971734 | O70: 1.014545376 | P70: 0.02162157393 | Q70: 0.06312616668 | R70: 0.004661959162 | S70: 1.42775177 | T70: 0.1508847091 | U70: 0 | V70: 0.005623884192 | W70: 0.2610934483 | X70: 0.2005543844 | Y70: 0.01292939403
B72: Waterfall Chart Priority | C72: =6-RANK($N$101,($N$101,$N$104:$N$107)) -> 1 | F72: =6-RANK($N$104,($N$101,$N$104:$N$107)) -> 4 | G72: =6-RANK($N$105,($N$101,$N$104:$N$107)) -> 5 | H72: =6-RANK($N$106,($N$101,$N$104:$N$107)) -> 3 | I72: =6-RANK($N$107,($N$101,$N$104:$N$107)) -> 2
B74: Visualization data formatting
B76: parameter | C76: level | D76: Chart titles | E76: Revenue from Hydrogen Sales | F76: Revenue from Byproduct Sales | G76: Salvage Value | H76: Initial Equity Depreciable Capital | I76: Yearly Replacement Costs | J76: Cash for Working Capital Reserve | K76: Other Non-Depreciable Capital Costs | L76: Decommissioning Costs | M76: Fixed Operating Cost | N76: Feedstock Cost | O76: Other Raw Material Cost | P76: Other Variable Operating Costs | Q76: Debt Interest | R76: Taxes | S76: Principal Payment
B77: =+$B$3 -> Operating Capacity Factor | C77: =+H3 -> 0.945 | D77: =+B77&" = "&C77*100&"%" -> Operating Capacity Factor = 94.5% | E77: =+K52 -> 3.705616978 | F77: 0 | G77: 0.005190537555 | H77: 0.4345104005 | I77: 1.014545376 | J77: 0.02293902756 | K77: 0.06312616668 | L77: 0.00492148604 | M77: 1.516343026 | N77: 0.1588260096 | O77: 0 | P77: 0.005623884192 | Q77: 0.2756282748 | R77: 0.2006947025 | S77: 0.01364916122
B78: =+$B$3 -> Operating Capacity Factor | C78: =+C3 -> 0.9 | D78: =+B78&" = "&C78*100&"%" -> Operating Capacity Factor = 90% | E78: =+K$51 -> 3.882524233 | F78: 0 | G78: 0.005450064433 | H78: 0.4562359206 | I78: 1.065272645 | J78: 0.02397377311 | K78: 0.06628247501 | L78: 0.005167560342 | M78: 1.592160177 | N78: 0.1588260096 | O78: 0 | P78: 0.005623884192 | Q78: 0.2894096885 | R78: 0.2106905448 | S78: 0.01433161928
B79: Operating Capacity Factor | C79: =+I3 -> 0.855 | D79: Operating Capacity Factor = 85.5% | E79: =+K53 -> 4.078053305 | F79: 0 | G79: 0.005736909929 | H79: 0.4802483374 | I79: 1.121339627 | J79: 0.02511743926 | K79: 0.06977102633 | L79: 0.005439537202 | M79: 1.675958081 | N79: 0.1588260096 | O79: 0 | P79: 0.005623884192 | Q79: 0.3046417774 | R79: 0.2217385811 | S79: 0.01508591504
B80: =+$B$4 -> Plant Design Capacity (kg of H2/day) | C80: =ROUND(H4,0) -> 1050 | D80: =+B80&" = "&TEXT(C80,"0,000") -> Plant Design Capacity (kg of H2/day) = 1,050 | E80: 3.778936188 | F80: 0 | G80: 0.005405851577 | H80: 0.4513649478 | I80: 1.017018112 | J80: 0.02340656218 | K80: 0.06885355526 | L80: 0.005112389224 | M80: 1.550599895 | N80: 0.1588260096 | O80: 0 | P80: 0.005623884192 | Q80: 0.2863198251 | R80: 0.2030382511 | S80: 0.0141786087
B81: =+$B$4 -> Plant Design Capacity (kg of H2/day) | C81: =+ROUND(C4,0) -> 1000 | D81: =+B81&" = "&TEXT(C81,"0,000") -> Plant Design Capacity (kg of H2/day) = 1,000 | E81: =+K$51 -> 3.882524233 | F81: 0 | G81: 0.005450064433 | H81: 0.4562359206 | I81: 1.065272645 | J81: 0.02397377311 | K81: 0.06628247501 | L81: 0.005167560342 | M81: 1.592160177 | N81: 0.1588260096 | O81: 0 | P81: 0.005623884192 | Q81: 0.2894096885 | R81: 0.2106905448 | S81: 0.01433161928
B82: Plant Design Capacity (kg of H2/day) | C82: =ROUND(I4,0) -> 950 | D82: Plant Design Capacity (kg of H2/day) = 0,950 | E82: =+K55 -> 3.996251037 | F82: 0 | G82: 0.005497628632 | H82: 0.4614134843 | I82: 1.11857636 | J82: 0.0245911174 | K82: 0.06368294351 | L82: 0.005226204065 | M82: 1.637393795 | N82: 0.1588260096 | O82: 0 | P82: 0.005623884192 | Q82: 0.2926940356 | R82: 0.219226572 | S82: 0.01449426074
B83: =+$B$5 -> After-tax Real IRR | C83: =+ROUND(H5,2) -> 0.08 | D83: =+B83&" = "&C83*100&"%" -> After-tax Real IRR = 8% | E83: 3.852051835 | F83: 0 | G83: 0.006050404408 | H83: 0.4362854979 | I83: 1.06994152 | J83: 0.02307025669 | K83: 0.06319906213 | L83: 0.005736781694 | M83: 1.591551043 | N83: 0.1589028091 | O83: 0 | P83: 0.005623884192 | Q83: 0.2856628002 | R83: 0.2022182963 | S83: 0.01591028759
B84: =+$B$5 -> After-tax Real IRR | C84: =ROUND(C5,2) -> 0.08 | D84: After-tax Real IRR = 8% | E84: =+K$51 -> 3.882524233 | F84: 0 | G84: 0.005450064433 | H84: 0.4562359206 | I84: 1.065272645 | J84: 0.02397377311 | K84: 0.06628247501 | L84: 0.005167560342 | M84: 1.592160177 | N84: 0.1588260096 | O84: 0 | P84: 0.005623884192 | Q84: 0.2894096885 | R84: 0.2106905448 | S84: 0.01433161928
B85: After-tax Real IRR | C85: =ROUND(I5,2) -> 0.08 | D85: After-tax Real IRR = 8% | E85: =+K57 -> 3.913320094 | F85: 0 | G85: 0.004905303004 | H85: 0.4764491715 | I85: 1.060467737 | J85: 0.02487112826 | K85: 0.06942078409 | L85: 0.004651036622 | M85: 1.592772637 | N85: 0.1587510399 | O85: 0 | P85: 0.005623884192 | Q85: 0.2931458605 | R85: 0.2191730166 | S85: 0.01289910165
B86: =+$B$6 -> Feedstock Consumption (% of baseline) | C86: =+ROUND(H6,3) -> 0.95 | D86: =+B86&" = "&C86*100&"%" -> Feedstock Consumption (% of baseline) = 95% | E86: 3.874437002 | F86: 0 | G86: 0.005450064433 | H86: 0.4562359206 | I86: 1.065272645 | J86: 0.02386540486 | K86: 0.06628247501 | L86: 0.005167560342 | M86: 1.592160177 | N86: 0.1508847091 | O86: 0 | P86: 0.005623884192 | Q86: 0.2894096885 | R86: 0.2106529822 | S86: 0.01433161928
B87: =+$B$6 -> Feedstock Consumption (% of baseline) | C87: =+ROUND(C6,3) -> 1 | D87: =+B87&" = "&C87*100&"%" -> Feedstock Consumption (% of baseline) = 100% | E87: =+K$51 -> 3.882524233 | F87: 0 | G87: 0.005450064433 | H87: 0.4562359206 | I87: 1.065272645 | J87: 0.02397377311 | K87: 0.06628247501 | L87: 0.005167560342 | M87: 1.592160177 | N87: 0.1588260096 | O87: 0 | P87: 0.005623884192 | Q87: 0.2894096885 | R87: 0.2106905448 | S87: 0.01433161928
B88: Feedstock Consumption (% of baseline) | C88: =+ROUND(I6,3) -> 1.05 | D88: =+B88&" = "&C88*100&"%" -> Feedstock Consumption (% of baseline) = 105% | E88: =+K59 -> 3.890611465 | F88: 0 | G88: 0.005450064433 | H88: 0.4562359206 | I88: 1.065272645 | J88: 0.02408214137 | K88: 0.06628247501 | L88: 0.005167560342 | M88: 1.592160177 | N88: 0.1667673101 | O88: 0 | P88: 0.005623884192 | Q88: 0.2894096885 | R88: 0.2107281075 | S88: 0.01433161928
B89: =+$B$7 -> Utilities Consumption (% of baseline) | C89: =+ROUND(H7,3) -> 0.95 | D89: =+B89&" = "&C89*100&"%" -> Utilities Consumption (% of baseline) = 95% | E89: 3.882524233 | F89: 0 | G89: 0.005450064433 | H89: 0.4562359206 | I89: 1.065272645 | J89: 0.02397377311 | K89: 0.06628247501 | L89: 0.005167560342 | M89: 1.592160177 | N89: 0.1588260096 | O89: 0 | P89: 0.005623884192 | Q89: 0.2894096885 | R89: 0.2106905448 | S89: 0.01433161928
B90: =+$B$7 -> Utilities Consumption (% of baseline) | C90: =+ROUND(C7,3) -> 1 | D90: Utilities Consumption (% of baseline) = 100% | E90: =+K$51 -> 3.882524233 | F90: =+L$51 -> 0 | G90: 0.005450064433 | H90: 0.4562359206 | I90: 1.065272645 | J90: 0.02397377311 | K90: 0.06628247501 | L90: 0.005167560342 | M90: 1.592160177 | N90: 0.1588260096 | O90: 0 | P90: 0.005623884192 | Q90: 0.2894096885 | R90: 0.2106905448 | S90: 0.01433161928
B91: Utilities Consumption (% of baseline) | C91: =+ROUND(I7,3) -> 1.05 | D91: Utilities Consumption (% of baseline) = 105% | E91: =+K61 -> 3.882524233 | F91: 0 | G91: 0.005450064433 | H91: 0.4562359206 | I91: 1.065272645 | J91: 0.02397377311 | K91: 0.06628247501 | L91: 0.005167560342 | M91: 1.592160177 | N91: 0.1588260096 | O91: 0 | P91: 0.005623884192 | Q91: 0.2894096885 | R91: 0.2106905448 | S91: 0.01433161928
B92: =+$B$8 -> Total Capital Investment | C92: =+ROUND(H8,0) -> 4363342 | D92: =+B92&" = "&TEXT(C92/1000,"$0,000K") -> Total Capital Investment = $4,363K | E92: 3.828401947 | F92: 0 | G92: 0.005177561211 | H92: 0.432177032 | I92: 1.065272645 | J92: 0.02378108174 | K92: 0.06628247501 | L92: 0.00489505712 | M92: 1.57804143 | N92: 0.1588260096 | O92: 0 | P92: 0.005623884192 | Q92: 0.2741481207 | R92: 0.2109559087 | S92: 0.01357586373
B93: =+$B$8 -> Total Capital Investment | C93: =+ROUND(C8,0) -> 4592992 | D93: Total Capital Investment = $4,593K | E93: =+K$51 -> 3.882524233 | F93: 0 | G93: 0.005450064433 | H93: 0.4562359206 | I93: 1.065272645 | J93: 0.02397377311 | K93: 0.06628247501 | L93: 0.005167560342 | M93: 1.592160177 | N93: 0.1588260096 | O93: 0 | P93: 0.005623884192 | Q93: 0.2894096885 | R93: 0.2106905448 | S93: 0.01433161928
B94: Total Capital Investment | C94: =+ROUND(I8,0) -> 4822641 | D94: Total Capital Investment = $4,823K | E94: =+K63 -> 3.93664652 | F94: 0 | G94: 0.005722567655 | H94: 0.4802948091 | I94: 1.065272645 | J94: 0.02416646449 | K94: 0.06628247501 | L94: 0.005440063563 | M94: 1.606278924 | N94: 0.1588260096 | O94: 0 | P94: 0.005623884192 | Q94: 0.3046712563 | R94: 0.210425181 | S94: 0.01508737484
B95: =+$B$9 -> Total Fixed Operating Cost | C95: =+ROUND(H9,0) -> 492051 | D95: Total Fixed Operating Cost = $0,492K | E95: 3.801453145 | F95: 0 | G95: 0.005450064433 | H95: 0.4562359206 | I95: 1.065272645 | J95: 0.02288729028 | K95: 0.06628247501 | L95: 0.005167560342 | M95: 1.512552168 | N95: 0.1588260096 | O95: 0 | P95: 0.005623884192 | Q95: 0.2894096885 | R95: 0.2103139482 | S95: 0.01433161928
B96: =+$B$9 -> Total Fixed Operating Cost | C96: =+ROUND(C9,0) -> 517948 | D96: Total Fixed Operating Cost = $0,518K | E96: =+K$51 -> 3.882524233 | F96: 0 | G96: 0.005450064433 | H96: 0.4562359206 | I96: 1.065272645 | J96: 0.02397377311 | K96: 0.06628247501 | L96: 0.005167560342 | M96: 1.592160177 | N96: 0.1588260096 | O96: 0 | P96: 0.005623884192 | Q96: 0.2894096885 | R96: 0.2106905448 | S96: 0.01433161928
B97: Total Fixed Operating Cost | C97: =+ROUND(I9,0) -> 543846 | D97: Total Fixed Operating Cost = $0,544K | E97: =+K65 -> 3.963595322 | F97: 0 | G97: 0.005450064433 | H97: 0.4562359206 | I97: 1.065272645 | J97: 0.02506025595 | K97: 0.06628247501 | L97: 0.005167560342 | M97: 1.671768186 | N97: 0.1588260096 | O97: 0 | P97: 0.005623884192 | Q97: 0.2894096885 | R97: 0.2110671415 | S97: 0.01433161928
B100: Standard Toranado | C100: Rank | D100: Titles | E100: Low cost price | F100: Default price | G100: High price | H100: dL0 | I100: dL1 | J100: dL2 | L100: Unsorted titles | M100: Results spread ($/kg) | N100: Importance ranking
C101: 1 | D101: =OFFSET(L$100,MATCH($C101,$N$101:$N$107,0),0) -> Operating Capacity Factor (95%, 90%, 86%) | E101: =OFFSET(E$76,MATCH($C101,$N$101:$N$107,0)*3-2,0) -> 3.705616978 | F101: =+$K$51 -> 3.882524233 | G101: =OFFSET(E$76,MATCH($C101,$N$101:$N$107,0)*3,0) -> 4.078053305 | H101: =+E101 -> 3.705616978 | I101: =+F101-E101 -> 0.1769072556 | J101: =+G101-F101 -> 0.195529072 | L101: =+B3&" ("&TEXT(H3,"0%, ")&TEXT(C3,"0%, ")&TEXT(I3,"0%)") -> Operating Capacity Factor (95%, 90%, 86%) | M101: =ABS(K52-K53)+0.000000001 -> 0.3724363286 | N101: =+RANK(M101,$M$101:$M$107) -> 1
C102: 2 | D102: Plant Design Capacity (kg of H2/day) (1,050, 1,000, 0,950) | E102: 3.778936188 | F102: 3.882524233 | G102: 3.996251037 | H102: =+E102 -> 3.778936188 | I102: =+F102-E102 -> 0.1035880448 | J102: =+G102-F102 -> 0.1137268038 | L102: =+B4&" ("&TEXT(H4,"0,000")&", "&TEXT(C4,"0,000")&", "&TEXT(I4,"0,000")&") " -> Plant Design Capacity (kg of H2/day) (1,050, 1,000, 0,950) | M102: =+ABS(K54-K55)+0.000000002 -> 0.2173148507 | N102: 2
C103: 3 | D103: Total Fixed Operating Cost ($0,492K, $0,518K, $0,544K) | E103: 3.801453145 | F103: 3.882524233 | G103: 3.963595322 | H103: 3.801453145 | I103: 0.08107108835 | J103: 0.08107108835 | L103: =+B5&" ("&TEXT(H5,"0%, ")&TEXT(C5,"0%, ")&TEXT(I5,"0%)") -> After-tax Real IRR (8%, 8%, 8%) | M103: =+ABS(K56-K57)+0.000000003 -> 0.06126826192 | N103: 5
C104: 4 | D104: Total Capital Investment ($4,363K, $4,593K, $4,823K) | E104: 3.828401947 | F104: 3.882524233 | G104: 3.93664652 | H104: 3.828401947 | I104: 0.05412228663 | J104: 0.05412228663 | L104: =+B6&" ("&TEXT(H6,"0%, ")&TEXT(C6,"0%, ")&TEXT(I6,"0%)") -> Feedstock Consumption (% of baseline) (95%, 100%, 105%) | M104: =+ABS(K58-K59)+0.000000004 -> 0.01617446667 | N104: 6
C105: 5 | D105: After-tax Real IRR (8%, 8%, 8%) | E105: 3.852051835 | F105: 3.882524233 | G105: 3.913320094 | H105: =+E105 -> 3.852051835 | I105: =+F105-E105 -> 0.03047239831 | J105: =+G105-F105 -> 0.03079586061 | L105: =+B7&" ("&TEXT(H7,"0%, ")&TEXT(C7,"0%, ")&TEXT(I7,"0%)") -> Utilities Consumption (% of baseline) (95%, 100%, 105%) | M105: =+ABS(K60-K61)+0.000000004 -> 4e-09 | N105: 7
C106: 6 | D106: Feedstock Consumption (% of baseline) (95%, 100%, 105%) | E106: 3.874437002 | F106: 3.882524233 | G106: 3.890611465 | H106: 3.874437002 | I106: 0.008087231335 | J106: 0.008087231335 | L106: =+B8&" ("&TEXT(H8/1000,"$0,000K")&", "&TEXT(C8/1000,"$0,000K")&", "&TEXT(I8/1000,"$0,000K")&") " -> Total Capital Investment ($4,363K, $4,593K, $4,823K) | M106: =+ABS(K62-K63)+0.000000006 -> 0.1082445793 | N106: 4
C107: 7 | D107: Utilities Consumption (% of baseline) (95%, 100%, 105%) | E107: 3.882524233 | F107: 3.882524233 | G107: 3.882524233 | H107: 3.882524233 | I107: 0 | J107: 0 | L107: =+B9&" ("&TEXT(H9/1000,"$0,000K")&", "&TEXT(C9/1000,"$0,000K")&", "&TEXT(I9/1000,"$0,000K")&") " -> Total Fixed Operating Cost ($0,492K, $0,518K, $0,544K) | M107: =+ABS(K64-K65)+0.00000007 -> 0.1621422467 | N107: 3
B110: Simple bar chart | C110: Rank | D110: =+D76 -> Chart titles | E110: Hydrogen Sales | F110: Byproduct Sales | G110: Salvage Value | H110: =+H76 -> Initial Equity Depreciable Capital | I110: Yearly Replacement Costs | J110: Cash for Working Capital Reserve | K110: Other Non-Depreciable Capital Costs | L110: Decommissioning Costs | M110: Fixed Operating Cost | N110: Feedstock Cost | O110: Other Raw Material Cost | P110: Other Variable Operating Costs | Q110: Debt Interest | R110: Taxes | S110: Principal Payment
C111: 1 | D111: Base case | E111: =OFFSET(E$76,MATCH($C111,$N$101:$N$107,0)*3-1,0) -> 3.882524233 | F111: =OFFSET(F$76,MATCH($C111,$N$101:$N$107,0)*3-1,0) -> 0 | G111: =OFFSET(G$76,MATCH($C111,$N$101:$N$107,0)*3-1,0) -> 0.005450064433
H112: =OFFSET(H$76,MATCH($C111,$N$101:$N$107,0)*3-1,0) -> 0.4562359206 | I112: 1.065272645 | J112: 0.02397377311 | K112: 0.06628247501 | L112: 0.005167560342 | M112: 1.592160177 | N112: 0.1588260096 | O112: 0 | P112: 0.005623884192 | Q112: 0.2894096885 | R112: 0.2106905448 | S112: 0.01433161928
C115: 1 | D115: =OFFSET(D$76,MATCH($C115,$N$101:$N$107,0)*3-2,0) -> Operating Capacity Factor = 94.5% | E115: 3.705616978 | F115: 0 | G115: 0.005190537555
H116: =OFFSET(H$76,MATCH($C115,$N$101:$N$107,0)*3-2,0) -> 0.4345104005 | I116: 1.014545376 | J116: 0.02293902756 | K116: 0.06312616668 | L116: 0.00492148604 | M116: 1.516343026 | N116: 0.1588260096 | O116: 0 | P116: 0.005623884192 | Q116: 0.2756282748 | R116: 0.2006947025 | S116: 0.01364916122
C117: 1 | D117: =OFFSET(D$76,MATCH($C117,$N$101:$N$107,0)*3,0) -> Operating Capacity Factor = 85.5% | E117: 4.078053305 | F117: 0 | G117: 0.005736909929
H118: =OFFSET(H$76,MATCH($C117,$N$101:$N$107,0)*3,0) -> 0.4802483374 | I118: 1.121339627 | J118: 0.02511743926 | K118: 0.06977102633 | L118: 0.005439537202 | M118: 1.675958081 | N118: 0.1588260096 | O118: 0 | P118: 0.005623884192 | Q118: 0.3046417774 | R118: 0.2217385811 | S118: 0.01508591504
C120: 2 | D120: =OFFSET(D$76,MATCH($C120,$N$101:$N$107,0)*3-2,0) -> Plant Design Capacity (kg of H2/day) = 1,050 | E120: 3.778936188 | F120: 0 | G120: 0.005405851577
H121: =OFFSET(H$76,MATCH($C120,$N$101:$N$107,0)*3-2,0) -> 0.4513649478 | I121: 1.017018112 | J121: 0.02340656218 | K121: 0.06885355526 | L121: 0.005112389224 | M121: 1.550599895 | N121: 0.1588260096 | O121: 0 | P121: 0.005623884192 | Q121: 0.2863198251 | R121: 0.2030382511 | S121: 0.0141786087
C122: 2 | D122: =OFFSET(D$76,MATCH($C122,$N$101:$N$107,0)*3,0) -> Plant Design Capacity (kg of H2/day) = 0,950 | E122: 3.996251037 | F122: 0 | G122: 0.005497628632
H123: =OFFSET(H$76,MATCH($C122,$N$101:$N$107,0)*3,0) -> 0.4614134843 | I123: 1.11857636 | J123: 0.0245911174 | K123: 0.06368294351 | L123: 0.005226204065 | M123: 1.637393795 | N123: 0.1588260096 | O123: 0 | P123: 0.005623884192 | Q123: 0.2926940356 | R123: 0.219226572 | S123: 0.01449426074
C125: 3 | D125: =OFFSET(D$76,MATCH($C125,$N$101:$N$107,0)*3-2,0) -> Total Fixed Operating Cost = $0,492K | E125: 3.801453145 | F125: 0 | G125: 0.005450064433
H126: =OFFSET(H$76,MATCH($C125,$N$101:$N$107,0)*3-2,0) -> 0.4562359206 | I126: 1.065272645 | J126: 0.02288729028 | K126: 0.06628247501 | L126: 0.005167560342 | M126: 1.512552168 | N126: 0.1588260096 | O126: 0 | P126: 0.005623884192 | Q126: 0.2894096885 | R126: 0.2103139482 | S126: 0.01433161928
C127: 3 | D127: =OFFSET(D$76,MATCH($C127,$N$101:$N$107,0)*3,0) -> Total Fixed Operating Cost = $0,544K | E127: 3.963595322 | F127: 0 | G127: 0.005450064433
H128: =OFFSET(H$76,MATCH($C127,$N$101:$N$107,0)*3,0) -> 0.4562359206 | I128: 1.065272645 | J128: 0.02506025595 | K128: 0.06628247501 | L128: 0.005167560342 | M128: 1.671768186 | N128: 0.1588260096 | O128: 0 | P128: 0.005623884192 | Q128: 0.2894096885 | R128: 0.2110671415 | S128: 0.01433161928
C130: 4 | D130: =OFFSET(D$76,MATCH($C130,$N$101:$N$107,0)*3-2,0) -> Total Capital Investment = $4,363K | E130: 3.828401947 | F130: 0 | G130: 0.005177561211
H131: =OFFSET(H$76,MATCH($C130,$N$101:$N$107,0)*3-2,0) -> 0.432177032 | I131: 1.065272645 | J131: 0.02378108174 | K131: 0.06628247501 | L131: 0.00489505712 | M131: 1.57804143 | N131: 0.1588260096 | O131: 0 | P131: 0.005623884192 | Q131: 0.2741481207 | R131: 0.2109559087 | S131: 0.01357586373
C132: 4 | D132: =OFFSET(D$76,MATCH($C132,$N$101:$N$107,0)*3,0) -> Total Capital Investment = $4,823K | E132: 3.93664652 | F132: 0 | G132: 0.005722567655
H133: =OFFSET(H$76,MATCH($C132,$N$101:$N$107,0)*3,0) -> 0.4802948091 | I133: 1.065272645 | J133: 0.02416646449 | K133: 0.06628247501 | L133: 0.005440063563 | M133: 1.606278924 | N133: 0.1588260096 | O133: 0 | P133: 0.005623884192 | Q133: 0.3046712563 | R133: 0.210425181 | S133: 0.01508737484
C135: 5 | D135: =OFFSET(D$76,MATCH($C135,$N$101:$N$107,0)*3-2,0) -> After-tax Real IRR = 8% | E135: 3.852051835 | F135: 0 | G135: 0.006050404408
H136: =OFFSET(H$76,MATCH($C135,$N$101:$N$107,0)*3-2,0) -> 0.4362854979 | I136: 1.06994152 | J136: 0.02307025669 | K136: 0.06319906213 | L136: 0.005736781694 | M136: 1.591551043 | N136: 0.1589028091 | O136: 0 | P136: 0.005623884192 | Q136: 0.2856628002 | R136: 0.2022182963 | S136: 0.01591028759
C137: 5 | D137: =OFFSET(D$76,MATCH($C137,$N$101:$N$107,0)*3,0) -> After-tax Real IRR = 8% | E137: 3.913320094 | F137: 0 | G137: 0.004905303004
H138: =OFFSET(H$76,MATCH($C137,$N$101:$N$107,0)*3,0) -> 0.4764491715 | I138: 1.060467737 | J138: 0.02487112826 | K138: 0.06942078409 | L138: 0.004651036622 | M138: 1.592772637 | N138: 0.1587510399 | O138: 0 | P138: 0.005623884192 | Q138: 0.2931458605 | R138: 0.2191730166 | S138: 0.01289910165
C140: 6 | D140: =OFFSET(D$76,MATCH($C140,$N$101:$N$107,0)*3-2,0) -> Feedstock Consumption (% of baseline) = 95% | E140: 3.874437002 | F140: 0 | G140: 0.005450064433
H141: =OFFSET(H$76,MATCH($C140,$N$101:$N$107,0)*3-2,0) -> 0.4562359206 | I141: 1.065272645 | J141: 0.02386540486 | K141: 0.06628247501 | L141: 0.005167560342 | M141: 1.592160177 | N141: 0.1508847091 | O141: 0 | P141: 0.005623884192 | Q141: 0.2894096885 | R141: 0.2106529822 | S141: 0.01433161928
C142: 6 | D142: =OFFSET(D$76,MATCH($C142,$N$101:$N$107,0)*3,0) -> Feedstock Consumption (% of baseline) = 105% | E142: 3.890611465 | F142: 0 | G142: 0.005450064433
H143: =OFFSET(H$76,MATCH($C142,$N$101:$N$107,0)*3,0) -> 0.4562359206 | I143: 1.065272645 | J143: 0.02408214137 | K143: 0.06628247501 | L143: 0.005167560342 | M143: 1.592160177 | N143: 0.1667673101 | O143: 0 | P143: 0.005623884192 | Q143: 0.2894096885 | R143: 0.2107281075 | S143: 0.01433161928
C145: 7 | D145: =OFFSET(D$76,MATCH($C145,$N$101:$N$107,0)*3-2,0) -> Utilities Consumption (% of baseline) = 95% | E145: 3.882524233 | F145: 0 | G145: 0.005450064433
H146: =OFFSET(H$76,MATCH($C145,$N$101:$N$107,0)*3-2,0) -> 0.4562359206 | I146: 1.065272645 | J146: 0.02397377311 | K146: 0.06628247501 | L146: 0.005167560342 | M146: 1.592160177 | N146: 0.1588260096 | O146: 0 | P146: 0.005623884192 | Q146: 0.2894096885 | R146: 0.2106905448 | S146: 0.01433161928
C147: 7 | D147: =OFFSET(D$76,MATCH($C147,$N$101:$N$107,0)*3,0) -> Utilities Consumption (% of baseline) = 105% | E147: 3.882524233 | F147: 0 | G147: 0.005450064433
H148: =OFFSET(H$76,MATCH($C147,$N$101:$N$107,0)*3,0) -> 0.4562359206 | I148: 1.065272645 | J148: 0.02397377311 | K148: 0.06628247501 | L148: 0.005167560342 | M148: 1.592160177 | N148: 0.1588260096 | O148: 0 | P148: 0.005623884192 | Q148: 0.2894096885 | R148: 0.2106905448 | S148: 0.01433161928
B152: Parado chart
D153: Unsorted
D154: Title | E154: Unsorted values | F154: Unsorted Ranking | G154: Sorted ranking | H154: Sorted titles | I154: Sorted values | K154: Grayed Titles | L154: Revenues $/kg H2 | M154: Expenses $/kg H2 | N154: Colored titles
B155: Revenues | C155: 1 | D155: Cost of Hydrogen | E155: =+K48+C155/10000000000 -> 3.882524233 | F155: =+RANK(E155,$E$155:$E$157) -> 1 | G155: 1 | H155: =OFFSET($D$154,MATCH($G155,$F$155:$F$157,0),0) -> Cost of Hydrogen | I155: =OFFSET($E$154,MATCH($G155,$F$155:$F$157,0),0)-OFFSET($C$154,MATCH($G155,$F$155:$F$157,0),0)/10000000000 -> 3.882524233 | K155: =+H155 -> Cost of Hydrogen | L155: =+I155 -> 3.882524233 | N155: =+IF(L155>0,K155,"") -> Cost of Hydrogen
C156: 2 | D156: =+F110 -> Byproduct Sales | E156: =+L48+C156/10000000000 -> 2e-10 | F156: =+RANK(E156,$E$155:$E$157) -> 3 | G156: 2 | H156: =OFFSET($D$154,MATCH($G156,$F$155:$F$157,0),0) -> Salvage Value | I156: =OFFSET($E$154,MATCH($G156,$F$155:$F$157,0),0)-OFFSET($C$154,MATCH($G156,$F$155:$F$157,0),0)/10000000000 -> 0.005450064433 | K156: =+H156 -> Salvage Value | L156: =+I156 -> 0.005450064433 | N156: =+IF(L156>0,K156,"") -> Salvage Value
C157: 3 | D157: =+G110 -> Salvage Value | E157: =+M48+C157/10000000000 -> 0.005450064733 | F157: =+RANK(E157,$E$155:$E$157) -> 2 | G157: 3 | H157: =OFFSET($D$154,MATCH($G157,$F$155:$F$157,0),0) -> Byproduct Sales | I157: =OFFSET($E$154,MATCH($G157,$F$155:$F$157,0),0)-OFFSET($C$154,MATCH($G157,$F$155:$F$157,0),0)/10000000000 -> 0 | K157: Byproduct Sales | L157: 0
N158: =+IF(L158>0.01,K158,"") -> 
B159: Expenses | C159: 1 | D159: =+H110 -> Initial Equity Depreciable Capital | E159: =+N48+C159/10000000000 -> 0.4562359207 | F159: =+RANK(E159,$E$159:$E$170) -> 3 | G159: 1 | H159: =OFFSET($D$158,MATCH($G159,$F$159:$F$170,0),0) -> Fixed Operating Cost | I159: =OFFSET($E$158,MATCH($G159,$F$159:$F$170,0),0)-OFFSET($C$158,MATCH($G159,$F$159:$F$170,0),0)/10000000000 -> 1.592160177 | K159: Fixed Operating Cost | M159: =+I159 -> 1.592160177 | N159: =+IF(M159>0,K159,"") -> Fixed Operating Cost
C160: =+C159+1 -> 2 | D160: =+I110 -> Yearly Replacement Costs | E160: =+O48+C160/10000000000 -> 1.065272645 | F160: 2 | G160: 2 | H160: Yearly Replacement Costs | I160: 1.065272645 | K160: Yearly Replacement Costs | M160: =+I160 -> 1.065272645 | N160: =+IF(M160>0,K160,"") -> Yearly Replacement Costs
C161: =+C160+1 -> 3 | D161: =+J110 -> Cash for Working Capital Reserve | E161: =+P48+C161/10000000000 -> 0.02397377341 | F161: 8 | G161: 3 | H161: Initial Equity Depreciable Capital | I161: 0.4562359206 | K161: Initial Equity Depreciable Capital | M161: 0.4562359206 | N161: Initial Equity Depreciable Capital
C162: 4 | D162: =+K110 -> Other Non-Depreciable Capital Costs | E162: =+Q48+C162/10000000000 -> 0.06628247541 | F162: 7 | G162: 4 | H162: Debt Interest | I162: 0.2894096885 | K162: Debt Interest | M162: 0.2894096885 | N162: Debt Interest
C163: 5 | D163: =+L110 -> Decommissioning Costs | E163: =+R48+C163/10000000000 -> 0.005167560842 | F163: 11 | G163: 5 | H163: Taxes | I163: 0.2106905448 | K163: Taxes | M163: 0.2106905448 | N163: Taxes
C164: 6 | D164: =+M110 -> Fixed Operating Cost | E164: =+S48+C164/10000000000 -> 1.592160178 | F164: 1 | G164: 6 | H164: Feedstock Cost | I164: 0.1588260096 | K164: Feedstock Cost | M164: 0.1588260096 | N164: Feedstock Cost
C165: 7 | D165: =+N110 -> Feedstock Cost | E165: =+T48+C165/10000000000 -> 0.1588260103 | F165: 6 | G165: 7 | H165: Other Non-Depreciable Capital Costs | I165: 0.06628247501 | K165: Other Non-Depreciable Capital Costs | M165: 0.06628247501 | N165: Other Non-Depreciable Capital Costs
C166: 8 | D166: =+O110 -> Other Raw Material Cost | E166: =+U48+C166/10000000000 -> 8e-10 | F166: 12 | G166: 8 | H166: Cash for Working Capital Reserve | I166: 0.02397377311 | K166: Cash for Working Capital Reserve | M166: 0.02397377311 | N166: Cash for Working Capital Reserve
C167: 9 | D167: =+P110 -> Other Variable Operating Costs | E167: =+V48+C167/10000000000 -> 0.005623885092 | F167: 10 | G167: 9 | H167: Principal Payment | I167: 0.01433161928 | K167: Principal Payment | M167: 0.01433161928 | N167: Principal Payment
C168: 10 | D168: =+Q110 -> Debt Interest | E168: =+W48+C168/10000000000 -> 0.2894096895 | F168: 4 | G168: 10 | H168: Other Variable Operating Costs | I168: 0.005623884192 | K168: Other Variable Operating Costs | M168: 0.005623884192 | N168: Other Variable Operating Costs
C169: 11 | D169: =+R110 -> Taxes | E169: =+X48+C169/10000000000 -> 0.2106905459 | F169: 5 | G169: 11 | H169: Decommissioning Costs | I169: 0.005167560342 | K169: Decommissioning Costs | M169: 0.005167560342 | N169: Decommissioning Costs
C170: 12 | D170: =+S110 -> Principal Payment | E170: =+Y48+C170/10000000000 -> 0.01433162048 | F170: 9 | G170: 12 | H170: Other Raw Material Cost | I170: 0 | K170: Other Raw Material Cost | M170: 0
K171: Total | L171: =+SUM(L155:L170) -> 3.887974298 | M171: =+SUM(M155:M170) -> 3.887974298 | N171: =+IF(M171<0.01,K171,"") -> 
B174: Waterfall Chart | D174: Values | E174: Base | F174: Decrease | G174: Increase
B175: 0 | C175: Baseline | D175: =+K51 -> 3.882524233 | E175: =+D175 -> 3.882524233
B176: 1 | C176: =OFFSET($B$50,0,MATCH($B176,$C$72:$I$72,0))& IF(OFFSET($F$2,MATCH($B176,$C$72:$I$72,0),0)<1, " = "&OFFSET($F$2,MATCH($B176,$C$72:$I$72,0),0)*100-100, " = +"&OFFSET($F$2,MATCH($B176,$C$72:$I$72,0),0)*100-100) &"%" -> Operating capacity factor = +5% | D176: =+K66 -> 3.705616978 | E176: =+E175+G175-F176 -> 3.705616978 | F176: =+MAX(D175-D176,0) -> 0.1769072556 | G176: =+MAX(D176-D175,0) -> 0
B177: 2 | C177: =OFFSET($B$50,0,MATCH($B177,$C$72:$I$72,0))& IF(OFFSET($F$2,MATCH($B177,$C$72:$I$72,0),0)<1, " = "&OFFSET($F$2,MATCH($B177,$C$72:$I$72,0),0)*100-100, " = +"&OFFSET($F$2,MATCH($B177,$C$72:$I$72,0),0)*100-100) &"%" -> Total fixed operating cost ($/year) = -5% | D177: =+K67 -> 3.628406417 | E177: 3.628406417 | F177: =+MAX(D176-D177,0) -> 0.07721056033 | G177: =+MAX(D177-D176,0) -> 0
B178: 3 | C178: =OFFSET($B$50,0,MATCH($B178,$C$72:$I$72,0))& IF(OFFSET($F$2,MATCH($B178,$C$72:$I$72,0),0)<1, " = "&OFFSET($F$2,MATCH($B178,$C$72:$I$72,0),0)*100-100, " = +"&OFFSET($F$2,MATCH($B178,$C$72:$I$72,0),0)*100-100) &"%" -> Total capital investment ($) = -5% | D178: =+K68 -> 3.57754606 | E178: 3.57754606 | F178: =+MAX(D177-D178,0) -> 0.0508603573 | G178: =+MAX(D178-D177,0) -> 0
B179: 4 | C179: =OFFSET($B$50,0,MATCH($B179,$C$72:$I$72,0))& IF(OFFSET($F$2,MATCH($B179,$C$72:$I$72,0),0)<1, " = "&OFFSET($F$2,MATCH($B179,$C$72:$I$72,0),0)*100-100, " = +"&OFFSET($F$2,MATCH($B179,$C$72:$I$72,0),0)*100-100) &"%" -> Feedstock consumption (% of most likely value) = -5% | D179: =+K69 -> 3.569458829 | E179: 3.569458829 | F179: =+MAX(D178-D179,0) -> 0.008087231335 | G179: =+MAX(D179-D178,0) -> 0
B180: 5 | C180: =OFFSET($B$50,0,MATCH($B180,$C$72:$I$72,0))& IF(OFFSET($F$2,MATCH($B180,$C$72:$I$72,0),0)<1, " = "&OFFSET($F$2,MATCH($B180,$C$72:$I$72,0),0)*100-100, " = +"&OFFSET($F$2,MATCH($B180,$C$72:$I$72,0),0)*100-100) &"%" -> Utilities consumption (% of most likely value) = -5% | D180: =+K70 -> 3.569458829 | E180: 3.569458829 | F180: =+MAX(D179-D180,0) -> 0 | G180: =+MAX(D180-D179,0) -> 0
B181: 6 | C181: Adjusted | D181: =+K70 -> 3.569458829 | E181: 3.569458829
B189: Min factor | C189: =+MIN(F3:G3) -> 0.95 | D189: =+MIN(F4:G4) -> 0.95 | E189: =+MIN(F5:G5) -> 0.95 | F189: =+MIN(F6:G6) -> 0.95 | G189: =+MIN(F7:G7) -> 0.95 | H189: =+MIN(F8:G8) -> 0.95 | I189: =+MIN(F9:G9) -> 0.95
B190: Nominal factor | C190: 1 | D190: 1 | E190: 1 | F190: 1 | G190: 1 | H190: 1 | I190: 1
B191: Max factor | C191: =+MAX(F3:G3) -> 1.05 | D191: =+MAX(F4:G4) -> 1.05 | E191: =+MAX(F5:G5) -> 1.05 | F191: =+MAX(F6:G6) -> 1.05 | G191: =+MAX(F7:G7) -> 1.05 | H191: =+MAX(F8:G8) -> 1.05 | I191: =+MAX(F9:G9) -> 1.05
B194: Variable | C194: =+MATCH(R12,C50:Y50,0) -> 9
B195: Min | C195: =+MIN(OFFSET($B$251:$B$2250,0,C194)) -> 3.610501827
B196: max | C196: =+MAX(OFFSET($B$251:$B$2250,0,C194)) -> 4.173126562
B197: max-min | C197: =+C196-C195 -> 0.562624735
B198: gain | C198: =+OFFSET(B199,0,C194) -> 1
B199: gain | C199: =+C3 -> 0.9 | D199: =+C4 -> 1000 | E199: =+C5 -> 0.08 | F199: =+C6 -> 1 | G199: =+C7 -> 1 | H199: =+C8 -> 4592991.769 | I199: =+C9 -> 517948.1217 | K199: 1 | L199: 1 | M199: 1 | N199: 1 | O199: 1 | P199: 1 | Q199: 1 | R199: 1 | S199: 1 | T199: 1 | U199: 1 | V199: 1 | W199: 1 | X199: 1
B200: Range to plot
B201: Min | C201: Max | E201: Min*gain | F201: Max*gain | G201: Average | H201: Probability | I201: Cumulative probability
B202: =+C195 -> 3.610501827 | C202: =+B202+($C$197/20) -> 3.638633064 | D202: =+COUNTIFS(OFFSET(B$251:B$2250,0,$C$194),">="&$B202, OFFSET(B$251:B$2250,0,$C$194),"<="&$C202) -> 4 | E202: =+B202*$C$198 -> 3.610501827 | F202: =+C202*$C$198 -> 3.638633064 | G202: =+AVERAGE(E202:F202) -> 3.624567446 | H202: =+D202/$D$223 -> 0.002 | I202: =+H202 -> 0.002
B203: =+C202 -> 3.638633064 | C203: =+B203+($C$197/20) -> 3.666764301 | D203: 10 | E203: =+B203*$C$198 -> 3.638633064 | F203: =+C203*$C$198 -> 3.666764301 | G203: =+AVERAGE(E203:F203) -> 3.652698682 | H203: =+D203/$D$223 -> 0.005 | I203: =+I202+H203 -> 0.007
B204: =+C203 -> 3.666764301 | C204: 3.694895538 | D204: 28 | E204: 3.666764301 | F204: 3.694895538 | G204: 3.680829919 | H204: 0.014 | I204: =+I203+H204 -> 0.021
B205: 3.694895538 | C205: 3.723026774 | D205: 47 | E205: 3.694895538 | F205: 3.723026774 | G205: 3.708961156 | H205: 0.0235 | I205: 0.0445
B206: 3.723026774 | C206: 3.751158011 | D206: 79 | E206: 3.723026774 | F206: 3.751158011 | G206: 3.737092393 | H206: 0.0395 | I206: 0.084
B207: 3.751158011 | C207: 3.779289248 | D207: 120 | E207: 3.751158011 | F207: 3.779289248 | G207: 3.765223629 | H207: 0.06 | I207: 0.144
B208: 3.779289248 | C208: 3.807420485 | D208: 174 | E208: 3.779289248 | F208: 3.807420485 | G208: 3.793354866 | H208: 0.087 | I208: 0.231
B209: 3.807420485 | C209: 3.835551721 | D209: 198 | E209: 3.807420485 | F209: 3.835551721 | G209: 3.821486103 | H209: 0.099 | I209: 0.33
B210: 3.835551721 | C210: 3.863682958 | D210: 221 | E210: 3.835551721 | F210: 3.863682958 | G210: 3.84961734 | H210: 0.1105 | I210: 0.4405
B211: 3.863682958 | C211: 3.891814195 | D211: 225 | E211: 3.863682958 | F211: 3.891814195 | G211: 3.877748576 | H211: 0.1125 | I211: 0.553
B212: 3.891814195 | C212: 3.919945432 | D212: 214 | E212: 3.891814195 | F212: 3.919945432 | G212: 3.905879813 | H212: 0.107 | I212: 0.66
B213: 3.919945432 | C213: 3.948076668 | D213: 187 | E213: 3.919945432 | F213: 3.948076668 | G213: 3.93401105 | H213: 0.0935 | I213: 0.7535
B214: 3.948076668 | C214: 3.976207905 | D214: 151 | E214: 3.948076668 | F214: 3.976207905 | G214: 3.962142287 | H214: 0.0755 | I214: 0.829
B215: 3.976207905 | C215: 4.004339142 | D215: 134 | E215: 3.976207905 | F215: 4.004339142 | G215: 3.990273523 | H215: 0.067 | I215: 0.896
B216: 4.004339142 | C216: 4.032470379 | D216: 87 | E216: 4.004339142 | F216: 4.032470379 | G216: 4.01840476 | H216: 0.0435 | I216: 0.9395
B217: 4.032470379 | C217: 4.060601615 | D217: 61 | E217: 4.032470379 | F217: 4.060601615 | G217: 4.046535997 | H217: 0.0305 | I217: 0.97
B218: 4.060601615 | C218: 4.088732852 | D218: 29 | E218: 4.060601615 | F218: 4.088732852 | G218: 4.074667234 | H218: 0.0145 | I218: 0.9845
B219: 4.088732852 | C219: 4.116864089 | D219: 19 | E219: 4.088732852 | F219: 4.116864089 | G219: 4.10279847 | H219: 0.0095 | I219: 0.994
B220: 4.116864089 | C220: 4.144995326 | D220: 6 | E220: 4.116864089 | F220: 4.144995326 | G220: 4.130929707 | H220: 0.003 | I220: 0.997
B221: 4.144995326 | C221: =+B221+($C$197/20)+0.000001 -> 4.173127562 | D221: 6 | E221: 4.144995326 | F221: 4.173127562 | G221: 4.159061444 | H221: 0.003 | I221: 1
F222: 0 | G222: 0
B223: Variable to plot | D223: =+SUM(D202:D221) -> 2000
B224: =+TRANSPOSE(Sensitivity_output) -> Cost of hydrogen ($/kg)
B225: Revenue from byproduct sales ($/kg)
B226: Salvage value ($/kg)
B227: Initial equity depreciable capital ($/kg)
B228: Yearly replacement costs ($/kg)
B229: Cash from working capital reserve ($/kg)
B230: Other non-depreciable capital costs ($/kg)
B231: Decommissioning costs ($/kg)
B232: Fixed operating cost ($/kg)
B233: Feedstock cost ($/kg)
B234: Other raw material cost ($/kg)
B235: Other variable operating costs ($/kg)
B236: Debt interest ($/kg)
B237: Taxes ($/kg)
B238: Principal payment ($/kg)
B239: =+TRANSPOSE(C50:I50) -> Operating capacity factor
B240: Plant design capacity (kg of H2/day)
B241: After-tax real IRR (%)
B242: Feedstock consumption (% of most likely value)
B243: Utilities consumption (% of most likely value)
... 2004 more rows

Sheet Cash Flow Analysis
A2: TABLE OF CONTENTS
A3: DCF Calculations
A4: Yearly Cash Flow Calculations
A5: Specific Item Cost Calculation
A6: Feedstock, Utility, and Byproduct Cost Information
A15: DCF CALCULATION INPUTS: | D15: DCF CALCULATION OUTPUTS:
A16: Process | D16: ="Hydrogen Cost (Year "&TEXT(ref_year,"0")&" Real $/kg)" -> Hydrogen Cost (Year 2016 Real $/kg) | E16: =H2_price_nominal/INFLATION_FACTOR -> 3.882524233
A17: Actual Hydrogen Produced (kg/yr) | B17: =output_kgyear -> 328500 | D17: Hydrogen Cost (Start-up Year Nominal $/kg) | E17: =+SUM(X57:AB57)/AC57*(1+inflation_rate)^construct -> 6.099504995
A18: Actual Hydrogen Energy Produced (MMBtu(LHV)/yr) | B18: =B17*H2_LHV_MJ_p_kg/1000/mmBTU_to_GJ -> 37430.82766 | D18: After Tax Real IRR | E18: =((E20+1)/(1+B30))-1 -> 0.08
A19: Actual Hydrogen Energy Produced (MJ(LHV)/yr) | B19: =B17*H2_LHV_MJ_p_kg -> 39489523.18 | D19: Pre Tax Real IRR | E19: =((E21+1)/(1+B30))-1 -> 0.1160798209
A20: Design Capacity (kg/day) | B20: =design_cap -> 1000 | D20: After Tax Nominal IRR | E20: =IRR(AA65:AA113) -> 0.10052
A21: Design Capacity (kg/yr) | B21: =B20*365 -> 365000 | D21: Pre Tax Nominal IRR | E21: =IRR(AC65:AC113) -> 0.1372853375
A22: Capacity Factor | B22: =cap_factor -> 0.9 | D22: After Tax Real Capital Recovery Factor | E22: =(real_irr*(1+real_irr)^anal_period)/(((1+real_irr)^anal_period)-1) -> 0.0838601615
D23: After Tax Nominal Capital Recovery Factor | E23: =(nominal_irr*(1+nominal_irr)^anal_period)/(((1+nominal_irr)^anal_period)-1) -> 0.1027476886
A24: Financial | D24: Total Real Fixed Charge Rate | E24: =(E22*(1-total_tax_rate*INDEX(Depreciation!B12:H37,MATCH("NPV - Real IRR",Depreciation!B12:B37,0),MATCH(depr_length,recovery_period,0))))/(1-total_tax_rate) -> 0.09821253181
A25: Start-up Year | B25: =startup_year -> 2040 | D25: Total Nominal Fixed Charge Rate | E25: =(E23*(1-total_tax_rate*INDEX(Depreciation!B12:H37,MATCH("NPV - Nominal IRR",Depreciation!B12:B37,0),MATCH(depr_length,recovery_period,0))))/(1-total_tax_rate) -> 0.1226581394
A26: After-Tax Real IRR | B26: =real_irr -> 0.08 | D26: NPV | E26: =NPV(nominal_irr,AA65:AA113) -> 1.324120264e-08
A27: After-Tax Nominal IRR | B27: =((1+B26)*(1+B30))-1 -> 0.10052
A28: Analysis Period (yrs) | B28: =anal_period -> 40
A29: Plant Life (yrs) | B29: =plant_life -> 40
A30: Inflation Rate | B30: =inflation_rate -> 0.019
A31: Debt Financing | B31: =100%-equity -> 0.6
A32: Equity Financing | B32: =equity -> 0.4
A33: Total Tax Rate | B33: =total_tax_rate -> 0.2574
A35: Cost of Debt Financing
A36: Debt Financing Period (yrs) | B36: =debt_period -> 0
A37: Interest Rate on Debt | B37: =debt_interest -> 0.037
A39: Construction/Start Up Information
A40: Construction Period (yrs) | B40: =construct -> 2
A41: Start-up Period (yrs) | B41: =start_time -> 0.5
A42: % Revenue During Start-up | B42: =percnt_revs -> 0.75
A43: % Variable Costs During Start-up | B43: =percnt_var -> 0.75
A44: % Fixed Costs During Start-up | B44: =percnt_fixed -> 1
A46: Depreciation Parameters
A47: Depreciation Type | B47: =depr_type -> MACRS
A48: Depreciation Period (yrs) | B48: =depr_length -> 20
A50: Plant Costs (Inflated to Start-up Year $)
A51: Total Depreciable Capital Costs | B51: =(total_cap-non_dep_cap)*INFLATION_FACTOR -> 6841636.61
A52: Total Non-Depreciable Capital Costs | B52: =non_dep_cap*INFLATION_FACTOR -> 374023.757
A53: Total Capital Investment | B53: =SUM(B51:B52) -> 7215660.367 | W53: Closed form formulas for calculating price of hydrogen.
A54: Decommissioning | B54: =decom_percent*depr_cap_infl -> 684163.661 | X54: Capital Costs | Y54: Depr | Z54: Principal | AA54: Op costs | AB54: Tax incentives | AC54: H2 sales (kg)
A55: Salvage Value | B55: =salvage_perct*B53 -> 721566.0367 | W55: Discounted values | X55: =-SUM(H116:K116) -> 8758984.828 | Y55: =-U116 -> 5533602.633 | Z55: =-Z116 -> 77883.84185 | AA55: =-SUM(L116:S116) -> 11117367.39 | AB55: =+AF116 -> 0 | AC55: =+AE116 -> 3591865.414
A56: Fixed Operating Costs ($/year) | B56: =fixed*INFLATION_FACTOR -> 813704.4267 | W56: Tax coefficient | X56: 1 | Y56: =-total_tax_rate -> -0.2574 | Z56: 1 | AA56: =1-total_tax_rate -> 0.7426 | AB56: -1 | AC56: =1-total_tax_rate -> 0.7426
A57: Other Raw Material ($/year) | B57: =total_other_raw*INFLATION_FACTOR -> 0 | W57: LCOE cost contribution factors | X57: =+X55*X56 -> 8758984.828 | Y57: -1424349.318 | Z57: 77883.84185 | AA57: =+AA55*AA56 -> 8255757.023 | AB57: =+AB55*AB56 -> 0 | AC57: =+AC55*AC56 -> 2667319.256
A58: Other Variable O&M Costs (not including tax credits and incentives) | B58: =(var_misc+royalties+operator_profit+CO2_OandMcost+waste_treat+solidwaste_treat)*INFLATION_FACTOR -> 0
W59: Target after-tax nominal IRR | X59: =+(1+real_irr)*(1+inflation_rate)-1 -> 0.10052
W60: =+D16 -> Hydrogen Cost (Year 2016 Real $/kg) | X60: =+SUM(X57:AB57)/AC57*(1+inflation_rate)^construct/INFLATION_FACTOR -> 3.882524233
A63: CASH FLOW ANALYSIS
A64: Actual Year (beginning of year) | B64: Analysis Year | C64: Operation Year | D64: Plant Life | E64: Inflation Price Increase Factor | F64: Revenue from Hydrogen Sales | G64: Portion of Initial Depreciable Capital Investment Financed with Debt (value ONLY used in debt financing calculations) | H64: Initial Equity Depreciable Capital | I64: Yearly Replacement Costs | J64: Cash from Working Capital Reserve | K64: Other Non-Depreciable Capital Costs | L64: Salvage Value | M64: Decommissioning Costs | N64: Fixed Operating Cost | O64: Feedstock Cost | P64: Other Raw Material Cost | Q64: Revenue from Byproduct Sales | R64: Other Variable Operating Costs | S64: Debt Interest | T64: Pre-Depreciation Income | U64: Depreciation Charge | V64: Taxable Income | W64: Tax Rate | X64: Total Taxes | Y64: After-Tax Income | Z64: Principal Payment | AA64: After-Tax Post-Depreciation Cash Flow | AB64: Cumulative Cash Flow | AC64: Pre-Tax Cash Flow | AE64: H2 sales (kg/year) | AF64: Tax Credit
A65: =startup_year-construct -> 2038 | B65: 1 | C65: =IF(construct=0,1,-construct) -> -2 | D65: =IF(C65="","",IF(C65<=plant_life,C65,IF(D64=plant_life,1,D64+1))) -> -2 | E65: =IF(C65="","",(1+inflation_rate)^(A65-$B$25)) -> 0.9630562011 | F65: =IF(C65="","",IF(C65<0,0,IF(AND(C65=1,start_time<1),E65*(H2_price_nominal*output_kgyear*start_time*percnt_revs+H2_price_nominal*output_kgyear*(1-start_time)),IF(C65<=start_time,H2_price_nominal*E65*output_kgyear*percnt_revs,H2_price_nominal*output_kgyear*E65)))) -> 0 | G65: =-$B$31*depr_cap_infl*E65 -> -3953328.337 | H65: =IF(C65<0,-E65*equity*depr_cap_infl*percent_cap1,IF(C65=1,-E65*equity*depr_cap_infl,0)) -> -527110.445 | I65: =IF(OR(C65<0,C65=""),"",-E65*INDEX('Replacement Costs'!$A$16:$H$57,MATCH(C65,'Replacement Costs'!$C$16:$C$57,0),MATCH("Total Yearly Replacement Costs",'Replacement Costs'!$A$16:$H$16,0))) ->  | J65: =IF(AND(C65>=1,C65<anal_period),WorkingCap*SUM(N65:R65)-WorkingCap*SUM(N64:R64),0) -> 0 | K65: =IF(C65=-construct,-E65*non_dep_infl,"") -> -360205.8985 | L65: =IF(C65=anal_period,salvage*E65,"") ->  | M65: =IF(D65=plant_life,-E65*decom,"") ->  | N65: =IF(C65="","",IF(C65<0,0,IF(AND(C65=1,start_time<1),-(inflated_fixed*percnt_fixed*start_time+(inflated_fixed*(1-start_time))),IF(C65<=start_time,-inflated_fixed*percnt_fixed*E65,-inflated_fixed*E65)))) -> 0 | O65: =IF(C65="","",IF(C65<0,0,IF(AND(C65=1,start_time<1),-(SUM(B139:E139)*output_kgyear*E65*percnt_var*start_time+SUM(B139:E139)*output_kgyear*E65*(1-start_time)),IF(C65<=start_time,-SUM(B139:E139)*output_kgyear*E65*percnt_var,-SUM(B139:E139)*output_kgyear*E65)))) -> 0 | P65: =IF(C65="","",IF(C65<0,0,IF(AND(C65=1,start_time<1),-(inflated_otherraw*E65*percnt_var*start_time+inflated_otherraw*E65*(1-start_time)),IF(C65<=start_time,-inflated_otherraw*E65*percnt_var,-(inflated_otherraw*E65))))) -> 0 | Q65: =IF(C65="","",IF(C65<0,0,IF(AND(C65=1,start_time<1),SUM(K139:N139,T139:V139)*output_kgyear*E65*percnt_revs*start_time+SUM(K139:N139,T139:V139)*output_kgyear*E65*(1-start_time),IF(C65<=start_time,SUM(K139:N139,T139:V139)*output_kgyear*E65*percnt_revs,SUM(K139:N139,T139:V139)*output_kgyear*E65)))) -> 0 | R65: =IF(C65="","",IF(C65<0,0,IF(AND(C65=1,start_time<1),-((SUM(F139:J139,P139:R139)*output_kgyear+inflated_othervar)*E65*percnt_var*start_time+(SUM(F139:J139,P139:R139)*output_kgyear+inflated_othervar)*E65*(1-start_time)),IF(C65<=start_time,-(SUM(F139:J139,P139:R139)*output_kgyear+inflated_othervar)*E65*percnt_var,-E65*(SUM(F139:J139,P139:R139)*output_kgyear+inflated_othervar))))) -> 0 | S65: =IF(B65="","",IF($B$31=0,"",-'Debt Financing Calculations'!E14)) -> -146273.1485 | T65: =IF(C65="","",F65+SUM(L65:S65)) -> -146273.1485 | U65: =IF(C65="","",IF(C65<-1,0,IF(C65=anal_period,-LOOKUP(C65,depr_yr,depr_cost)-Depreciation!$C$141-Depreciation!$B$166,-LOOKUP(C65,depr_yr,depr_cost)))) -> 0 | V65: =IF(C65="","",SUM(T65:U65)) -> -146273.1485 | W65: =IF(C65="","",$B$33) -> 0.2574 | X65: =IF(C65="","",tax_credit-(V65*W65 +Upstream_CO2_taxpYear + Proc_CO2_taxpYear)) -> 37650.70842 | Y65: =IF(C65="","",SUM(T65,X65)) -> -108622.4401 | Z65: =IF(C65="","",IF($B$31=0,"",-'Debt Financing Calculations'!F14)) -> 0 | AA65: =IF(C65="","",SUM(H65,I65,J65,K65,T65,X65,Z65)) -> -995938.7836 | AB65: =AA65 -> -995938.7836 | AC65: =IF(C65="","",SUM(H65,I65,J65,K65,T65,Z65)) -> -1033589.492 | AE65: =IF(C65="","",IF(C65<0,0,IF(AND(C65=1,start_time<1),(output_kgyear*start_time*percnt_revs+output_kgyear*(1-start_time)),IF(C65<=start_time,output_kgyear*percnt_revs,output_kgyear)))) -> 0 | AF65: =IF(C65="","",tax_credit) -> 0
A66: =IF(B66<>"",A65+1,"") -> 2039 | B66: =IF(MAX($B$65:B65)<(construct+anal_period),B65+1,"") -> 2 | C66: =IF(B66="","",IF(C65=-1,1,C65+1)) -> -1 | D66: -1 | E66: 0.9813542689 | F66: 0 | H66: =IF(C66<0,-E66*equity*depr_cap_infl*percent_cap2,0) -> -2148502.174 | I66: =IF(OR(C66<0,C66=""),"",-E66*INDEX('Replacement Costs'!$A$16:$H$57,MATCH(C66,'Replacement Costs'!$C$16:$C$57,0),MATCH("Total Yearly Replacement Costs",'Replacement Costs'!$A$16:$H$16,0))) ->  | J66: =IF(AND(C66>=1,C66<anal_period),WorkingCap*SUM(N66:R66)-WorkingCap*SUM(N65:R65),IF(C66<0,0,IF(B66="","",-SUM(J$65:J65)))) -> 0 | N66: 0 | O66: 0 | P66: 0 | Q66: 0 | R66: 0 | S66: =IF(B66="","",IF($B$31=0,"",-'Debt Financing Calculations'!E15)) -> -146273.1485 | T66: -146273.1485 | U66: =IF(C66="","",IF(C66<-1,0,IF(C66=anal_period,-LOOKUP(C66,depr_yr,depr_cost)-Depreciation!$C$141-Depreciation!$B$166,-LOOKUP(C66,depr_yr,depr_cost)))) -> 0 | V66: -146273.1485 | W66: 0.2574 | X66: 37650.70842 | Y66: -108622.4401 | Z66: =IF(C66="","",IF($B$31=0,"",-'Debt Financing Calculations'!F15)) -> 0 | AA66: -2257124.614 | AB66: =IF(C66="","",AB65+AA66) -> -3253063.397 | AC66: -2294775.322 | AE66: 0 | AF66: 0
A67: 2040 | B67: =IF(MAX($B$65:B66)<(construct+anal_period),B66+1,"") -> 3 | C67: 1 | D67: 1 | E67: 1 | F67: 1753226.467 | H67: =IF(C67<0,-E67*equity*depr_cap_infl*percent_cap3,0) -> 0 | I67: =IF(OR(C67<0,C67=""),"",-E67*INDEX('Replacement Costs'!$A$16:$H$57,MATCH(C67,'Replacement Costs'!$C$16:$C$57,0),MATCH("Total Yearly Replacement Costs",'Replacement Costs'!$A$16:$H$16,0))) -> -34208.18305 | J67: =IF(AND(C67>=1,C67<anal_period),WorkingCap*SUM(N67:R67)-WorkingCap*SUM(N66:R66),IF(C67<0,0,IF(B67="","",-SUM(J$65:J66)))) -> -133001.27 | N67: -813704.4267 | O67: -70431.13674 | P67: 0 | Q67: 0 | R67: -2539.57014 | S67: =IF(B67="","",IF($B$31=0,"",-'Debt Financing Calculations'!E16)) -> -146273.1485 | T67: 720278.1848 | U67: =IF(C67="","",IF(C67<-1,0,IF(C67=anal_period,-LOOKUP(C67,depr_yr,depr_cost)-Depreciation!$C$141-Depreciation!$B$166,-LOOKUP(C67,depr_yr,depr_cost)))) -> -249868.0927 | V67: 470410.0921 | W67: 0.2574 | X67: -121083.5577 | Y67: 599194.6271 | Z67: =IF(C67="","",IF($B$31=0,"",-'Debt Financing Calculations'!F16)) -> 0 | AA67: 431985.174 | AB67: -2821078.223 | AC67: 553068.7317 | AE67: 287437.5 | AF67: 0
A68: 2041 | B68: =IF(MAX($B$65:B67)<(construct+anal_period),B67+1,"") -> 4 | C68: 2 | D68: 2 | E68: 1.019 | F68: 2041757.451 | H68: =IF(C68<0,-E68*equity*depr_cap_infl*percent_cap4,0) -> 0 | I68: =IF(OR(C68<0,C68=""),"",-E68*INDEX('Replacement Costs'!$A$16:$H$57,MATCH(C68,'Replacement Costs'!$C$16:$C$57,0),MATCH("Total Yearly Replacement Costs",'Replacement Costs'!$A$16:$H$16,0))) -> -166015.0199 | J68: =IF(AND(C68>=1,C68<anal_period),WorkingCap*SUM(N68:R68)-WorkingCap*SUM(N67:R67),IF(C68<0,0,IF(B68="","",-SUM(J$65:J67)))) -> -4084.208432 | N68: -829164.8108 | O68: -81780.86816 | P68: 0 | Q68: 0 | R68: -2957.510826 | S68: =IF(B68="","",IF($B$31=0,"",-'Debt Financing Calculations'!E17)) -> -146273.1485 | T68: 981581.1128 | U68: =IF(C68="","",IF(C68<-1,0,IF(C68=anal_period,-LOOKUP(C68,depr_yr,depr_cost)-Depreciation!$C$141-Depreciation!$B$166,-LOOKUP(C68,depr_yr,depr_cost)))) -> -487238.2996 | V68: 494342.8132 | W68: 0.2574 | X68: -127243.8401 | Y68: =IF(C68="","",SUM(T68,X68)) -> 854337.2727 | Z68: =IF(C68="","",IF($B$31=0,"",-'Debt Financing Calculations'!F17)) -> 0 | AA68: 684238.0444 | AB68: -2136840.179 | AC68: 811481.8845 | AE68: 328500 | AF68: 0
A69: 2042 | B69: =IF(MAX($B$65:B68)<(construct+anal_period),B68+1,"") -> 5 | C69: 3 | D69: 3 | E69: 1.038361 | F69: 2080550.843 | H69: =IF(C69="","",0) -> 0 | I69: =IF(OR(C69<0,C69=""),"",-E69*INDEX('Replacement Costs'!$A$16:$H$57,MATCH(C69,'Replacement Costs'!$C$16:$C$57,0),MATCH("Total Yearly Replacement Costs",'Replacement Costs'!$A$16:$H$16,0))) -> -169169.3053 | J69: =IF(AND(C69>=1,C69<anal_period),WorkingCap*SUM(N69:R69)-WorkingCap*SUM(N68:R68),IF(C69<0,0,IF(B69="","",-SUM(J$65:J68)))) -> -2619.122412 | N69: -844918.9422 | O69: -83431.36012 | P69: 0 | Q69: 0 | R69: -3013.703532 | S69: =IF(B69="","",IF($B$31=0,"",-'Debt Financing Calculations'!E18)) -> -146273.1485 | T69: 1002913.688 | U69: =IF(C69="","",IF(C69<-1,0,IF(C69=anal_period,-LOOKUP(C69,depr_yr,depr_cost)-Depreciation!$C$141-Depreciation!$B$166,-LOOKUP(C69,depr_yr,depr_cost)))) -> -463226.9413 | V69: 539686.7471 | W69: 0.2574 | X69: -138915.3687 | Y69: 863998.3196 | Z69: =IF(C69="","",IF($B$31=0,"",-'Debt Financing Calculations'!F18)) -> 0 | AA69: 692209.8919 | AB69: -1444630.287 | AC69: 831125.2606 | AE69: 328500 | AF69: 0
A70: 2043 | B70: =IF(MAX($B$65:B69)<(construct+anal_period),B69+1,"") -> 6 | C70: 4 | D70: 4 | E70: 1.058089859 | F70: 2120081.309 | H70: 0 | I70: =IF(OR(C70<0,C70=""),"",-E70*INDEX('Replacement Costs'!$A$16:$H$57,MATCH(C70,'Replacement Costs'!$C$16:$C$57,0),MATCH("Total Yearly Replacement Costs",'Replacement Costs'!$A$16:$H$16,0))) -> -172383.5221 | J70: =IF(AND(C70>=1,C70<anal_period),WorkingCap*SUM(N70:R70)-WorkingCap*SUM(N69:R69),IF(C70<0,0,IF(B70="","",-SUM(J$65:J69)))) -> -2693.305191 | N70: -860972.4021 | O70: -85276.00779 | P70: 0 | Q70: 0 | R70: -3070.963899 | S70: =IF(B70="","",IF($B$31=0,"",-'Debt Financing Calculations'!E19)) -> -146273.1485 | T70: 1024488.786 | U70: =IF(C70="","",IF(C70<-1,0,IF(C70=anal_period,-LOOKUP(C70,depr_yr,depr_cost)-Depreciation!$C$141-Depreciation!$B$166,-LOOKUP(C70,depr_yr,depr_cost)))) -> -441344.2594 | V70: 583144.527 | W70: 0.2574 | X70: -150101.4012 | Y70: 874387.3852 | Z70: =IF(C70="","",IF($B$31=0,"",-'Debt Financing Calculations'!F19)) -> 0 | AA70: 699310.5579 | AB70: -745319.7292 | AC70: 849411.9591 | AE70: 328500 | AF70: 0
A71: 2044 | B71: =IF(MAX($B$65:B70)<(construct+anal_period),B70+1,"") -> 7 | C71: 5 | D71: 5 | E71: 1.078193566 | F71: 2160362.854 | H71: 0 | I71: =IF(OR(C71<0,C71=""),"",-E71*INDEX('Replacement Costs'!$A$16:$H$57,MATCH(C71,'Replacement Costs'!$C$16:$C$57,0),MATCH("Total Yearly Replacement Costs",'Replacement Costs'!$A$16:$H$16,0))) -> -2709424.605 | J71: =IF(AND(C71>=1,C71<anal_period),WorkingCap*SUM(N71:R71)-WorkingCap*SUM(N70:R70),IF(C71<0,0,IF(B71="","",-SUM(J$65:J70)))) -> -2754.67235 | N71: -877330.8778 | O71: -87223.66617 | P71: 0 | Q71: 0 | R71: -3129.312213 | S71: =IF(B71="","",IF($B$31=0,"",-'Debt Financing Calculations'!E20)) -> -146273.1485 | T71: 1046405.849 | U71: =IF(C71="","",IF(C71<-1,0,IF(C71=anal_period,-LOOKUP(C71,depr_yr,depr_cost)-Depreciation!$C$141-Depreciation!$B$166,-LOOKUP(C71,depr_yr,depr_cost)))) -> -516263.6818 | V71: 530142.1672 | W71: 0.2574 | X71: -136458.5938 | Y71: 909947.2551 | Z71: =IF(C71="","",IF($B$31=0,"",-'Debt Financing Calculations'!F20)) -> 0 | AA71: -1802232.023 | AB71: -2547551.752 | AC71: -1665773.429 | AE71: 328500 | AF71: 0
A72: 2045 | B72: =IF(MAX($B$65:B71)<(construct+anal_period),B71+1,"") -> 8 | C72: 6 | D72: 6 | E72: 1.098679244 | F72: 2201409.748 | H72: 0 | I72: =IF(OR(C72<0,C72=""),"",-E72*INDEX('Replacement Costs'!$A$16:$H$57,MATCH(C72,'Replacement Costs'!$C$16:$C$57,0),MATCH("Total Yearly Replacement Costs",'Replacement Costs'!$A$16:$H$16,0))) -> -178996.3264 | J72: =IF(AND(C72>=1,C72<anal_period),WorkingCap*SUM(N72:R72)-WorkingCap*SUM(N71:R71),IF(C72<0,0,IF(B72="","",-SUM(J$65:J71)))) -> -2806.600887 | N72: -894000.1644 | O72: -89205.59514 | P72: 0 | Q72: 0 | R72: -3188.769145 | S72: =IF(B72="","",IF($B$31=0,"",-'Debt Financing Calculations'!E21)) -> -146273.1485 | T72: 1068742.071 | U72: =IF(C72="","",IF(C72<-1,0,IF(C72=anal_period,-LOOKUP(C72,depr_yr,depr_cost)-Depreciation!$C$141-Depreciation!$B$166,-LOOKUP(C72,depr_yr,depr_cost)))) -> -585897.2304 | V72: 482844.8402 | W72: 0.2574 | X72: -124284.2619 | Y72: 944457.8087 | Z72: =IF(C72="","",IF($B$31=0,"",-'Debt Financing Calculations'!F21)) -> 0 | AA72: 762654.8814 | AB72: -1784896.87 | AC72: 886939.1433 | AE72: 328500 | AF72: 0
A73: 2046 | B73: =IF(MAX($B$65:B72)<(construct+anal_period),B72+1,"") -> 9 | C73: 7 | D73: 7 | E73: 1.11955415 | F73: 2243236.533 | H73: 0 | I73: =IF(OR(C73<0,C73=""),"",-E73*INDEX('Replacement Costs'!$A$16:$H$57,MATCH(C73,'Replacement Costs'!$C$16:$C$57,0),MATCH("Total Yearly Replacement Costs",'Replacement Costs'!$A$16:$H$16,0))) -> -182397.2566 | J73: =IF(AND(C73>=1,C73<anal_period),WorkingCap*SUM(N73:R73)-WorkingCap*SUM(N72:R72),IF(C73<0,0,IF(B73="","",-SUM(J$65:J72)))) -> -2861.680821 | N73: -910986.1676 | O73: -91236.87755 | P73: 0 | Q73: 0 | R73: -3249.355759 | S73: =IF(B73="","",IF($B$31=0,"",-'Debt Financing Calculations'!E22)) -> -146273.1485 | T73: 1091490.984 | U73: =IF(C73="","",IF(C73<-1,0,IF(C73=anal_period,-LOOKUP(C73,depr_yr,depr_cost)-Depreciation!$C$141-Depreciation!$B$166,-LOOKUP(C73,depr_yr,depr_cost)))) -> -555451.3191 | V73: 536039.6645 | W73: 0.2574 | X73: -137976.6096 | Y73: 953514.374 | Z73: =IF(C73="","",IF($B$31=0,"",-'Debt Financing Calculations'!F22)) -> 0 | AA73: 768255.4366 | AB73: -1016641.434 | AC73: 906232.0462 | AE73: 328500 | AF73: 0
A74: 2047 | B74: =IF(MAX($B$65:B73)<(construct+anal_period),B73+1,"") -> 10 | C74: 8 | D74: 8 | E74: 1.140825679 | F74: 2285858.027 | H74: 0 | I74: =IF(OR(C74<0,C74=""),"",-E74*INDEX('Replacement Costs'!$A$16:$H$57,MATCH(C74,'Replacement Costs'!$C$16:$C$57,0),MATCH("Total Yearly Replacement Costs",'Replacement Costs'!$A$16:$H$16,0))) -> -185862.8045 | J74: =IF(AND(C74>=1,C74<anal_period),WorkingCap*SUM(N74:R74)-WorkingCap*SUM(N73:R73),IF(C74<0,0,IF(B74="","",-SUM(J$65:J73)))) -> -2911.73467 | N74: -928294.9047 | O74: -93277.96707 | P74: 0 | Q74: 0 | R74: -3311.093518 | S74: =IF(B74="","",IF($B$31=0,"",-'Debt Financing Calculations'!E23)) -> -146273.1485 | T74: 1114700.913 | U74: =IF(C74="","",IF(C74<-1,0,IF(C74=anal_period,-LOOKUP(C74,depr_yr,depr_cost)-Depreciation!$C$141-Depreciation!$B$166,-LOOKUP(C74,depr_yr,depr_cost)))) -> -527661.1424 | V74: 587039.7709 | W74: 0.2574 | X74: -151104.037 | Y74: 963596.8763 | Z74: =IF(C74="","",IF($B$31=0,"",-'Debt Financing Calculations'!F23)) -> 0 | AA74: 774822.3371 | AB74: -241819.0967 | AC74: 925926.3742 | AE74: 328500 | AF74: 0
A75: 2048 | B75: =IF(MAX($B$65:B74)<(construct+anal_period),B74+1,"") -> 11 | C75: 9 | D75: 9 | E75: 1.162501366 | F75: 2329289.33 | H75: 0 | I75: =IF(OR(C75<0,C75=""),"",-E75*INDEX('Replacement Costs'!$A$16:$H$57,MATCH(C75,'Replacement Costs'!$C$16:$C$57,0),MATCH("Total Yearly Replacement Costs",'Replacement Costs'!$A$16:$H$16,0))) -> -189394.1977 | J75: =IF(AND(C75>=1,C75<anal_period),WorkingCap*SUM(N75:R75)-WorkingCap*SUM(N74:R74),IF(C75<0,0,IF(B75="","",-SUM(J$65:J74)))) -> -2973.804414 | N75: -945932.5079 | O75: -95402.81586 | P75: 0 | Q75: 0 | R75: -3374.004295 | S75: =IF(B75="","",IF($B$31=0,"",-'Debt Financing Calculations'!E24)) -> -146273.1485 | T75: 1138306.853 | U75: =IF(C75="","",IF(C75<-1,0,IF(C75=anal_period,-LOOKUP(C75,depr_yr,depr_cost)-Depreciation!$C$141-Depreciation!$B$166,-LOOKUP(C75,depr_yr,depr_cost)))) -> -520740.7925 | V75: 617566.0606 | W75: 0.2574 | X75: -158961.504 | Y75: 979345.3491 | Z75: =IF(C75="","",IF($B$31=0,"",-'Debt Financing Calculations'!F24)) -> 0 | AA75: 786977.3469 | AB75: 545158.2502 | AC75: 945938.8509 | AE75: 328500 | AF75: 0
A76: 2049 | B76: =IF(MAX($B$65:B75)<(construct+anal_period),B75+1,"") -> 12 | C76: 10 | D76: 10 | E76: 1.184588892 | F76: 2373545.827 | H76: 0 | I76: =IF(OR(C76<0,C76=""),"",-E76*INDEX('Replacement Costs'!$A$16:$H$57,MATCH(C76,'Replacement Costs'!$C$16:$C$57,0),MATCH("Total Yearly Replacement Costs",'Replacement Costs'!$A$16:$H$16,0))) -> -2976788.577 | J76: =IF(AND(C76>=1,C76<anal_period),WorkingCap*SUM(N76:R76)-WorkingCap*SUM(N75:R75),IF(C76<0,0,IF(B76="","",-SUM(J$65:J75)))) -> -3024.1116 | N76: -963905.2256 | O76: -97526.73613 | P76: 0 | Q76: 0 | R76: -3438.110377 | S76: =IF(B76="","",IF($B$31=0,"",-'Debt Financing Calculations'!E25)) -> -146273.1485 | T76: 1162402.606 | U76: =IF(C76="","",IF(C76<-1,0,IF(C76=anal_period,-LOOKUP(C76,depr_yr,depr_cost)-Depreciation!$C$141-Depreciation!$B$166,-LOOKUP(C76,depr_yr,depr_cost)))) -> -623124.4431 | V76: 539278.1632 | W76: 0.2574 | X76: -138810.1992 | Y76: 1023592.407 | Z76: =IF(C76="","",IF($B$31=0,"",-'Debt Financing Calculations'!F25)) -> 0 | AA76: -1956220.282 | AB76: -1411062.032 | AC76: -1817410.083 | AE76: 328500 | AF76: 0
A77: 2050 | B77: =IF(MAX($B$65:B76)<(construct+anal_period),B76+1,"") -> 13 | C77: 11 | D77: 11 | E77: 1.207096081 | F77: 2418643.198 | H77: 0 | I77: =IF(OR(C77<0,C77=""),"",-E77*INDEX('Replacement Costs'!$A$16:$H$57,MATCH(C77,'Replacement Costs'!$C$16:$C$57,0),MATCH("Total Yearly Replacement Costs",'Replacement Costs'!$A$16:$H$16,0))) -> -196659.5486 | J77: =IF(AND(C77>=1,C77<anal_period),WorkingCap*SUM(N77:R77)-WorkingCap*SUM(N76:R76),IF(C77<0,0,IF(B77="","",-SUM(J$65:J76)))) -> -3081.004613 | N77: -982219.4249 | O77: -99687.2435 | P77: 0 | Q77: 0 | R77: -3503.434474 | S77: =IF(B77="","",IF($B$31=0,"",-'Debt Financing Calculations'!E26)) -> -146273.1485 | T77: 1186959.946 | U77: =IF(C77="","",IF(C77<-1,0,IF(C77=anal_period,-LOOKUP(C77,depr_yr,depr_cost)-Depreciation!$C$141-Depreciation!$B$166,-LOOKUP(C77,depr_yr,depr_cost)))) -> -718771.8442 | V77: 468188.1021 | W77: 0.2574 | X77: -120511.6175 | Y77: 1066448.329 | Z77: =IF(C77="","",IF($B$31=0,"",-'Debt Financing Calculations'!F26)) -> 0 | AA77: 866707.7756 | AB77: -544354.256 | AC77: 987219.3931 | AE77: 328500 | AF77: 0
A78: 2051 | B78: =IF(MAX($B$65:B77)<(construct+anal_period),B77+1,"") -> 14 | C78: 12 | D78: 12 | E78: 1.230030907 | F78: 2464597.418 | H78: 0 | I78: =IF(OR(C78<0,C78=""),"",-E78*INDEX('Replacement Costs'!$A$16:$H$57,MATCH(C78,'Replacement Costs'!$C$16:$C$57,0),MATCH("Total Yearly Replacement Costs",'Replacement Costs'!$A$16:$H$16,0))) -> -200396.08 | J78: =IF(AND(C78>=1,C78<anal_period),WorkingCap*SUM(N78:R78)-WorkingCap*SUM(N77:R77),IF(C78<0,0,IF(B78="","",-SUM(J$65:J77)))) -> -3107.23825 | N78: -1000881.594 | O78: -101673.4308 | P78: 0 | Q78: 0 | R78: -3569.999729 | S78: =IF(B78="","",IF($B$31=0,"",-'Debt Financing Calculations'!E27)) -> -146273.1485 | T78: 1212199.245 | U78: =IF(C78="","",IF(C78<-1,0,IF(C78=anal_period,-LOOKUP(C78,depr_yr,depr_cost)-Depreciation!$C$141-Depreciation!$B$166,-LOOKUP(C78,depr_yr,depr_cost)))) -> -703587.3856 | V78: 508611.8598 | W78: 0.2574 | X78: -130916.6927 | Y78: 1081282.553 | Z78: =IF(C78="","",IF($B$31=0,"",-'Debt Financing Calculations'!F27)) -> 0 | AA78: 877779.2344 | AB78: 333424.9784 | AC78: 1008695.927 | AE78: 328500 | AF78: 0
A79: 2052 | B79: =IF(MAX($B$65:B78)<(construct+anal_period),B78+1,"") -> 15 | C79: 13 | D79: 13 | E79: 1.253401494 | F79: 2511424.769 | H79: 0 | I79: =IF(OR(C79<0,C79=""),"",-E79*INDEX('Replacement Costs'!$A$16:$H$57,MATCH(C79,'Replacement Costs'!$C$16:$C$57,0),MATCH("Total Yearly Replacement Costs",'Replacement Costs'!$A$16:$H$16,0))) -> -204203.6055 | J79: =IF(AND(C79>=1,C79<anal_period),WorkingCap*SUM(N79:R79)-WorkingCap*SUM(N78:R78),IF(C79<0,0,IF(B79="","",-SUM(J$65:J78)))) -> -3166.551118 | N79: -1019898.344 | O79: -103699.1913 | P79: 0 | Q79: 0 | R79: -3637.829724 | S79: =IF(B79="","",IF($B$31=0,"",-'Debt Financing Calculations'!E28)) -> -146273.1485 | T79: 1237916.256 | U79: =IF(C79="","",IF(C79<-1,0,IF(C79=anal_period,-LOOKUP(C79,depr_yr,depr_cost)-Depreciation!$C$141-Depreciation!$B$166,-LOOKUP(C79,depr_yr,depr_cost)))) -> -697632.6821 | V79: 540283.5735 | W79: 0.2574 | X79: -139068.9918 | Y79: 1098847.264 | Z79: =IF(C79="","",IF($B$31=0,"",-'Debt Financing Calculations'!F28)) -> 0 | AA79: 891477.1071 | AB79: 1224902.086 | AC79: 1030546.099 | AE79: 328500 | AF79: 0
A80: 2053 | B80: =IF(MAX($B$65:B79)<(construct+anal_period),B79+1,"") -> 16 | C80: 14 | D80: 14 | E80: 1.277216123 | F80: 2559141.84 | H80: 0 | I80: =IF(OR(C80<0,C80=""),"",-E80*INDEX('Replacement Costs'!$A$16:$H$57,MATCH(C80,'Replacement Costs'!$C$16:$C$57,0),MATCH("Total Yearly Replacement Costs",'Replacement Costs'!$A$16:$H$16,0))) -> -208083.474 | J80: =IF(AND(C80>=1,C80<anal_period),WorkingCap*SUM(N80:R80)-WorkingCap*SUM(N79:R79),IF(C80<0,0,IF(B80="","",-SUM(J$65:J79)))) -> -3226.996416 | N80: -1039276.413 | O80: -105765.3135 | P80: 0 | Q80: 0 | R80: -3706.948489 | S80: =IF(B80="","",IF($B$31=0,"",-'Debt Financing Calculations'!E29)) -> -146273.1485 | T80: 1264120.017 | U80: =IF(C80="","",IF(C80<-1,0,IF(C80=anal_period,-LOOKUP(C80,depr_yr,depr_cost)-Depreciation!$C$141-Depreciation!$B$166,-LOOKUP(C80,depr_yr,depr_cost)))) -> -694222.4042 | V80: 569897.6125 | W80: 0.2574 | X80: -146691.6455 | Y80: 1117428.371 | Z80: =IF(C80="","",IF($B$31=0,"",-'Debt Financing Calculations'!F29)) -> 0 | AA80: 906117.9008 | AB80: 2131019.986 | AC80: 1052809.546 | AE80: 328500 | AF80: 0
A81: 2054 | B81: =IF(MAX($B$65:B80)<(construct+anal_period),B80+1,"") -> 17 | C81: 15 | D81: 15 | E81: 1.301483229 | F81: 2607765.535 | H81: 0 | I81: =IF(OR(C81<0,C81=""),"",-E81*INDEX('Replacement Costs'!$A$16:$H$57,MATCH(C81,'Replacement Costs'!$C$16:$C$57,0),MATCH("Total Yearly Replacement Costs",'Replacement Costs'!$A$16:$H$16,0))) -> -3270535.824 | J81: =IF(AND(C81>=1,C81<anal_period),WorkingCap*SUM(N81:R81)-WorkingCap*SUM(N80:R80),IF(C81<0,0,IF(B81="","",-SUM(J$65:J80)))) -> -3288.595771 | N81: -1059022.665 | O81: -107872.6014 | P81: 0 | Q81: 0 | R81: -3777.38051 | S81: =IF(B81="","",IF($B$31=0,"",-'Debt Financing Calculations'!E30)) -> -146273.1485 | T81: 1290819.74 | U81: =IF(C81="","",IF(C81<-1,0,IF(C81=anal_period,-LOOKUP(C81,depr_yr,depr_cost)-Depreciation!$C$141-Depreciation!$B$166,-LOOKUP(C81,depr_yr,depr_cost)))) -> -806872.6463 | V81: 483947.0936 | W81: 0.2574 | X81: -124567.9819 | Y81: 1166251.758 | Z81: =IF(C81="","",IF($B$31=0,"",-'Debt Financing Calculations'!F30)) -> 0 | AA81: -2107572.662 | AB81: 23447.32454 | AC81: -1983004.68 | AE81: 328500 | AF81: 0
A82: 2055 | B82: =IF(MAX($B$65:B81)<(construct+anal_period),B81+1,"") -> 18 | C82: 16 | D82: 16 | E82: 1.32621141 | F82: 2657313.08 | H82: 0 | I82: =IF(OR(C82<0,C82=""),"",-E82*INDEX('Replacement Costs'!$A$16:$H$57,MATCH(C82,'Replacement Costs'!$C$16:$C$57,0),MATCH("Total Yearly Replacement Costs",'Replacement Costs'!$A$16:$H$16,0))) -> -216065.7641 | J82: =IF(AND(C82>=1,C82<anal_period),WorkingCap*SUM(N82:R82)-WorkingCap*SUM(N81:R81),IF(C82<0,0,IF(B82="","",-SUM(J$65:J81)))) -> -3351.37122 | N82: -1079144.095 | O82: -110021.8754 | P82: 0 | Q82: 0 | R82: -3849.15074 | S82: =IF(B82="","",IF($B$31=0,"",-'Debt Financing Calculations'!E31)) -> -146273.1485 | T82: 1318024.81 | U82: =IF(C82="","",IF(C82<-1,0,IF(C82=anal_period,-LOOKUP(C82,depr_yr,depr_cost)-Depreciation!$C$141-Depreciation!$B$166,-LOOKUP(C82,depr_yr,depr_cost)))) -> -911795.0105 | V82: 406229.7997 | W82: 0.2574 | X82: -104563.5505 | Y82: 1213461.26 | Z82: =IF(C82="","",IF($B$31=0,"",-'Debt Financing Calculations'!F31)) -> 0 | AA82: 994044.1244 | AB82: 1017491.449 | AC82: 1098607.675 | AE82: 328500 | AF82: 0
A83: 2056 | B83: =IF(MAX($B$65:B82)<(construct+anal_period),B82+1,"") -> 19 | C83: 17 | D83: 17 | E83: 1.351409427 | F83: 2707802.029 | H83: 0 | I83: =IF(OR(C83<0,C83=""),"",-E83*INDEX('Replacement Costs'!$A$16:$H$57,MATCH(C83,'Replacement Costs'!$C$16:$C$57,0),MATCH("Total Yearly Replacement Costs",'Replacement Costs'!$A$16:$H$16,0))) -> -220171.0137 | J83: =IF(AND(C83>=1,C83<anal_period),WorkingCap*SUM(N83:R83)-WorkingCap*SUM(N82:R82),IF(C83<0,0,IF(B83="","",-SUM(J$65:J82)))) -> -3416.83776 | N83: -1099647.833 | O83: -112223.9221 | P83: 0 | Q83: 0 | R83: -3922.284604 | S83: =IF(B83="","",IF($B$31=0,"",-'Debt Financing Calculations'!E32)) -> -146273.1485 | T83: 1345734.84 | U83: =IF(C83="","",IF(C83<-1,0,IF(C83=anal_period,-LOOKUP(C83,depr_yr,depr_cost)-Depreciation!$C$141-Depreciation!$B$166,-LOOKUP(C83,depr_yr,depr_cost)))) -> -895275.6111 | V83: 450459.2293 | W83: 0.2574 | X83: -115948.2056 | Y83: 1229786.635 | Z83: =IF(C83="","",IF($B$31=0,"",-'Debt Financing Calculations'!F32)) -> 0 | AA83: 1006198.783 | AB83: 2023690.232 | AC83: 1122146.989 | AE83: 328500 | AF83: 0
A84: 2057 | B84: =IF(MAX($B$65:B83)<(construct+anal_period),B83+1,"") -> 20 | C84: 18 | D84: 18 | E84: 1.377086206 | F84: 2759250.267 | H84: 0 | I84: =IF(OR(C84<0,C84=""),"",-E84*INDEX('Replacement Costs'!$A$16:$H$57,MATCH(C84,'Replacement Costs'!$C$16:$C$57,0),MATCH("Total Yearly Replacement Costs",'Replacement Costs'!$A$16:$H$16,0))) -> -224354.2629 | J84: =IF(AND(C84>=1,C84<anal_period),WorkingCap*SUM(N84:R84)-WorkingCap*SUM(N83:R83),IF(C84<0,0,IF(B84="","",-SUM(J$65:J83)))) -> -3482.092815 | N84: -1120541.142 | O84: -114470.042 | P84: 0 | Q84: 0 | R84: -3996.808011 | S84: =IF(B84="","",IF($B$31=0,"",-'Debt Financing Calculations'!E33)) -> -146273.1485 | T84: 1373969.127 | U84: =IF(C84="","",IF(C84<-1,0,IF(C84=anal_period,-LOOKUP(C84,depr_yr,depr_cost)-Depreciation!$C$141-Depreciation!$B$166,-LOOKUP(C84,depr_yr,depr_cost)))) -> -888569.8518 | V84: 485399.275 | W84: 0.2574 | X84: -124941.7734 | Y84: 1249027.353 | Z84: =IF(C84="","",IF($B$31=0,"",-'Debt Financing Calculations'!F33)) -> 0 | AA84: 1021190.998 | AB84: 3044881.23 | AC84: 1146132.771 | AE84: 328500 | AF84: 0
A85: 2058 | B85: =IF(MAX($B$65:B84)<(construct+anal_period),B84+1,"") -> 21 | C85: 19 | D85: 19 | E85: 1.403250844 | F85: 2811676.022 | H85: 0 | I85: =IF(OR(C85<0,C85=""),"",-E85*INDEX('Replacement Costs'!$A$16:$H$57,MATCH(C85,'Replacement Costs'!$C$16:$C$57,0),MATCH("Total Yearly Replacement Costs",'Replacement Costs'!$A$16:$H$16,0))) -> -228616.9939 | J85: =IF(AND(C85>=1,C85<anal_period),WorkingCap*SUM(N85:R85)-WorkingCap*SUM(N84:R84),IF(C85<0,0,IF(B85="","",-SUM(J$65:J84)))) -> -3548.594425 | N85: -1141831.424 | O85: -116761.1171 | P85: 0 | Q85: 0 | R85: -4072.747363 | S85: =IF(B85="","",IF($B$31=0,"",-'Debt Financing Calculations'!E34)) -> -146273.1485 | T85: 1402737.586 | U85: =IF(C85="","",IF(C85<-1,0,IF(C85=anal_period,-LOOKUP(C85,depr_yr,depr_cost)-Depreciation!$C$141-Depreciation!$B$166,-LOOKUP(C85,depr_yr,depr_cost)))) -> -884986.5004 | V85: 517751.0853 | W85: 0.2574 | X85: -133269.1294 | Y85: 1269468.456 | Z85: =IF(C85="","",IF($B$31=0,"",-'Debt Financing Calculations'!F34)) -> 0 | AA85: 1037302.868 | AB85: 4082184.098 | AC85: 1170571.997 | AE85: 328500 | AF85: 0
A86: 2059 | B86: =IF(MAX($B$65:B85)<(construct+anal_period),B85+1,"") -> 22 | C86: 20 | D86: 20 | E86: 1.42991261 | F86: 2865097.867 | H86: 0 | I86: =IF(OR(C86<0,C86=""),"",-E86*INDEX('Replacement Costs'!$A$16:$H$57,MATCH(C86,'Replacement Costs'!$C$16:$C$57,0),MATCH("Total Yearly Replacement Costs",'Replacement Costs'!$A$16:$H$16,0))) -> -3593269.827 | J86: =IF(AND(C86>=1,C86<anal_period),WorkingCap*SUM(N86:R86)-WorkingCap*SUM(N85:R85),IF(C86<0,0,IF(B86="","",-SUM(J$65:J85)))) -> -3616.366407 | N86: -1163526.221 | O86: -119098.0472 | P86: 0 | Q86: 0 | R86: -4150.129563 | S86: =IF(B86="","",IF($B$31=0,"",-'Debt Financing Calculations'!E35)) -> -146273.1485 | T86: 1432050.321 | U86: =IF(C86="","",IF(C86<-1,0,IF(C86=anal_period,-LOOKUP(C86,depr_yr,depr_cost)-Depreciation!$C$141-Depreciation!$B$166,-LOOKUP(C86,depr_yr,depr_cost)))) -> -1008589.533 | V86: 423460.7877 | W86: 0.2574 | X86: -108998.8067 | Y86: 1323051.514 | Z86: =IF(C86="","",IF($B$31=0,"",-'Debt Financing Calculations'!F35)) -> 0 | AA86: -2273834.679 | AB86: 1808349.419 | AC86: -2164835.873 | AE86: 328500 | AF86: 0
A87: 2060 | B87: =IF(MAX($B$65:B86)<(construct+anal_period),B86+1,"") -> 23 | C87: 21 | D87: 21 | E87: 1.45708095 | F87: 2919534.726 | H87: 0 | I87: =IF(OR(C87<0,C87=""),"",-E87*INDEX('Replacement Costs'!$A$16:$H$57,MATCH(C87,'Replacement Costs'!$C$16:$C$57,0),MATCH("Total Yearly Replacement Costs",'Replacement Costs'!$A$16:$H$16,0))) -> -237386.9704 | J87: =IF(AND(C87>=1,C87<anal_period),WorkingCap*SUM(N87:R87)-WorkingCap*SUM(N86:R86),IF(C87<0,0,IF(B87="","",-SUM(J$65:J86)))) -> -3685.433035 | N87: -1185633.219 | O87: -121481.7501 | P87: 0 | Q87: 0 | R87: -4228.982025 | S87: =IF(B87="","",IF($B$31=0,"",-'Debt Financing Calculations'!E36)) -> -146273.1485 | T87: 1461917.627 | U87: =IF(C87="","",IF(C87<-1,0,IF(C87=anal_period,-LOOKUP(C87,depr_yr,depr_cost)-Depreciation!$C$141-Depreciation!$B$166,-LOOKUP(C87,depr_yr,depr_cost)))) -> -975374.1497 | V87: 486543.477 | W87: 0.2574 | X87: -125236.291 | Y87: 1336681.336 | Z87: =IF(C87="","",IF($B$31=0,"",-'Debt Financing Calculations'!F36)) -> 0 | AA87: 1095608.932 | AB87: 2903958.351 | AC87: 1220845.223 | AE87: 328500 | AF87: 0
A88: 2061 | B88: =IF(MAX($B$65:B87)<(construct+anal_period),B87+1,"") -> 24 | C88: 22 | D88: 22 | E88: 1.484765488 | F88: 2975005.886 | H88: 0 | I88: =IF(OR(C88<0,C88=""),"",-E88*INDEX('Replacement Costs'!$A$16:$H$57,MATCH(C88,'Replacement Costs'!$C$16:$C$57,0),MATCH("Total Yearly Replacement Costs",'Replacement Costs'!$A$16:$H$16,0))) -> -241897.3229 | J88: =IF(AND(C88>=1,C88<anal_period),WorkingCap*SUM(N88:R88)-WorkingCap*SUM(N87:R87),IF(C88<0,0,IF(B88="","",-SUM(J$65:J87)))) -> -3746.242447 | N88: -1208160.25 | O88: -123849.3179 | P88: 0 | Q88: 0 | R88: -4309.332683 | S88: =IF(B88="","",IF($B$31=0,"",-'Debt Financing Calculations'!E37)) -> -146273.1485 | T88: 1492413.837 | U88: =IF(C88="","",IF(C88<-1,0,IF(C88=anal_period,-LOOKUP(C88,depr_yr,depr_cost)-Depreciation!$C$141-Depreciation!$B$166,-LOOKUP(C88,depr_yr,depr_cost)))) -> -804769.1574 | V88: 687644.6794 | W88: 0.2574 | X88: -176999.7405 | Y88: 1315414.096 | Z88: =IF(C88="","",IF($B$31=0,"",-'Debt Financing Calculations'!F37)) -> 0 | AA88: 1069770.531 | AB88: 3973728.882 | AC88: 1246770.271 | AE88: 328500 | AF88: 0
A89: 2062 | B89: =IF(MAX($B$65:B88)<(construct+anal_period),B88+1,"") -> 25 | C89: 23 | D89: 23 | E89: 1.512976032 | F89: 3031530.998 | H89: 0 | I89: =IF(OR(C89<0,C89=""),"",-E89*INDEX('Replacement Costs'!$A$16:$H$57,MATCH(C89,'Replacement Costs'!$C$16:$C$57,0),MATCH("Total Yearly Replacement Costs",'Replacement Costs'!$A$16:$H$16,0))) -> -246493.372 | J89: =IF(AND(C89>=1,C89<anal_period),WorkingCap*SUM(N89:R89)-WorkingCap*SUM(N88:R88),IF(C89<0,0,IF(B89="","",-SUM(J$65:J88)))) -> -3817.594743 | N89: -1231115.295 | O89: -126263.0275 | P89: 0 | Q89: 0 | R89: -4391.210004 | S89: =IF(B89="","",IF($B$31=0,"",-'Debt Financing Calculations'!E38)) -> -146273.1485 | T89: 1523488.317 | U89: =IF(C89="","",IF(C89<-1,0,IF(C89=anal_period,-LOOKUP(C89,depr_yr,depr_cost)-Depreciation!$C$141-Depreciation!$B$166,-LOOKUP(C89,depr_yr,depr_cost)))) -> -790022.1953 | V89: 733466.1217 | W89: 0.2574 | X89: -188794.1797 | Y89: 1334694.137 | Z89: =IF(C89="","",IF($B$31=0,"",-'Debt Financing Calculations'!F38)) -> 0 | AA89: 1084383.171 | AB89: 5058112.052 | AC89: 1273177.35 | AE89: 328500 | AF89: 0
A90: 2063 | B90: =IF(MAX($B$65:B89)<(construct+anal_period),B89+1,"") -> 26 | C90: 24 | D90: 24 | E90: 1.541722577 | F90: 3089130.087 | H90: 0 | I90: =IF(OR(C90<0,C90=""),"",-E90*INDEX('Replacement Costs'!$A$16:$H$57,MATCH(C90,'Replacement Costs'!$C$16:$C$57,0),MATCH("Total Yearly Replacement Costs",'Replacement Costs'!$A$16:$H$16,0))) -> -251176.7461 | J90: =IF(AND(C90>=1,C90<anal_period),WorkingCap*SUM(N90:R90)-WorkingCap*SUM(N89:R89),IF(C90<0,0,IF(B90="","",-SUM(J$65:J89)))) -> -3890.306119 | N90: -1254506.485 | O90: -128723.778 | P90: 0 | Q90: 0 | R90: -4474.642994 | S90: =IF(B90="","",IF($B$31=0,"",-'Debt Financing Calculations'!E39)) -> -146273.1485 | T90: 1555152.032 | U90: =IF(C90="","",IF(C90<-1,0,IF(C90=anal_period,-LOOKUP(C90,depr_yr,depr_cost)-Depreciation!$C$141-Depreciation!$B$166,-LOOKUP(C90,depr_yr,depr_cost)))) -> -778368.4109 | V90: 776783.6209 | W90: 0.2574 | X90: -199944.104 | Y90: 1355207.928 | Z90: =IF(C90="","",IF($B$31=0,"",-'Debt Financing Calculations'!F39)) -> 0 | AA90: 1100140.876 | AB90: 6158252.928 | AC90: 1300084.98 | AE90: 328500 | AF90: 0
A91: 2064 | B91: =IF(MAX($B$65:B90)<(construct+anal_period),B90+1,"") -> 27 | C91: 25 | D91: 25 | E91: 1.571015306 | F91: 3147823.558 | H91: 0 | I91: =IF(OR(C91<0,C91=""),"",-E91*INDEX('Replacement Costs'!$A$16:$H$57,MATCH(C91,'Replacement Costs'!$C$16:$C$57,0),MATCH("Total Yearly Replacement Costs",'Replacement Costs'!$A$16:$H$16,0))) -> -3947850.977 | J91: =IF(AND(C91>=1,C91<anal_period),WorkingCap*SUM(N91:R91)-WorkingCap*SUM(N90:R90),IF(C91<0,0,IF(B91="","",-SUM(J$65:J90)))) -> -3964.402462 | N91: -1278342.109 | O91: -131232.4863 | P91: 0 | Q91: 0 | R91: -4559.661211 | S91: =IF(B91="","",IF($B$31=0,"",-'Debt Financing Calculations'!E40)) -> -146273.1485 | T91: 1587416.154 | U91: =IF(C91="","",IF(C91<-1,0,IF(C91=anal_period,-LOOKUP(C91,depr_yr,depr_cost)-Depreciation!$C$141-Depreciation!$B$166,-LOOKUP(C91,depr_yr,depr_cost)))) -> -849973.869 | V91: 737442.2847 | W91: 0.2574 | X91: -189817.6441 | Y91: 1397598.51 | Z91: =IF(C91="","",IF($B$31=0,"",-'Debt Financing Calculations'!F40)) -> 0 | AA91: -2554216.87 | AB91: 3604036.058 | AC91: -2364399.226 | AE91: 328500 | AF91: 0
A92: 2065 | B92: =IF(MAX($B$65:B91)<(construct+anal_period),B91+1,"") -> 28 | C92: 26 | D92: 26 | E92: 1.600864596 | F92: 3207632.206 | H92: 0 | I92: =IF(OR(C92<0,C92=""),"",-E92*INDEX('Replacement Costs'!$A$16:$H$57,MATCH(C92,'Replacement Costs'!$C$16:$C$57,0),MATCH("Total Yearly Replacement Costs",'Replacement Costs'!$A$16:$H$16,0))) -> -260812.1372 | J92: =IF(AND(C92>=1,C92<anal_period),WorkingCap*SUM(N92:R92)-WorkingCap*SUM(N91:R91),IF(C92<0,0,IF(B92="","",-SUM(J$65:J91)))) -> -4039.910153 | N92: -1302630.609 | O92: -133790.0871 | P92: 0 | Q92: 0 | R92: -4646.294774 | S92: =IF(B92="","",IF($B$31=0,"",-'Debt Financing Calculations'!E41)) -> -146273.1485 | T92: 1620292.067 | U92: =IF(C92="","",IF(C92<-1,0,IF(C92=anal_period,-LOOKUP(C92,depr_yr,depr_cost)-Depreciation!$C$141-Depreciation!$B$166,-LOOKUP(C92,depr_yr,depr_cost)))) -> -912292.7353 | V92: 707999.3317 | W92: 0.2574 | X92: -182239.028 | Y92: 1438053.039 | Z92: =IF(C92="","",IF($B$31=0,"",-'Debt Financing Calculations'!F41)) -> 0 | AA92: 1173200.992 | AB92: 4777237.05 | AC92: 1355440.02 | AE92: 328500 | AF92: 0
A93: 2066 | B93: =IF(MAX($B$65:B92)<(construct+anal_period),B92+1,"") -> 29 | C93: 27 | D93: 27 | E93: 1.631281024 | F93: 3268577.218 | H93: 0 | I93: =IF(OR(C93<0,C93=""),"",-E93*INDEX('Replacement Costs'!$A$16:$H$57,MATCH(C93,'Replacement Costs'!$C$16:$C$57,0),MATCH("Total Yearly Replacement Costs",'Replacement Costs'!$A$16:$H$16,0))) -> -265767.5678 | J93: =IF(AND(C93>=1,C93<anal_period),WorkingCap*SUM(N93:R93)-WorkingCap*SUM(N92:R92),IF(C93<0,0,IF(B93="","",-SUM(J$65:J92)))) -> -4116.510177 | N93: -1327380.59 | O93: -136395.2271 | P93: 0 | Q93: 0 | R93: -4734.574375 | S93: =IF(B93="","",IF($B$31=0,"",-'Debt Financing Calculations'!E42)) -> -146273.1485 | T93: 1653793.678 | U93: =IF(C93="","",IF(C93<-1,0,IF(C93=anal_period,-LOOKUP(C93,depr_yr,depr_cost)-Depreciation!$C$141-Depreciation!$B$166,-LOOKUP(C93,depr_yr,depr_cost)))) -> -884183.1695 | V93: 769610.5082 | W93: 0.2574 | X93: -198097.7448 | Y93: 1455695.933 | Z93: =IF(C93="","",IF($B$31=0,"",-'Debt Financing Calculations'!F42)) -> 0 | AA93: 1185811.855 | AB93: 5963048.905 | AC93: 1383909.6 | AE93: 328500 | AF93: 0
A94: 2067 | B94: =IF(MAX($B$65:B93)<(construct+anal_period),B93+1,"") -> 30 | C94: 28 | D94: 28 | E94: 1.662275363 | F94: 3330680.185 | H94: 0 | I94: =IF(OR(C94<0,C94=""),"",-E94*INDEX('Replacement Costs'!$A$16:$H$57,MATCH(C94,'Replacement Costs'!$C$16:$C$57,0),MATCH("Total Yearly Replacement Costs",'Replacement Costs'!$A$16:$H$16,0))) -> -270817.1516 | J94: =IF(AND(C94>=1,C94<anal_period),WorkingCap*SUM(N94:R94)-WorkingCap*SUM(N93:R93),IF(C94<0,0,IF(B94="","",-SUM(J$65:J93)))) -> -4194.908255 | N94: -1352600.821 | O94: -139051.094 | P94: 0 | Q94: 0 | R94: -4824.531288 | S94: =IF(B94="","",IF($B$31=0,"",-'Debt Financing Calculations'!E43)) -> -146273.1485 | T94: 1687930.59 | U94: =IF(C94="","",IF(C94<-1,0,IF(C94=anal_period,-LOOKUP(C94,depr_yr,depr_cost)-Depreciation!$C$141-Depreciation!$B$166,-LOOKUP(C94,depr_yr,depr_cost)))) -> -867980.9884 | V94: 819949.6014 | W94: 0.2574 | X94: -211055.0274 | Y94: 1476875.562 | Z94: =IF(C94="","",IF($B$31=0,"",-'Debt Financing Calculations'!F43)) -> 0 | AA94: 1201863.503 | AB94: 7164912.407 | AC94: 1412918.53 | AE94: 328500 | AF94: 0
A95: 2068 | B95: =IF(MAX($B$65:B94)<(construct+anal_period),B94+1,"") -> 31 | C95: 29 | D95: 29 | E95: 1.693858595 | F95: 3393963.108 | H95: 0 | I95: =IF(OR(C95<0,C95=""),"",-E95*INDEX('Replacement Costs'!$A$16:$H$57,MATCH(C95,'Replacement Costs'!$C$16:$C$57,0),MATCH("Total Yearly Replacement Costs",'Replacement Costs'!$A$16:$H$16,0))) -> -275962.6775 | J95: =IF(AND(C95>=1,C95<anal_period),WorkingCap*SUM(N95:R95)-WorkingCap*SUM(N94:R94),IF(C95<0,0,IF(B95="","",-SUM(J$65:J94)))) -> -4274.799486 | N95: -1378300.237 | O95: -141758.6755 | P95: 0 | Q95: 0 | R95: -4916.197383 | S95: =IF(B95="","",IF($B$31=0,"",-'Debt Financing Calculations'!E44)) -> -146273.1485 | T95: 1722714.85 | U95: =IF(C95="","",IF(C95<-1,0,IF(C95=anal_period,-LOOKUP(C95,depr_yr,depr_cost)-Depreciation!$C$141-Depreciation!$B$166,-LOOKUP(C95,depr_yr,depr_cost)))) -> -855177.2173 | V95: 867537.6328 | W95: 0.2574 | X95: -223304.1867 | Y95: 1499410.663 | Z95: =IF(C95="","",IF($B$31=0,"",-'Debt Financing Calculations'!F44)) -> 0 | AA95: 1219173.186 | AB95: 8384085.593 | AC95: 1442477.373 | AE95: 328500 | AF95: 0
A96: 2069 | B96: =IF(MAX($B$65:B95)<(construct+anal_period),B95+1,"") -> 32 | C96: 30 | D96: 30 | E96: 1.726041908 | F96: 3458448.408 | H96: 0 | I96: =IF(OR(C96<0,C96=""),"",-E96*INDEX('Replacement Costs'!$A$16:$H$57,MATCH(C96,'Replacement Costs'!$C$16:$C$57,0),MATCH("Total Yearly Replacement Costs",'Replacement Costs'!$A$16:$H$16,0))) -> -4337421.927 | J96: =IF(AND(C96>=1,C96<anal_period),WorkingCap*SUM(N96:R96)-WorkingCap*SUM(N95:R95),IF(C96<0,0,IF(B96="","",-SUM(J$65:J95)))) -> -4356.21231 | N96: -1404487.941 | O96: -144518.9787 | P96: 0 | Q96: 0 | R96: -5009.605133 | S96: =IF(B96="","",IF($B$31=0,"",-'Debt Financing Calculations'!E45)) -> -146273.1485 | T96: 1758158.734 | U96: =IF(C96="","",IF(C96<-1,0,IF(C96=anal_period,-LOOKUP(C96,depr_yr,depr_cost)-Depreciation!$C$141-Depreciation!$B$166,-LOOKUP(C96,depr_yr,depr_cost)))) -> -933848.6479 | V96: 824310.0859 | W96: 0.2574 | X96: -212177.4161 | Y96: 1545981.318 | Z96: =IF(C96="","",IF($B$31=0,"",-'Debt Financing Calculations'!F45)) -> 0 | AA96: -2795796.822 | AB96: 5588288.771 | AC96: -2583619.406 | AE96: 328500 | AF96: 0
A97: 2070 | B97: =IF(MAX($B$65:B96)<(construct+anal_period),B96+1,"") -> 33 | C97: 31 | D97: =IF(C97="","",IF(C97<=plant_life,C97,IF(D96=plant_life,1,D96+1))) -> 31 | E97: =IF(C97="","",(1+inflation_rate)^(A97-$B$25)) -> 1.758836705 | F97: =IF(C97="","",IF(C97<0,0,IF(AND(C97=1,start_time<1),E97*(H2_price_nominal*output_kgyear*start_time*percnt_revs+H2_price_nominal*output_kgyear*(1-start_time)),IF(C97<=start_time,H2_price_nominal*E97*output_kgyear*percnt_revs,H2_price_nominal*output_kgyear*E97)))) -> 3524158.927 | H97: 0 | I97: =IF(OR(C97<0,C97=""),"",-E97*INDEX('Replacement Costs'!$A$16:$H$57,MATCH(C97,'Replacement Costs'!$C$16:$C$57,0),MATCH("Total Yearly Replacement Costs",'Replacement Costs'!$A$16:$H$16,0))) -> -286548.8818 | J97: =IF(AND(C97>=1,C97<anal_period),WorkingCap*SUM(N97:R97)-WorkingCap*SUM(N96:R96),IF(C97<0,0,IF(B97="","",-SUM(J$65:J96)))) -> -4439.17571 | K97: =IF(C97=-construct,-E97*non_dep_infl,"") ->  | L97: =IF(C97=anal_period,salvage*E97,"") ->  | M97: =IF(D97=plant_life,-E97*decom,"") ->  | N97: =IF(C97="","",IF(C97<0,0,IF(AND(C97=1,start_time<1),-(inflated_fixed*percnt_fixed*start_time+(inflated_fixed*(1-start_time))),IF(C97<=start_time,-inflated_fixed*percnt_fixed*E97,-inflated_fixed*E97)))) -> -1431173.212 | O97: =IF(C97="","",IF(C97<0,0,IF(AND(C97=1,start_time<1),-(SUM(B171:E171)*output_kgyear*E97*percnt_var*start_time+SUM(B171:E171)*output_kgyear*E97*(1-start_time)),IF(C97<=start_time,-SUM(B171:E171)*output_kgyear*E97*percnt_var,-SUM(B171:E171)*output_kgyear*E97)))) -> -147333.03 | P97: =IF(C97="","",IF(C97<0,0,IF(AND(C97=1,start_time<1),-(inflated_otherraw*E97*percnt_var*start_time+inflated_otherraw*E97*(1-start_time)),IF(C97<=start_time,-inflated_otherraw*E97*percnt_var,-(inflated_otherraw*E97))))) -> 0 | Q97: 0 | R97: =IF(C97="","",IF(C97<0,0,IF(AND(C97=1,start_time<1),-((SUM(F171:J171,P171:R171)*output_kgyear+inflated_othervar)*E97*percnt_var*start_time+(SUM(F171:J171,P171:R171)*output_kgyear+inflated_othervar)*E97*(1-start_time)),IF(C97<=start_time,-(SUM(F171:J171,P171:R171)*output_kgyear+inflated_othervar)*E97*percnt_var,-E97*(SUM(F171:J171,P171:R171)*output_kgyear+inflated_othervar))))) -> -5104.78763 | S97: =IF(B97="","",IF($B$31=0,"",-'Debt Financing Calculations'!E46)) -> -146273.1485 | T97: =IF(C97="","",F97+SUM(L97:S97)) -> 1794274.749 | U97: =IF(C97="","",IF(C97<-1,0,IF(C97=anal_period,-LOOKUP(C97,depr_yr,depr_cost)-Depreciation!$C$141-Depreciation!$B$166,-LOOKUP(C97,depr_yr,depr_cost)))) -> -1002317.093 | V97: =IF(C97="","",SUM(T97:U97)) -> 791957.656 | W97: =IF(C97="","",$B$33) -> 0.2574 | X97: =IF(C97="","",tax_credit-(V97*W97 +Upstream_CO2_taxpYear + Proc_CO2_taxpYear)) -> -203849.9007 | Y97: =IF(C97="","",SUM(T97,X97)) -> 1590424.848 | Z97: =IF(C97="","",IF($B$31=0,"",-'Debt Financing Calculations'!F46)) -> 0 | AA97: =IF(C97="","",SUM(H97,I97,J97,K97,T97,X97,Z97)) -> 1299436.791 | AB97: 6887725.562 | AC97: =IF(C97="","",SUM(H97,I97,J97,K97,T97,Z97)) -> 1503286.691 | AE97: =IF(C97="","",IF(C97<0,0,IF(AND(C97=1,start_time<1),(output_kgyear*start_time*percnt_revs+output_kgyear*(1-start_time)),IF(C97<=start_time,output_kgyear*percnt_revs,output_kgyear)))) -> 328500 | AF97: =IF(C97="","",tax_credit) -> 0
A98: 2071 | B98: =IF(MAX($B$65:B97)<(construct+anal_period),B97+1,"") -> 34 | C98: 32 | D98: 32 | E98: 1.792254602 | F98: 3591117.947 | H98: 0 | I98: =IF(OR(C98<0,C98=""),"",-E98*INDEX('Replacement Costs'!$A$16:$H$57,MATCH(C98,'Replacement Costs'!$C$16:$C$57,0),MATCH("Total Yearly Replacement Costs",'Replacement Costs'!$A$16:$H$16,0))) -> -291993.3105 | J98: =IF(AND(C98>=1,C98<anal_period),WorkingCap*SUM(N98:R98)-WorkingCap*SUM(N97:R97),IF(C98<0,0,IF(B98="","",-SUM(J$65:J97)))) -> -4520.096027 | N98: -1458365.503 | O98: -150177.7215 | P98: 0 | Q98: 0 | R98: -5201.778595 | S98: =IF(B98="","",IF($B$31=0,"",-'Debt Financing Calculations'!E47)) -> -146273.1485 | T98: 1831099.795 | U98: =IF(C98="","",IF(C98<-1,0,IF(C98=anal_period,-LOOKUP(C98,depr_yr,depr_cost)-Depreciation!$C$141-Depreciation!$B$166,-LOOKUP(C98,depr_yr,depr_cost)))) -> -971433.6963 | V98: 859666.0986 | W98: 0.2574 | X98: -221278.0538 | Y98: 1609821.741 | Z98: =IF(C98="","",IF($B$31=0,"",-'Debt Financing Calculations'!F47)) -> 0 | AA98: 1313308.335 | AB98: 8201033.897 | AC98: 1534586.388 | AE98: 328500 | AF98: 0
A99: 2072 | B99: =IF(MAX($B$65:B98)<(construct+anal_period),B98+1,"") -> 35 | C99: 33 | D99: 33 | E99: 1.826307439 | F99: 3659349.188 | H99: 0 | I99: =IF(OR(C99<0,C99=""),"",-E99*INDEX('Replacement Costs'!$A$16:$H$57,MATCH(C99,'Replacement Costs'!$C$16:$C$57,0),MATCH("Total Yearly Replacement Costs",'Replacement Costs'!$A$16:$H$16,0))) -> -297541.1834 | J99: =IF(AND(C99>=1,C99<anal_period),WorkingCap*SUM(N99:R99)-WorkingCap*SUM(N98:R98),IF(C99<0,0,IF(B99="","",-SUM(J$65:J98)))) -> -4606.109234 | N99: -1486074.448 | O99: -153077.3381 | P99: 0 | Q99: 0 | R99: -5300.612389 | S99: =IF(B99="","",IF($B$31=0,"",-'Debt Financing Calculations'!E48)) -> -146273.1485 | T99: 1868623.641 | U99: =IF(C99="","",IF(C99<-1,0,IF(C99=anal_period,-LOOKUP(C99,depr_yr,depr_cost)-Depreciation!$C$141-Depreciation!$B$166,-LOOKUP(C99,depr_yr,depr_cost)))) -> -953632.6962 | V99: 914990.9448 | W99: 0.2574 | X99: -235518.6692 | Y99: 1633104.972 | Z99: =IF(C99="","",IF($B$31=0,"",-'Debt Financing Calculations'!F48)) -> 0 | AA99: 1330957.679 | AB99: 9531991.576 | AC99: 1566476.348 | AE99: 328500 | AF99: 0
A100: 2073 | B100: =IF(MAX($B$65:B99)<(construct+anal_period),B99+1,"") -> 36 | C100: 34 | D100: 34 | E100: 1.861007281 | F100: 3728876.822 | H100: 0 | I100: =IF(OR(C100<0,C100=""),"",-E100*INDEX('Replacement Costs'!$A$16:$H$57,MATCH(C100,'Replacement Costs'!$C$16:$C$57,0),MATCH("Total Yearly Replacement Costs",'Replacement Costs'!$A$16:$H$16,0))) -> -303194.4659 | J100: =IF(AND(C100>=1,C100<anal_period),WorkingCap*SUM(N100:R100)-WorkingCap*SUM(N99:R99),IF(C100<0,0,IF(B100="","",-SUM(J$65:J99)))) -> -4693.759228 | N100: -1514309.862 | O100: -156032.9401 | P100: 0 | Q100: 0 | R100: -5401.324024 | S100: =IF(B100="","",IF($B$31=0,"",-'Debt Financing Calculations'!E49)) -> -146273.1485 | T100: 1906859.547 | U100: =IF(C100="","",IF(C100<-1,0,IF(C100=anal_period,-LOOKUP(C100,depr_yr,depr_cost)-Depreciation!$C$141-Depreciation!$B$166,-LOOKUP(C100,depr_yr,depr_cost)))) -> -939565.4587 | V100: 967294.0887 | W100: 0.2574 | X100: -248981.4984 | Y100: 1657878.049 | Z100: =IF(C100="","",IF($B$31=0,"",-'Debt Financing Calculations'!F49)) -> 0 | AA100: 1349989.824 | AB100: 10881981.4 | AC100: 1598971.322 | AE100: 328500 | AF100: 0
A101: 2074 | B101: =IF(MAX($B$65:B100)<(construct+anal_period),B100+1,"") -> 37 | C101: 35 | D101: 35 | E101: 1.896366419 | F101: 3799725.482 | H101: 0 | I101: =IF(OR(C101<0,C101=""),"",-E101*INDEX('Replacement Costs'!$A$16:$H$57,MATCH(C101,'Replacement Costs'!$C$16:$C$57,0),MATCH("Total Yearly Replacement Costs",'Replacement Costs'!$A$16:$H$16,0))) -> -4765435.444 | J101: =IF(AND(C101>=1,C101<anal_period),WorkingCap*SUM(N101:R101)-WorkingCap*SUM(N100:R100),IF(C101<0,0,IF(B101="","",-SUM(J$65:J100)))) -> -4783.077158 | N101: -1543081.75 | O101: -159045.6086 | P101: 0 | Q101: 0 | R101: -5503.949181 | S101: =IF(B101="","",IF($B$31=0,"",-'Debt Financing Calculations'!E50)) -> -146273.1485 | T101: 1945821.026 | U101: =IF(C101="","",IF(C101<-1,0,IF(C101=anal_period,-LOOKUP(C101,depr_yr,depr_cost)-Depreciation!$C$141-Depreciation!$B$166,-LOOKUP(C101,depr_yr,depr_cost)))) -> -1026000.127 | V101: 919820.8994 | W101: 0.2574 | X101: -236761.8995 | Y101: 1709059.126 | Z101: =IF(C101="","",IF($B$31=0,"",-'Debt Financing Calculations'!F50)) -> 0 | AA101: -3061159.395 | AB101: 7820822.004 | AC101: -2824397.496 | AE101: 328500 | AF101: 0
A102: 2075 | B102: =IF(MAX($B$65:B101)<(construct+anal_period),B101+1,"") -> 38 | C102: 36 | D102: 36 | E102: 1.932397381 | F102: 3871920.266 | H102: 0 | I102: =IF(OR(C102<0,C102=""),"",-E102*INDEX('Replacement Costs'!$A$16:$H$57,MATCH(C102,'Replacement Costs'!$C$16:$C$57,0),MATCH("Total Yearly Replacement Costs",'Replacement Costs'!$A$16:$H$16,0))) -> -314825.3088 | J102: =IF(AND(C102>=1,C102<anal_period),WorkingCap*SUM(N102:R102)-WorkingCap*SUM(N101:R101),IF(C102<0,0,IF(B102="","",-SUM(J$65:J101)))) -> -4874.094765 | N102: -1572400.303 | O102: -162116.4454 | P102: 0 | Q102: 0 | R102: -5608.524215 | S102: =IF(B102="","",IF($B$31=0,"",-'Debt Financing Calculations'!E51)) -> -146273.1485 | T102: 1985521.845 | U102: =IF(C102="","",IF(C102<-1,0,IF(C102=anal_period,-LOOKUP(C102,depr_yr,depr_cost)-Depreciation!$C$141-Depreciation!$B$166,-LOOKUP(C102,depr_yr,depr_cost)))) -> -1101224.986 | V102: 884296.8592 | W102: 0.2574 | X102: -227618.0116 | Y102: 1757903.833 | Z102: =IF(C102="","",IF($B$31=0,"",-'Debt Financing Calculations'!F51)) -> 0 | AA102: 1438204.43 | AB102: 9259026.434 | AC102: 1665822.441 | AE102: 328500 | AF102: 0
A103: 2076 | B103: =IF(MAX($B$65:B102)<(construct+anal_period),B102+1,"") -> 39 | C103: 37 | D103: 37 | E103: 1.969112931 | F103: 3945486.751 | H103: 0 | I103: =IF(OR(C103<0,C103=""),"",-E103*INDEX('Replacement Costs'!$A$16:$H$57,MATCH(C103,'Replacement Costs'!$C$16:$C$57,0),MATCH("Total Yearly Replacement Costs",'Replacement Costs'!$A$16:$H$16,0))) -> -320806.9897 | J103: =IF(AND(C103>=1,C103<anal_period),WorkingCap*SUM(N103:R103)-WorkingCap*SUM(N102:R102),IF(C103<0,0,IF(B103="","",-SUM(J$65:J102)))) -> -4956.554657 | N103: -1602275.909 | O103: -165177.9754 | P103: 0 | Q103: 0 | R103: -5715.086175 | S103: =IF(B103="","",IF($B$31=0,"",-'Debt Financing Calculations'!E52)) -> -146273.1485 | T103: 2026044.632 | U103: =IF(C103="","",IF(C103<-1,0,IF(C103=anal_period,-LOOKUP(C103,depr_yr,depr_cost)-Depreciation!$C$141-Depreciation!$B$166,-LOOKUP(C103,depr_yr,depr_cost)))) -> -1067294.039 | V103: 958750.5932 | W103: 0.2574 | X103: -246782.4027 | Y103: 1779262.23 | Z103: =IF(C103="","",IF($B$31=0,"",-'Debt Financing Calculations'!F52)) -> 0 | AA103: 1453498.685 | AB103: 10712525.12 | AC103: 1700281.088 | AE103: 328500 | AF103: 0
A104: 2077 | B104: =IF(MAX($B$65:B103)<(construct+anal_period),B103+1,"") -> 40 | C104: 38 | D104: 38 | E104: 2.006526077 | F104: 4020451 | H104: 0 | I104: =IF(OR(C104<0,C104=""),"",-E104*INDEX('Replacement Costs'!$A$16:$H$57,MATCH(C104,'Replacement Costs'!$C$16:$C$57,0),MATCH("Total Yearly Replacement Costs",'Replacement Costs'!$A$16:$H$16,0))) -> -326902.3225 | J104: =IF(AND(C104>=1,C104<anal_period),WorkingCap*SUM(N104:R104)-WorkingCap*SUM(N103:R103),IF(C104<0,0,IF(B104="","",-SUM(J$65:J103)))) -> -5050.676273 | N104: -1632719.151 | O104: -168297.3217 | P104: 0 | Q104: 0 | R104: -5823.672812 | S104: =IF(B104="","",IF($B$31=0,"",-'Debt Financing Calculations'!E53)) -> -146273.1485 | T104: 2067337.705 | U104: =IF(C104="","",IF(C104<-1,0,IF(C104=anal_period,-LOOKUP(C104,depr_yr,depr_cost)-Depreciation!$C$141-Depreciation!$B$166,-LOOKUP(C104,depr_yr,depr_cost)))) -> -1047736.45 | V104: 1019601.256 | W104: 0.2574 | X104: -262445.3632 | Y104: 1804892.342 | Z104: =IF(C104="","",IF($B$31=0,"",-'Debt Financing Calculations'!F53)) -> 0 | AA104: 1472939.343 | AB104: 12185464.46 | AC104: 1735384.707 | AE104: 328500 | AF104: 0
A105: 2078 | B105: =IF(MAX($B$65:B104)<(construct+anal_period),B104+1,"") -> 41 | C105: 39 | D105: 39 | E105: 2.044650072 | F105: 4096839.569 | H105: 0 | I105: =IF(OR(C105<0,C105=""),"",-E105*INDEX('Replacement Costs'!$A$16:$H$57,MATCH(C105,'Replacement Costs'!$C$16:$C$57,0),MATCH("Total Yearly Replacement Costs",'Replacement Costs'!$A$16:$H$16,0))) -> -333113.4666 | J105: =IF(AND(C105>=1,C105<anal_period),WorkingCap*SUM(N105:R105)-WorkingCap*SUM(N104:R104),IF(C105<0,0,IF(B105="","",-SUM(J$65:J104)))) -> -5146.585201 | N105: -1663740.815 | O105: -171475.576 | P105: 0 | Q105: 0 | R105: -5934.322596 | S105: =IF(B105="","",IF($B$31=0,"",-'Debt Financing Calculations'!E54)) -> -146273.1485 | T105: 2109415.706 | U105: =IF(C105="","",IF(C105<-1,0,IF(C105=anal_period,-LOOKUP(C105,depr_yr,depr_cost)-Depreciation!$C$141-Depreciation!$B$166,-LOOKUP(C105,depr_yr,depr_cost)))) -> -1032281.068 | V105: 1077134.639 | W105: 0.2574 | X105: -277254.456 | Y105: 1832161.25 | Z105: =IF(C105="","",IF($B$31=0,"",-'Debt Financing Calculations'!F54)) -> 0 | AA105: 1493901.199 | AB105: 13679365.66 | AC105: 1771155.655 | AE105: 328500 | AF105: 0
A106: 2079 | B106: =IF(MAX($B$65:B105)<(construct+anal_period),B105+1,"") -> 42 | C106: 40 | D106: 40 | E106: 2.083498424 | F106: 4174679.52 | H106: 0 | I106: =IF(OR(C106<0,C106=""),"",-E106*INDEX('Replacement Costs'!$A$16:$H$57,MATCH(C106,'Replacement Costs'!$C$16:$C$57,0),MATCH("Total Yearly Replacement Costs",'Replacement Costs'!$A$16:$H$16,0))) -> -339442.6225 | J106: =IF(AND(C106>=1,C106<anal_period),WorkingCap*SUM(N106:R106)-WorkingCap*SUM(N105:R105),IF(C106<0,0,IF(B106="","",-SUM(J$65:J105)))) -> 276172.607 | L106: 1503381.7 | M106: -1425453.909 | N106: -1695351.891 | O106: -174713.8509 | P106: 0 | Q106: 0 | R106: -6047.074725 | S106: =IF(B106="","",IF($B$31=0,"",-'Debt Financing Calculations'!E55)) -> -146273.1485 | T106: =IF(C106="","",F106+SUM(L106:S106)) -> 2230221.347 | U106: =IF(C106="","",IF(C106<-1,0,IF(C106=anal_period,-LOOKUP(C106,depr_yr,depr_cost)-Depreciation!$C$141-Depreciation!$B$166,-LOOKUP(C106,depr_yr,depr_cost)))) -> -9096732.169 | V106: -6866510.822 | W106: 0.2574 | X106: 1767439.886 | Y106: 3997661.232 | Z106: =IF(C106="","",IF($B$31=0,"",-'Debt Financing Calculations'!F55)) -> -3953328.337 | AA106: -18937.12062 | AB106: 13660428.54 | AC106: =IF(C106="","",SUM(H106,I106,J106,K106,T106,Z106)) -> -1786377.006 | AE106: 328500 | AF106: 0
B107: =IF(MAX($B$65:B106)<(construct+anal_period),B106+1,"") ->  | I107: =IF(OR(C107<0,C107=""),"",-E107*INDEX('Replacement Costs'!$A$16:$H$57,MATCH(C107,'Replacement Costs'!$C$16:$C$57,0),MATCH("Total Yearly Replacement Costs",'Replacement Costs'!$A$16:$H$16,0))) ->  | J107: =IF(AND(C107>=1,C107<anal_period),WorkingCap*SUM(N107:R107)-WorkingCap*SUM(N106:R106),IF(C107<0,0,IF(B107="","",-SUM(J$65:J106)))) ->  | S107: =IF(B107="","",IF($B$31=0,"",-'Debt Financing Calculations'!E56)) ->  | U107: =IF(C107="","",IF(C107<-1,0,IF(C107=anal_period,-LOOKUP(C107,depr_yr,depr_cost)-Depreciation!$C$141-Depreciation!$B$166,-LOOKUP(C107,depr_yr,depr_cost)))) ->  | Z107: =IF(C107="","",IF($B$31=0,"",-'Debt Financing Calculations'!F56)) -> 
B108: =IF(MAX($B$65:B107)<(construct+anal_period),B107+1,"") ->  | I108: =IF(OR(C108<0,C108=""),"",-E108*INDEX('Replacement Costs'!$A$16:$H$57,MATCH(C108,'Replacement Costs'!$C$16:$C$57,0),MATCH("Total Yearly Replacement Costs",'Replacement Costs'!$A$16:$H$16,0))) ->  | J108: =IF(AND(C108>=1,C108<anal_period),WorkingCap*SUM(N108:R108)-WorkingCap*SUM(N107:R107),IF(C108<0,0,IF(B108="","",-SUM(J$65:J107)))) ->  | S108: =IF(B108="","",IF($B$31=0,"",-'Debt Financing Calculations'!E57)) ->  | U108: =IF(C108="","",IF(C108<-1,0,IF(C108=anal_period,-LOOKUP(C108,depr_yr,depr_cost)-Depreciation!$C$141-Depreciation!$B$166,-LOOKUP(C108,depr_yr,depr_cost)))) ->  | Z108: =IF(C108="","",IF($B$31=0,"",-'Debt Financing Calculations'!F57)) -> 
B109: =IF(MAX($B$65:B108)<(construct+anal_period),B108+1,"") ->  | I109: =IF(OR(C109<0,C109=""),"",-E109*INDEX('Replacement Costs'!$A$16:$H$57,MATCH(C109,'Replacement Costs'!$C$16:$C$57,0),MATCH("Total Yearly Replacement Costs",'Replacement Costs'!$A$16:$H$16,0))) ->  | J109: =IF(AND(C109>=1,C109<anal_period),WorkingCap*SUM(N109:R109)-WorkingCap*SUM(N108:R108),IF(C109<0,0,IF(B109="","",-SUM(J$65:J108)))) ->  | S109: =IF(B109="","",IF($B$31=0,"",-'Debt Financing Calculations'!E58)) ->  | U109: =IF(C109="","",IF(C109<-1,0,IF(C109=anal_period,-LOOKUP(C109,depr_yr,depr_cost)-Depreciation!$C$141-Depreciation!$B$166,-LOOKUP(C109,depr_yr,depr_cost)))) ->  | Z109: =IF(C109="","",IF($B$31=0,"",-'Debt Financing Calculations'!F58)) -> 
B110: =IF(MAX($B$65:B109)<(construct+anal_period),B109+1,"") ->  | I110: =IF(OR(C110<0,C110=""),"",-E110*INDEX('Replacement Costs'!$A$16:$H$57,MATCH(C110,'Replacement Costs'!$C$16:$C$57,0),MATCH("Total Yearly Replacement Costs",'Replacement Costs'!$A$16:$H$16,0))) ->  | J110: =IF(AND(C110>=1,C110<anal_period),WorkingCap*SUM(N110:R110)-WorkingCap*SUM(N109:R109),IF(C110<0,0,IF(B110="","",-SUM(J$65:J109)))) ->  | O110: =IF(C110="","",IF(C110<0,0,IF(AND(C110=1,start_time<1),-(SUM(B185:E185)*output_kgyear*E110*percnt_var*start_time+SUM(B185:E185)*output_kgyear*E110*(1-start_time)),IF(C110<=start_time,-SUM(B185:E185)*output_kgyear*E110*percnt_var,-SUM(B185:E185)*output_kgyear*E110)))) ->  | Q110: =IF(C110="","",IF(C110<0,0,IF(AND(C110=1,start_time<1),SUM(K185:N185,T185:V185)*output_kgyear*E110*percnt_revs*start_time+SUM(K185:N185,T185:V185)*output_kgyear*E110*(1-start_time),IF(C110<=start_time,SUM(K185:N185,T185:V185)*output_kgyear*E110*percnt_revs,SUM(K185:N185,T185:V185)*output_kgyear*E110)))) ->  | R110: =IF(C110="","",IF(C110<0,0,IF(AND(C110=1,start_time<1),-((SUM(F185:J185,P185:R185)*output_kgyear+inflated_othervar)*E110*percnt_var*start_time+(SUM(F185:J185,P185:R185)*output_kgyear+inflated_othervar)*E110*(1-start_time)),IF(C110<=start_time,-(SUM(F185:J185,P185:R185)*output_kgyear+inflated_othervar)*E110*percnt_var,-E110*(SUM(F185:J185,P185:R185)*output_kgyear+inflated_othervar))))) ->  | S110: =IF(B110="","",IF($B$31=0,"",-'Debt Financing Calculations'!E59)) ->  | U110: =IF(C110="","",IF(C110<-1,0,IF(C110=anal_period,-LOOKUP(C110,depr_yr,depr_cost)-Depreciation!$C$141-Depreciation!$B$166,-LOOKUP(C110,depr_yr,depr_cost)))) ->  | Z110: =IF(C110="","",IF($B$31=0,"",-'Debt Financing Calculations'!F59)) -> 
B111: =IF(MAX($B$65:B110)<(construct+anal_period),B110+1,"") ->  | I111: =IF(OR(C111<0,C111=""),"",-E111*INDEX('Replacement Costs'!$A$16:$H$57,MATCH(C111,'Replacement Costs'!$C$16:$C$57,0),MATCH("Total Yearly Replacement Costs",'Replacement Costs'!$A$16:$H$16,0))) ->  | J111: =IF(AND(C111>=1,C111<anal_period),WorkingCap*SUM(N111:R111)-WorkingCap*SUM(N110:R110),IF(C111<0,0,IF(B111="","",-SUM(J$65:J110)))) ->  | O111: =IF(C111="","",IF(C111<0,0,IF(AND(C111=1,start_time<1),-(SUM(B278:E278)*output_kgyear*E111*percnt_var*start_time+SUM(B278:E278)*output_kgyear*E111*(1-start_time)),IF(C111<=start_time,-SUM(B278:E278)*output_kgyear*E111*percnt_var,-SUM(B278:E278)*output_kgyear*E111)))) ->  | Q111: =IF(C111="","",IF(C111<0,0,IF(AND(C111=1,start_time<1),SUM(K278:N278,T278:V278)*output_kgyear*E111*percnt_revs*start_time+SUM(K278:N278,T278:V278)*output_kgyear*E111*(1-start_time),IF(C111<=start_time,SUM(K278:N278,T278:V278)*output_kgyear*E111*percnt_revs,SUM(K278:N278,T278:V278)*output_kgyear*E111)))) ->  | R111: =IF(C111="","",IF(C111<0,0,IF(AND(C111=1,start_time<1),-((SUM(F278:J278,P278:R278)*output_kgyear+inflated_othervar)*E111*percnt_var*start_time+(SUM(F278:J278,P278:R278)*output_kgyear+inflated_othervar)*E111*(1-start_time)),IF(C111<=start_time,-(SUM(F278:J278,P278:R278)*output_kgyear+inflated_othervar)*E111*percnt_var,-E111*(SUM(F278:J278,P278:R278)*output_kgyear+inflated_othervar))))) ->  | S111: =IF(B111="","",IF($B$31=0,"",-'Debt Financing Calculations'!E60)) ->  | U111: =IF(C111="","",IF(C111<-1,0,IF(C111=anal_period,-LOOKUP(C111,depr_yr,depr_cost)-Depreciation!$C$141-Depreciation!$B$166,-LOOKUP(C111,depr_yr,depr_cost)))) ->  | Z111: =IF(C111="","",IF($B$31=0,"",-'Debt Financing Calculations'!F60)) -> 
B112: =IF(MAX($B$65:B111)<(construct+anal_period),B111+1,"") ->  | I112: =IF(OR(C112<0,C112=""),"",-E112*INDEX('Replacement Costs'!$A$16:$H$57,MATCH(C112,'Replacement Costs'!$C$16:$C$57,0),MATCH("Total Yearly Replacement Costs",'Replacement Costs'!$A$16:$H$16,0))) ->  | J112: =IF(AND(C112>=1,C112<anal_period),WorkingCap*SUM(N112:R112)-WorkingCap*SUM(N111:R111),IF(C112<0,0,IF(B112="","",-SUM(J$65:J111)))) ->  | O112: =IF(C112="","",IF(C112<0,0,IF(AND(C112=1,start_time<1),-(SUM(B279:E279)*output_kgyear*E112*percnt_var*start_time+SUM(B279:E279)*output_kgyear*E112*(1-start_time)),IF(C112<=start_time,-SUM(B279:E279)*output_kgyear*E112*percnt_var,-SUM(B279:E279)*output_kgyear*E112)))) ->  | Q112: =IF(C112="","",IF(C112<0,0,IF(AND(C112=1,start_time<1),SUM(K279:N279,T279:V279)*output_kgyear*E112*percnt_revs*start_time+SUM(K279:N279,T279:V279)*output_kgyear*E112*(1-start_time),IF(C112<=start_time,SUM(K279:N279,T279:V279)*output_kgyear*E112*percnt_revs,SUM(K279:N279,T279:V279)*output_kgyear*E112)))) ->  | R112: =IF(C112="","",IF(C112<0,0,IF(AND(C112=1,start_time<1),-((SUM(F279:J279,P279:R279)*output_kgyear+inflated_othervar)*E112*percnt_var*start_time+(SUM(F279:J279,P279:R279)*output_kgyear+inflated_othervar)*E112*(1-start_time)),IF(C112<=start_time,-(SUM(F279:J279,P279:R279)*output_kgyear+inflated_othervar)*E112*percnt_var,-E112*(SUM(F279:J279,P279:R279)*output_kgyear+inflated_othervar))))) ->  | S112: =IF(B112="","",IF($B$31=0,"",-'Debt Financing Calculations'!E61)) ->  | U112: =IF(C112="","",IF(C112<-1,0,IF(C112=anal_period,-LOOKUP(C112,depr_yr,depr_cost)-Depreciation!$C$141-Depreciation!$B$166,-LOOKUP(C112,depr_yr,depr_cost)))) ->  | Z112: =IF(C112="","",IF($B$31=0,"",-'Debt Financing Calculations'!F61)) -> 
B113: =IF(MAX($B$65:B112)<(construct+anal_period),B112+1,"") ->  | I113: =IF(OR(C113<0,C113=""),"",-E113*INDEX('Replacement Costs'!$A$16:$H$57,MATCH(C113,'Replacement Costs'!$C$16:$C$57,0),MATCH("Total Yearly Replacement Costs",'Replacement Costs'!$A$16:$H$16,0))) ->  | J113: =IF(AND(C113>=1,C113<anal_period),WorkingCap*SUM(N113:R113)-WorkingCap*SUM(N112:R112),IF(C113<0,0,IF(B113="","",-SUM(J$65:J112)))) ->  | O113: =IF(C113="","",IF(C113<0,0,IF(AND(C113=1,start_time<1),-(SUM(B280:E280)*output_kgyear*E113*percnt_var*start_time+SUM(B280:E280)*output_kgyear*E113*(1-start_time)),IF(C113<=start_time,-SUM(B280:E280)*output_kgyear*E113*percnt_var,-SUM(B280:E280)*output_kgyear*E113)))) ->  | Q113: =IF(C113="","",IF(C113<0,0,IF(AND(C113=1,start_time<1),SUM(K280:N280,T280:V280)*output_kgyear*E113*percnt_revs*start_time+SUM(K280:N280,T280:V280)*output_kgyear*E113*(1-start_time),IF(C113<=start_time,SUM(K280:N280,T280:V280)*output_kgyear*E113*percnt_revs,SUM(K280:N280,T280:V280)*output_kgyear*E113)))) ->  | R113: =IF(C113="","",IF(C113<0,0,IF(AND(C113=1,start_time<1),-((SUM(F280:J280,P280:R280)*output_kgyear+inflated_othervar)*E113*percnt_var*start_time+(SUM(F280:J280,P280:R280)*output_kgyear+inflated_othervar)*E113*(1-start_time)),IF(C113<=start_time,-(SUM(F280:J280,P280:R280)*output_kgyear+inflated_othervar)*E113*percnt_var,-E113*(SUM(F280:J280,P280:R280)*output_kgyear+inflated_othervar))))) ->  | S113: =IF(B113="","",IF($B$31=0,"",-'Debt Financing Calculations'!E62)) ->  | U113: =IF(C113="","",IF(C113<-1,0,IF(C113=anal_period,-LOOKUP(C113,depr_yr,depr_cost)-Depreciation!$C$141-Depreciation!$B$166,-LOOKUP(C113,depr_yr,depr_cost)))) ->  | Z113: =IF(C113="","",IF($B$31=0,"",-'Debt Financing Calculations'!F62)) -> 
E114: Cumulative Total | F114: =SUM(F65:F113) -> 118186962.3 | G114: -3953328.337 | H114: -2675612.619 | I114: -33442387.04 | J114: 0 | K114: -360205.8985 | L114: 1503381.7 | M114: -1425453.909 | N114: -48097849.99 | O114: -4900578.045 | P114: 0 | Q114: 0 | R114: -171195.2711 | S114: -6143472.236 | T114: 58951794.52 | U114: -40071327.99 | V114: 18880466.52 | W114: 10.8108 | X114: -4859832.083 | Y114: 54091962.43 | Z114: -3953328.337 | AA114: 13660428.54 | AB114: 153687378.7 | AC114: 18520260.62
E115: PV of Cash Flow | F115: =NPV(nominal_irr,F65:F113) -> 19172040.56 | G115: -3592236.704 | H115: -2252908.945 | I115: -5260353.609 | J115: -118383.3308 | K115: -327305.1817 | L115: 26912.60894 | M115: -25517.59385 | N115: -7862142.684 | O115: -784288.3948 | P115: 0 | Q115: 0 | R115: -27770.93699 | S115: -1429115.172 | T115: 9070118.39 | U115: -5028170.895 | V115: 4041947.495 | W115: 2.514844653 | X115: -1040397.285 | Y115: 8029721.105 | Z115: -70770.03767 | AA115: 1.324120264e-08 | AB115: -2432755.064 | AC115: 1040397.285
E116: Discounted Values | F116: =+F65+NPV($X$59,F66:F113) -> 21099214.08 | G116: -3953328.337 | H116: =+H65+NPV($X$59,H66:H113) -> -2479371.352 | I116: -5789124.354 | J116: -130283.2232 | K116: -360205.8985 | L116: 29617.86439 | M116: -28082.62238 | N116: -8652445.266 | O116: -863125.0643 | P116: 0 | Q116: 0 | R116: -30562.47158 | S116: -1572769.829 | T116: 9981846.69 | U116: -5533602.633 | V116: 4448244.057 | W116: 2.767636837 | X116: -1144978.02 | Y116: 8836868.67 | Z116: -77883.84185 | AA116: 1.54832378e-08 | AB116: -2677295.602 | AC116: 1144978.02 | AE116: =+AE65+NPV(real_irr,AE66:AE113) -> 3591865.414 | AF116: =+AF65+NPV($X$59,AF66:AF113) -> 0
A117: Specific Item Cost Calculation | E117: Expenses $/kg H2 | H117: =-H116/$AE$116*(1+inflation_rate)^construct/INFLATION_FACTOR -> 0.4562359206 | I117: =-I116/$AE$116*(1+inflation_rate)^construct/INFLATION_FACTOR -> 1.065272645 | J117: =-J116/$AE$116*(1+inflation_rate)^construct/INFLATION_FACTOR -> 0.02397377311 | K117: =-K116/$AE$116*(1+inflation_rate)^construct/INFLATION_FACTOR -> 0.06628247501 | M117: =-M116/$AE$116*(1+inflation_rate)^construct/INFLATION_FACTOR -> 0.005167560342 | N117: =-N116/$AE$116*(1+inflation_rate)^construct/INFLATION_FACTOR -> 1.592160177 | O117: =-O116/$AE$116*(1+inflation_rate)^construct/INFLATION_FACTOR -> 0.1588260096 | P117: =-P116/$AE$116*(1+inflation_rate)^construct/INFLATION_FACTOR -> 0 | R117: =-R116/$AE$116*(1+inflation_rate)^construct/INFLATION_FACTOR -> 0.005623884192 | S117: =-S116/$AE$116*(1+inflation_rate)^construct/INFLATION_FACTOR -> 0.2894096885 | X117: =-X116/$AE$116*(1+inflation_rate)^construct/INFLATION_FACTOR -> 0.2106905448 | Z117: =-Z116/$AE$116*(1+inflation_rate)^construct/INFLATION_FACTOR -> 0.01433161928 | AG117: =+SUM(F117:AC117) -> 3.887974298
A118: Cost Component | B118: After Tax Present Value | C118: % of Total | D118: $/kg of H2 | E118: Revenues $/kg H2 | F118: =F116/$AE$116*(1+inflation_rate)^construct/INFLATION_FACTOR -> 3.882524233 | L118: =L116/$AE$116*(1+inflation_rate)^construct/INFLATION_FACTOR -> 0.005450064433 | Q118: =Q116/$AE$116*(1+inflation_rate)^construct/INFLATION_FACTOR -> 0 | AG118: =+SUM(F118:AC118) -> 3.887974298
A119: Capital-Related Costs | B119: =(SUM(H115:K115)+L115*(1-total_tax_rate)+S115*(1-total_tax_rate)+U115*(-total_tax_rate)+Z115)/(1-total_tax_rate) -> -10472320.95 | C119: =B119/SUM($B$118:$B$125) -> 0.5462288127 | D119: =H2_price_real*C119 -> 2.120746602
A120: Decommissioning Costs | B120: =M115 -> -25517.59385 | C120: 0.001330979546 | D120: 0.005167560342
A121: Fixed O&M | B121: =N115 -> -7862142.684 | C121: 0.4100837706 | D121: 1.592160177
A122: Feedstock Costs | B122: =O115 -> -784288.3948 | C122: 0.04090792487 | D122: 0.1588260096
A123: Other Raw Material Costs | B123: =P115 -> 0 | C123: 0 | D123: 0
A124: Byproduct Credits | B124: =Q115 -> 0 | C124: 0 | D124: 0
A125: Other Variable Costs (including utilities) | B125: =R115 -> -27770.93699 | C125: 0.001448512322 | D125: 0.005623884192
A128: INFLATION FACTOR (1 + inflation rate)^(startup year - reference year) = | B128: =(1+inflation_rate)^(startup_year-ref_year) -> 1.571015306
A129: Feedstock, Utility and Byproduct Cost Information (Start-Up Year $)
B130: Energy Feedstocks | F130: Energy Utilities | J130: Carbon Sequestration Electricity Usage | K130: Energy Byproducts | O130: Other Material Inputs | S130: Other Material Byproducts
A131: Feedstock Name | B131: =Input_Sheet_Template!$B$75 -> Industrial Electricity | J131: =IF(CO2_CashFlow_eUse>0,'HyARC Physical Property Data'!A77,"") ->  | O131: Type | P131: =Input_Sheet_Template!$B$136 -> Process Water | S131: Type
A132: LHV (GJ or mmBtu/usage unit) | B132: =Input_Sheet_Template!$C$75 -> 0.0036 | J132: =IF(J131="",0,VLOOKUP(J131,MASTER_PROPERTY_TABLE,9,FALSE)) -> 0 | O132: Usage (/kg H2) | P132: =Input_Sheet_Template!$D$136 -> 2.368 | S132: Usage (/kg H2)
A133: Usage (/kg H2) | B133: =feedstockIndustrial_Electricity_Usage -> 2.01 | J133: =CO2_eUse_kWhpkg -> 0 | O133: Cost (/usage unit) | P133: =Input_Sheet_Template!$C$136 -> 0.002374951095 | S133: Price (/usage unit)
A134: Price ($/ usage unit) | B134: =feedstockIndustrial_Electricity_Price -> 0.07759697608 | J134: =IF(J131="",0,CO2_eCost) -> 0 | O134: Lookup Price? | P134: =Input_Sheet_Template!$F$136 -> Yes | S134: Lookup Price?
A135: Lookup Price? | B135: =Input_Sheet_Template!$G$75 -> yes | J135: =IF(J131="","","yes") -> 
A136: CO2 Emissions (kg CO2/kg H2) | B136: =IF(B131="",0,VLOOKUP(B131,MASTER_PROPERTY_TABLE,11,FALSE)*B132*B133) -> 0 | C136: =IF(C131="",0,VLOOKUP(C131,MASTER_PROPERTY_TABLE,11,FALSE)*C132*C133) -> 0 | D136: =IF(D131="",0,VLOOKUP(D131,MASTER_PROPERTY_TABLE,11,FALSE)*D132*D133) -> 0 | E136: =IF(E131="",0,VLOOKUP(E131,MASTER_PROPERTY_TABLE,11,FALSE)*E132*E133) -> 0 | F136: =IF(F131="",,VLOOKUP(F131,MASTER_PROPERTY_TABLE,11,FALSE)*F132*F133) -> 0 | G136: =IF(G131="",,VLOOKUP(G131,MASTER_PROPERTY_TABLE,11,FALSE)*G132*G133) -> 0 | H136: =IF(H131="",,VLOOKUP(H131,MASTER_PROPERTY_TABLE,11,FALSE)*H132*H133) -> 0 | I136: =IF(I131="",,VLOOKUP(I131,MASTER_PROPERTY_TABLE,11,FALSE)*I132*I133) -> 0 | J136: =IF($J$131="",0,VLOOKUP($J$131,MASTER_PROPERTY_TABLE,12,FALSE)*$J$132*$J$133) -> 0
A137: Unit System Conversion Factor | B137: =IF(B131="",0,IF(VLOOKUP(B131,MASTER_PROPERTY_TABLE,12,FALSE)="English",mmBTU_to_GJ,1)) -> 1 | C137: =IF(C131="",0,IF(VLOOKUP(C131,MASTER_PROPERTY_TABLE,12,FALSE)="English",mmBTU_to_GJ,1)) -> 0 | D137: =IF(D131="",0,IF(VLOOKUP(D131,MASTER_PROPERTY_TABLE,12,FALSE)="English",mmBTU_to_GJ,1)) -> 0 | E137: =IF(E131="",,IF(VLOOKUP(E131,MASTER_PROPERTY_TABLE,12,FALSE)="English",mmBTU_to_GJ,1)) -> 0 | F137: =IF(F131="",,IF(VLOOKUP(F131,MASTER_PROPERTY_TABLE,12,FALSE)="English",mmBTU_to_GJ,1)) -> 0 | G137: =IF(G131="",,IF(VLOOKUP(G131,MASTER_PROPERTY_TABLE,12,FALSE)="English",mmBTU_to_GJ,1)) -> 0 | H137: =IF(H131="",,IF(VLOOKUP(H131,MASTER_PROPERTY_TABLE,12,FALSE)="English",mmBTU_to_GJ,1)) -> 0 | I137: =IF(I131="",,IF(VLOOKUP(I131,MASTER_PROPERTY_TABLE,12,FALSE)="English",mmBTU_to_GJ,1)) -> 0 | J137: =IF($J$131="",0,IF(VLOOKUP($J$131,MASTER_PROPERTY_TABLE,12,FALSE)="English",mmBTU_to_GJ,1)) -> 0 | K137: =IF(K131="",,IF(VLOOKUP(K131,MASTER_PROPERTY_TABLE,12,FALSE)="English",mmBTU_to_GJ,1)) -> 0 | L137: =IF(L131="",,IF(VLOOKUP(L131,MASTER_PROPERTY_TABLE,12,FALSE)="English",mmBTU_to_GJ,1)) -> 0 | M137: =IF(M131="",,IF(VLOOKUP(M131,MASTER_PROPERTY_TABLE,12,FALSE)="English",mmBTU_to_GJ,1)) -> 0 | N137: =IF(N131="",,IF(VLOOKUP(N131,MASTER_PROPERTY_TABLE,12,FALSE)="English",mmBTU_to_GJ,1)) -> 0
A138: Actual Year | B138: =IF(B$131="","",B$131&" ($/kg of H2)") -> Industrial Electricity ($/kg of H2) | P138: =IF(P$131="","",P$131&" ($/kg of H2)") -> Process Water ($/kg of H2) | Q138: =IF(Q$131="","",Q$131&" ($/kg of H2)") ->  | R138: =IF(R$131="","",R$131&" ($/kg of H2)") ->  | T138: =IF(T$131="","",T$131&" ($/kg of H2)") ->  | U138: =IF(U$131="","",U$131&" ($/kg of H2)") ->  | V138: =IF(V$131="","",V$131&" ($/kg of H2)") -> 
A139: =IF(A65="","",A65) -> 2038 | B139: =IF($A139="","",IF($B$131="","",IF($B$135="no",INFLATION_FACTOR*$B$133*$B$134,INFLATION_FACTOR*$B$133*$B$132*INDEX(FEEDPRICETABLE,MATCH($B$131,List_Energy_Feedstocks,0),MATCH($A139,Feedstock_Year,0))))) -> 0.2454170828 | C139: =IF($A139="","",IF($C$131="","",IF($C$135="no",INFLATION_FACTOR*$C$133*$C$134,INFLATION_FACTOR*$C$133*$C$132*INDEX(FEEDPRICETABLE,MATCH($C$131,List_Energy_Feedstocks,0),MATCH($A139,Feedstock_Year,0))))) ->  | D139: =IF($A139="","",IF($D$131="","",IF($D$135="no",INFLATION_FACTOR*$D$133*$D$134,INFLATION_FACTOR*$D$133*$D$132*INDEX(FEEDPRICETABLE,MATCH($D$131,List_Energy_Feedstocks,0),MATCH($A139,Feedstock_Year,0))))) ->  | E139: =IF($A139="","",IF($E$131="","",IF($E$135="no",INFLATION_FACTOR*$E$133*$E$134,INFLATION_FACTOR*$E$133*$E$132*INDEX(FEEDPRICETABLE,MATCH($E$131,List_Energy_Feedstocks,0),MATCH($A139,Feedstock_Year,0))))) ->  | F139: =IF($A139="","",IF($F$131="","",IF($F$135="no",INFLATION_FACTOR*$F$133*$F$134,INFLATION_FACTOR*$F$133*$F$132*INDEX(FEEDPRICETABLE,MATCH($F$131,List_Energy_Feedstocks,0),MATCH($A139,Feedstock_Year,0))))) ->  | G139: =IF($A139="","",IF($G$131="","",IF($G$135="no",INFLATION_FACTOR*$G$133*$G$134,INFLATION_FACTOR*$G$133*$G$132*INDEX(FEEDPRICETABLE,MATCH($G$131,List_Energy_Feedstocks,0),MATCH($A139,Feedstock_Year,0))))) ->  | H139: =IF($A139="","",IF($H$131="","",IF($H$135="no",INFLATION_FACTOR*$H$133*$H$134,INFLATION_FACTOR*$H$133*$H$132*INDEX(FEEDPRICETABLE,MATCH(H$131,List_Energy_Feedstocks,0),MATCH($A139,Feedstock_Year,0))))) ->  | I139: =IF($A139="","",IF($I$131="","",IF($I$135="no",INFLATION_FACTOR*$I$133*$I$134,INFLATION_FACTOR*$I$133*$I$132*INDEX(FEEDPRICETABLE,MATCH($I$131,List_Energy_Feedstocks,0),MATCH($A139,Feedstock_Year,0))))) ->  | J139: =IF($A139="","",IF($J$131="","",IF($J$135="no",INFLATION_FACTOR*$J$133*$J$134,INFLATION_FACTOR*$J$133*$J$132*INDEX(FEEDPRICETABLE,MATCH($J$131,List_Energy_Feedstocks,0),MATCH($A139,Feedstock_Year,0))))) ->  | K139: =IF($A139="","",IF($K$131="","",IF($K$135="no",INFLATION_FACTOR*$K$133*$K$134,INFLATION_FACTOR*$K$133*$K$132*INDEX(FEEDPRICETABLE,MATCH($K$131,List_Energy_Feedstocks,0),MATCH($A139,Feedstock_Year,0))))) ->  | L139: =IF($A139="","",IF($L$131="","",IF($L$135="no",INFLATION_FACTOR*$L$133*$L$134,INFLATION_FACTOR*$L$133*$L$132*INDEX(FEEDPRICETABLE,MATCH($L$131,List_Energy_Feedstocks,0),MATCH($A139,Feedstock_Year,0))))) ->  | M139: =IF($A139="","",IF(M$131="","",IF($M$135="no",INFLATION_FACTOR*$M$133*$M$134,INFLATION_FACTOR*$M$133*$M$132*INDEX(FEEDPRICETABLE,MATCH($M$131,List_Energy_Feedstocks,0),MATCH($A139,Feedstock_Year,0))))) ->  | N139: =IF($A139="","",IF($N$131="","",IF($N$135="no",INFLATION_FACTOR*$N$133*$N$134,INFLATION_FACTOR*$N$133*$N$132*INDEX(FEEDPRICETABLE,MATCH($N$131,List_Energy_Feedstocks,0),MATCH($A139,Feedstock_Year,0))))) ->  | P139: =IF(OR($A139="",$P$131=""),"",IF($P$134="No",INFLATION_FACTOR*$P$132*$P$133,INFLATION_FACTOR*$P$132*INDEX(Tbl_Other_Inputs_and_Byproducts,MATCH($P$131,Other_Inputs_List,0),MATCH($A139,Other_Inputs_years,0)))) -> 0.008835208142 | Q139: =IF(OR($A139="",$Q$131=""),"",IF($Q$134="No",INFLATION_FACTOR*$Q$132*$Q$133,INFLATION_FACTOR*$Q$132*INDEX(Tbl_Other_Inputs_and_Byproducts,MATCH($Q$131,Other_Inputs_List,0),MATCH($A139,Other_Inputs_years,0)))) ->  | R139: =IF(OR($A139="",$R$131=""),"",IF($R$134="No",INFLATION_FACTOR*$R$132*$R$133,INFLATION_FACTOR*$R$132*INDEX(Tbl_Other_Inputs_and_Byproducts,MATCH($R$131,Other_Inputs_List,0),MATCH($A139,Other_Inputs_years,0)))) ->  | T139: =IF(OR($A139="",$T$131=""),"",IF($T$134="No",INFLATION_FACTOR*$T$132*$T$133,INFLATION_FACTOR*$T$132*INDEX(Tbl_Other_Inputs_and_Byproducts,MATCH($T$131,Other_Inputs_List,0),MATCH($A139,Other_Inputs_years,0)))) ->  | U139: =IF(OR($A139="",$U$131=""),"",IF($U$134="No",INFLATION_FACTOR*$U$132*$U$133,INFLATION_FACTOR*$U$132*INDEX(Tbl_Other_Inputs_and_Byproducts,MATCH($U$131,Other_Inputs_List,0),MATCH($A139,Other_Inputs_years,0)))) ->  | V139: =IF(OR($A139="",$V$131=""),"",IF($V$134="No",INFLATION_FACTOR*$V$132*$V$133,INFLATION_FACTOR*$V$132*INDEX(Tbl_Other_Inputs_and_Byproducts,MATCH($V$131,Other_Inputs_List,0),MATCH($A139,Other_Inputs_years,0)))) -> 
A140: 2039 | B140: =IF($A140="","",IF($B$131="","",IF($B$135="no",INFLATION_FACTOR*$B$133*$B$134,INFLATION_FACTOR*$B$133*$B$132*INDEX(FEEDPRICETABLE,MATCH($B$131,List_Energy_Feedstocks,0),MATCH($A140,Feedstock_Year,0))))) -> 0.2456070184 | F140: =IF($A140="","",IF($F$131="","",IF($F$135="no",INFLATION_FACTOR*$F$133*$F$134,INFLATION_FACTOR*$F$133*$F$132*INDEX(FEEDPRICETABLE,MATCH($F$131,List_Energy_Feedstocks,0),MATCH($A140,Feedstock_Year,0))))) ->  | P140: =IF(OR($A140="",$P$131=""),"",IF($P$134="No",INFLATION_FACTOR*$P$132*$P$133,INFLATION_FACTOR*$P$132*INDEX(Tbl_Other_Inputs_and_Byproducts,MATCH($P$131,Other_Inputs_List,0),MATCH($A140,Other_Inputs_years,0)))) -> 0.008835208142 | Q140: =IF(OR($A140="",$Q$131=""),"",IF($Q$134="No",INFLATION_FACTOR*$Q$132*$Q$133,INFLATION_FACTOR*$Q$132*INDEX(Tbl_Other_Inputs_and_Byproducts,MATCH($Q$131,Other_Inputs_List,0),MATCH($A140,Other_Inputs_years,0)))) -> 
A141: 2040 | B141: 0.2450311346 | P141: 0.008835208142
A142: 2041 | B142: 0.2443105147 | P142: 0.008835208142
A143: 2042 | B143: 0.2445938774 | P143: 0.008835208142
A144: 2043 | B144: 0.2453403241 | P144: 0.008835208142
A145: 2044 | B145: 0.2462647358 | P145: 0.008835208142
A146: 2045 | B146: 0.2471643335 | P146: 0.008835208142
A147: 2046 | B147: 0.2480789618 | P147: 0.008835208142
A148: 2047 | B148: 0.2488997214 | P148: 0.008835208142
A149: 2048 | B149: 0.2498229586 | P149: 0.008835208142
A150: 2049 | B150: 0.2506228476 | P150: 0.008835208142
A151: 2050 | B151: 0.2513983213 | P151: 0.008835208142
A152: 2051 | B152: 0.2516263283 | P152: 0.008835208142
A153: 2052 | B153: 0.2518545422 | P153: 0.008835208142
A154: 2053 | B154: 0.252082963 | P154: 0.008835208142
A155: 2054 | B155: 0.252311591 | P155: 0.008835208142
A156: 2055 | B156: 0.2525404264 | P156: 0.008835208142
A157: 2056 | B157: 0.2527918829 | P157: 0.008835208142
A158: 2057 | B158: 0.2530435898 | P158: 0.008835208142
A159: 2058 | B159: 0.2532955473 | P159: 0.008835208142
A160: 2059 | B160: 0.2535477556 | P160: 0.008835208142
A161: 2060 | B161: 0.2538002151 | P161: 0.008835208142
A162: 2061 | B162: 0.2539220299 | P162: 0.008835208142
A163: 2062 | B163: 0.254043903 | P163: 0.008835208142
A164: 2063 | B164: 0.2541658347 | P164: 0.008835208142
A165: 2064 | B165: 0.2542878249 | P165: 0.008835208142
A166: 2065 | B166: 0.2544098737 | P166: 0.008835208142
A167: 2066 | B167: 0.2545276778 | P167: 0.008835208142
A168: 2067 | B168: 0.2546455364 | P168: 0.008835208142
A169: 2068 | B169: 0.2547634496 | P169: 0.008835208142
A170: 2069 | B170: 0.2548814174 | P170: 0.008835208142
A171: 2070 | B171: 0.2549994399 | P171: 0.008835208142
A172: 2071 | B172: 0.2550764904 | P172: 0.008835208142
A173: 2072 | B173: 0.2551535642 | P173: 0.008835208142
A174: 2073 | B174: 0.2552306614 | P174: 0.008835208142
A175: 2074 | B175: 0.2553077818 | P175: 0.008835208142
A176: 2075 | B176: 0.2553849255 | P176: 0.008835208142
A177: 2076 | B177: 0.2553560434 | P177: 0.008835208142
A178: 2077 | B178: 0.2553271646 | P178: 0.008835208142
A179: 2078 | B179: 0.2552982891 | P179: 0.008835208142
A180: 2079 | B180: 0.2552694168 | P180: 0.008835208142
A184: Tables to calculate equivalent price in startup year
A185: Actual Year | B185: =IF(B$131="","",B$131&" ($/year)") -> Industrial Electricity ($/year) | C185: =IF(C$131="","",C$131&" ($/year)") -> 
A186: =+A139 -> 2038 | B186: =IF($C65="","",IF($C65<0,0,IF(AND($C65=1,start_time<1),-(SUM(B139)*output_kgyear*$E65*percnt_var*start_time+SUM(B139)*output_kgyear*$E65*(1-start_time)),IF($C65<=start_time,-SUM(B139)*output_kgyear*$E65*percnt_var,-SUM(B139)*output_kgyear*$E65)))) -> 0 | C186: =IF($C65="","",IF($C65<0,0,IF(AND($C65=1,start_time<1),-(SUM(C139)*output_kgyear*$E65*percnt_var*start_time+SUM(C139)*output_kgyear*$E65*(1-start_time)),IF($C65<=start_time,-SUM(C139)*output_kgyear*$E65*percnt_var,-SUM(C139)*output_kgyear*$E65)))) -> 0 | D186: 0 | E186: 0 | F186: 0 | G186: 0 | H186: 0 | I186: 0 | J186: 0 | K186: 0 | L186: 0 | M186: 0 | N186: 0
A187: =+A140 -> 2039 | B187: =IF($C66="","",IF($C66<0,0,IF(AND($C66=1,start_time<1),-(SUM(B140)*output_kgyear*$E66*percnt_var*start_time+SUM(B140)*output_kgyear*$E66*(1-start_time)),IF($C66<=start_time,-SUM(B140)*output_kgyear*$E66*percnt_var,-SUM(B140)*output_kgyear*$E66)))) -> 0 | C187: 0 | D187: 0 | E187: 0 | F187: 0 | G187: 0 | H187: 0 | I187: 0 | J187: 0 | K187: 0 | L187: 0 | M187: 0 | N187: 0
A188: 2040 | B188: =IF($C67="","",IF($C67<0,0,IF(AND($C67=1,start_time<1),-(SUM(B141)*output_kgyear*$E67*percnt_var*start_time+SUM(B141)*output_kgyear*$E67*(1-start_time)),IF($C67<=start_time,-SUM(B141)*output_kgyear*$E67*percnt_var,-SUM(B141)*output_kgyear*$E67)))) -> -70431.13674 | C188: 0 | D188: 0 | E188: 0 | F188: 0 | G188: 0 | H188: 0 | I188: 0 | J188: 0 | K188: 0 | L188: 0 | M188: 0 | N188: 0
A189: 2041 | B189: =IF($C68="","",IF($C68<0,0,IF(AND($C68=1,start_time<1),-(SUM(B142)*output_kgyear*$E68*percnt_var*start_time+SUM(B142)*output_kgyear*$E68*(1-start_time)),IF($C68<=start_time,-SUM(B142)*output_kgyear*$E68*percnt_var,-SUM(B142)*output_kgyear*$E68)))) -> -81780.86816 | C189: 0 | D189: 0 | E189: 0 | F189: =IF($C68="","",IF($C68<0,0,IF(AND($C68=1,start_time<1),-(SUM(F142)*output_kgyear*$E68*percnt_var*start_time+SUM(F142)*output_kgyear*$E68*(1-start_time)),IF($C68<=start_time,-SUM(F142)*output_kgyear*$E68*percnt_var,-SUM(F142)*output_kgyear*$E68)))) -> 0 | G189: 0 | H189: 0 | I189: 0 | J189: 0 | K189: 0 | L189: 0 | M189: 0 | N189: 0
A190: 2042 | B190: =IF($C69="","",IF($C69<0,0,IF(AND($C69=1,start_time<1),-(SUM(B143)*output_kgyear*$E69*percnt_var*start_time+SUM(B143)*output_kgyear*$E69*(1-start_time)),IF($C69<=start_time,-SUM(B143)*output_kgyear*$E69*percnt_var,-SUM(B143)*output_kgyear*$E69)))) -> -83431.36012 | C190: 0 | D190: 0 | E190: 0 | F190: 0 | G190: 0 | H190: 0 | I190: 0 | J190: 0 | K190: 0 | L190: 0 | M190: 0 | N190: 0
A191: 2043 | B191: =IF($C70="","",IF($C70<0,0,IF(AND($C70=1,start_time<1),-(SUM(B144)*output_kgyear*$E70*percnt_var*start_time+SUM(B144)*output_kgyear*$E70*(1-start_time)),IF($C70<=start_time,-SUM(B144)*output_kgyear*$E70*percnt_var,-SUM(B144)*output_kgyear*$E70)))) -> -85276.00779 | C191: 0 | D191: 0 | E191: 0 | F191: 0 | G191: 0 | H191: 0 | I191: 0 | J191: 0 | K191: 0 | L191: 0 | M191: 0 | N191: 0
A192: 2044 | B192: =IF($C71="","",IF($C71<0,0,IF(AND($C71=1,start_time<1),-(SUM(B145)*output_kgyear*$E71*percnt_var*start_time+SUM(B145)*output_kgyear*$E71*(1-start_time)),IF($C71<=start_time,-SUM(B145)*output_kgyear*$E71*percnt_var,-SUM(B145)*output_kgyear*$E71)))) -> -87223.66617 | C192: 0 | D192: 0 | E192: 0 | F192: 0 | G192: 0 | H192: 0 | I192: 0 | J192: 0 | K192: 0 | L192: 0 | M192: 0 | N192: 0
A193: 2045 | B193: =IF($C72="","",IF($C72<0,0,IF(AND($C72=1,start_time<1),-(SUM(B146)*output_kgyear*$E72*percnt_var*start_time+SUM(B146)*output_kgyear*$E72*(1-start_time)),IF($C72<=start_time,-SUM(B146)*output_kgyear*$E72*percnt_var,-SUM(B146)*output_kgyear*$E72)))) -> -89205.59514 | C193: 0 | D193: 0 | E193: 0 | F193: 0 | G193: 0 | H193: 0 | I193: 0 | J193: 0 | K193: 0 | L193: 0 | M193: 0 | N193: 0
A194: 2046 | B194: =IF($C73="","",IF($C73<0,0,IF(AND($C73=1,start_time<1),-(SUM(B147)*output_kgyear*$E73*percnt_var*start_time+SUM(B147)*output_kgyear*$E73*(1-start_time)),IF($C73<=start_time,-SUM(B147)*output_kgyear*$E73*percnt_var,-SUM(B147)*output_kgyear*$E73)))) -> -91236.87755 | C194: 0 | D194: 0 | E194: 0 | F194: 0 | G194: 0 | H194: 0 | I194: 0 | J194: 0 | K194: 0 | L194: 0 | M194: 0 | N194: 0
A195: 2047 | B195: =IF($C74="","",IF($C74<0,0,IF(AND($C74=1,start_time<1),-(SUM(B148)*output_kgyear*$E74*percnt_var*start_time+SUM(B148)*output_kgyear*$E74*(1-start_time)),IF($C74<=start_time,-SUM(B148)*output_kgyear*$E74*percnt_var,-SUM(B148)*output_kgyear*$E74)))) -> -93277.96707 | C195: 0 | D195: 0 | E195: 0 | F195: 0 | G195: 0 | H195: 0 | I195: 0 | J195: 0 | K195: 0 | L195: 0 | M195: 0 | N195: 0
A196: 2048 | B196: =IF($C75="","",IF($C75<0,0,IF(AND($C75=1,start_time<1),-(SUM(B149)*output_kgyear*$E75*percnt_var*start_time+SUM(B149)*output_kgyear*$E75*(1-start_time)),IF($C75<=start_time,-SUM(B149)*output_kgyear*$E75*percnt_var,-SUM(B149)*output_kgyear*$E75)))) -> -95402.81586 | C196: 0 | D196: 0 | E196: 0 | F196: 0 | G196: 0 | H196: 0 | I196: 0 | J196: 0 | K196: 0 | L196: 0 | M196: 0 | N196: 0
A197: 2049 | B197: =IF($C76="","",IF($C76<0,0,IF(AND($C76=1,start_time<1),-(SUM(B150)*output_kgyear*$E76*percnt_var*start_time+SUM(B150)*output_kgyear*$E76*(1-start_time)),IF($C76<=start_time,-SUM(B150)*output_kgyear*$E76*percnt_var,-SUM(B150)*output_kgyear*$E76)))) -> -97526.73613 | C197: 0 | D197: 0 | E197: 0 | F197: 0 | G197: 0 | H197: 0 | I197: 0 | J197: 0 | K197: 0 | L197: 0 | M197: 0 | N197: 0
A198: 2050 | B198: =IF($C77="","",IF($C77<0,0,IF(AND($C77=1,start_time<1),-(SUM(B151)*output_kgyear*$E77*percnt_var*start_time+SUM(B151)*output_kgyear*$E77*(1-start_time)),IF($C77<=start_time,-SUM(B151)*output_kgyear*$E77*percnt_var,-SUM(B151)*output_kgyear*$E77)))) -> -99687.2435 | C198: 0 | D198: 0 | E198: 0 | F198: 0 | G198: 0 | H198: 0 | I198: 0 | J198: 0 | K198: 0 | L198: 0 | M198: 0 | N198: 0
A199: 2051 | B199: =IF($C78="","",IF($C78<0,0,IF(AND($C78=1,start_time<1),-(SUM(B152)*output_kgyear*$E78*percnt_var*start_time+SUM(B152)*output_kgyear*$E78*(1-start_time)),IF($C78<=start_time,-SUM(B152)*output_kgyear*$E78*percnt_var,-SUM(B152)*output_kgyear*$E78)))) -> -101673.4308 | C199: 0 | D199: 0 | E199: 0 | F199: 0 | G199: 0 | H199: 0 | I199: 0 | J199: 0 | K199: 0 | L199: 0 | M199: 0 | N199: 0
A200: 2052 | B200: =IF($C79="","",IF($C79<0,0,IF(AND($C79=1,start_time<1),-(SUM(B153)*output_kgyear*$E79*percnt_var*start_time+SUM(B153)*output_kgyear*$E79*(1-start_time)),IF($C79<=start_time,-SUM(B153)*output_kgyear*$E79*percnt_var,-SUM(B153)*output_kgyear*$E79)))) -> -103699.1913 | C200: 0 | D200: 0 | E200: 0 | F200: 0 | G200: 0 | H200: 0 | I200: 0 | J200: 0 | K200: 0 | L200: 0 | M200: 0 | N200: 0
A201: 2053 | B201: =IF($C80="","",IF($C80<0,0,IF(AND($C80=1,start_time<1),-(SUM(B154)*output_kgyear*$E80*percnt_var*start_time+SUM(B154)*output_kgyear*$E80*(1-start_time)),IF($C80<=start_time,-SUM(B154)*output_kgyear*$E80*percnt_var,-SUM(B154)*output_kgyear*$E80)))) -> -105765.3135 | C201: 0 | D201: 0 | E201: 0 | F201: 0 | G201: 0 | H201: 0 | I201: 0 | J201: 0 | K201: 0 | L201: 0 | M201: 0 | N201: 0
A202: 2054 | B202: =IF($C81="","",IF($C81<0,0,IF(AND($C81=1,start_time<1),-(SUM(B155)*output_kgyear*$E81*percnt_var*start_time+SUM(B155)*output_kgyear*$E81*(1-start_time)),IF($C81<=start_time,-SUM(B155)*output_kgyear*$E81*percnt_var,-SUM(B155)*output_kgyear*$E81)))) -> -107872.6014 | C202: 0 | D202: 0 | E202: 0 | F202: 0 | G202: 0 | H202: 0 | I202: 0 | J202: 0 | K202: 0 | L202: 0 | M202: 0 | N202: 0
A203: 2055 | B203: =IF($C82="","",IF($C82<0,0,IF(AND($C82=1,start_time<1),-(SUM(B156)*output_kgyear*$E82*percnt_var*start_time+SUM(B156)*output_kgyear*$E82*(1-start_time)),IF($C82<=start_time,-SUM(B156)*output_kgyear*$E82*percnt_var,-SUM(B156)*output_kgyear*$E82)))) -> -110021.8754 | C203: 0 | D203: 0 | E203: 0 | F203: 0 | G203: 0 | H203: 0 | I203: 0 | J203: 0 | K203: 0 | L203: 0 | M203: 0 | N203: 0
A204: 2056 | B204: =IF($C83="","",IF($C83<0,0,IF(AND($C83=1,start_time<1),-(SUM(B157)*output_kgyear*$E83*percnt_var*start_time+SUM(B157)*output_kgyear*$E83*(1-start_time)),IF($C83<=start_time,-SUM(B157)*output_kgyear*$E83*percnt_var,-SUM(B157)*output_kgyear*$E83)))) -> -112223.9221 | C204: 0 | D204: 0 | E204: 0 | F204: 0 | G204: 0 | H204: 0 | I204: 0 | J204: 0 | K204: 0 | L204: 0 | M204: 0 | N204: 0
A205: 2057 | B205: =IF($C84="","",IF($C84<0,0,IF(AND($C84=1,start_time<1),-(SUM(B158)*output_kgyear*$E84*percnt_var*start_time+SUM(B158)*output_kgyear*$E84*(1-start_time)),IF($C84<=start_time,-SUM(B158)*output_kgyear*$E84*percnt_var,-SUM(B158)*output_kgyear*$E84)))) -> -114470.042 | C205: 0 | D205: 0 | E205: 0 | F205: 0 | G205: 0 | H205: 0 | I205: 0 | J205: 0 | K205: 0 | L205: 0 | M205: 0 | N205: 0
A206: 2058 | B206: =IF($C85="","",IF($C85<0,0,IF(AND($C85=1,start_time<1),-(SUM(B159)*output_kgyear*$E85*percnt_var*start_time+SUM(B159)*output_kgyear*$E85*(1-start_time)),IF($C85<=start_time,-SUM(B159)*output_kgyear*$E85*percnt_var,-SUM(B159)*output_kgyear*$E85)))) -> -116761.1171 | C206: 0 | D206: 0 | E206: 0 | F206: 0 | G206: 0 | H206: 0 | I206: 0 | J206: 0 | K206: 0 | L206: 0 | M206: 0 | N206: 0
A207: 2059 | B207: =IF($C86="","",IF($C86<0,0,IF(AND($C86=1,start_time<1),-(SUM(B160)*output_kgyear*$E86*percnt_var*start_time+SUM(B160)*output_kgyear*$E86*(1-start_time)),IF($C86<=start_time,-SUM(B160)*output_kgyear*$E86*percnt_var,-SUM(B160)*output_kgyear*$E86)))) -> -119098.0472 | C207: 0 | D207: 0 | E207: 0 | F207: 0 | G207: 0 | H207: 0 | I207: 0 | J207: 0 | K207: 0 | L207: 0 | M207: 0 | N207: 0
A208: 2060 | B208: =IF($C87="","",IF($C87<0,0,IF(AND($C87=1,start_time<1),-(SUM(B161)*output_kgyear*$E87*percnt_var*start_time+SUM(B161)*output_kgyear*$E87*(1-start_time)),IF($C87<=start_time,-SUM(B161)*output_kgyear*$E87*percnt_var,-SUM(B161)*output_kgyear*$E87)))) -> -121481.7501 | C208: 0 | D208: 0 | E208: 0 | F208: 0 | G208: 0 | H208: 0 | I208: 0 | J208: 0 | K208: 0 | L208: 0 | M208: 0 | N208: 0
A209: 2061 | B209: =IF($C88="","",IF($C88<0,0,IF(AND($C88=1,start_time<1),-(SUM(B162)*output_kgyear*$E88*percnt_var*start_time+SUM(B162)*output_kgyear*$E88*(1-start_time)),IF($C88<=start_time,-SUM(B162)*output_kgyear*$E88*percnt_var,-SUM(B162)*output_kgyear*$E88)))) -> -123849.3179 | C209: 0 | D209: 0 | E209: 0 | F209: 0 | G209: 0 | H209: 0 | I209: 0 | J209: 0 | K209: 0 | L209: 0 | M209: 0 | N209: 0
A210: 2062 | B210: =IF($C89="","",IF($C89<0,0,IF(AND($C89=1,start_time<1),-(SUM(B163)*output_kgyear*$E89*percnt_var*start_time+SUM(B163)*output_kgyear*$E89*(1-start_time)),IF($C89<=start_time,-SUM(B163)*output_kgyear*$E89*percnt_var,-SUM(B163)*output_kgyear*$E89)))) -> -126263.0275 | C210: 0 | D210: 0 | E210: 0 | F210: 0 | G210: 0 | H210: 0 | I210: 0 | J210: 0 | K210: 0 | L210: 0 | M210: 0 | N210: 0
A211: 2063 | B211: =IF($C90="","",IF($C90<0,0,IF(AND($C90=1,start_time<1),-(SUM(B164)*output_kgyear*$E90*percnt_var*start_time+SUM(B164)*output_kgyear*$E90*(1-start_time)),IF($C90<=start_time,-SUM(B164)*output_kgyear*$E90*percnt_var,-SUM(B164)*output_kgyear*$E90)))) -> -128723.778 | C211: 0 | D211: 0 | E211: 0 | F211: 0 | G211: 0 | H211: 0 | I211: 0 | J211: 0 | K211: 0 | L211: 0 | M211: 0 | N211: 0
A212: 2064 | B212: =IF($C91="","",IF($C91<0,0,IF(AND($C91=1,start_time<1),-(SUM(B165)*output_kgyear*$E91*percnt_var*start_time+SUM(B165)*output_kgyear*$E91*(1-start_time)),IF($C91<=start_time,-SUM(B165)*output_kgyear*$E91*percnt_var,-SUM(B165)*output_kgyear*$E91)))) -> -131232.4863 | C212: 0 | D212: 0 | E212: 0 | F212: 0 | G212: 0 | H212: 0 | I212: 0 | J212: 0 | K212: 0 | L212: 0 | M212: 0 | N212: 0
A213: 2065 | B213: =IF($C92="","",IF($C92<0,0,IF(AND($C92=1,start_time<1),-(SUM(B166)*output_kgyear*$E92*percnt_var*start_time+SUM(B166)*output_kgyear*$E92*(1-start_time)),IF($C92<=start_time,-SUM(B166)*output_kgyear*$E92*percnt_var,-SUM(B166)*output_kgyear*$E92)))) -> -133790.0871 | C213: 0 | D213: 0 | E213: 0 | F213: 0 | G213: 0 | H213: 0 | I213: 0 | J213: 0 | K213: 0 | L213: 0 | M213: 0 | N213: 0
A214: 2066 | B214: =IF($C93="","",IF($C93<0,0,IF(AND($C93=1,start_time<1),-(SUM(B167)*output_kgyear*$E93*percnt_var*start_time+SUM(B167)*output_kgyear*$E93*(1-start_time)),IF($C93<=start_time,-SUM(B167)*output_kgyear*$E93*percnt_var,-SUM(B167)*output_kgyear*$E93)))) -> -136395.2271 | C214: 0 | D214: 0 | E214: 0 | F214: 0 | G214: 0 | H214: 0 | I214: 0 | J214: 0 | K214: 0 | L214: 0 | M214: 0 | N214: 0
A215: 2067 | B215: =IF($C94="","",IF($C94<0,0,IF(AND($C94=1,start_time<1),-(SUM(B168)*output_kgyear*$E94*percnt_var*start_time+SUM(B168)*output_kgyear*$E94*(1-start_time)),IF($C94<=start_time,-SUM(B168)*output_kgyear*$E94*percnt_var,-SUM(B168)*output_kgyear*$E94)))) -> -139051.094 | C215: 0 | D215: 0 | E215: 0 | F215: 0 | G215: 0 | H215: 0 | I215: 0 | J215: 0 | K215: 0 | L215: 0 | M215: 0 | N215: 0
A216: 2068 | B216: =IF($C95="","",IF($C95<0,0,IF(AND($C95=1,start_time<1),-(SUM(B169)*output_kgyear*$E95*percnt_var*start_time+SUM(B169)*output_kgyear*$E95*(1-start_time)),IF($C95<=start_time,-SUM(B169)*output_kgyear*$E95*percnt_var,-SUM(B169)*output_kgyear*$E95)))) -> -141758.6755 | C216: 0 | D216: 0 | E216: 0 | F216: 0 | G216: 0 | H216: 0 | I216: 0 | J216: 0 | K216: 0 | L216: 0 | M216: 0 | N216: 0
A217: 2069 | B217: =IF($C96="","",IF($C96<0,0,IF(AND($C96=1,start_time<1),-(SUM(B170)*output_kgyear*$E96*percnt_var*start_time+SUM(B170)*output_kgyear*$E96*(1-start_time)),IF($C96<=start_time,-SUM(B170)*output_kgyear*$E96*percnt_var,-SUM(B170)*output_kgyear*$E96)))) -> -144518.9787 | C217: 0 | D217: 0 | E217: 0 | F217: 0 | G217: 0 | H217: 0 | I217: 0 | J217: 0 | K217: 0 | L217: 0 | M217: 0 | N217: 0
A218: 2070 | B218: =IF($C97="","",IF($C97<0,0,IF(AND($C97=1,start_time<1),-(SUM(B171)*output_kgyear*$E97*percnt_var*start_time+SUM(B171)*output_kgyear*$E97*(1-start_time)),IF($C97<=start_time,-SUM(B171)*output_kgyear*$E97*percnt_var,-SUM(B171)*output_kgyear*$E97)))) -> -147333.03 | C218: 0 | D218: 0 | E218: 0 | F218: 0 | G218: 0 | H218: 0 | I218: 0 | J218: 0 | K218: 0 | L218: 0 | M218: 0 | N218: 0
A219: 2071 | B219: =IF($C98="","",IF($C98<0,0,IF(AND($C98=1,start_time<1),-(SUM(B172)*output_kgyear*$E98*percnt_var*start_time+SUM(B172)*output_kgyear*$E98*(1-start_time)),IF($C98<=start_time,-SUM(B172)*output_kgyear*$E98*percnt_var,-SUM(B172)*output_kgyear*$E98)))) -> -150177.7215 | C219: 0 | D219: 0 | E219: 0 | F219: 0 | G219: 0 | H219: 0 | I219: 0 | J219: 0 | K219: 0 | L219: 0 | M219: 0 | N219: 0
A220: 2072 | B220: =IF($C99="","",IF($C99<0,0,IF(AND($C99=1,start_time<1),-(SUM(B173)*output_kgyear*$E99*percnt_var*start_time+SUM(B173)*output_kgyear*$E99*(1-start_time)),IF($C99<=start_time,-SUM(B173)*output_kgyear*$E99*percnt_var,-SUM(B173)*output_kgyear*$E99)))) -> -153077.3381 | C220: 0 | D220: 0 | E220: 0 | F220: 0 | G220: 0 | H220: 0 | I220: 0 | J220: 0 | K220: 0 | L220: 0 | M220: 0 | N220: 0
... 16 more rows

Sheet Energy Feed & Utility Prices
BW3: Further extrapolated to allow 2040 comission year using GCAM
A4: AEO_2009_Reference_Case | B4: ="Prices are in $(" & ref_year&")/GJ LHV" -> Prices are in $(2016)/GJ LHV | AH4: Except as noted,values are extrapolated based on PNNL mini-CAM model (see AEO Data tab)
A5: Year | B5: Source Data Year | C5: Reference year Conversion | D5: Display Units | E5: Use Category | F5: LHV (MJ/kg) | G5: HHV (MJ/kg) | H5: 2004 | I5: 2005 | J5: 2006 | K5: 2007 | L5: 2008 | M5: 2009 | N5: 2010 | O5: 2011 | P5: 2012 | Q5: 2013 | R5: 2014 | S5: 2015 | T5: 2016 | U5: 2017 | V5: 2018 | W5: 2019 | X5: 2020 | Y5: 2021 | Z5: 2022 | AA5: 2023 | AB5: 2024 | AC5: 2025 | AD5: 2026 | AE5: 2027 | AF5: 2028 | AG5: 2029 | AH5: 2030 | AI5: 2031 | AJ5: 2032 | AK5: 2033 | AL5: 2034 | AM5: 2035 | AN5: 2036 | AO5: 2037 | AP5: 2038 | AQ5: 2039 | AR5: 2040 | AS5: 2041 | AT5: 2042 | AU5: 2043 | AV5: 2044 | AW5: 2045 | AX5: 2046 | AY5: 2047 | AZ5: 2048 | BA5: 2049 | BB5: 2050 | BC5: 2051 | BD5: 2052 | BE5: 2053 | BF5: 2054 | BG5: 2055 | BH5: 2056 | BI5: 2057 | BJ5: 2058 | BK5: 2059 | BL5: 2060 | BM5: 2061 | BN5: 2062 | BO5: 2063 | BP5: 2064 | BQ5: 2065 | BR5: 2066 | BS5: 2067 | BT5: 2068 | BU5: 2069 | BV5: 2070 | BW5: =+BV5+1 -> 2071 | BX5: =+BW5+1 -> 2072 | BY5: =+BX5+1 -> 2073 | BZ5: =+BY5+1 -> 2074 | CA5: =+BZ5+1 -> 2075 | CB5: =+CA5+1 -> 2076 | CC5: =+CB5+1 -> 2077 | CD5: =+CC5+1 -> 2078 | CE5: =+CD5+1 -> 2079 | CF5: =+CE5+1 -> 2080 | CG5: =+CF5+1 -> 2081 | CH5: =+CG5+1 -> 2082 | CI5: =+CH5+1 -> 2083 | CJ5: =+CI5+1 -> 2084 | CK5: =+CJ5+1 -> 2085 | CL5: =+CK5+1 -> 2086 | CM5: =+CL5+1 -> 2087 | CN5: =+CM5+1 -> 2088 | CO5: =+CN5+1 -> 2089 | CP5: =+CO5+1 -> 2090 | CQ5: =+CP5+1 -> 2091 | CR5: =+CQ5+1 -> 2092 | CS5: =+CR5+1 -> 2093 | CT5: =+CS5+1 -> 2094 | CU5: =+CT5+1 -> 2095 | CV5: =+CU5+1 -> 2096 | CW5: =+CV5+1 -> 2097 | CX5: =+CW5+1 -> 2098 | CY5: =+CX5+1 -> 2099 | CZ5: =+CY5+1 -> 2100
A6: Feedstock Type
A7: ='HyARC Physical Property Data'!A73 -> Residential Natural Gas | B7: 2007 | C7: =VLOOKUP(ref_year,DeflatorTable,2,FALSE)/VLOOKUP(B7,DeflatorTable,2,FALSE) -> 1.144635996 | D7: ='HyARC Physical Property Data'!H73 -> mmBtu | E7: Feed Utility | F7: ='HyARC Physical Property Data'!$E$6 -> 47.14126905 | G7: ='HyARC Physical Property Data'!$I$6 -> 52.22466124 | H7: =((13.7000589370728/(mmBTU_to_GJ))*($C$7))*($G$7/$F$7) -> 16.46689578 | I7: =((13.7000589370728/(mmBTU_to_GJ))*($C$7))*($G$7/$F$7) -> 16.46689578 | J7: =((13.7000589370728/(mmBTU_to_GJ))*($C$7))*($G$7/$F$7) -> 16.46689578 | K7: =((12.6911582946777/(mmBTU_to_GJ))*($C$7))*($G$7/$F$7) -> 15.25423956 | L7: =((12.9778490066528/(mmBTU_to_GJ))*($C$7))*($G$7/$F$7) -> 15.59882976 | M7: =((10.7176141738892/(mmBTU_to_GJ))*($C$7))*($G$7/$F$7) -> 12.88212237 | N7: =((11.192774772644/(mmBTU_to_GJ))*($C$7))*($G$7/$F$7) -> 13.45324546 | O7: =((11.4872808456421/(mmBTU_to_GJ))*($C$7))*($G$7/$F$7) -> 13.8072294 | P7: =((11.3991556167603/(mmBTU_to_GJ))*($C$7))*($G$7/$F$7) -> 13.70130657 | Q7: =((11.3077983856201/(mmBTU_to_GJ))*($C$7))*($G$7/$F$7) -> 13.59149902 | R7: =((11.2896461486816/(mmBTU_to_GJ))*($C$7))*($G$7/$F$7) -> 13.56968079 | S7: =((11.3454151153564/(mmBTU_to_GJ))*($C$7))*($G$7/$F$7) -> 13.63671275 | T7: =((11.5382986068726/(mmBTU_to_GJ))*($C$7))*($G$7/$F$7) -> 13.86855061 | U7: =((11.7583208084106/(mmBTU_to_GJ))*($C$7))*($G$7/$F$7) -> 14.13300806 | V7: =((11.9751005172729/(mmBTU_to_GJ))*($C$7))*($G$7/$F$7) -> 14.39356817 | W7: =((12.23952293396/(mmBTU_to_GJ))*($C$7))*($G$7/$F$7) -> 14.71139281 | X7: =((12.557071685791/(mmBTU_to_GJ))*($C$7))*($G$7/$F$7) -> 15.09307308 | Y7: =((12.7957820892334/(mmBTU_to_GJ))*($C$7))*($G$7/$F$7) -> 15.37999297 | Z7: =((12.8716516494751/(mmBTU_to_GJ))*($C$7))*($G$7/$F$7) -> 15.471185 | AA7: =((12.6602811813354/(mmBTU_to_GJ))*($C$7))*($G$7/$F$7) -> 15.21712657 | AB7: =((12.6240320205688/(mmBTU_to_GJ))*($C$7))*($G$7/$F$7) -> 15.1735566 | AC7: =((12.5992183685303/(mmBTU_to_GJ))*($C$7))*($G$7/$F$7) -> 15.14373163 | AD7: =((12.7868556976318/(mmBTU_to_GJ))*($C$7))*($G$7/$F$7) -> 15.36926382 | AE7: =((13.07555103302/(mmBTU_to_GJ))*($C$7))*($G$7/$F$7) -> 15.7162635 | AF7: =((13.407883644104/(mmBTU_to_GJ))*($C$7))*($G$7/$F$7) -> 16.11571335 | AG7: =((13.6725673675537/(mmBTU_to_GJ))*($C$7))*($G$7/$F$7) -> 16.43385207 | AH7: =((13.9620389938354/(mmBTU_to_GJ))*($C$7))*($G$7/$F$7) -> 16.78178481 | AI7: =($BB7-$AH7)/20+AH7 -> 16.92425292 | AJ7: =($BB7-$AH7)/20+AI7 -> 17.06672102 | AK7: 17.20918913 | AL7: 17.35165723 | AM7: 17.49412534 | AN7: 17.63659344 | AO7: 17.77906155 | AP7: 17.92152965 | AQ7: 18.06399776 | AR7: 18.20646586 | AS7: 18.34893397 | AT7: 18.49140207 | AU7: 18.63387018 | AV7: 18.77633828 | AW7: 18.91880639 | AX7: 19.06127449 | AY7: 19.2037426 | AZ7: =($BB7-$AH7)/20+AY7 -> 19.3462107 | BA7: 19.48867881 | BB7: =1.16978897829057*AH7 -> 19.63114691 | BC7: =($BQ7-$BB7)/15+BB7 -> 19.82552969 | BD7: =($BQ7-$BB7)/15+BC7 -> 20.01991246 | BE7: 20.21429523 | BF7: 20.40867801 | BG7: 20.60306078 | BH7: 20.79744355 | BI7: 20.99182633 | BJ7: 21.1862091 | BK7: 21.38059187 | BL7: 21.57497465 | BM7: 21.76935742 | BN7: 21.96374019 | BO7: 22.15812296 | BP7: 22.35250574 | BQ7: =1.14852629914794*BB7 -> 22.54688851 | BR7: =($BV7-$BQ7)/5+BQ7 -> 22.77014224 | BS7: =($BV7-$BQ7)/5+BR7 -> 22.99339597 | BT7: =($BV7-$BQ7)/5+BS7 -> 23.21664969 | BU7: =($BV7-$BQ7)/5+BT7 -> 23.43990342 | BV7: =1.04950876638265*BQ7 -> 23.66315715 | BW7: =+BV7*BW$133/BV$133 -> 23.74172579 | BX7: =+BW7*BX$133/BW$133 -> 23.8205553 | BY7: 23.89964655 | BZ7: 23.9790004 | CA7: 24.05861773 | CB7: 24.1099571 | CC7: 24.16140601 | CD7: 24.21296472 | CE7: 24.26463345 | CF7: 24.31641244 | CG7: 24.33322474 | CH7: 24.35004868 | CI7: 24.36688424 | CJ7: 24.38373145 | CK7: 24.4005903 | CL7: 24.4063047 | CM7: 24.41202044 | CN7: 24.41773752 | CO7: 24.42345594 | CP7: 24.4291757 | CQ7: 24.43784454 | CR7: 24.44651646 | CS7: 24.45519145 | CT7: 24.46386953 | CU7: 24.47255068 | CV7: 24.48591101 | CW7: 24.49927864 | CX7: 24.51265356 | CY7: 24.52603578 | CZ7: 24.53942532
A8: ='HyARC Physical Property Data'!A71 -> Commercial Natural Gas | B8: 2007 | C8: =VLOOKUP(ref_year,DeflatorTable,2,FALSE)/VLOOKUP(B8,DeflatorTable,2,FALSE) -> 1.144635996 | D8: ='HyARC Physical Property Data'!H71 -> mmBtu | E8: Feed Utility | F8: ='HyARC Physical Property Data'!$E$6 -> 47.14126905 | G8: ='HyARC Physical Property Data'!$I$6 -> 52.22466124 | H8: =((11.8960943222046/(mmBTU_to_GJ))*($C$8))*($G$8/$F$8) -> 14.29860604 | I8: =((11.8960943222046/(mmBTU_to_GJ))*($C$8))*($G$8/$F$8) -> 14.29860604 | J8: =((11.8960943222046/(mmBTU_to_GJ))*($C$8))*($G$8/$F$8) -> 14.29860604 | K8: =((10.9898433685303/(mmBTU_to_GJ))*($C$8))*($G$8/$F$8) -> 13.20933043 | L8: =((11.3387994766235/(mmBTU_to_GJ))*($C$8))*($G$8/$F$8) -> 13.62876103 | M8: =((8.90759468078613/(mmBTU_to_GJ))*($C$8))*($G$8/$F$8) -> 10.70655491 | N8: =((9.46560573577881/(mmBTU_to_GJ))*($C$8))*($G$8/$F$8) -> 11.37726078 | O8: =((9.74632167816162/(mmBTU_to_GJ))*($C$8))*($G$8/$F$8) -> 11.71466956 | P8: =((9.72109222412109/(mmBTU_to_GJ))*($C$8))*($G$8/$F$8) -> 11.68434481 | Q8: =((9.67193412780762/(mmBTU_to_GJ))*($C$8))*($G$8/$F$8) -> 11.62525884 | R8: =((9.71388721466064/(mmBTU_to_GJ))*($C$8))*($G$8/$F$8) -> 11.67568469 | S8: =((9.83065605163574/(mmBTU_to_GJ))*($C$8))*($G$8/$F$8) -> 11.81603593 | T8: =((10.0382099151611/(mmBTU_to_GJ))*($C$8))*($G$8/$F$8) -> 12.06550696 | U8: =((10.2545003890991/(mmBTU_to_GJ))*($C$8))*($G$8/$F$8) -> 12.32547904 | V8: =((10.476261138916/(mmBTU_to_GJ))*($C$8))*($G$8/$F$8) -> 12.59202615 | W8: =((10.746561050415/(mmBTU_to_GJ))*($C$8))*($G$8/$F$8) -> 12.9169153 | X8: =((11.0803880691528/(mmBTU_to_GJ))*($C$8))*($G$8/$F$8) -> 13.31816136 | Y8: =((11.3143692016602/(mmBTU_to_GJ))*($C$8))*($G$8/$F$8) -> 13.59939686 | Z8: =((11.4017143249512/(mmBTU_to_GJ))*($C$8))*($G$8/$F$8) -> 13.70438203 | AA8: =((11.2125005722046/(mmBTU_to_GJ))*($C$8))*($G$8/$F$8) -> 13.47695504 | AB8: =((11.1975994110107/(mmBTU_to_GJ))*($C$8))*($G$8/$F$8) -> 13.45904447 | AC8: =((11.159740447998/(mmBTU_to_GJ))*($C$8))*($G$8/$F$8) -> 13.41353959 | AD8: =((11.3503875732422/(mmBTU_to_GJ))*($C$8))*($G$8/$F$8) -> 13.64268943 | AE8: =((11.6409521102905/(mmBTU_to_GJ))*($C$8))*($G$8/$F$8) -> 13.99193581 | AF8: =((11.9785671234131/(mmBTU_to_GJ))*($C$8))*($G$8/$F$8) -> 14.39773488 | AG8: =((12.2332496643066/(mmBTU_to_GJ))*($C$8))*($G$8/$F$8) -> 14.70385261 | AH8: =((12.5188312530518/(mmBTU_to_GJ))*($C$8))*($G$8/$F$8) -> 15.04710969 | AI8: =($BB8-$AH8)/20+AH8 -> 15.17485136 | AJ8: 15.30259303 | AK8: 15.4303347 | AL8: 15.55807637 | AM8: 15.68581803 | AN8: 15.8135597 | AO8: 15.94130137 | AP8: 16.06904304 | AQ8: 16.19678471 | AR8: 16.32452638 | AS8: 16.45226805 | AT8: 16.58000972 | AU8: 16.70775139 | AV8: 16.83549306 | AW8: 16.96323472 | AX8: 17.09097639 | AY8: 17.21871806 | AZ8: 17.34645973 | BA8: 17.4742014 | BB8: =1.16978897829057*AH8 -> 17.60194307 | BC8: =($BQ8-$BB8)/15+BB8 -> 17.77623317 | BD8: 17.95052326 | BE8: 18.12481336 | BF8: 18.29910346 | BG8: 18.47339356 | BH8: 18.64768365 | BI8: 18.82197375 | BJ8: 18.99626385 | BK8: 19.17055395 | BL8: 19.34484404 | BM8: 19.51913414 | BN8: 19.69342424 | BO8: 19.86771434 | BP8: 20.04200443 | BQ8: =1.14852629914794*BB8 -> 20.21629453 | BR8: =($BV8-$BQ8)/5+BQ8 -> 20.41647129 | BS8: 20.61664805 | BT8: 20.81682481 | BU8: 21.01700157 | BV8: =1.04950876638265*BQ8 -> 21.21717833 | BW8: =+BV8*BW$134/BV$134 -> 21.2876256 | BX8: =+BW8*BX$134/BW$134 -> 21.35830678 | BY8: 21.42922264 | BZ8: 21.50037396 | CA8: 21.57176152 | CB8: 21.61779412 | CC8: 21.66392494 | CD8: 21.7101542 | CE8: 21.75648211 | CF8: 21.80290888 | CG8: 21.81798336 | CH8: 21.83306826 | CI8: 21.84816359 | CJ8: 21.86326936 | CK8: 21.87838557 | CL8: 21.88350929 | CM8: 21.88863422 | CN8: 21.89376034 | CO8: 21.89888767 | CP8: 21.90401619 | CQ8: 21.91178897 | CR8: 21.9195645 | CS8: 21.92734279 | CT8: 21.93512384 | CU8: 21.94290765 | CV8: 21.95488697 | CW8: 21.96687283 | CX8: 21.97886524 | CY8: 21.99086419 | CZ8: 22.00286969
A9: ='HyARC Physical Property Data'!A72 -> Industrial Natural Gas | B9: 2007 | C9: =VLOOKUP(ref_year,DeflatorTable,2,FALSE)/VLOOKUP(B9,DeflatorTable,2,FALSE) -> 1.144635996 | D9: ='HyARC Physical Property Data'!H72 -> mmBtu | E9: Feed Utility | F9: ='HyARC Physical Property Data'!$E$6 -> 47.14126905 | G9: ='HyARC Physical Property Data'!$I$6 -> 52.22466124 | H9: =((7.95407009124756/(mmBTU_to_GJ))*($C$9))*($G$9/$F$9) -> 9.560458378 | I9: =((7.95407009124756/(mmBTU_to_GJ))*($C$9))*($G$9/$F$9) -> 9.560458378 | J9: =((7.95407009124756/(mmBTU_to_GJ))*($C$9))*($G$9/$F$9) -> 9.560458378 | K9: =((7.51525163650513/(mmBTU_to_GJ))*($C$9))*($G$9/$F$9) -> 9.033017015 | L9: =((8.80127239227294/(mmBTU_to_GJ))*($C$9))*($G$9/$F$9) -> 10.57875998 | M9: =((4.84856796264648/(mmBTU_to_GJ))*($C$9))*($G$9/$F$9) -> 5.827775173 | N9: =((5.49891996383666/(mmBTU_to_GJ))*($C$9))*($G$9/$F$9) -> 6.60947098 | O9: =((5.82616424560547/(mmBTU_to_GJ))*($C$9))*($G$9/$F$9) -> 7.00280487 | P9: =((5.87778615951538/(mmBTU_to_GJ))*($C$9))*($G$9/$F$9) -> 7.064852244 | Q9: =((5.95383930206299/(mmBTU_to_GJ))*($C$9))*($G$9/$F$9) -> 7.156264929 | R9: =((6.10985708236694/(mmBTU_to_GJ))*($C$9))*($G$9/$F$9) -> 7.343791752 | S9: =((6.32948446273804/(mmBTU_to_GJ))*($C$9))*($G$9/$F$9) -> 7.607774644 | T9: =((6.51258134841919/(mmBTU_to_GJ))*($C$9))*($G$9/$F$9) -> 7.827849416 | U9: =((6.70273017883301/(mmBTU_to_GJ))*($C$9))*($G$9/$F$9) -> 8.056400328 | V9: =((6.89887094497681/(mmBTU_to_GJ))*($C$9))*($G$9/$F$9) -> 8.292153296 | W9: =((7.15282821655273/(mmBTU_to_GJ))*($C$9))*($G$9/$F$9) -> 8.597399277 | X9: =((7.46860218048096/(mmBTU_to_GJ))*($C$9))*($G$9/$F$9) -> 8.976946327 | Y9: =((7.67867755889893/(mmBTU_to_GJ))*($C$9))*($G$9/$F$9) -> 9.229448114 | Z9: =((7.75380706787109/(mmBTU_to_GJ))*($C$9))*($G$9/$F$9) -> 9.31975063 | AA9: =((7.55847835540771/(mmBTU_to_GJ))*($C$9))*($G$9/$F$9) -> 9.084973717 | AB9: =((7.54617786407471/(mmBTU_to_GJ))*($C$9))*($G$9/$F$9) -> 9.070189042 | AC9: =((7.45927095413208/(mmBTU_to_GJ))*($C$9))*($G$9/$F$9) -> 8.965730584 | AD9: =((7.60022306442261/(mmBTU_to_GJ))*($C$9))*($G$9/$F$9) -> 9.135149105 | AE9: =((7.85960483551025/(mmBTU_to_GJ))*($C$9))*($G$9/$F$9) -> 9.446915106 | AF9: =((8.19417572021484/(mmBTU_to_GJ))*($C$9))*($G$9/$F$9) -> 9.849055266 | AG9: =((8.42161273956299/(mmBTU_to_GJ))*($C$9))*($G$9/$F$9) -> 10.12242502 | AH9: =((8.69355010986328/(mmBTU_to_GJ))*($C$9))*($G$9/$F$9) -> 10.44928232 | AI9: =($BB9-$AH9)/20+AH9 -> 10.53799097 | AJ9: 10.62669962 | AK9: 10.71540827 | AL9: 10.80411691 | AM9: 10.89282556 | AN9: 10.98153421 | AO9: 11.07024286 | AP9: 11.15895151 | AQ9: 11.24766016 | AR9: 11.33636881 | AS9: 11.42507745 | AT9: 11.5137861 | AU9: 11.60249475 | AV9: 11.6912034 | AW9: 11.77991205 | AX9: 11.8686207 | AY9: 11.95732934 | AZ9: 12.04603799 | BA9: 12.13474664 | BB9: =1.16978897829057*AH9 -> 12.22345529 | BC9: 12.34448893 | BD9: 12.46552257 | BE9: 12.58655621 | BF9: 12.70758984 | BG9: 12.82862348 | BH9: 12.94965712 | BI9: 13.07069076 | BJ9: 13.1917244 | BK9: 13.31275804 | BL9: 13.43379167 | BM9: 13.55482531 | BN9: 13.67585895 | BO9: 13.79689259 | BP9: 13.91792623 | BQ9: =1.14852629914794*BB9 -> 14.03895987 | BR9: 14.17797018 | BS9: 14.3169805 | BT9: 14.45599082 | BU9: 14.59500113 | BV9: =1.04950876638265*BQ9 -> 14.73401145 | BW9: =+BV9*BW$135/BV$135 -> 14.7829327 | BX9: =+BW9*BX$135/BW$135 -> 14.83201638 | BY9: 14.88126304 | BZ9: 14.93067321 | CA9: 14.98024743 | CB9: 15.01221421 | CC9: 15.0442492 | CD9: 15.07635254 | CE9: 15.1085244 | CF9: 15.14076491 | CG9: 15.15123319 | CH9: 15.16170872 | CI9: 15.17219149 | CJ9: 15.1826815 | CK9: 15.19317877 | CL9: 15.19673688 | CM9: 15.20029582 | CN9: 15.2038556 | CO9: 15.20741621 | CP9: 15.21097765 | CQ9: 15.21637536 | CR9: 15.22177498 | CS9: 15.22717652 | CT9: 15.23257998 | CU9: 15.23798535 | CV9: 15.24630424 | CW9: 15.25462768 | CX9: 15.26295566 | CY9: 15.27128818 | CZ9: 15.27962526
A10: ='HyARC Physical Property Data'!A74 -> Electric Utility Natural Gas | B10: 2007 | C10: 1.144635996 | D10: ='HyARC Physical Property Data'!H74 -> mmBtu | E10: Feed Utility | F10: ='HyARC Physical Property Data'!$E$6 -> 47.14126905 | G10: ='HyARC Physical Property Data'!$I$6 -> 52.22466124 | H10: =((7.05463790893555/(mmBTU_to_GJ))*($C$10))*($G$10/$F$10) -> 8.479378649 | I10: =((7.05463790893555/(mmBTU_to_GJ))*($C$10))*($G$10/$F$10) -> 8.479378649 | J10: =((7.05463790893555/(mmBTU_to_GJ))*($C$10))*($G$10/$F$10) -> 8.479378649 | K10: =((7.01915979385375/(mmBTU_to_GJ))*($C$10))*($G$10/$F$10) -> 8.436735443 | L10: =((8.87161254882813/(mmBTU_to_GJ))*($C$10))*($G$10/$F$10) -> 10.6633059 | M10: =((4.55562210083008/(mmBTU_to_GJ))*($C$10))*($G$10/$F$10) -> 5.475666543 | N10: =((5.12931346893311/(mmBTU_to_GJ))*($C$10))*($G$10/$F$10) -> 6.165219487 | O10: =((5.45354604721069/(mmBTU_to_GJ))*($C$10))*($G$10/$F$10) -> 6.554933436 | P10: =((5.51876354217529/(mmBTU_to_GJ))*($C$10))*($G$10/$F$10) -> 6.633322128 | Q10: =((5.53977298736572/(mmBTU_to_GJ))*($C$10))*($G$10/$F$10) -> 6.658574599 | R10: =((5.68350362777709/(mmBTU_to_GJ))*($C$10))*($G$10/$F$10) -> 6.831332796 | S10: =((5.8920464515686/(mmBTU_to_GJ))*($C$10))*($G$10/$F$10) -> 7.081992516 | T10: =((6.08193254470825/(mmBTU_to_GJ))*($C$10))*($G$10/$F$10) -> 7.31022763 | U10: =((6.26939964294434/(mmBTU_to_GJ))*($C$10))*($G$10/$F$10) -> 7.535555213 | V10: =((6.47751331329346/(mmBTU_to_GJ))*($C$10))*($G$10/$F$10) -> 7.785699109 | W10: =((6.73541975021362/(mmBTU_to_GJ))*($C$10))*($G$10/$F$10) -> 8.095691821 | X10: =((7.02784395217896/(mmBTU_to_GJ))*($C$10))*($G$10/$F$10) -> 8.447173437 | Y10: =((7.25390911102295/(mmBTU_to_GJ))*($C$10))*($G$10/$F$10) -> 8.718894269 | Z10: =((7.3283839225769/(mmBTU_to_GJ))*($C$10))*($G$10/$F$10) -> 8.808409866 | AA10: =((7.15062761306763/(mmBTU_to_GJ))*($C$10))*($G$10/$F$10) -> 8.594754244 | AB10: =((7.19241189956665/(mmBTU_to_GJ))*($C$10))*($G$10/$F$10) -> 8.644977202 | AC10: =((7.13988399505615/(mmBTU_to_GJ))*($C$10))*($G$10/$F$10) -> 8.581840866 | AD10: =((7.28062534332275/(mmBTU_to_GJ))*($C$10))*($G$10/$F$10) -> 8.751006059 | AE10: =((7.5354790687561/(mmBTU_to_GJ))*($C$10))*($G$10/$F$10) -> 9.057329539 | AF10: =((7.86007928848267/(mmBTU_to_GJ))*($C$10))*($G$10/$F$10) -> 9.447485378 | AG10: =((8.07421207427979/(mmBTU_to_GJ))*($C$10))*($G$10/$F$10) -> 9.704863999 | AH10: =((8.33951759338379/(mmBTU_to_GJ))*($C$10))*($G$10/$F$10) -> 10.0237501 | AI10: =($BB10-$AH10)/20+AH10 -> 10.10884621 | AJ10: 10.19394233 | AK10: 10.27903844 | AL10: 10.36413455 | AM10: 10.44923067 | AN10: 10.53432678 | AO10: 10.6194229 | AP10: 10.70451901 | AQ10: 10.78961513 | AR10: 10.87471124 | AS10: 10.95980735 | AT10: 11.04490347 | AU10: 11.12999958 | AV10: 11.2150957 | AW10: 11.30019181 | AX10: 11.38528793 | AY10: 11.47038404 | AZ10: 11.55548016 | BA10: 11.64057627 | BB10: =1.16978897829057*AH10 -> 11.72567238 | BC10: 11.8417771 | BD10: 11.95788181 | BE10: 12.07398653 | BF10: 12.19009124 | BG10: 12.30619596 | BH10: 12.42230067 | BI10: 12.53840539 | BJ10: 12.6545101 | BK10: 12.77061482 | BL10: 12.88671953 | BM10: 13.00282425 | BN10: 13.11892896 | BO10: 13.23503368 | BP10: 13.35113839 | BQ10: =1.14852629914794*BB10 -> 13.46724311 | BR10: 13.60059243 | BS10: 13.73394175 | BT10: 13.86729106 | BU10: 14.00064038 | BV10: =1.04950876638265*BQ10 -> 14.1339897 | BW10: =+BV10*BW$136/BV$136 -> 14.1809187 | BX10: =+BW10*BX$136/BW$136 -> 14.22800352 | BY10: 14.27524468 | BZ10: 14.32264269 | CA10: 14.37019807 | CB10: 14.40086304 | CC10: 14.43159345 | CD10: 14.46238944 | CE10: 14.49325114 | CF10: 14.5241787 | CG10: 14.53422068 | CH10: 14.5442696 | CI10: 14.55432548 | CJ10: 14.5643883 | CK10: 14.57445808 | CL10: 14.57787129 | CM10: 14.5812853 | CN10: 14.58470011 | CO10: 14.58811572 | CP10: 14.59153213 | CQ10: 14.59671002 | CR10: 14.60188975 | CS10: 14.60707132 | CT10: 14.61225473 | CU10: 14.61743998 | CV10: 14.6254201 | CW10: 14.63340457 | CX10: 14.6413934 | CY10: 14.6493866 | CZ10: 14.65738416
A11: ='HyARC Physical Property Data'!A75 -> Bio Methane | B11: 2007 | C11: 1.144635996 | D11: ='HyARC Physical Property Data'!H75 -> mmBtu | E11: Feed Utility | F11: ='HyARC Physical Property Data'!$E$6 -> 47.14126905 | G11: ='HyARC Physical Property Data'!$I$6 -> 52.22466124 | H11: =13.11*($C$11/mmBTU_to_GJ) -> 14.22386531 | I11: 14.22386531 | J11: 14.22386531 | K11: 14.22386531 | L11: 14.22386531 | M11: 14.22386531 | N11: 14.22386531 | O11: 14.22386531 | P11: 14.22386531 | Q11: 14.22386531 | R11: 14.22386531 | S11: 14.22386531 | T11: 14.22386531 | U11: 14.22386531 | V11: 14.22386531 | W11: 14.22386531 | X11: 14.22386531 | Y11: 14.22386531 | Z11: 14.22386531 | AA11: 14.22386531 | AB11: 14.22386531 | AC11: 14.22386531 | AD11: 14.22386531 | AE11: 14.22386531 | AF11: 14.22386531 | AG11: 14.22386531 | AH11: 14.22386531 | AI11: 14.22386531 | AJ11: 14.22386531 | AK11: 14.22386531 | AL11: 14.22386531 | AM11: 14.22386531 | AN11: =13.11*($C$11/mmBTU_to_GJ) -> 14.22386531 | AO11: 14.22386531 | AP11: 14.22386531 | AQ11: 14.22386531 | AR11: 14.22386531 | AS11: 14.22386531 | AT11: 14.22386531 | AU11: 14.22386531 | AV11: 14.22386531 | AW11: 14.22386531 | AX11: 14.22386531 | AY11: 14.22386531 | AZ11: 14.22386531 | BA11: 14.22386531 | BB11: 14.22386531 | BC11: 14.22386531 | BD11: 14.22386531 | BE11: 14.22386531 | BF11: 14.22386531 | BG11: 14.22386531 | BH11: 14.22386531 | BI11: 14.22386531 | BJ11: 14.22386531 | BK11: 14.22386531 | BL11: 14.22386531 | BM11: 14.22386531 | BN11: 14.22386531 | BO11: 14.22386531 | BP11: 14.22386531 | BQ11: 14.22386531 | BR11: 14.22386531 | BS11: 14.22386531 | BT11: 14.22386531 | BU11: 14.22386531 | BV11: 14.22386531 | BW11: =+BV11*BW$136/BV$136 -> 14.27109273 | BX11: =+BW11*BX$136/BW$136 -> 14.31847695 | BY11: 14.3660185 | BZ11: 14.41371791 | CA11: 14.46157569 | CB11: 14.49243566 | CC11: 14.52336147 | CD11: 14.55435328 | CE11: 14.58541123 | CF11: 14.61653545 | CG11: 14.62664129 | CH11: 14.63675411 | CI11: 14.64687393 | CJ11: 14.65700074 | CK11: 14.66713456 | CL11: 14.67056947 | CM11: 14.67400519 | CN11: 14.67744171 | CO11: 14.68087904 | CP11: 14.68431717 | CQ11: 14.68952799 | CR11: 14.69474066 | CS11: 14.69995518 | CT11: 14.70517154 | CU11: 14.71038976 | CV11: 14.71842063 | CW11: 14.72645587 | CX11: 14.73449551 | CY11: 14.74253953 | CZ11: 14.75058794
A12: ='HyARC Physical Property Data'!A85 -> Woody Biomass | B12: 2005 | C12: =VLOOKUP(ref_year,DeflatorTable,2,FALSE)/VLOOKUP(B12,DeflatorTable,2,FALSE) -> 1.211250149 | D12: =+'HyARC Physical Property Data'!$H$85 -> kg | E12: Feed | F12: ='HyARC Physical Property Data'!$E$45 -> 19.55106924 | G12: ='HyARC Physical Property Data'!$I$45 -> 20.58865638 | H12: =1.27*($C$12) -> 1.53828769 | I12: 1.53828769 | J12: 1.53828769 | K12: 1.53828769 | L12: 1.53828769 | M12: 1.53828769 | N12: 1.53828769 | O12: 1.53828769 | P12: =1.28*($C$12) -> 1.550400191 | Q12: =1.32*($C$12) -> 1.598850197 | R12: =1.32*($C$12) -> 1.598850197 | S12: =1.34*($C$12) -> 1.6230752 | T12: =1.34*($C$12) -> 1.6230752 | U12: =1.36*($C$12) -> 1.647300203 | V12: =1.36*($C$12) -> 1.647300203 | W12: =1.38*($C$12) -> 1.671525206 | X12: =1.4*($C$12) -> 1.695750209 | Y12: =1.46*($C$12) -> 1.768425218 | Z12: =1.48*($C$12) -> 1.792650221 | AA12: =1.48*($C$12) -> 1.792650221 | AB12: =1.51*($C$12) -> 1.828987726 | AC12: =1.52*($C$12) -> 1.841100227 | AD12: =1.62*($C$12) -> 1.962225242 | AE12: =1.72*($C$12) -> 2.083350257 | AF12: =1.82*($C$12) -> 2.204475272 | AG12: =1.91*($C$12) -> 2.313487786 | AH12: =2.01*($C$12) -> 2.4346128 | AI12: =2.11*($C$12) -> 2.555737815 | AJ12: =2.2*($C$12) -> 2.664750329 | AK12: =2.3*($C$12) -> 2.785875344 | AL12: =2.4*($C$12) -> 2.907000359 | AM12: =2.5*($C$12) -> 3.028125374 | AN12: =2.57*($C$12) -> 3.112912884 | AO12: =2.64*($C$12) -> 3.197700395 | AP12: =2.71*($C$12) -> 3.282487905 | AQ12: =2.78*($C$12) -> 3.367275416 | AR12: =2.85*($C$12) -> 3.452062926 | AS12: =2.92*($C$12) -> 3.536850437 | AT12: =2.99*($C$12) -> 3.621637947 | AU12: =3.07*($C$12) -> 3.718537959 | AV12: =3.14*($C$12) -> 3.803325469 | AW12: =3.21*($C$12) -> 3.88811298 | AX12: =3.28*($C$12) -> 3.97290049 | AY12: =3.35*($C$12) -> 4.057688001 | AZ12: =3.42*($C$12) -> 4.142475511 | BA12: =3.49*($C$12) -> 4.227263022 | BB12: =3.56*($C$12) -> 4.312050532 | BC12: =3.64*($C$12) -> 4.408950544 | BD12: =3.71*($C$12) -> 4.493738055 | BE12: =3.78*($C$12) -> 4.578525565 | BF12: =3.85*($C$12) -> 4.663313076 | BG12: =3.92*($C$12) -> 4.748100586 | BH12: =3.99*($C$12) -> 4.832888096 | BI12: =4.06*($C$12) -> 4.917675607 | BJ12: =4.14*($C$12) -> 5.014575619 | BK12: =4.21*($C$12) -> 5.099363129 | BL12: =4.28*($C$12) -> 5.18415064 | BM12: =4.35*($C$12) -> 5.26893815 | BN12: =4.42*($C$12) -> 5.353725661 | BO12: =4.49*($C$12) -> 5.438513171 | BP12: =4.56*($C$12) -> 5.523300682 | BQ12: =4.63*($C$12) -> 5.608088192 | BR12: =4.71*($C$12) -> 5.704988204 | BS12: =4.78*($C$12) -> 5.789775715 | BT12: =4.85*($C$12) -> 5.874563225 | BU12: =4.92*($C$12) -> 5.959350735 | BV12: =4.99*($C$12) -> 6.044138246 | BW12: =+BV12*BW$137/BV$137 -> 6.058665976 | BX12: =+BW12*BX$137/BW$137 -> 6.073228626 | BY12: 6.087826278 | BZ12: 6.102459018 | CA12: 6.117126928 | CB12: 6.129966715 | CC12: 6.142833453 | CD12: 6.155727198 | CE12: 6.168648006 | CF12: 6.181595935 | CG12: 6.197524392 | CH12: 6.213493892 | CI12: 6.229504542 | CJ12: 6.245556447 | CK12: 6.261649715 | CL12: 6.275052266 | CM12: 6.288483504 | CN12: 6.30194349 | CO12: 6.315432287 | CP12: 6.328949955 | CQ12: 6.341322549 | CR12: 6.35371933 | CS12: 6.366140346 | CT12: 6.378585644 | CU12: 6.391055272 | CV12: 6.405777239 | CW12: 6.420533119 | CX12: 6.435322989 | CY12: 6.450146929 | CZ12: 6.465005015
A13: ='HyARC Physical Property Data'!A86 -> Woody Biomass B2A | B13: 2007 | C13: =VLOOKUP(ref_year,DeflatorTable,2,FALSE)/VLOOKUP(B13,DeflatorTable,2,FALSE) -> 1.144635996 | D13: =+'HyARC Physical Property Data'!$H$86 -> kg | E13: Feed | F13: ='HyARC Physical Property Data'!$E$45 -> 19.55106924 | G13: ='HyARC Physical Property Data'!$I$45 -> 20.58865638 | H13: =3.80872262322035*($C$13) -> 4.359601012 | I13: =3.80872262322035*($C$13) -> 4.359601012 | J13: =3.80872262322035*($C$13) -> 4.359601012 | K13: =3.80872262322035*($C$13) -> 4.359601012 | L13: =3.58036841709093*($C$13) -> 4.098218568 | M13: =3.28153451771169*($C$13) -> 3.75616253 | N13: =3.05599949931226*($C$13) -> 3.49800703 | O13: =2.9206784882726*($C$13) -> 3.343113729 | P13: =2.85865635821276*($C$13) -> 3.272120967 | Q13: 3.272120967 | R13: 3.272120967 | S13: 3.272120967 | T13: 3.272120967 | U13: 3.272120967 | V13: 3.272120967 | W13: 3.272120967 | X13: 3.272120967 | Y13: 3.272120967 | Z13: 3.272120967 | AA13: 3.272120967 | AB13: 3.272120967 | AC13: 3.272120967 | AD13: 3.272120967 | AE13: 3.272120967 | AF13: 3.272120967 | AG13: 3.272120967 | AH13: 3.272120967 | AI13: 3.272120967 | AJ13: 3.272120967 | AK13: 3.272120967 | AL13: 3.272120967 | AM13: 3.272120967 | AN13: 3.272120967 | AO13: 3.272120967 | AP13: 3.272120967 | AQ13: 3.272120967 | AR13: 3.272120967 | AS13: 3.272120967 | AT13: 3.272120967 | AU13: 3.272120967 | AV13: 3.272120967 | AW13: 3.272120967 | AX13: 3.272120967 | AY13: 3.272120967 | AZ13: 3.272120967 | BA13: 3.272120967 | BB13: 3.272120967 | BC13: 3.272120967 | BD13: 3.272120967 | BE13: 3.272120967 | BF13: 3.272120967 | BG13: 3.272120967 | BH13: 3.272120967 | BI13: 3.272120967 | BJ13: 3.272120967 | BK13: 3.272120967 | BL13: 3.272120967 | BM13: 3.272120967 | BN13: 3.272120967 | BO13: 3.272120967 | BP13: 3.272120967 | BQ13: 3.272120967 | BR13: 3.272120967 | BS13: 3.272120967 | BT13: 3.272120967 | BU13: 3.272120967 | BV13: 3.272120967 | BW13: =+BV13*BW$137/BV$137 -> 3.279985858 | BX13: =+BW13*BX$137/BW$137 -> 3.287869654 | BY13: 3.295772399 | BZ13: 3.303694139 | CA13: 3.31163492 | CB13: 3.318586008 | CC13: 3.325551686 | CD13: 3.332531985 | CE13: 3.339526936 | CF13: 3.346536569 | CG13: 3.355159773 | CH13: 3.363805197 | CI13: 3.372472898 | CJ13: 3.381162933 | CK13: 3.389875361 | CL13: 3.397131113 | CM13: 3.404402395 | CN13: 3.411689241 | CO13: 3.418991684 | CP13: 3.426309757 | CQ13: 3.43300792 | CR13: 3.439719178 | CS13: 3.446443555 | CT13: 3.453181078 | CU13: 3.459931773 | CV13: 3.467901818 | CW13: 3.475890223 | CX13: 3.48389703 | CY13: 3.49192228 | CZ13: 3.499966017
A14: ='HyARC Physical Property Data'!$A$87 -> Woody Biomass MYPP | B14: 2007 | C14: =VLOOKUP(ref_year,DeflatorTable,2,FALSE)/VLOOKUP(B14,DeflatorTable,2,FALSE) -> 1.144635996 | D14: =+'HyARC Physical Property Data'!$H$87 -> kg | E14: Feed | F14: 18.608 | H14: =4.44432502149613*$C$14 -> 5.087134396 | I14: =4.44432502149613*$C$14 -> 5.087134396 | J14: 5.087134396 | K14: 5.087134396 | L14: 5.087134396 | M14: 5.087134396 | N14: 5.087134396 | O14: =N14-($N$14-$U$14)/7 -> 4.96648082 | P14: 4.845827244 | Q14: 4.725173667 | R14: 4.604520091 | S14: 4.483866515 | T14: 4.363212939 | U14: =3.70647033533964*$C$14 -> 4.242559363 | V14: =3.70647033533964*$C$14 -> 4.242559363 | W14: 4.242559363 | X14: 4.242559363 | Y14: 4.242559363 | Z14: 4.242559363 | AA14: 4.242559363 | AB14: 4.242559363 | AC14: 4.242559363 | AD14: 4.242559363 | AE14: 4.242559363 | AF14: 4.242559363 | AG14: 4.242559363 | AH14: 4.242559363 | AI14: 4.242559363 | AJ14: 4.242559363 | AK14: 4.242559363 | AL14: 4.242559363 | AM14: 4.242559363 | AN14: 4.242559363 | AO14: 4.242559363 | AP14: 4.242559363 | AQ14: 4.242559363 | AR14: 4.242559363 | AS14: 4.242559363 | AT14: 4.242559363 | AU14: 4.242559363 | AV14: 4.242559363 | AW14: 4.242559363 | AX14: 4.242559363 | AY14: 4.242559363 | AZ14: 4.242559363 | BA14: 4.242559363 | BB14: 4.242559363 | BC14: 4.242559363 | BD14: 4.242559363 | BE14: 4.242559363 | BF14: 4.242559363 | BG14: 4.242559363 | BH14: 4.242559363 | BI14: 4.242559363 | BJ14: 4.242559363 | BK14: 4.242559363 | BL14: 4.242559363 | BM14: 4.242559363 | BN14: 4.242559363 | BO14: 4.242559363 | BP14: 4.242559363 | BQ14: 4.242559363 | BR14: 4.242559363 | BS14: 4.242559363 | BT14: 4.242559363 | BU14: 4.242559363 | BV14: 4.242559363 | BW14: =+BV14*BW$137/BV$137 -> 4.252756806 | BX14: =+BW14*BX$137/BW$137 -> 4.262978761 | BY14: 4.273225284 | BZ14: 4.283496437 | CA14: 4.293792277 | CB14: 4.302804903 | CC14: 4.311836447 | CD14: 4.320886948 | CE14: 4.329956445 | CF14: 4.33904498 | CG14: 4.350225634 | CH14: 4.361435099 | CI14: 4.372673447 | CJ14: 4.383940754 | CK14: 4.395237094 | CL14: 4.404644741 | CM14: 4.414072524 | CN14: 4.423520487 | CO14: 4.432988672 | CP14: 4.442477123 | CQ14: 4.451161813 | CR14: 4.45986348 | CS14: 4.468582158 | CT14: 4.477317881 | CU14: 4.486070682 | CV14: 4.496404466 | CW14: 4.506762054 | CX14: 4.517143502 | CY14: 4.527548863 | CZ14: 4.537978193
A15: ='HyARC Physical Property Data'!A79 -> Electric Utility Steam Coal | B15: 2007 | C15: =VLOOKUP(ref_year,DeflatorTable,2,FALSE)/VLOOKUP(B15,DeflatorTable,2,FALSE) -> 1.144635996 | D15: =+'HyARC Physical Property Data'!$H$79 -> kg | E15: Feed | F15: ='HyARC Physical Property Data'!E42 -> 22.732203 | G15: ='HyARC Physical Property Data'!I42 -> 23.96761519 | H15: =1.73552525043488*($C$15/mmBTU_to_GJ*$G$15/$F$15) -> 1.985313857 | I15: =1.73552525043488*($C$15/mmBTU_to_GJ*$G$15/$F$15) -> 1.985313857 | J15: =1.73552525043488*($C$15/mmBTU_to_GJ*$G$15/$F$15) -> 1.985313857 | K15: =1.78000020980835*($C$15/mmBTU_to_GJ*$G$15/$F$15) -> 2.036189955 | L15: =1.9310736656189*($C$15/mmBTU_to_GJ*$G$15/$F$15) -> 2.209006931 | M15: =1.98230564594269*($C$15/mmBTU_to_GJ*$G$15/$F$15) -> 2.267612566 | N15: =1.86225914955139*($C$15/mmBTU_to_GJ*$G$15/$F$15) -> 2.130288161 | O15: =1.87335216999054*($C$15/mmBTU_to_GJ*$G$15/$F$15) -> 2.142977765 | P15: =1.85759365558624*($C$15/mmBTU_to_GJ*$G$15/$F$15) -> 2.124951178 | Q15: =1.88174879550934*($C$15/mmBTU_to_GJ*$G$15/$F$15) -> 2.15258289 | R15: =1.90431761741638*($C$15/mmBTU_to_GJ*$G$15/$F$15) -> 2.17839997 | S15: =1.90719401836395*($C$15/mmBTU_to_GJ*$G$15/$F$15) -> 2.181690362 | T15: =1.91704928874969*($C$15/mmBTU_to_GJ*$G$15/$F$15) -> 2.19296407 | U15: =1.92595064640045*($C$15/mmBTU_to_GJ*$G$15/$F$15) -> 2.203146572 | V15: =1.94080138206482*($C$15/mmBTU_to_GJ*$G$15/$F$15) -> 2.220134726 | W15: =1.94636797904968*($C$15/mmBTU_to_GJ*$G$15/$F$15) -> 2.226502506 | X15: =1.95628917217255*($C$15/mmBTU_to_GJ*$G$15/$F$15) -> 2.237851625 | Y15: =1.96225011348724*($C$15/mmBTU_to_GJ*$G$15/$F$15) -> 2.244670505 | Z15: =1.97535526752472*($C$15/mmBTU_to_GJ*$G$15/$F$15) -> 2.259661842 | AA15: =1.98115420341492*($C$15/mmBTU_to_GJ*$G$15/$F$15) -> 2.2662954 | AB15: =1.98549652099609*($C$15/mmBTU_to_GJ*$G$15/$F$15) -> 2.271262694 | AC15: =1.98988306522369*($C$15/mmBTU_to_GJ*$G$15/$F$15) -> 2.276280579 | AD15: =1.99634909629822*($C$15/mmBTU_to_GJ*$G$15/$F$15) -> 2.283677246 | AE15: =2.00744533538818*($C$15/mmBTU_to_GJ*$G$15/$F$15) -> 2.296370531 | AF15: =2.02021908760071*($C$15/mmBTU_to_GJ*$G$15/$F$15) -> 2.310982769 | AG15: =2.03361201286316*($C$15/mmBTU_to_GJ*$G$15/$F$15) -> 2.326303295 | AH15: =2.04451942443848*($C$15/mmBTU_to_GJ*$G$15/$F$15) -> 2.338780575 | AI15: =(($BB$15-$AH$15)/20+AH15) -> 2.343923258 | AJ15: =(($BB$15-$AH$15)/20+AI15) -> 2.349065942 | AK15: 2.354208625 | AL15: 2.359351308 | AM15: 2.364493991 | AN15: 2.369636674 | AO15: 2.374779357 | AP15: 2.37992204 | AQ15: 2.385064723 | AR15: 2.390207406 | AS15: 2.395350089 | AT15: 2.400492772 | AU15: 2.405635456 | AV15: 2.410778139 | AW15: 2.415920822 | AX15: 2.421063505 | AY15: 2.426206188 | AZ15: 2.431348871 | BA15: 2.436491554 | BB15: =(1.04397747398165*AH15) -> 2.441634237 | BC15: =(($BQ$15-$BB$15)/15+BB15) -> 2.446264979 | BD15: =(($BQ$15-$BB$15)/15+BC15) -> 2.450895721 | BE15: 2.455526463 | BF15: 2.460157204 | BG15: 2.464787946 | BH15: 2.469418688 | BI15: 2.47404943 | BJ15: 2.478680172 | BK15: 2.483310913 | BL15: 2.487941655 | BM15: 2.492572397 | BN15: 2.497203139 | BO15: 2.501833881 | BP15: 2.506464622 | BQ15: =(1.02844862093285*BB15) -> 2.511095364 | BR15: =(($BV$15-$BQ$15)/5+BQ15) -> 2.515857844 | BS15: =(($BV$15-$BQ$15)/5+BR15) -> 2.520620324 | BT15: =(($BV$15-$BQ$15)/5+BS15) -> 2.525382804 | BU15: =(($BV$15-$BQ$15)/5+BT15) -> 2.530145284 | BV15: =(1.00948287364428*BQ15) -> 2.534907764 | BW15: =+BV15*BW$138/BV$138 -> 2.543478174 | BX15: =+BW15*BX$138/BW$138 -> 2.55207756 | BY15: 2.56070602 | BZ15: 2.569363652 | CA15: 2.578050556 | CB15: 2.585431919 | CC15: 2.592834417 | CD15: 2.600258109 | CE15: 2.607703056 | CF15: 2.615169319 | CG15: 2.620869819 | CH15: 2.626582745 | CI15: 2.632308123 | CJ15: 2.638045982 | CK15: 2.643796348 | CL15: 2.647694616 | CM15: 2.651598633 | CN15: 2.655508406 | CO15: 2.659423944 | CP15: 2.663345255 | CQ15: 2.664658441 | CR15: 2.665972275 | CS15: 2.667286756 | CT15: 2.668601885 | CU15: 2.669917663 | CV15: 2.668026607 | CW15: 2.66613689 | CX15: 2.664248511 | CY15: 2.66236147 | CZ15: 2.660475766
A16: ='HyARC Physical Property Data'!A76 -> Commercial Electricity | B16: 2007 | C16: 1.144635996 | D16: ='HyARC Physical Property Data'!$H$76 -> kWh | E16: Feed Utility Byprod | H16: =(28.3762531280518/(mmBTU_to_GJ))*($C$16) -> 30.78718555 | I16: =(28.3762531280518/(mmBTU_to_GJ))*($C$16) -> 30.78718555 | J16: =(28.3762531280518/(mmBTU_to_GJ))*($C$16) -> 30.78718555 | K16: =(28.0297355651855/(mmBTU_to_GJ))*($C$16) -> 30.4112268 | L16: =(29.057315826416/(mmBTU_to_GJ))*($C$16) -> 31.52611339 | M16: =(27.6067714691162/(mmBTU_to_GJ))*($C$16) -> 29.9523264 | N16: =(24.8355846405029/(mmBTU_to_GJ))*($C$16) -> 26.94569114 | O16: =(25.5812511444092/(mmBTU_to_GJ))*($C$16) -> 27.75471173 | P16: =(25.4402256011963/(mmBTU_to_GJ))*($C$16) -> 27.60170423 | Q16: =(25.4701290130615/(mmBTU_to_GJ))*($C$16) -> 27.63414832 | R16: =(25.6722831726074/(mmBTU_to_GJ))*($C$16) -> 27.85347811 | S16: =(25.7632827758789/(mmBTU_to_GJ))*($C$16) -> 27.95220932 | T16: =(26.1006698608398/(mmBTU_to_GJ))*($C$16) -> 28.31826183 | U16: =(26.4680442810059/(mmBTU_to_GJ))*($C$16) -> 28.7168495 | V16: =(26.885612487793/(mmBTU_to_GJ))*($C$16) -> 29.16989556 | W16: =(27.1694507598877/(mmBTU_to_GJ))*($C$16) -> 29.47784959 | X16: =(27.6201095581055/(mmBTU_to_GJ))*($C$16) -> 29.96679773 | Y16: =(28.0024471282958/(mmBTU_to_GJ))*($C$16) -> 30.38161986 | Z16: =(28.2454071044922/(mmBTU_to_GJ))*($C$16) -> 30.64522245 | AA16: =(28.1863746643066/(mmBTU_to_GJ))*($C$16) -> 30.58117443 | AB16: =(28.2032489776611/(mmBTU_to_GJ))*($C$16) -> 30.59948244 | AC16: =(28.1397113800049/(mmBTU_to_GJ))*($C$16) -> 30.5305465 | AD16: =(28.178466796875/(mmBTU_to_GJ))*($C$16) -> 30.57259469 | AE16: =(28.4951820373535/(mmBTU_to_GJ))*($C$16) -> 30.91621902 | AF16: =(28.9155654907227/(mmBTU_to_GJ))*($C$16) -> 31.37231952 | AG16: =(29.2894115447998/(mmBTU_to_GJ))*($C$16) -> 31.77792867 | AH16: =(29.6516952514648/(mmBTU_to_GJ))*($C$16) -> 32.1709931 | AI16: =($BB16-$AH16)/20+AH16 -> 32.16150778 | AJ16: 32.15202247 | AK16: 32.14253716 | AL16: 32.13305184 | AM16: 32.12356653 | AN16: 32.11408122 | AO16: 32.1045959 | AP16: 32.09511059 | AQ16: 32.08562528 | AR16: 32.07613996 | AS16: 32.06665465 | AT16: 32.05716934 | AU16: 32.04768402 | AV16: 32.03819871 | AW16: 32.0287134 | AX16: 32.01922809 | AY16: 32.00974277 | AZ16: 32.00025746 | BA16: 31.99077215 | BB16: =0.994103189054944*AH16 -> 31.98128683 | BC16: =($BQ16-$BB16)/15+BB16 -> 32.00160286 | BD16: 32.0219189 | BE16: 32.04223493 | BF16: 32.06255096 | BG16: 32.08286699 | BH16: 32.10318302 | BI16: 32.12349905 | BJ16: 32.14381509 | BK16: 32.16413112 | BL16: 32.18444715 | BM16: 32.20476318 | BN16: 32.22507921 | BO16: 32.24539524 | BP16: 32.26571127 | BQ16: =1.00952871208344*BB16 -> 32.28602731 | BR16: =($BV16-$BQ16)/5+BQ16 -> 32.30653692 | BS16: 32.32704654 | BT16: 32.34755616 | BU16: 32.36806578 | BV16: =1.00317623736115*BQ16 -> 32.38857539 | BW16: =+BV16*BW$139/BV$139 -> 32.37431458 | BX16: =+BW16*BX$139/BW$139 -> 32.36006005 | BY16: 32.34581179 | BZ16: 32.33156981 | CA16: 32.3173341 | CB16: 32.29144842 | CC16: 32.26558347 | CD16: 32.23973924 | CE16: 32.21391571 | CF16: 32.18811287 | CG16: 32.15256801 | CH16: 32.1170624 | CI16: 32.08159599 | CJ16: 32.04616876 | CK16: 32.01078064 | CL16: 31.97219895 | CM16: 31.93366375 | CN16: 31.895175 | CO16: 31.85673265 | CP16: 31.81833662 | CQ16: 31.773864 | CR16: 31.72945353 | CS16: 31.68510514 | CT16: 31.64081874 | CU16: 31.59659423 | CV16: 31.55342324 | CW16: 31.51031123 | CX16: 31.46725813 | CY16: 31.42426386 | CZ16: 31.38132832
A17: ='HyARC Physical Property Data'!A77 -> Industrial Electricity | B17: 2007 | C17: 1.144635996 | D17: ='HyARC Physical Property Data'!$H$77 -> kWh | E17: Feed Utility Byprod | H17: =(18.4008941650391/(mmBTU_to_GJ))*($C$17) -> 19.96428987 | I17: =(18.4008941650391/(mmBTU_to_GJ))*($C$17) -> 19.96428987 | J17: =(18.4008941650391/(mmBTU_to_GJ))*($C$17) -> 19.96428987 | K17: =(18.6226921081543/(mmBTU_to_GJ))*($C$17) -> 20.20493244 | L17: =(20.3344097137451/(mmBTU_to_GJ))*($C$17) -> 22.06208276 | M17: =(19.1594867706299/(mmBTU_to_GJ))*($C$17) -> 20.7873348 | N17: =(16.8281726837158/(mmBTU_to_GJ))*($C$17) -> 18.25794521 | O17: =(17.2643089294434/(mmBTU_to_GJ))*($C$17) -> 18.73113691 | P17: =(17.1560707092285/(mmBTU_to_GJ))*($C$17) -> 18.61370244 | Q17: =(17.0836048126221/(mmBTU_to_GJ))*($C$17) -> 18.53507962 | R17: =(17.1988334655762/(mmBTU_to_GJ))*($C$17) -> 18.66009845 | S17: =(17.3181438446045/(mmBTU_to_GJ))*($C$17) -> 18.7895458 | T17: =(17.6150741577148/(mmBTU_to_GJ))*($C$17) -> 19.11170422 | U17: =(17.9101543426514/(mmBTU_to_GJ))*($C$17) -> 19.43185531 | V17: =(18.2101707458496/(mmBTU_to_GJ))*($C$17) -> 19.75736201 | W17: =(18.456880569458/(mmBTU_to_GJ))*($C$17) -> 20.02503305 | X17: =(18.8030014038086/(mmBTU_to_GJ))*($C$17) -> 20.40056136 | Y17: =(19.0852069854736/(mmBTU_to_GJ))*($C$17) -> 20.70674398 | Z17: =(19.30615234375/(mmBTU_to_GJ))*($C$17) -> 20.94646153 | AA17: =(19.3043308258057/(mmBTU_to_GJ))*($C$17) -> 20.94448525 | AB17: =(19.3253479003906/(mmBTU_to_GJ))*($C$17) -> 20.967288 | AC17: =(19.3248138427734/(mmBTU_to_GJ))*($C$17) -> 20.96670856 | AD17: =(19.3542194366455/(mmBTU_to_GJ))*($C$17) -> 20.99861254 | AE17: =(19.6148834228516/(mmBTU_to_GJ))*($C$17) -> 21.28142333 | AF17: =(19.97239112854/(mmBTU_to_GJ))*($C$17) -> 21.66930598 | AG17: =(20.29469871521/(mmBTU_to_GJ))*($C$17) -> 22.01899779 | AH17: =(20.5609893798828/(mmBTU_to_GJ))*($C$17) -> 22.30791332 | AI17: 22.30133604 | AJ17: 22.29475876 | AK17: 22.28818149 | AL17: 22.28160421 | AM17: 22.27502693 | AN17: 22.26844965 | AO17: 22.26187238 | AP17: 22.2552951 | AQ17: 22.24871782 | AR17: 22.24214054 | AS17: 22.23556327 | AT17: 22.22898599 | AU17: 22.22240871 | AV17: 22.21583143 | AW17: 22.20925416 | AX17: 22.20267688 | AY17: 22.1960996 | AZ17: 22.18952233 | BA17: 22.18294505 | BB17: =0.994103189054944*AH17 -> 22.17636777 | BC17: 22.19045525 | BD17: 22.20454273 | BE17: 22.21863022 | BF17: 22.2327177 | BG17: 22.24680518 | BH17: 22.26089266 | BI17: 22.27498014 | BJ17: 22.28906762 | BK17: 22.3031551 | BL17: 22.31724259 | BM17: 22.33133007 | BN17: 22.34541755 | BO17: 22.35950503 | BP17: 22.37359251 | BQ17: =1.00952871208344*BB17 -> 22.38767999 | BR17: 22.40190171 | BS17: 22.41612343 | BT17: 22.43034515 | BU17: 22.44456686 | BV17: =1.00317623736115*BQ17 -> 22.45878858 | BW17: =+BV17*BW$140/BV$140 -> 22.46557472 | BX17: =+BW17*BX$140/BW$140 -> 22.47236291 | BY17: 22.47915315 | BZ17: 22.48594544 | CA17: 22.49273979 | CB17: 22.49019603 | CC17: 22.48765257 | CD17: 22.48510938 | CE17: 22.48256649 | CF17: 22.48002389 | CG17: 22.46982675 | CH17: 22.45963424 | CI17: 22.44944635 | CJ17: 22.43926308 | CK17: 22.42908443 | CL17: 22.41659732 | CM17: 22.40411716 | CN17: 22.39164395 | CO17: 22.37917768 | CP17: 22.36671836 | CQ17: 22.34964846 | CR17: 22.33259159 | CS17: 22.31554774 | CT17: 22.2985169 | CU17: 22.28149905 | CV17: 22.26549905 | CW17: 22.24951054 | CX17: 22.23353351 | CY17: 22.21756795 | CZ17: 22.20161385
A18: ='HyARC Physical Property Data'!A78 -> Residential Electricity | B18: 2007 | C18: 1.144635996 | D18: ='HyARC Physical Property Data'!$H$78 -> kWh | E18: Feed Utility Byprod | H18: =(31.2067794799805/(mmBTU_to_GJ))*($C$18) -> 33.85820199 | I18: =(31.2067794799805/(mmBTU_to_GJ))*($C$18) -> 33.85820199 | J18: =(31.2067794799805/(mmBTU_to_GJ))*($C$18) -> 33.85820199 | K18: =(31.181957244873/(mmBTU_to_GJ))*($C$18) -> 33.83127078 | L18: =(31.772819519043/(mmBTU_to_GJ))*($C$18) -> 34.47233451 | M18: =(30.736837387085/(mmBTU_to_GJ))*($C$18) -> 33.34833219 | N18: =(28.6163578033447/(mmBTU_to_GJ))*($C$18) -> 31.04769024 | O18: =(29.8736190795898/(mmBTU_to_GJ))*($C$18) -> 32.41177225 | P18: =(30.101655960083/(mmBTU_to_GJ))*($C$18) -> 32.65918383 | Q18: =(30.4253902435303/(mmBTU_to_GJ))*($C$18) -> 33.01042356 | R18: =(30.7938537597656/(mmBTU_to_GJ))*($C$18) -> 33.41019285 | S18: =(30.8830280303955/(mmBTU_to_GJ))*($C$18) -> 33.50694364 | T18: =(31.1491451263428/(mmBTU_to_GJ))*($C$18) -> 33.79567085 | U18: =(31.4898681640625/(mmBTU_to_GJ))*($C$18) -> 34.16534275 | V18: =(31.8156299591064/(mmBTU_to_GJ))*($C$18) -> 34.51878225 | W18: =(32.0206985473633/(mmBTU_to_GJ))*($C$18) -> 34.74127409 | X18: =(32.4303588867188/(mmBTU_to_GJ))*($C$18) -> 35.18574041 | Y18: =(32.7907905578613/(mmBTU_to_GJ))*($C$18) -> 35.57679545 | Z18: =(32.9940071105957/(mmBTU_to_GJ))*($C$18) -> 35.7972779 | AA18: =(32.9234657287598/(mmBTU_to_GJ))*($C$18) -> 35.7207431 | AB18: =(32.9201545715332/(mmBTU_to_GJ))*($C$18) -> 35.71715062 | AC18: =(32.902271270752/(mmBTU_to_GJ))*($C$18) -> 35.6977479 | AD18: =(32.9582405090332/(mmBTU_to_GJ))*($C$18) -> 35.75847245 | AE18: =(33.321102142334/(mmBTU_to_GJ))*($C$18) -> 36.15216391 | AF18: =(33.7343635559082/(mmBTU_to_GJ))*($C$18) -> 36.60053727 | AG18: =(34.1495399475098/(mmBTU_to_GJ))*($C$18) -> 37.0509883 | AH18: =(34.4904899597167/(mmBTU_to_GJ))*($C$18) -> 37.42090646 | AI18: 37.40987326 | AJ18: 37.39884006 | AK18: 37.38780686 | AL18: 37.37677366 | AM18: 37.36574046 | AN18: 37.35470726 | AO18: 37.34367406 | AP18: 37.33264086 | AQ18: 37.32160766 | AR18: 37.31057445 | AS18: 37.29954125 | AT18: 37.28850805 | AU18: 37.27747485 | AV18: 37.26644165 | AW18: 37.25540845 | AX18: 37.24437525 | AY18: 37.23334205 | AZ18: 37.22230885 | BA18: 37.21127565 | BB18: =0.994103189054944*AH18 -> 37.20024245 | BC18: 37.22387381 | BD18: 37.24750517 | BE18: 37.27113653 | BF18: 37.29476789 | BG18: 37.31839925 | BH18: 37.34203061 | BI18: 37.36566197 | BJ18: 37.38929333 | BK18: 37.41292469 | BL18: 37.43655605 | BM18: 37.46018741 | BN18: 37.48381877 | BO18: 37.50745013 | BP18: 37.53108149 | BQ18: =1.00952871208344*BB18 -> 37.55471285 | BR18: 37.57856939 | BS18: 37.60242592 | BT18: 37.62628246 | BU18: 37.65013899 | BV18: =1.00317623736115*BQ18 -> 37.67399553 | BW18: =+BV18*BW$141/BV$141 -> 37.65740753 | BX18: =+BW18*BX$141/BW$141 -> 37.64082683 | BY18: 37.62425343 | BZ18: 37.60768733 | CA18: 37.59112852 | CB18: 37.56101862 | CC18: 37.53093283 | CD18: 37.50087114 | CE18: 37.47083353 | CF18: 37.44081997 | CG18: 37.39947462 | CH18: 37.35817493 | CI18: 37.31692084 | CJ18: 37.27571231 | CK18: 37.23454929 | CL18: 37.18967153 | CM18: 37.14484786 | CN18: 37.10007822 | CO18: 37.05536254 | CP18: 37.01070075 | CQ18: 36.95897074 | CR18: 36.90731303 | CS18: 36.85572752 | CT18: 36.80421412 | CU18: 36.75277271 | CV18: 36.70255674 | CW18: 36.65240938 | CX18: 36.60233054 | CY18: 36.55232012 | CZ18: 36.50237804
A22: AEO_2013_Reference_Case | B22: ="Prices are in $(" & ref_year&")/GJ LHV" -> Prices are in $(2016)/GJ LHV | AS22: Except as noted,values are extrapolated based on PNNL mini-CAM model (see AEO Data tab)
A23: Year | B23: Source Data Year | C23: Reference year Conversion | D23: Display Units | E23: Use Category | F23: LHV (MJ/kg) | G23: HHV (MJ/kg) | H23: 2004 | I23: 2005 | J23: 2006 | K23: 2007 | L23: 2008 | M23: 2009 | N23: 2010 | O23: 2011 | P23: 2012 | Q23: 2013 | R23: 2014 | S23: 2015 | T23: 2016 | U23: 2017 | V23: 2018 | W23: 2019 | X23: 2020 | Y23: 2021 | Z23: 2022 | AA23: 2023 | AB23: 2024 | AC23: 2025 | AD23: 2026 | AE23: 2027 | AF23: 2028 | AG23: 2029 | AH23: 2030 | AI23: 2031 | AJ23: 2032 | AK23: 2033 | AL23: 2034 | AM23: 2035 | AN23: 2036 | AO23: 2037 | AP23: 2038 | AQ23: 2039 | AR23: 2040 | AS23: 2041 | AT23: 2042 | AU23: 2043 | AV23: 2044 | AW23: 2045 | AX23: 2046 | AY23: 2047 | AZ23: 2048 | BA23: 2049 | BB23: 2050 | BC23: 2051 | BD23: 2052 | BE23: 2053 | BF23: 2054 | BG23: 2055 | BH23: 2056 | BI23: 2057 | BJ23: 2058 | BK23: 2059 | BL23: 2060 | BM23: 2061 | BN23: 2062 | BO23: 2063 | BP23: 2064 | BQ23: 2065 | BR23: 2066 | BS23: 2067 | BT23: 2068 | BU23: 2069 | BV23: 2070 | BW23: =+BV23+1 -> 2071 | BX23: =+BW23+1 -> 2072 | BY23: =+BX23+1 -> 2073 | BZ23: =+BY23+1 -> 2074 | CA23: =+BZ23+1 -> 2075 | CB23: =+CA23+1 -> 2076 | CC23: =+CB23+1 -> 2077 | CD23: =+CC23+1 -> 2078 | CE23: =+CD23+1 -> 2079 | CF23: =+CE23+1 -> 2080 | CG23: =+CF23+1 -> 2081 | CH23: =+CG23+1 -> 2082 | CI23: =+CH23+1 -> 2083 | CJ23: =+CI23+1 -> 2084 | CK23: =+CJ23+1 -> 2085 | CL23: =+CK23+1 -> 2086 | CM23: =+CL23+1 -> 2087 | CN23: =+CM23+1 -> 2088 | CO23: =+CN23+1 -> 2089 | CP23: =+CO23+1 -> 2090 | CQ23: =+CP23+1 -> 2091 | CR23: =+CQ23+1 -> 2092 | CS23: =+CR23+1 -> 2093 | CT23: =+CS23+1 -> 2094 | CU23: =+CT23+1 -> 2095 | CV23: =+CU23+1 -> 2096 | CW23: =+CV23+1 -> 2097 | CX23: =+CW23+1 -> 2098 | CY23: =+CX23+1 -> 2099 | CZ23: =+CY23+1 -> 2100
A24: Feedstock Type
A25: ='HyARC Physical Property Data'!A73 -> Residential Natural Gas | B25: 2011 | C25: =VLOOKUP(ref_year,DeflatorTable,2,FALSE)/VLOOKUP(B25,DeflatorTable,2,FALSE) -> 1.078455477 | D25: ='HyARC Physical Property Data'!H73 -> mmBtu | E25: Feed Utility | F25: ='HyARC Physical Property Data'!$E$6 -> 47.14126905 | G25: ='HyARC Physical Property Data'!$I$6 -> 52.22466124 | H25: 14.38614184 | I25: 14.38614184 | J25: 14.38614184 | K25: 13.32671663 | L25: 13.62776448 | M25: 11.25433973 | N25: =((N42/(mmBTU_to_GJ))*($C25))*($G25/$F25) -> 12.86407262 | O25: 12.23325661 | P25: 11.85052706 | Q25: 11.8658425 | R25: 11.61169509 | S25: 11.50138751 | T25: 12.07520438 | U25: 12.4463443 | V25: 12.90727044 | W25: 13.16477786 | X25: 13.33616259 | Y25: 13.54426403 | Z25: 13.81965192 | AA25: 14.0790868 | AB25: 14.25151905 | AC25: 14.35320746 | AD25: 14.54298905 | AE25: 14.64658339 | AF25: 14.81893751 | AG25: 14.98745483 | AH25: 15.13989911 | AI25: 15.34158063 | AJ25: 15.53944234 | AK25: 15.78188914 | AL25: 16.13639091 | AM25: 16.53263527 | AN25: 17.01379174 | AO25: 17.45793477 | AP25: 17.94079446 | AQ25: 18.18255951 | AR25: 18.53057906 | AS25: =($BB25-$AR25)/10+AR25 -> 18.5378192 | AT25: =($BB25-$AR25)/10+AS25 -> 18.54505934 | AU25: 18.55229949 | AV25: 18.55953963 | AW25: 18.56677977 | AX25: 18.57401992 | AY25: 18.58126006 | AZ25: 18.5885002 | BA25: 18.59574035 | BB25: ='AEO Data'!$B$30*AM25 -> 18.60298049 | BC25: =($BQ25-$BB25)/15+BB25 -> 18.75456373 | BD25: =($BQ25-$BB25)/15+BC25 -> 18.90614697 | BE25: 19.05773021 | BF25: 19.20931345 | BG25: 19.36089669 | BH25: 19.51247993 | BI25: 19.66406317 | BJ25: 19.81564641 | BK25: 19.96722965 | BL25: 20.11881289 | BM25: 20.27039613 | BN25: 20.42197937 | BO25: 20.57356261 | BP25: 20.72514585 | BQ25: ='AEO Data'!$C$30*BB25 -> 20.87672909 | BR25: =($BV25-$BQ25)/5+BQ25 -> 20.99605775 | BS25: =($BV25-$BQ25)/5+BR25 -> 21.11538641 | BT25: =($BV25-$BQ25)/5+BS25 -> 21.23471506 | BU25: =($BV25-$BQ25)/5+BT25 -> 21.35404372 | BV25: ='AEO Data'!$D$30*BQ25 -> 21.47337238 | BW25: =+BV25*BW$133/BV$133 -> 21.54467029 | BX25: =+BW25*BX$133/BW$133 -> 21.61620493 | BY25: 21.68797708 | BZ25: 21.75998754 | CA25: 21.8322371 | CB25: 21.87882553 | CC25: 21.92551337 | CD25: 21.97230084 | CE25: 22.01918816 | CF25: 22.06617553 | CG25: 22.08143203 | CH25: 22.09669907 | CI25: 22.11197668 | CJ25: 22.12726484 | CK25: 22.14256358 | CL25: 22.14774917 | CM25: 22.15293598 | CN25: 22.158124 | CO25: 22.16331324 | CP25: 22.16850369 | CQ25: 22.17637032 | CR25: 22.18423974 | CS25: 22.19211195 | CT25: 22.19998696 | CU25: 22.20786476 | CV25: 22.21998873 | CW25: 22.23211932 | CX25: 22.24425653 | CY25: 22.25640036 | CZ25: 22.26855083
A26: ='HyARC Physical Property Data'!A71 -> Commercial Natural Gas | B26: 2011 | C26: =VLOOKUP(ref_year,DeflatorTable,2,FALSE)/VLOOKUP(B26,DeflatorTable,2,FALSE) -> 1.078455477 | D26: ='HyARC Physical Property Data'!H71 -> mmBtu | E26: Feed Utility | F26: ='HyARC Physical Property Data'!$E$6 -> 47.14126905 | G26: ='HyARC Physical Property Data'!$I$6 -> 52.22466124 | H26: 12.49183679 | I26: 12.49183679 | J26: 12.49183679 | K26: 11.54020185 | L26: 11.90663327 | M26: 9.353676585 | N26: =((N43/(mmBTU_to_GJ))*($C26))*($G26/$F26) -> 10.64172898 | O26: 10.00742045 | P26: 9.142144908 | Q26: 9.583735368 | R26: 9.326131684 | S26: 9.177892243 | T26: 9.695062169 | U26: 9.99375162 | V26: 10.38727015 | W26: 10.58945448 | X26: 10.72218596 | Y26: 10.88403875 | Z26: 11.1198629 | AA26: 11.33776695 | AB26: 11.47527064 | AC26: 11.54393868 | AD26: 11.70461936 | AE26: 11.7640499 | AF26: 11.89086993 | AG26: 12.0101387 | AH26: 12.11420981 | AI26: 12.26730752 | AJ26: 12.40568434 | AK26: 12.59127015 | AL26: 12.89129025 | AM26: 13.22904741 | AN26: 13.65874475 | AO26: 14.04402007 | AP26: 14.47460299 | AQ26: 14.66414676 | AR26: 14.96314877 | AS26: =($BB26-$AR26)/10+AR26 -> 14.95540306 | AT26: 14.94765735 | AU26: 14.93991164 | AV26: 14.93216593 | AW26: 14.92442022 | AX26: 14.9166745 | AY26: 14.90892879 | AZ26: 14.90118308 | BA26: 14.89343737 | BB26: ='AEO Data'!$B$30*AM26 -> 14.88569166 | BC26: =($BQ26-$BB26)/15+BB26 -> 15.0069852 | BD26: 15.12827874 | BE26: 15.24957228 | BF26: 15.37086582 | BG26: 15.49215936 | BH26: 15.6134529 | BI26: 15.73474644 | BJ26: 15.85603998 | BK26: 15.97733352 | BL26: 16.09862706 | BM26: 16.2199206 | BN26: 16.34121415 | BO26: 16.46250769 | BP26: 16.58380123 | BQ26: ='AEO Data'!$C$30*BB26 -> 16.70509477 | BR26: =($BV26-$BQ26)/5+BQ26 -> 16.80057891 | BS26: 16.89606305 | BT26: 16.99154719 | BU26: 17.08703133 | BV26: ='AEO Data'!$D$30*BQ26 -> 17.18251547 | BW26: =+BV26*BW$134/BV$134 -> 17.23956647 | BX26: =+BW26*BX$134/BW$134 -> 17.2968069 | BY26: 17.35423739 | BZ26: 17.41185856 | CA26: 17.46967105 | CB26: 17.50695007 | CC26: 17.54430865 | CD26: 17.58174694 | CE26: 17.61926513 | CF26: 17.65686338 | CG26: 17.66907129 | CH26: 17.68128764 | CI26: 17.69351244 | CJ26: 17.70574569 | CK26: 17.7179874 | CL26: 17.7221368 | CM26: 17.72628717 | CN26: 17.73043851 | CO26: 17.73459082 | CP26: 17.7387441 | CQ26: 17.7450388 | CR26: 17.75133574 | CS26: 17.75763491 | CT26: 17.76393631 | CU26: 17.77023995 | CV26: 17.77994128 | CW26: 17.78964791 | CX26: 17.79935984 | CY26: 17.80907706 | CZ26: 17.8187996
A27: ='HyARC Physical Property Data'!A72 -> Industrial Natural Gas | B27: 2011 | C27: =VLOOKUP(ref_year,DeflatorTable,2,FALSE)/VLOOKUP(B27,DeflatorTable,2,FALSE) -> 1.078455477 | D27: ='HyARC Physical Property Data'!H72 -> mmBtu | E27: Feed Utility | F27: ='HyARC Physical Property Data'!$E$6 -> 47.14126905 | G27: ='HyARC Physical Property Data'!$I$6 -> 52.22466124 | H27: 8.352400601 | I27: 8.352400601 | J27: 8.352400601 | K27: 7.891606632 | L27: 9.242029801 | M27: 5.091378565 | N27: =((N44/(mmBTU_to_GJ))*($C27))*($G27/$F27) -> 6.210383241 | O27: 5.53753359 | P27: 4.257706279 | Q27: 4.908082196 | R27: 4.954585668 | S27: 5.008358421 | T27: 5.510607011 | U27: 5.739257006 | V27: 6.026128071 | W27: 6.171696031 | X27: 6.261855961 | Y27: 6.387867414 | Z27: 6.599741098 | AA27: 6.806902603 | AB27: 6.919360735 | AC27: 6.966006897 | AD27: 7.084418388 | AE27: 7.12876112 | AF27: 7.244120623 | AG27: 7.345442111 | AH27: 7.430638455 | AI27: 7.561039335 | AJ27: 7.66806051 | AK27: 7.832106874 | AL27: 8.118350553 | AM27: 8.431658973 | AN27: 8.848167636 | AO27: 9.233720417 | AP27: 9.624713551 | AQ27: 9.783781606 | AR27: 10.05751157 | AS27: =($BB27-$AR27)/10+AR27 -> 10.0005141 | AT27: 9.943516635 | AU27: 9.886519169 | AV27: 9.829521703 | AW27: 9.772524237 | AX27: 9.715526772 | AY27: 9.658529306 | AZ27: 9.60153184 | BA27: 9.544534374 | BB27: ='AEO Data'!$B$30*AM27 -> 9.487536908 | BC27: 9.564844498 | BD27: 9.642152088 | BE27: 9.719459678 | BF27: 9.796767268 | BG27: 9.874074858 | BH27: 9.951382447 | BI27: 10.02869004 | BJ27: 10.10599763 | BK27: 10.18330522 | BL27: 10.26061281 | BM27: 10.3379204 | BN27: 10.41522799 | BO27: 10.49253558 | BP27: 10.56984317 | BQ27: ='AEO Data'!$C$30*BB27 -> 10.64715076 | BR27: 10.70800848 | BS27: 10.7688662 | BT27: 10.82972393 | BU27: 10.89058165 | BV27: ='AEO Data'!$D$30*BQ27 -> 10.95143937 | BW27: =+BV27*BW$135/BV$135 -> 10.98780137 | BX27: =+BW27*BX$135/BW$135 -> 11.0242841 | BY27: 11.06088797 | BZ27: 11.09761337 | CA27: 11.13446071 | CB27: 11.15822085 | CC27: 11.18203169 | CD27: 11.20589334 | CE27: 11.22980592 | CF27: 11.25376952 | CG27: 11.26155034 | CH27: 11.26933655 | CI27: 11.27712814 | CJ27: 11.28492512 | CK27: 11.29272749 | CL27: 11.29537215 | CM27: 11.29801743 | CN27: 11.30066332 | CO27: 11.30330984 | CP27: 11.30595697 | CQ27: 11.30996896 | CR27: 11.31398237 | CS27: 11.31799721 | CT27: 11.32201347 | CU27: 11.32603115 | CV27: 11.33221439 | CW27: 11.338401 | CX27: 11.34459099 | CY27: 11.35078435 | CZ27: 11.3569811
A28: ='HyARC Physical Property Data'!A74 -> Electric Utility Natural Gas | B28: 2011 | C28: 1.078455477 | D28: ='HyARC Physical Property Data'!H74 -> mmBtu | E28: Feed Utility | F28: ='HyARC Physical Property Data'!$E$6 -> 47.14126905 | G28: ='HyARC Physical Property Data'!$I$6 -> 52.22466124 | H28: 7.407925909 | I28: 7.407925909 | J28: 7.407925909 | K28: 7.370671092 | L28: 9.31589251 | M28: 4.783762318 | N28: =((N45/(mmBTU_to_GJ))*($C28))*($G28/$F28) -> 5.954678698 | O28: 5.407188201 | P28: 3.761766642 | Q28: 4.207701231 | R28: 4.256044955 | S28: 4.351004265 | T28: 4.849907559 | U28: 5.037958746 | V28: 5.325534202 | W28: 5.46100059 | X28: 5.54539968 | Y28: 5.670718065 | Z28: 5.891470261 | AA28: 6.102590858 | AB28: 6.24885868 | AC28: 6.31683592 | AD28: 6.465015341 | AE28: 6.523862662 | AF28: 6.643985305 | AG28: 6.755164886 | AH28: 6.854630267 | AI28: 7.002792701 | AJ28: 7.126792899 | AK28: 7.299714377 | AL28: 7.585633039 | AM28: 7.905098661 | AN28: 8.31813859 | AO28: 8.691597795 | AP28: 9.084597654 | AQ28: 9.235224328 | AR28: 9.487531481 | AS28: =($BB28-$AR28)/10+AR28 -> 9.428281995 | AT28: 9.369032508 | AU28: 9.309783022 | AV28: 9.250533536 | AW28: 9.19128405 | AX28: 9.132034563 | AY28: 9.072785077 | AZ28: 9.013535591 | BA28: 8.954286104 | BB28: ='AEO Data'!$B$30*AM28 -> 8.895036618 | BC28: 8.96751632 | BD28: 9.039996021 | BE28: 9.112475722 | BF28: 9.184955424 | BG28: 9.257435125 | BH28: 9.329914827 | BI28: 9.402394528 | BJ28: 9.47487423 | BK28: 9.547353931 | BL28: 9.619833632 | BM28: 9.692313334 | BN28: 9.764793035 | BO28: 9.837272737 | BP28: 9.909752438 | BQ28: ='AEO Data'!$C$30*BB28 -> 9.98223214 | BR28: 10.03928927 | BS28: 10.09634641 | BT28: 10.15340355 | BU28: 10.21046068 | BV28: ='AEO Data'!$D$30*BQ28 -> 10.26751782 | BW28: =+BV28*BW$136/BV$136 -> 10.30160899 | BX28: =+BW28*BX$136/BW$136 -> 10.33581336 | BY28: 10.3701313 | BZ28: 10.40456319 | CA28: 10.4391094 | CB28: 10.46138571 | CC28: 10.48370956 | CD28: 10.50608104 | CE28: 10.52850026 | CF28: 10.55096733 | CG28: 10.55826224 | CH28: 10.5655622 | CI28: 10.5728672 | CJ28: 10.58017726 | CK28: 10.58749236 | CL28: 10.58997186 | CM28: 10.59245194 | CN28: 10.5949326 | CO28: 10.59741384 | CP28: 10.59989566 | CQ28: 10.6036571 | CR28: 10.60741987 | CS28: 10.61118398 | CT28: 10.61494942 | CU28: 10.6187162 | CV28: 10.62451329 | CW28: 10.63031354 | CX28: 10.63611696 | CY28: 10.64192355 | CZ28: 10.64773331
A29: ='HyARC Physical Property Data'!A75 -> Bio Methane | B29: 2007 | C29: 1.144635996 | D29: ='HyARC Physical Property Data'!H75 -> mmBtu | E29: Feed Utility | F29: ='HyARC Physical Property Data'!$E$6 -> 47.14126905 | G29: ='HyARC Physical Property Data'!$I$6 -> 52.22466124 | H29: 12.42654028 | I29: 12.42654028 | J29: 12.42654028 | K29: 12.42654028 | L29: 12.42654028 | M29: 12.42654028 | N29: =13.11*($C$29/mmBTU_to_GJ) -> 14.22386531 | O29: 14.22386531 | P29: 14.22386531 | Q29: 14.22386531 | R29: 14.22386531 | S29: 14.22386531 | T29: 14.22386531 | U29: 14.22386531 | V29: 14.22386531 | W29: 14.22386531 | X29: 14.22386531 | Y29: 14.22386531 | Z29: 14.22386531 | AA29: 14.22386531 | AB29: 14.22386531 | AC29: 14.22386531 | AD29: 14.22386531 | AE29: 14.22386531 | AF29: 14.22386531 | AG29: 14.22386531 | AH29: 14.22386531 | AI29: 14.22386531 | AJ29: 14.22386531 | AK29: 14.22386531 | AL29: 14.22386531 | AM29: 14.22386531 | AN29: =13.11*($C$29/mmBTU_to_GJ) -> 14.22386531 | AO29: 14.22386531 | AP29: 14.22386531 | AQ29: 14.22386531 | AR29: 14.22386531 | AS29: 14.22386531 | AT29: 14.22386531 | AU29: 14.22386531 | AV29: 14.22386531 | AW29: 14.22386531 | AX29: 14.22386531 | AY29: 14.22386531 | AZ29: 14.22386531 | BA29: 14.22386531 | BB29: 14.22386531 | BC29: 14.22386531 | BD29: 14.22386531 | BE29: 14.22386531 | BF29: 14.22386531 | BG29: 14.22386531 | BH29: 14.22386531 | BI29: 14.22386531 | BJ29: 14.22386531 | BK29: 14.22386531 | BL29: 14.22386531 | BM29: 14.22386531 | BN29: 14.22386531 | BO29: 14.22386531 | BP29: 14.22386531 | BQ29: 14.22386531 | BR29: 14.22386531 | BS29: 14.22386531 | BT29: 14.22386531 | BU29: 14.22386531 | BV29: 14.22386531 | BW29: =+BV29*BW$136/BV$136 -> 14.27109273 | BX29: =+BW29*BX$136/BW$136 -> 14.31847695 | BY29: 14.3660185 | BZ29: 14.41371791 | CA29: 14.46157569 | CB29: 14.49243566 | CC29: 14.52336147 | CD29: 14.55435328 | CE29: 14.58541123 | CF29: 14.61653545 | CG29: 14.62664129 | CH29: 14.63675411 | CI29: 14.64687393 | CJ29: 14.65700074 | CK29: 14.66713456 | CL29: 14.67056947 | CM29: 14.67400519 | CN29: 14.67744171 | CO29: 14.68087904 | CP29: 14.68431717 | CQ29: 14.68952799 | CR29: 14.69474066 | CS29: 14.69995518 | CT29: 14.70517154 | CU29: 14.71038976 | CV29: 14.71842063 | CW29: 14.72645587 | CX29: 14.73449551 | CY29: 14.74253953 | CZ29: 14.75058794
A30: ='HyARC Physical Property Data'!A85 -> Woody Biomass | B30: 2005 | C30: =VLOOKUP(ref_year,DeflatorTable,2,FALSE)/VLOOKUP(B30,DeflatorTable,2,FALSE) -> 1.211250149 | D30: =+'HyARC Physical Property Data'!$H$85 -> kg | E30: Feed | F30: ='HyARC Physical Property Data'!$E$45 -> 19.55106924 | G30: ='HyARC Physical Property Data'!$I$45 -> 20.58865638 | H30: 1.343823884 | I30: 1.343823884 | J30: 1.343823884 | K30: 1.343823884 | L30: 1.343823884 | M30: 1.343823884 | N30: =1.27*($C$30) -> 1.53828769 | O30: =1.27*($C$30) -> 1.53828769 | P30: =1.28*($C$30) -> 1.550400191 | Q30: =1.32*($C$30) -> 1.598850197 | R30: =1.32*($C$30) -> 1.598850197 | S30: =1.34*($C$30) -> 1.6230752 | T30: =1.34*($C$30) -> 1.6230752 | U30: =1.36*($C$30) -> 1.647300203 | V30: =1.36*($C$30) -> 1.647300203 | W30: =1.38*($C$30) -> 1.671525206 | X30: =1.4*($C$30) -> 1.695750209 | Y30: =1.46*($C$30) -> 1.768425218 | Z30: =1.48*($C$30) -> 1.792650221 | AA30: =1.48*($C$30) -> 1.792650221 | AB30: =1.51*($C$30) -> 1.828987726 | AC30: =1.52*($C$30) -> 1.841100227 | AD30: =1.62*($C$30) -> 1.962225242 | AE30: =1.72*($C$30) -> 2.083350257 | AF30: =1.82*($C$30) -> 2.204475272 | AG30: =1.91*($C$30) -> 2.313487786 | AH30: =2.01*($C$30) -> 2.4346128 | AI30: =2.11*($C$30) -> 2.555737815 | AJ30: =2.2*($C$30) -> 2.664750329 | AK30: =2.3*($C$30) -> 2.785875344 | AL30: =2.4*($C$30) -> 2.907000359 | AM30: =2.5*($C$30) -> 3.028125374 | AN30: =2.57*($C$30) -> 3.112912884 | AO30: =2.64*($C$30) -> 3.197700395 | AP30: =2.71*($C$30) -> 3.282487905 | AQ30: =2.78*($C$30) -> 3.367275416 | AR30: =2.85*($C$30) -> 3.452062926 | AS30: =2.92*($C$30) -> 3.536850437 | AT30: =2.99*($C$30) -> 3.621637947 | AU30: =3.07*($C$30) -> 3.718537959 | AV30: =3.14*($C$30) -> 3.803325469 | AW30: =3.21*($C$30) -> 3.88811298 | AX30: =3.28*($C$30) -> 3.97290049 | AY30: =3.35*($C$30) -> 4.057688001 | AZ30: =3.42*($C$30) -> 4.142475511 | BA30: =3.49*($C$30) -> 4.227263022 | BB30: =3.56*($C$30) -> 4.312050532 | BC30: =3.64*($C$30) -> 4.408950544 | BD30: =3.71*($C$30) -> 4.493738055 | BE30: =3.78*($C$30) -> 4.578525565 | BF30: =3.85*($C$30) -> 4.663313076 | BG30: =3.92*($C$30) -> 4.748100586 | BH30: =3.99*($C$30) -> 4.832888096 | BI30: =4.06*($C$30) -> 4.917675607 | BJ30: =4.14*($C$30) -> 5.014575619 | BK30: =4.21*($C$30) -> 5.099363129 | BL30: =4.28*($C$30) -> 5.18415064 | BM30: =4.35*($C$30) -> 5.26893815 | BN30: =4.42*($C$30) -> 5.353725661 | BO30: =4.49*($C$30) -> 5.438513171 | BP30: =4.56*($C$30) -> 5.523300682 | BQ30: =4.63*($C$30) -> 5.608088192 | BR30: =4.71*($C$30) -> 5.704988204 | BS30: =4.78*($C$30) -> 5.789775715 | BT30: =4.85*($C$30) -> 5.874563225 | BU30: =4.92*($C$30) -> 5.959350735 | BV30: =4.99*($C$30) -> 6.044138246 | BW30: =+BV30*BW$137/BV$137 -> 6.058665976 | BX30: =+BW30*BX$137/BW$137 -> 6.073228626 | BY30: 6.087826278 | BZ30: 6.102459018 | CA30: 6.117126928 | CB30: 6.129966715 | CC30: 6.142833453 | CD30: 6.155727198 | CE30: 6.168648006 | CF30: 6.181595935 | CG30: 6.197524392 | CH30: 6.213493892 | CI30: 6.229504542 | CJ30: 6.245556447 | CK30: 6.261649715 | CL30: 6.275052266 | CM30: 6.288483504 | CN30: 6.30194349 | CO30: 6.315432287 | CP30: 6.328949955 | CQ30: 6.341322549 | CR30: 6.35371933 | CS30: 6.366140346 | CT30: 6.378585644 | CU30: 6.391055272 | CV30: 6.405777239 | CW30: 6.420533119 | CX30: 6.435322989 | CY30: 6.450146929 | CZ30: 6.465005015
A31: ='HyARC Physical Property Data'!$A$87 -> Woody Biomass MYPP | B31: 2007 | C31: =VLOOKUP(ref_year,DeflatorTable,2,FALSE)/VLOOKUP(B31,DeflatorTable,2,FALSE) -> 1.144635996 | D31: =+'HyARC Physical Property Data'!$H$87 -> kg | E31: Feed | F31: 18.608 | H31: 4.444325021 | I31: 4.444325021 | J31: 4.444325021 | K31: 4.444325021 | L31: 4.444325021 | M31: 4.444325021 | N31: =4.44432502149613*$C$31 -> 5.087134396 | O31: =N31-($N$31-$U$31)/7 -> 4.96648082 | P31: 4.845827244 | Q31: 4.725173667 | R31: 4.604520091 | S31: 4.483866515 | T31: 4.363212939 | U31: =3.70647033533964*$C$31 -> 4.242559363 | V31: =3.70647033533964*$C$31 -> 4.242559363 | W31: 4.242559363 | X31: 4.242559363 | Y31: 4.242559363 | Z31: 4.242559363 | AA31: 4.242559363 | AB31: 4.242559363 | AC31: 4.242559363 | AD31: 4.242559363 | AE31: 4.242559363 | AF31: 4.242559363 | AG31: 4.242559363 | AH31: 4.242559363 | AI31: 4.242559363 | AJ31: 4.242559363 | AK31: 4.242559363 | AL31: 4.242559363 | AM31: 4.242559363 | AN31: 4.242559363 | AO31: 4.242559363 | AP31: 4.242559363 | AQ31: 4.242559363 | AR31: 4.242559363 | AS31: 4.242559363 | AT31: 4.242559363 | AU31: 4.242559363 | AV31: 4.242559363 | AW31: 4.242559363 | AX31: 4.242559363 | AY31: 4.242559363 | AZ31: 4.242559363 | BA31: 4.242559363 | BB31: 4.242559363 | BC31: 4.242559363 | BD31: 4.242559363 | BE31: 4.242559363 | BF31: 4.242559363 | BG31: 4.242559363 | BH31: 4.242559363 | BI31: 4.242559363 | BJ31: 4.242559363 | BK31: 4.242559363 | BL31: 4.242559363 | BM31: 4.242559363 | BN31: 4.242559363 | BO31: 4.242559363 | BP31: 4.242559363 | BQ31: 4.242559363 | BR31: 4.242559363 | BS31: 4.242559363 | BT31: 4.242559363 | BU31: 4.242559363 | BV31: 4.242559363 | BW31: =+BV31*BW$137/BV$137 -> 4.252756806 | BX31: =+BW31*BX$137/BW$137 -> 4.262978761 | BY31: 4.273225284 | BZ31: 4.283496437 | CA31: 4.293792277 | CB31: 4.302804903 | CC31: 4.311836447 | CD31: 4.320886948 | CE31: 4.329956445 | CF31: 4.33904498 | CG31: 4.350225634 | CH31: 4.361435099 | CI31: 4.372673447 | CJ31: 4.383940754 | CK31: 4.395237094 | CL31: 4.404644741 | CM31: 4.414072524 | CN31: 4.423520487 | CO31: 4.432988672 | CP31: 4.442477123 | CQ31: 4.451161813 | CR31: 4.45986348 | CS31: 4.468582158 | CT31: 4.477317881 | CU31: 4.486070682 | CV31: 4.496404466 | CW31: 4.506762054 | CX31: 4.517143502 | CY31: 4.527548863 | CZ31: 4.537978193
A32: ='HyARC Physical Property Data'!A79 -> Electric Utility Steam Coal | B32: 2011 | C32: =VLOOKUP(ref_year,DeflatorTable,2,FALSE)/VLOOKUP(B32,DeflatorTable,2,FALSE) -> 1.078455477 | D32: =+'HyARC Physical Property Data'!$H$79 -> kg | E32: Feed | F32: ='HyARC Physical Property Data'!E42 -> 22.732203 | G32: ='HyARC Physical Property Data'!I42 -> 23.96761519 | H32: 1.73444996 | I32: 1.73444996 | J32: 1.73444996 | K32: 1.778897364 | L32: 1.929877218 | M32: 1.981077456 | N32: =N50*($C32/mmBTU_to_GJ*$G32/$F32) -> 2.476743341 | O32: 2.565133754 | P32: 2.59237375 | Q32: 2.518692978 | R32: 2.581316731 | S32: 2.582493674 | T32: 2.649529888 | U32: 2.664595199 | V32: 2.673194864 | W32: 2.677033942 | X32: 2.71177426 | Y32: 2.744537916 | Z32: 2.793041577 | AA32: 2.83250907 | AB32: 2.86626429 | AC32: 2.901018619 | AD32: 2.940829926 | AE32: 2.97671701 | AF32: 3.009172419 | AG32: 3.048265919 | AH32: 3.090113166 | AI32: 3.122349784 | AJ32: 3.151280829 | AK32: 3.184025084 | AL32: 3.219986535 | AM32: 3.26591644 | AN32: 3.30558548 | AO32: 3.342505083 | AP32: 3.378857771 | AQ32: 3.416579248 | AR32: 3.450583437 | AS32: =($BB32-$AR32)/10+AR32 -> 3.447867869 | AT32: 3.4451523 | AU32: 3.442436731 | AV32: 3.439721162 | AW32: 3.437005594 | AX32: 3.434290025 | AY32: 3.431574456 | AZ32: 3.428858888 | BA32: 3.426143319 | BB32: =('AEO Data'!$B$28*AM32) -> 3.42342775 | BC32: =(($BQ$32-$BB$32)/15+BB32) -> 3.435442053 | BD32: =(($BQ$32-$BB$32)/15+BC32) -> 3.447456355 | BE32: 3.459470657 | BF32: 3.47148496 | BG32: 3.483499262 | BH32: 3.495513564 | BI32: 3.507527867 | BJ32: 3.519542169 | BK32: 3.531556471 | BL32: 3.543570774 | BM32: 3.555585076 | BN32: 3.567599378 | BO32: 3.579613681 | BP32: 3.591627983 | BQ32: =('AEO Data'!$C$28*BB32) -> 3.603642285 | BR32: =(($BV$32-$BQ$32)/5+BQ32) -> 3.615195206 | BS32: =(($BV$32-$BQ$32)/5+BR32) -> 3.626748126 | BT32: =(($BV$32-$BQ$32)/5+BS32) -> 3.638301046 | BU32: =(($BV$32-$BQ$32)/5+BT32) -> 3.649853966 | BV32: =('AEO Data'!$D$28*BQ32) -> 3.661406886 | BW32: =+BV32*BW$138/BV$138 -> 3.673785939 | BX32: =+BW32*BX$138/BW$138 -> 3.686206845 | BY32: 3.698669745 | BZ32: 3.711174782 | CA32: 3.723722098 | CB32: 3.734383699 | CC32: 3.745075826 | CD32: 3.755798566 | CE32: 3.766552007 | CF32: 3.777336237 | CG32: 3.785570007 | CH32: 3.793821726 | CI32: 3.802091431 | CJ32: 3.810379163 | CK32: 3.81868496 | CL32: 3.824315598 | CM32: 3.829954538 | CN32: 3.835601793 | CO32: 3.841257374 | CP32: 3.846921295 | CQ32: 3.848818053 | CR32: 3.850715747 | CS32: 3.852614377 | CT32: 3.854513942 | CU32: 3.856414444 | CV32: 3.853683013 | CW32: 3.850953516 | CX32: 3.848225952 | CY32: 3.845500321 | CZ32: 3.84277662
